Workbook

Sheet Filtro
A1: Mes | B1: (Todas)
A2: Establecimiento | B2: (Todas)
A3: Comuna/ Hospital | B3: (Todas)
A5: Etiquetas de fila | B5: Suma de Col01 | C5: Suma de Col02 | D5: Suma de Col03 | E5: Suma de Col04 | F5: Suma de Col05 | G5: Suma de Col06 | H5: Suma de Col07 | I5: Suma de Col08 | J5: Suma de Col09 | K5: Suma de Col10 | L5: Suma de Col11 | M5: Suma de Col12 | N5: Suma de Col13 | O5: Suma de Col14 | P5: Suma de Col15 | Q5: Suma de Col16 | R5: Suma de Col17 | S5: Suma de Col18 | T5: Suma de Col19 | U5: Suma de Col20 | V5: Suma de Col21 | W5: Suma de Col22 | X5: Suma de Col23 | Y5: Suma de Col24 | Z5: Suma de Col25 | AA5: Suma de Col26 | AB5: Suma de Col27 | AC5: Suma de Col28 | AD5: Suma de Col29 | AE5: Suma de Col30 | AF5: Suma de Col31 | AG5: Suma de Col32 | AH5: Suma de Col33 | AI5: Suma de Col34 | AJ5: Suma de Col35 | AK5: Suma de Col36 | AL5: Suma de Col37 | AM5: Suma de Col38 | AN5: Suma de Col39 | AO5: Suma de Col40 | AP5: Suma de Col41 | AQ5: Suma de col42 | AR5: Suma de col43 | AS5: Suma de col44 | AT5: Suma de col45 | AU5: Suma de col46 | AV5: Suma de col47 | AW5: Suma de col48
A6: 01010101 | B6: 6 | E6: 0 | F6: 0 | G6: 1 | H6: 3 | I6: 1 | J6: 0 | K6: 0 | L6: 1 | M6: 0 | T6: 0 | U6: 6 | V6: 0 | X6: 0 | Y6: 0 | Z6: 0 | AA6: 0 | AB6: 0 | AC6: 0 | AD6: 0 | AE6: 0 | AF6: 0
A7: 01010103 | B7: 1555 | E7: 0 | F7: 53 | G7: 285 | H7: 427 | I7: 431 | J7: 273 | K7: 78 | L7: 7 | M7: 1 | T7: 5 | U7: 1549 | V7: 159 | X7: 6 | Y7: 2 | Z7: 0 | AA7: 60 | AB7: 101 | AC7: 2 | AD7: 0 | AE7: 0 | AF7: 0
A8: 01010201 | B8: 128 | E8: 0 | F8: 3 | G8: 20 | H8: 45 | I8: 42 | J8: 12 | K8: 5 | L8: 1 | M8: 0 | U8: 128 | V8: 15 | Y8: 0 | Z8: 0 | AA8: 0 | AB8: 1 | AC8: 0 | AD8: 0 | AF8: 0
A9: 01010203 | B9: 38286 | E9: 60 | F9: 1993 | G9: 8297 | H9: 10825 | I9: 10118 | J9: 5603 | K9: 1293 | L9: 90 | M9: 7 | U9: 38288 | V9: 12732 | Y9: 33 | Z9: 12 | AA9: 1485 | AB9: 4378 | AC9: 23 | AD9: 3 | AE9: 0 | AF9: 0
A10: 01010401 | B10: 11 | E10: 0 | F10: 1 | G10: 0 | H10: 2 | I10: 2 | J10: 0 | K10: 2 | L10: 0 | M10: 1 | N10: 2 | O10: 0 | P10: 0 | Q10: 0 | R10: 1 | S10: 0 | T10: 0 | U10: 11 | V10: 1 | X10: 0 | Y10: 0 | Z10: 0 | AA10: 0 | AB10: 2 | AC10: 0 | AD10: 0 | AE10: 0 | AF10: 0 | AG10: 0
A11: 01010403 | B11: 80515 | E11: 1511 | F11: 12593 | G11: 12431 | H11: 13373 | I11: 13062 | J11: 10585 | K11: 8378 | L11: 6113 | M11: 2234 | N11: 161 | O11: 47 | P11: 16 | Q11: 7 | R11: 3 | S11: 1 | T11: 317 | U11: 80148 | V11: 4843 | X11: 2002 | Y11: 19 | Z11: 79 | AA11: 1915 | AB11: 3697 | AC11: 56 | AD11: 54 | AE11: 3 | AF11: 5 | AG11: 217
A12: 01010601 | B12: 1804 | E12: 27 | F12: 90 | G12: 125 | H12: 200 | I12: 233 | J12: 194 | K12: 171 | L12: 203 | M12: 209 | N12: 129 | O12: 83 | P12: 61 | Q12: 41 | R12: 22 | S12: 16 | U12: 1804 | X12: 0 | Y12: 0 | Z12: 0 | AA12: 1 | AB12: 0 | AC12: 0 | AD12: 0 | AF12: 0
A13: 01010603 | B13: 55909 | E13: 260 | F13: 739 | G13: 2068 | H13: 4479 | I13: 5444 | J13: 5763 | K13: 6535 | L13: 6638 | M13: 6800 | N13: 6359 | O13: 5879 | P13: 2883 | Q13: 1243 | R13: 510 | S13: 309 | U13: 55903 | X13: 100 | Y13: 25 | Z13: 5 | AA13: 1225 | AB13: 2723 | AC13: 82 | AD13: 10 | AE13: 0 | AF13: 20 | AG13: 0
A14: 01010901 | B14: 240 | K14: 28 | L14: 60 | M14: 85 | N14: 38 | O14: 29 | U14: 240 | AA14: 6 | AB14: 1 | AC14: 0 | AD14: 0 | AF14: 0
A15: 01010903 | B15: 5360 | K15: 252 | L15: 1417 | M15: 1913 | N15: 1198 | O15: 580 | U15: 5359 | AA15: 195 | AB15: 139 | AC15: 8 | AD15: 0 | AF15: 0
A16: 01030100 | B16: 2187 | C16: 3 | D16: 147 | E16: 1685 | F16: 349 | G16: 11 | H16: 12 | I16: 24 | J16: 188 | K16: 2108 | L16: 1594 | M16: 187 | N16: 11 | O16: 1 | P16: 691 | Q16: 1121 | R16: 1422 | S16: 82 | T16: 1891 | U16: 14 | V16: 79 | W16: 1806 | X16: 1618 | Y16: 1 | Z16: 138 | AA16: 340 | AB16: 1 | AC16: 1 | AD16: 0 | AE16: 0
A17: 01030100A | B17: 5 | C17: 2 | D17: 3 | AE17: 0 | AF17: 2 | AG17: 0 | AH17: 0 | AI17: 2 | AJ17: 0 | AK17: 0 | AL17: 1 | AM17: 0 | AN17: 0
A18: 01030200B | B18: 1022 | C18: 401 | D18: 621 | AE18: 113 | AF18: 185 | AG18: 133 | AH18: 181 | AI18: 65 | AJ18: 147 | AK18: 90 | AL18: 108 | AM18: 23 | AN18: 1
A19: 01030300 | B19: 1233 | C19: 1 | D19: 21 | E19: 851 | F19: 359 | G19: 0 | H19: 0 | I19: 2 | J19: 34 | K19: 1229 | L19: 1190 | M19: 2 | N19: 0 | O19: 11 | P19: 0 | Q19: 7 | R19: 948 | S19: 8 | T19: 116 | U19: 44 | V19: 1314 | W19: 937 | X19: 1059 | Y19: 0 | Z19: 71 | AA19: 137 | AB19: 3 | AC19: 0 | AD19: 0 | AE19: 0
A20: 01030300C | B20: 29 | C20: 13 | D20: 16 | AE20: 3 | AF20: 2 | AG20: 1 | AH20: 4 | AI20: 6 | AJ20: 3 | AK20: 3 | AL20: 7 | AM20: 1 | AN20: 0
A21: 01030400 | B21: 764 | C21: 764 | K21: 2 | L21: 690 | M21: 60 | N21: 641 | O21: 635
A22: 01030400D | B22: 408 | C22: 128 | D22: 280 | AE22: 9 | AF22: 24 | AG22: 17 | AH22: 39 | AI22: 36 | AJ22: 50 | AK22: 66 | AL22: 167 | AM22: 13 | AN22: 2
A23: 01030500 | B23: 2016 | C23: 853 | D23: 1163 | E23: 1711 | F23: 694 | G23: 1017 | H23: 254 | I23: 232 | J23: 22 | K23: 71
A24: 01030600 | B24: 4880 | C24: 2186 | D24: 2693 | E24: 2430 | F24: 906 | G24: 1524 | H24: 673 | I24: 378 | J24: 96 | K24: 250
A25: 01030700 | B25: 4706 | C25: 2178 | D25: 2528 | E25: 2488 | F25: 1241 | G25: 1247 | H25: 319 | I25: 384 | J25: 16 | K25: 34
A26: 01030800 | B26: 61 | C26: 34 | D26: 27 | E26: 34 | F26: 20 | G26: 14 | H26: 7 | I26: 6 | J26: 9 | K26: 13
A27: 01031000 | B27: 1039 | C27: 493 | D27: 546 | E27: 444 | F27: 249 | H27: 0 | I27: 0 | J27: 22 | K27: 67 | L27: 0 | M27: 0
A28: 01031100 | B28: 1430 | C28: 670 | D28: 760 | E28: 605 | F28: 362 | H28: 0 | I28: 0 | J28: 36 | K28: 62 | L28: 0 | M28: 0
A29: 01031200 | B29: 1567 | C29: 741 | D29: 826 | E29: 694 | F29: 414 | H29: 0 | I29: 0 | J29: 40 | K29: 123 | L29: 0 | M29: 0
A30: 01031300 | B30: 1763 | C30: 825 | D30: 938 | E30: 909 | F30: 507 | H30: 0 | I30: 0 | J30: 34 | K30: 130 | L30: 0 | M30: 0
A31: 01031400 | B31: 1602 | C31: 704 | D31: 898 | E31: 753 | F31: 482 | H31: 0 | I31: 0 | J31: 29 | K31: 111 | L31: 0 | M31: 0
A32: 01060100 | B32: 5116 | C32: 15 | D32: 25 | E32: 39 | F32: 99 | G32: 246 | H32: 867 | I32: 3395 | J32: 430 | K32: 78
A33: 01080003 | B33: 30 | C33: 3 | D33: 27 | E33: 2 | F33: 1 | G33: 0 | H33: 6 | I33: 0 | J33: 5 | K33: 1 | L33: 15 | M33: 0 | N33: 0 | O33: 0 | P33: 0 | Q33: 0 | R33: 0 | S33: 0 | T33: 0 | U33: 0 | V33: 0 | W33: 0 | X33: 0 | Y33: 0 | Z33: 0 | AA33: 0 | AB33: 1 | AC33: 0
A34: 01080004 | B34: 466 | C34: 6 | D34: 460 | E34: 0 | F34: 17 | G34: 3 | H34: 106 | I34: 3 | J34: 85 | K34: 0 | L34: 252 | M34: 11 | N34: 0 | O34: 11 | P34: 0 | Q34: 1 | R34: 0 | S34: 1 | T34: 0 | U34: 4 | V34: 0 | W34: 5 | X34: 0 | Y34: 0 | Z34: 2 | AA34: 9 | AB34: 3 | AC34: 19
A35: 01080008 | B35: 6127 | C35: 4 | D35: 5 | E35: 357 | F35: 1281 | G35: 1726 | H35: 1634 | I35: 877 | J35: 227 | K35: 15 | L35: 1 | M35: 0 | N35: 159 | O35: 263 | P35: 988 | Q35: 1 | R35: 1 | S35: 0 | T35: 12 | U35: 422 | V35: 72 | W35: 885
A36: 01080009 | B36: 5354 | C36: 1 | D36: 4 | E36: 288 | F36: 1103 | G36: 1524 | H36: 1452 | I36: 776 | J36: 191 | K36: 15 | L36: 0 | M36: 0 | N36: 113 | O36: 178 | P36: 777 | Q36: 1 | R36: 0 | S36: 0 | T36: 17 | U36: 336 | V36: 48 | W36: 669
A37: 01080010 | B37: 2340 | C37: 4 | D37: 5 | E37: 313 | F37: 774 | G37: 655 | H37: 419 | I37: 146 | J37: 23 | K37: 1 | L37: 0 | M37: 0 | N37: 51 | O37: 109 | P37: 448 | Q37: 1 | R37: 0 | S37: 0 | T37: 12 | U37: 170 | V37: 60 | W37: 271
A38: 01080011 | B38: 702 | C38: 5 | D38: 31 | E38: 96 | F38: 175 | G38: 164 | H38: 108 | I38: 82 | J38: 35 | K38: 6 | L38: 1 | P38: 5 | Q38: 197 | R38: 28 | S38: 3 | T38: 72 | U38: 2 | V38: 4 | W38: 0 | X38: 0 | Y38: 0 | Z38: 1
A39: 01080013 | B39: 977 | C39: 38 | D39: 185 | E39: 134 | F39: 167 | G39: 156 | H39: 116 | I39: 85 | J39: 61 | K39: 33 | L39: 2 | M39: 0 | N39: 0 | O39: 0 | P39: 90 | Q39: 272 | R39: 29 | S39: 9 | T39: 68 | U39: 0 | V39: 6 | W39: 1 | X39: 0 | Y39: 2 | Z39: 0
A40: 01080014 | B40: 531 | C40: 50 | D40: 358 | E40: 30 | F40: 25 | G40: 18 | H40: 16 | I40: 6 | J40: 8 | K40: 5 | L40: 2 | M40: 4 | N40: 6 | O40: 3 | P40: 288 | Q40: 23 | R40: 9 | S40: 25 | T40: 9 | U40: 1 | V40: 3 | W40: 0 | X40: 2 | Y40: 0 | Z40: 0
A41: 01080016 | B41: 343
A42: 01080017 | B42: 72 | C42: 1 | D42: 4 | E42: 12
A43: 01080018 | B43: 110 | C43: 0 | D43: 3 | E43: 7
A44: 01080019 | B44: 730 | C44: 1 | D44: 27 | E44: 90
A45: 01080020 | B45: 7844
A46: 01080021 | B46: 4925 | C46: 392 | D46: 1496 | E46: 891 | F46: 781 | G46: 642 | H46: 386 | I46: 222 | J46: 89 | K46: 20 | L46: 6 | P46: 448 | Q46: 1247 | R46: 157 | S46: 73 | T46: 263 | U46: 5 | V46: 22 | W46: 2 | X46: 0 | Y46: 0 | Z46: 2
A47: 01080022 | B47: 1937 | C47: 18 | D47: 120 | E47: 243 | F47: 352 | G47: 312 | H47: 334 | I47: 284 | J47: 195 | K47: 77 | L47: 2 | M47: 0 | N47: 0 | O47: 0 | P47: 61 | Q47: 605 | R47: 61 | S47: 5 | T47: 128 | U47: 1 | V47: 10 | W47: 1 | X47: 0 | Y47: 0 | Z47: 1
A48: 01080023 | B48: 2463 | C48: 145 | D48: 787 | E48: 500 | F48: 412 | G48: 300 | H48: 195 | I48: 90 | J48: 29 | K48: 5 | L48: 0 | M48: 0 | N48: 0 | O48: 0 | P48: 272 | Q48: 786 | R48: 86 | S48: 40 | T48: 127 | U48: 0 | V48: 14 | W48: 3 | X48: 1 | Y48: 1 | Z48: 0
A49: 01080030 | B49: 4 | I49: 2 | J49: 1 | K49: 1 | U49: 4 | V49: 3 | W49: 3 | Y49: 0 | Z49: 0 | AA49: 0 | AB49: 0 | AC49: 0 | AD49: 0 | AF49: 0
A50: 01080040 | B50: 1420 | E50: 1 | F50: 57 | G50: 284 | H50: 384 | I50: 394 | J50: 230 | K50: 65 | L50: 5 | M50: 0 | U50: 1418 | V50: 452 | W50: 593 | Y50: 0 | Z50: 0 | AA50: 41 | AB50: 156 | AC50: 3 | AD50: 0 | AF50: 0
A51: 01080090 | B51: 2072 | C51: 4 | D51: 1
A52: 01090040 | B52: 61 | C52: 0 | D52: 0 | E52: 7
A53: 01090050 | B53: 3366 | C53: 3 | D53: 6 | E53: 289 | F53: 797 | G53: 894 | H53: 787 | I53: 445 | J53: 133 | K53: 12 | L53: 0 | M53: 0 | N53: 129 | O53: 137 | P53: 464 | Q53: 1 | R53: 0 | S53: 0 | T53: 9 | U53: 196 | V53: 54 | W53: 466
A54: 01090060 | B54: 5523 | C54: 193 | D54: 1069 | E54: 1018 | F54: 1025 | G54: 843 | H54: 605 | I54: 423 | J54: 265 | K54: 80 | L54: 2 | M54: 0 | N54: 0 | O54: 0 | P54: 387 | Q54: 1321 | R54: 168 | S54: 77 | T54: 397 | U54: 9 | V54: 28 | W54: 14 | X54: 0 | Y54: 1 | Z54: 7
A55: 01110106 | B55: 26 | E55: 0 | F55: 1 | G55: 6 | H55: 7 | I55: 10 | J55: 1 | K55: 1 | L55: 0 | M55: 0 | U55: 26 | V55: 15 | W55: 12 | Y55: 0 | Z55: 0 | AA55: 0 | AB55: 5 | AC55: 0 | AD55: 0 | AF55: 0
A56: 01110107 | B56: 3339 | E56: 3 | F56: 143 | G56: 706 | H56: 932 | I56: 892 | J56: 521 | K56: 136 | L56: 6 | M56: 0 | U56: 3338 | V56: 1108 | W56: 1737 | Y56: 0 | Z56: 0 | AA56: 153 | AB56: 322 | AC56: 0 | AD56: 0 | AE56: 0 | AF56: 0
A57: 01200010 | B57: 157 | C57: 44 | D57: 113 | E57: 0 | F57: 0 | G57: 0 | H57: 0 | I57: 0 | J57: 2 | K57: 1 | L57: 1 | M57: 1 | N57: 0 | O57: 0 | P57: 3 | Q57: 0 | R57: 3 | S57: 1 | T57: 5 | U57: 1 | V57: 7 | W57: 2 | X57: 6 | Y57: 4 | Z57: 7 | AA57: 5 | AB57: 14 | AC57: 6 | AD57: 14 | AE57: 7 | AF57: 10 | AG57: 7 | AH57: 13 | AI57: 3 | AJ57: 11 | AK57: 6 | AL57: 17 | AM57: 2 | AN57: 2
A58: 01200020 | B58: 12 | C58: 5 | D58: 7 | E58: 0 | F58: 0 | G58: 0 | H58: 1 | I58: 0 | J58: 0 | K58: 0 | L58: 1 | M58: 0 | N58: 0 | O58: 0 | P58: 0 | Q58: 0 | R58: 0 | S58: 0 | T58: 0 | U58: 0 | V58: 0 | W58: 0 | X58: 0 | Y58: 0 | Z58: 0 | AA58: 1 | AB58: 0 | AC58: 0 | AD58: 1 | AE58: 0 | AF58: 0 | AG58: 1 | AH58: 2 | AI58: 1 | AJ58: 2 | AK58: 2 | AL58: 0 | AM58: 0 | AN58: 0
A59: 01200030 | B59: 376 | C59: 89 | D59: 287 | E59: 0 | F59: 0 | G59: 0 | H59: 0 | I59: 0 | J59: 0 | K59: 12 | L59: 12 | M59: 14 | N59: 39 | O59: 22 | P59: 59 | Q59: 13 | R59: 47 | S59: 6 | T59: 36 | U59: 6 | V59: 39 | W59: 6 | X59: 20 | Y59: 2 | Z59: 5 | AA59: 0 | AB59: 13 | AC59: 4 | AD59: 6 | AE59: 1 | AF59: 7 | AG59: 2 | AH59: 3 | AI59: 1 | AJ59: 0 | AK59: 0 | AL59: 1 | AM59: 1 | AN59: 47
A60: 01200031 | B60: 353 | C60: 187 | D60: 166 | E60: 80 | F60: 80 | G60: 98 | H60: 80 | I60: 5 | J60: 4 | K60: 4 | L60: 2 | AM60: 15 | AN60: 18
A61: 01200032 | B61: 2000 | C61: 1197 | D61: 803 | E61: 668 | F61: 510 | G61: 438 | H61: 237 | I61: 62 | J61: 39 | K61: 29 | L61: 17 | AM61: 27 | AN61: 16
A62: 01200033 | B62: 119 | C62: 70 | D62: 49 | E62: 8 | F62: 8 | G62: 1 | H62: 2 | I62: 17 | J62: 13 | K62: 44 | L62: 26 | AM62: 6 | AN62: 6
A63: 01200034 | B63: 834 | C63: 525 | D63: 309 | E63: 265 | F63: 209 | G63: 200 | H63: 74 | I63: 49 | J63: 17 | K63: 11 | L63: 9 | AM63: 6 | AN63: 3
A64: 01501010 | B64: 260 | C64: 57 | D64: 203 | E64: 3 | F64: 9 | G64: 0 | H64: 6 | I64: 0 | J64: 8 | K64: 1 | L64: 6 | M64: 4 | N64: 7 | O64: 4 | P64: 6 | Q64: 1 | R64: 14 | S64: 4 | T64: 22 | U64: 7 | V64: 26 | W64: 6 | X64: 33 | Y64: 2 | Z64: 22 | AA64: 12 | AB64: 18 | AC64: 7 | AD64: 12 | AE64: 6 | AF64: 14 | AG64: 2 | AH64: 6
A65: 01501020 | B65: 1518 | C65: 553 | D65: 965 | E65: 0 | F65: 2 | G65: 2 | H65: 10 | I65: 1 | J65: 4 | K65: 9 | L65: 15 | M65: 18 | N65: 13 | O65: 7 | P65: 51 | Q65: 27 | R65: 62 | S65: 43 | T65: 86 | U65: 65 | V65: 114 | W65: 73 | X65: 160 | Y65: 95 | Z65: 133 | AA65: 100 | AB65: 129 | AC65: 64 | AD65: 101 | AE65: 49 | AF65: 85 | AG65: 4 | AH65: 19
A66: 01501030 | B66: 12862 | C66: 4063 | D66: 8799 | E66: 2 | F66: 3 | G66: 8 | H66: 9 | I66: 10 | J66: 15 | K66: 10 | L66: 50 | M66: 25 | N66: 71 | O66: 50 | P66: 130 | Q66: 94 | R66: 319 | S66: 184 | T66: 615 | U66: 304 | V66: 832 | W66: 475 | X66: 1150 | Y66: 857 | Z66: 1752 | AA66: 752 | AB66: 1444 | AC66: 609 | AD66: 1089 | AE66: 683 | AF66: 1319 | AG66: 93 | AH66: 329
A67: 01501040 | B67: 9356 | C67: 3121 | D67: 6235 | E67: 2 | F67: 2 | G67: 4 | H67: 10 | I67: 3 | J67: 9 | K67: 11 | L67: 23 | M67: 19 | N67: 60 | O67: 36 | P67: 89 | Q67: 51 | R67: 204 | S67: 90 | T67: 341 | U67: 237 | V67: 514 | W67: 346 | X67: 767 | Y67: 596 | Z67: 1248 | AA67: 554 | AB67: 997 | AC67: 536 | AD67: 791 | AE67: 636 | AF67: 1180 | AG67: 48 | AH67: 146
A68: 01501060 | B68: 569 | E68: 1 | F68: 31 | G68: 104 | H68: 159 | I68: 156 | J68: 88 | K68: 28 | L68: 1 | M68: 1 | U68: 556 | V68: 125 | Y68: 1 | Z68: 0 | AA68: 14 | AB68: 46 | AC68: 0 | AD68: 0 | AF68: 0
A69: 01501070 | B69: 1 | E69: 0 | F69: 0 | G69: 0 | H69: 1 | I69: 0 | J69: 0 | K69: 0 | L69: 0 | M69: 0 | U69: 1 | V69: 1 | Y69: 0 | Z69: 0 | AA69: 0 | AB69: 0 | AC69: 0 | AD69: 0 | AF69: 0
A70: 01501080 | B70: 231 | E70: 0 | F70: 11 | G70: 38 | H70: 49 | I70: 68 | J70: 41 | K70: 23 | L70: 1 | M70: 0 | U70: 231 | V70: 31 | W70: 0 | Y70: 0 | Z70: 1 | AA70: 4 | AB70: 27 | AC70: 2 | AD70: 0 | AF70: 0
A71: 01501090 | B71: 6 | C71: 6 | T71: 3 | U71: 3 | W71: 1 | Y71: 0 | Z71: 0 | AA71: 0 | AB71: 0 | AC71: 0
A72: 01502000 | B72: 921 | C72: 921 | T72: 448 | U72: 472 | W72: 477 | Y72: 0 | Z72: 0 | AA72: 21 | AB72: 3 | AC72: 0
A73: 01502010 | B73: 2 | C73: 2 | T73: 0 | U73: 2 | W73: 0 | Y73: 0 | Z73: 0 | AA73: 0 | AB73: 0 | AC73: 0
A74: 01502020 | B74: 303 | C74: 303 | T74: 142 | U74: 161 | W74: 140 | Y74: 0 | Z74: 1 | AA74: 8 | AB74: 9 | AC74: 0
A75: 01502030 | B75: 306 | C75: 84 | D75: 222 | E75: 4 | F75: 4 | G75: 5 | H75: 11 | I75: 3 | J75: 12 | K75: 6 | L75: 20 | M75: 1 | N75: 12 | O75: 5 | P75: 16 | Q75: 4 | R75: 19 | S75: 7 | T75: 28 | U75: 9 | V75: 22 | W75: 13 | X75: 20 | Y75: 9 | Z75: 38 | AA75: 7 | AB75: 10 | AC75: 6 | AD75: 5 | AE75: 5 | AF75: 5 | AG75: 1 | AH75: 3
A76: 01502040 | B76: 1547 | C76: 575 | D76: 972 | E76: 0 | F76: 6 | G76: 7 | H76: 4 | I76: 5 | J76: 11 | K76: 17 | L76: 13 | M76: 15 | N76: 25 | O76: 16 | P76: 55 | Q76: 29 | R76: 62 | S76: 40 | T76: 107 | U76: 53 | V76: 120 | W76: 79 | X76: 166 | Y76: 98 | Z76: 117 | AA76: 89 | AB76: 109 | AC76: 61 | AD76: 88 | AE76: 66 | AF76: 89 | AG76: 8 | AH76: 11
A77: 01502041 | B77: 457 | G77: 139 | H77: 17 | I77: 13
A78: 01610010 | B78: 2214 | C78: 2027 | D78: 141 | E78: 17 | F78: 14 | G78: 8 | H78: 3 | I78: 3 | J78: 0 | K78: 12 | L78: 26
A79: 01610011 | B79: 5017 | C79: 4541 | D79: 288 | E79: 53 | F79: 31 | G79: 42 | H79: 15 | I79: 24 | J79: 1 | K79: 22 | L79: 40
A80: 01610012 | B80: 5574 | C80: 5118 | D80: 272 | E80: 73 | F80: 23 | G80: 27 | H80: 12 | I80: 26 | J80: 0 | K80: 23 | L80: 58
A81: 01610013 | B81: 5235 | C81: 4809 | D81: 264 | E81: 65 | F81: 20 | G81: 18 | H81: 12 | I81: 22 | J81: 0 | K81: 25 | L81: 64
A82: 01610014 | B82: 4921 | C82: 4535 | D82: 261 | E82: 48 | F82: 20 | G82: 17 | H82: 8 | I82: 16 | J82: 1 | K82: 15 | L82: 43
A83: 01610015 | B83: 4568 | C83: 4273 | D83: 205 | E83: 36 | F83: 12 | G83: 11 | H83: 7 | I83: 13 | J83: 1 | K83: 10 | L83: 38
A84: 01610016 | B84: 4242 | C84: 4035 | D84: 149 | E84: 35 | F84: 4 | G84: 3 | H84: 0 | I84: 7 | J84: 0 | K84: 9 | L84: 25
A85: 01610017 | B85: 4116 | C85: 3876 | D85: 176 | E85: 30 | F85: 5 | G85: 6 | H85: 5 | I85: 9 | J85: 0 | K85: 9 | L85: 31
A86: 01610018 | B86: 3679 | C86: 3519 | D86: 121 | E86: 18 | F86: 3 | G86: 7 | H86: 1 | I86: 7 | J86: 0 | K86: 3 | L86: 29
A87: 01610019 | B87: 1101 | C87: 1051 | D87: 33 | E87: 5 | F87: 3 | G87: 3 | H87: 2 | I87: 3 | J87: 0 | K87: 1 | L87: 5
A88: 01610020 | B88: 257 | C88: 242 | D88: 7 | E88: 4 | F88: 0 | G88: 2 | H88: 1 | I88: 1 | J88: 0 | K88: 0 | L88: 0
A89: 01610021 | B89: 72 | C89: 68 | D89: 3 | E89: 1 | F89: 0 | G89: 0 | H89: 0 | I89: 0 | J89: 0 | K89: 0 | L89: 0
A90: 01610022 | B90: 39 | C90: 36 | D90: 1 | E90: 0 | F90: 0 | G90: 0 | H90: 2 | I90: 0 | J90: 0 | K90: 0 | L90: 0
A91: 01610023 | B91: 13 | C91: 13 | D91: 0 | E91: 0 | F91: 0 | G91: 0 | H91: 0 | I91: 0 | J91: 0 | K91: 0 | L91: 0
A92: 01610024 | B92: 20 | C92: 19 | D92: 1 | E92: 0 | F92: 0 | G92: 0 | H92: 0 | I92: 0 | J92: 0 | K92: 0 | L92: 0
A93: 01610025 | B93: 38 | C93: 36 | D93: 1 | E93: 0 | F93: 0 | G93: 0 | H93: 1 | I93: 0 | J93: 0 | K93: 0 | L93: 0
A94: 01610026 | B94: 39 | C94: 38 | D94: 0 | E94: 1 | F94: 0 | G94: 0 | H94: 0 | I94: 0 | J94: 0 | K94: 0 | L94: 0
A95: 01610027 | B95: 29 | C95: 28 | D95: 0 | E95: 0 | F95: 1 | G95: 0 | H95: 0 | I95: 0 | J95: 0 | K95: 0 | L95: 0
A96: 01610028 | B96: 37 | C96: 32 | D96: 3 | E96: 0 | F96: 1 | G96: 0 | H96: 0 | I96: 0 | J96: 1 | K96: 0 | L96: 0
A97: 01610029 | B97: 31 | C97: 30 | D97: 0 | E97: 1 | F97: 0 | G97: 0 | H97: 0 | I97: 0 | J97: 0 | K97: 0 | L97: 0
A98: 01610030 | B98: 32 | C98: 31 | D98: 0 | E98: 0 | F98: 1 | G98: 0 | H98: 0 | I98: 0 | J98: 0 | K98: 0 | L98: 0
A99: 01610031 | B99: 31 | C99: 26 | D99: 2 | E99: 3 | F99: 0 | G99: 0 | H99: 0 | I99: 0 | J99: 0 | K99: 0 | L99: 0
A100: 01610032 | B100: 20 | C100: 19 | D100: 1 | E100: 0 | F100: 0 | G100: 0 | H100: 0 | I100: 0 | J100: 0 | K100: 0 | L100: 0
A101: 01610033 | B101: 1 | C101: 1 | D101: 0 | E101: 0 | F101: 0 | G101: 0 | H101: 0 | I101: 0 | J101: 0 | K101: 0 | L101: 0
A102: 01610036 | B102: 22 | C102: 21 | D102: 1 | E102: 0 | F102: 0 | G102: 0 | H102: 0 | L102: 0
A103: 01610037 | B103: 29 | C103: 27 | D103: 0 | E103: 0 | F103: 0 | G103: 1 | H103: 1 | I103: 0 | J103: 0 | K103: 0 | L103: 0
A104: 01610038 | B104: 47 | C104: 45 | D104: 1 | E104: 0 | F104: 1 | G104: 0 | H104: 0 | I104: 0 | J104: 0 | K104: 0 | L104: 0
A105: 01610039 | B105: 34 | C105: 32 | D105: 1 | E105: 0 | F105: 0 | G105: 0 | H105: 0 | I105: 1 | J105: 0 | K105: 0 | L105: 0
A106: 01610040 | B106: 34 | C106: 31 | D106: 1 | E106: 0 | F106: 0 | G106: 1 | H106: 0 | I106: 1 | J106: 0 | K106: 0 | L106: 0
A107: 01610041 | B107: 26 | C107: 22 | D107: 3 | E107: 0 | F107: 0 | G107: 0 | H107: 0 | I107: 1 | J107: 0 | K107: 0 | L107: 0
A108: 01610042 | B108: 34 | C108: 32 | D108: 2 | E108: 0 | F108: 0 | G108: 0 | H108: 0 | I108: 0 | J108: 0 | K108: 0 | L108: 0
A109: 01610043 | B109: 23 | C109: 23 | D109: 0 | E109: 0 | F109: 0 | G109: 0 | H109: 0 | I109: 0 | J109: 0 | K109: 0 | L109: 0
A110: 01610044 | B110: 25 | C110: 22 | D110: 2 | E110: 1 | F110: 0 | G110: 0 | H110: 0 | I110: 0 | J110: 0 | K110: 0 | L110: 0
A111: 01610045 | B111: 14 | C111: 11 | D111: 3 | E111: 0 | F111: 0 | G111: 0 | H111: 0 | I111: 0 | J111: 0 | K111: 0 | L111: 0
A112: 01610046 | B112: 4 | C112: 3 | D112: 1 | E112: 0 | F112: 0 | H112: 0 | L112: 0
A113: 01610047 | B113: 1 | C113: 1 | D113: 0 | E113: 0 | F113: 0 | G113: 0 | H113: 0 | L113: 0
A114: 01610049 | B114: 324 | C114: 263 | D114: 10 | E114: 2 | F114: 59 | G114: 0 | H114: 0 | I114: 1 | J114: 0 | K114: 0 | L114: 0 | M114: 0
A115: 01610050 | B115: 297 | C115: 243 | D115: 17 | E115: 5 | F115: 44 | G115: 1 | H115: 0 | I115: 1 | J115: 0 | K115: 0 | L115: 0 | M115: 0
A116: 01610051 | B116: 235 | C116: 199 | D116: 6 | E116: 1 | F116: 41 | G116: 0 | H116: 0 | I116: 1 | J116: 0 | K116: 0 | L116: 0 | M116: 0
A117: 01610052 | B117: 185 | C117: 163 | D117: 1 | E117: 2 | F117: 18 | G117: 1 | H117: 0 | I117: 0 | J117: 0 | K117: 0 | L117: 0 | M117: 0
A118: 01610053 | B118: 163 | C118: 150 | D118: 1 | E118: 3 | F118: 14 | G118: 2 | H118: 0 | I118: 2 | J118: 0 | K118: 0 | L118: 0 | M118: 0
A119: 01610054 | B119: 136 | C119: 120 | D119: 2 | E119: 1 | F119: 17 | G119: 0 | H119: 0 | I119: 1 | J119: 0 | K119: 0 | L119: 0 | M119: 0
A120: 01610055 | B120: 92 | C120: 80 | D120: 4 | E120: 0 | F120: 12 | G120: 0 | H120: 0 | I120: 3 | J120: 0 | K120: 0 | L120: 0 | M120: 0
A121: 01610056 | B121: 11 | C121: 8 | D121: 0 | E121: 1 | F121: 2 | G121: 0 | H121: 0 | I121: 2 | J121: 0 | K121: 0 | L121: 0 | M121: 0
A122: 01610059 | B122: 1 | C122: 1 | D122: 0 | E122: 0 | F122: 0 | G122: 0 | H122: 0 | I122: 0 | J122: 0 | K122: 0 | L122: 0 | M122: 0
A123: 01610060 | B123: 7 | C123: 5 | D123: 0 | E123: 0 | F123: 1 | G123: 0 | H123: 0
A124: 01610061 | B124: 5 | C124: 4 | D124: 0 | E124: 0 | F124: 1 | G124: 0 | H124: 0
A125: 01610062 | B125: 5 | C125: 4 | D125: 0 | E125: 1 | F125: 0 | G125: 0 | H125: 0
A126: 01610063 | B126: 3 | C126: 2 | D126: 0 | E126: 0 | F126: 1 | G126: 0 | H126: 0
A127: 01610064 | B127: 4 | C127: 4 | D127: 0 | E127: 0 | F127: 1 | G127: 0 | H127: 0
A128: 01610065 | B128: 5 | C128: 5 | D128: 0 | E128: 0 | F128: 1 | G128: 0 | H128: 0
A129: 01610066 | B129: 1 | C129: 1 | D129: 0 | E129: 0 | F129: 0 | G129: 0 | H129: 0
A130: 01610071 | B130: 2 | D130: 2 | G130: 0 | H130: 0
A131: 01610072 | B131: 1 | F131: 1 | G131: 0 | H131: 0
A132: 01610073 | B132: 1 | C132: 1 | G132: 0 | H132: 0
A133: 01610074 | B133: 1 | C133: 1 | G133: 0 | H133: 0
A134: 02010101 | B134: 23621 | C134: 10362 | D134: 13273 | E134: 165 | F134: 4290 | G134: 414 | H134: 4071 | I134: 452 | J134: 120 | K134: 49 | L134: 95 | M134: 84 | N134: 119 | O134: 220 | P134: 206 | Q134: 317 | R134: 1287 | S134: 1251 | T134: 775 | U134: 168 | V134: 241 | W134: 287 | X134: 355 | Y134: 429 | Z134: 565 | AA134: 825 | AB134: 1085 | AC134: 1357 | AD134: 1464 | AE134: 1312 | AF134: 1066 | AG134: 1225 | AH134: 2532 | AI134: 38 | AJ134: 13 | AK134: 133 | AL134: 702 | AM134: 721
A135: 02010103 | B135: 24762 | C135: 5839 | D135: 18923 | E135: 4084 | R135: 3 | S135: 5196 | T135: 3886 | U135: 1289 | V135: 1583 | W135: 1744 | X135: 1925 | Y135: 1513 | Z135: 1361 | AA135: 1107 | AB135: 802 | AC135: 681 | AD135: 306 | AE135: 131 | AF135: 51 | AG135: 22 | AH135: 1806 | AI135: 0 | AJ135: 71 | AK135: 95 | AL135: 631 | AM135: 595
A136: 02010105 | B136: 52 | C136: 24 | D136: 28 | M136: 0 | N136: 0 | O136: 21 | P136: 10 | Q136: 3 | R136: 16 | AI136: 0 | AJ136: 0 | AK136: 0 | AL136: 0 | AM136: 0
A137: 02010201 | B137: 103368 | C137: 49295 | D137: 54081 | E137: 221 | F137: 134 | G137: 4538 | H137: 300 | I137: 4271 | J137: 425 | K137: 3985 | L137: 5675 | M137: 5799 | N137: 5904 | O137: 12767 | P137: 4870 | Q137: 5241 | R137: 16165 | S137: 5210 | T137: 2450 | U137: 407 | V137: 489 | W137: 616 | X137: 718 | Y137: 878 | Z137: 1006 | AA137: 1346 | AB137: 1900 | AC137: 2327 | AD137: 4714 | AE137: 4734 | AF137: 3633 | AG137: 4790 | AH137: 4590 | AI137: 4875 | AJ137: 123 | AK137: 534 | AL137: 2619 | AM137: 2679
A138: 02010320 | B138: 12526 | C138: 6057 | D138: 6469 | E138: 49 | F138: 57 | G138: 2028 | H138: 1927 | I138: 444 | J138: 432 | K138: 1998 | L138: 2096 | M138: 1476 | N138: 1875 | O138: 62 | P138: 82 | Q138: 172 | R138: 134
A139: 02010321 | B139: 1393 | C139: 869 | D139: 524 | E139: 6 | F139: 3 | G139: 124 | H139: 95 | I139: 75 | J139: 49 | K139: 366 | L139: 232 | M139: 289 | N139: 140 | O139: 9 | P139: 5 | Q139: 18 | R139: 25
A140: 02010322 | B140: 364 | C140: 248 | D140: 116 | E140: 2 | F140: 2 | G140: 10 | H140: 6 | I140: 21 | J140: 6 | K140: 135 | L140: 69 | M140: 73 | N140: 32 | O140: 7 | P140: 1 | Q140: 8 | R140: 3
A141: 02010420 | B141: 743 | C141: 418 | D141: 325 | E141: 3 | F141: 1 | G141: 54 | H141: 53 | I141: 35 | J141: 28 | K141: 220 | L141: 168 | M141: 92 | N141: 72 | O141: 14 | P141: 3 | Q141: 10 | R141: 6
A142: 02010421 | B142: 148 | C142: 109 | D142: 39 | E142: 0 | F142: 0 | G142: 8 | H142: 8 | I142: 7 | J142: 3 | K142: 40 | L142: 20 | M142: 49 | N142: 8 | O142: 5 | P142: 0 | Q142: 0 | R142: 3
A143: 02010422 | B143: 60 | C143: 43 | D143: 17 | E143: 0 | F143: 0 | G143: 3 | H143: 0 | I143: 3 | J143: 1 | K143: 20 | L143: 9 | M143: 15 | N143: 6 | O143: 2 | P143: 1 | Q143: 0 | R143: 0
A144: 02021730 | B144: 12325 | C144: 6096 | D144: 6229 | E144: 51 | F144: 33 | G144: 62 | H144: 65 | I144: 3 | J144: 10 | K144: 86 | L144: 89 | M144: 1885 | N144: 1858 | O144: 112 | P144: 132 | Q144: 25 | R144: 22 | S144: 63 | T144: 63 | U144: 1875 | V144: 1931 | W144: 1934 | X144: 2026
A145: 02021740 | B145: 16819 | C145: 8802 | D145: 8017 | E145: 64 | F145: 67 | G145: 2319 | H145: 2160 | I145: 698 | J145: 592 | K145: 2984 | L145: 2672 | M145: 2598 | N145: 2425 | O145: 139 | P145: 101 | Q145: 180 | R145: 166
A146: 02021790 | B146: 933 | C146: 579 | D146: 354 | E146: 7 | F146: 2 | G146: 86 | H146: 76 | I146: 57 | J146: 43 | K146: 122 | L146: 76 | M146: 301 | N146: 154 | O146: 6 | P146: 3 | Q146: 10 | R146: 11
A147: 02021810 | B147: 1191 | C147: 742 | D147: 449 | E147: 11 | F147: 6 | G147: 112 | H147: 79 | I147: 64 | J147: 40 | K147: 297 | L147: 192 | M147: 248 | N147: 127 | O147: 10 | P147: 5 | Q147: 15 | R147: 14
A148: 02021820 | B148: 300 | C148: 209 | D148: 91 | E148: 1 | F148: 4 | G148: 9 | H148: 4 | I148: 21 | J148: 5 | K148: 115 | L148: 52 | M148: 55 | N148: 26 | O148: 8 | P148: 0 | Q148: 3 | R148: 5
A149: 02021830 | B149: 6107 | C149: 1867 | D149: 183 | E149: 331 | F149: 416
A150: 02200010 | B150: 14417 | C150: 5419 | D150: 8998 | E150: 15 | F150: 20 | G150: 340 | H150: 566 | I150: 469 | J150: 785 | K150: 560 | L150: 955 | M150: 548 | N150: 1084 | O150: 515 | P150: 1066 | Q150: 505 | R150: 971 | S150: 543 | T150: 916 | U150: 494 | V150: 722 | W150: 499 | X150: 617 | Y150: 352 | Z150: 584 | AA150: 297 | AB150: 371 | AC150: 165 | AD150: 182 | AE150: 117 | AF150: 159 | AG150: 201 | AH150: 158
A151: 02200020 | B151: 21287 | C151: 8673 | D151: 12614 | E151: 17 | F151: 21 | G151: 170 | H151: 176 | I151: 243 | J151: 240 | K151: 290 | L151: 342 | M151: 349 | N151: 469 | O151: 387 | P151: 638 | Q151: 479 | R151: 761 | S151: 666 | T151: 983 | U151: 729 | V151: 1093 | W151: 941 | X151: 1147 | Y151: 1056 | Z151: 1583 | AA151: 1195 | AB151: 1674 | AC151: 1004 | AD151: 1417 | AE151: 1147 | AF151: 2070 | AG151: 310 | AH151: 305
A152: 02200030 | B152: 15591 | C152: 5568 | D152: 10023 | E152: 7 | F152: 22 | G152: 145 | H152: 368 | I152: 205 | J152: 471 | K152: 265 | L152: 641 | M152: 365 | N152: 729 | O152: 360 | P152: 810 | Q152: 429 | R152: 867 | S152: 461 | T152: 930 | U152: 554 | V152: 1003 | W152: 653 | X152: 967 | Y152: 557 | Z152: 912 | AA152: 586 | AB152: 863 | AC152: 469 | AD152: 679 | AE152: 512 | AF152: 761 | AG152: 239 | AH152: 267
A153: 02200040 | B153: 7009 | C153: 2094 | D153: 4915 | E153: 0 | F153: 6 | G153: 23 | H153: 65 | I153: 38 | J153: 100 | K153: 61 | L153: 157 | M153: 100 | N153: 222 | O153: 145 | P153: 338 | Q153: 165 | R153: 396 | S153: 169 | T153: 520 | U153: 230 | V153: 550 | W153: 236 | X153: 545 | Y153: 264 | Z153: 626 | AA153: 276 | AB153: 529 | AC153: 186 | AD153: 419 | AE153: 201 | AF153: 442 | AG153: 58 | AH153: 55
A154: 03010501 | B154: 148173 | C154: 51633 | D154: 96540 | K154: 85 | L154: 128 | M154: 119 | N154: 281 | O154: 181 | P154: 505 | Q154: 363 | R154: 1062 | S154: 704 | T154: 1890 | U154: 1044 | V154: 3050 | W154: 1728 | X154: 4745 | Y154: 2966 | Z154: 7250 | AA154: 4628 | AB154: 10750 | AC154: 6894 | AD154: 13859 | AE154: 8701 | AF154: 14740 | AG154: 8715 | AH154: 13453 | AI154: 7094 | AJ154: 11031 | AK154: 8411 | AL154: 13796 | AM154: 3527 | AN154: 1985 | AO154: 136
A155: 03010502 | B155: 68056 | C155: 25177 | D155: 42879 | K155: 20 | L155: 32 | M155: 50 | N155: 67 | O155: 72 | P155: 193 | Q155: 166 | R155: 423 | S155: 315 | T155: 754 | U155: 542 | V155: 1297 | W155: 774 | X155: 1978 | Y155: 1390 | Z155: 3124 | AA155: 2185 | AB155: 4701 | AC155: 3188 | AD155: 5982 | AE155: 4382 | AF155: 6847 | AG155: 4466 | AH155: 6185 | AI155: 3328 | AJ155: 4974 | AK155: 4299 | AL155: 6322 | AM155: 1310 | AN155: 698 | AO155: 213
A156: 03010504 | B156: 68514 | C156: 23299 | D156: 45215 | K156: 29 | L156: 48 | M156: 59 | N156: 118 | O156: 92 | P156: 249 | Q156: 203 | R156: 579 | S156: 383 | T156: 992 | U156: 555 | V156: 1597 | W156: 778 | X156: 2543 | Y156: 1363 | Z156: 3716 | AA156: 2219 | AB156: 5167 | AC156: 3078 | AD156: 6544 | AE156: 3822 | AF156: 6833 | AG156: 3962 | AH156: 6014 | AI156: 3038 | AJ156: 4877 | AK156: 3718 | AL156: 5938 | AM156: 1035 | AN156: 748 | AO156: 300
A157: 03010505 | B157: 141 | C157: 59 | D157: 82 | K157: 0 | L157: 0 | M157: 2 | N157: 2 | O157: 2 | P157: 5 | Q157: 6 | R157: 5 | S157: 3 | T157: 3 | U157: 2 | V157: 5 | W157: 8 | X157: 9 | Y157: 6 | Z157: 5 | AA157: 4 | AB157: 4 | AC157: 4 | AD157: 12 | AE157: 7 | AF157: 10 | AG157: 8 | AH157: 3 | AI157: 5 | AJ157: 10 | AK157: 2 | AL157: 9 | AM157: 0 | AN157: 0 | AO157: 0
A158: 03020101 | B158: 16361 | C158: 6605 | D158: 9756 | E158: 352 | F158: 313 | G158: 1039 | H158: 1057 | I158: 1239 | J158: 1194 | K158: 893 | L158: 756 | M158: 392 | N158: 553 | O158: 156 | P158: 301 | Q158: 132 | R158: 414 | S158: 178 | T158: 437 | U158: 175 | V158: 483 | W158: 170 | X158: 454 | Y158: 164 | Z158: 509 | AA158: 197 | AB158: 560 | AC158: 219 | AD158: 579 | AE158: 281 | AF158: 597 | AG158: 310 | AH158: 532 | AI158: 275 | AJ158: 411 | AK158: 220 | AL158: 291 | AM158: 213 | AN158: 315 | AO158: 376 | AP158: 352 | AQ158: 9 | AR158: 15 | AS158: 312
A159: 03020201 | B159: 944 | C159: 509 | D159: 435 | E159: 95 | F159: 63 | G159: 254 | H159: 230 | I159: 160 | J159: 142 | K159: 0 | L159: 0 | M159: 0 | N159: 0 | O159: 0 | P159: 0 | Q159: 0 | R159: 0 | S159: 0 | T159: 0 | U159: 0 | V159: 0 | W159: 0 | X159: 0 | Y159: 0 | Z159: 0 | AA159: 0 | AB159: 0 | AC159: 0 | AD159: 0 | AE159: 0 | AF159: 0 | AG159: 0 | AH159: 0 | AI159: 0 | AJ159: 0 | AK159: 0 | AL159: 0 | AM159: 0 | AN159: 0 | AO159: 21 | AP159: 31 | AQ159: 0 | AR159: 1 | AS159: 67
A160: 03020301 | B160: 2172 | C160: 780 | D160: 1392 | E160: 22 | F160: 6 | G160: 63 | H160: 64 | I160: 70 | J160: 68 | K160: 58 | L160: 36 | M160: 15 | N160: 29 | O160: 7 | P160: 22 | Q160: 15 | R160: 19 | S160: 12 | T160: 34 | U160: 18 | V160: 49 | W160: 10 | X160: 53 | Y160: 20 | Z160: 50 | AA160: 18 | AB160: 90 | AC160: 47 | AD160: 96 | AE160: 43 | AF160: 110 | AG160: 64 | AH160: 146 | AI160: 68 | AJ160: 147 | AK160: 70 | AL160: 113 | AM160: 164 | AN160: 256 | AO160: 48 | AP160: 46 | AQ160: 3 | AR160: 0 | AS160: 68
A161: 03020401 | B161: 8459 | C161: 3366 | D161: 5093 | E161: 137 | F161: 103 | G161: 407 | H161: 445 | I161: 527 | J161: 456 | K161: 430 | L161: 360 | M161: 198 | N161: 218 | O161: 80 | P161: 136 | Q161: 61 | R161: 141 | S161: 103 | T161: 250 | U161: 91 | V161: 249 | W161: 88 | X161: 245 | Y161: 98 | Z161: 255 | AA161: 86 | AB161: 260 | AC161: 114 | AD161: 337 | AE161: 177 | AF161: 364 | AG161: 185 | AH161: 363 | AI161: 198 | AJ161: 309 | AK161: 171 | AL161: 260 | AM161: 215 | AN161: 342 | AO161: 360 | AP161: 228 | AQ161: 1 | AR161: 7 | AS161: 652
A162: 03020402 | B162: 1442 | C162: 529 | D162: 913 | I162: 127 | J162: 114 | K162: 97 | L162: 57 | M162: 51 | N162: 56 | O162: 22 | P162: 36 | Q162: 15 | R162: 26 | S162: 20 | T162: 42 | U162: 22 | V162: 50 | W162: 9 | X162: 40 | Y162: 17 | Z162: 58 | AA162: 13 | AB162: 58 | AC162: 23 | AD162: 74 | AE162: 21 | AF162: 89 | AG162: 17 | AH162: 77 | AI162: 31 | AJ162: 47 | AK162: 15 | AL162: 43 | AM162: 29 | AN162: 46 | AO162: 40 | AP162: 31 | AQ162: 0 | AR162: 0 | AS162: 42
A163: 03020403 | B163: 715 | C163: 372 | D163: 343 | U163: 1 | V163: 3 | W163: 2 | X163: 1 | Y163: 6 | Z163: 7 | AA163: 5 | AB163: 12 | AC163: 19 | AD163: 18 | AE163: 34 | AF163: 31 | AG163: 51 | AH163: 45 | AI163: 82 | AJ163: 72 | AK163: 78 | AL163: 49 | AM163: 94 | AN163: 105 | AO163: 17 | AP163: 14 | AQ163: 0 | AR163: 0 | AS163: 16
A164: 03020501 | B164: 342986 | C164: 128470 | D164: 214516 | E164: 2454 | F164: 2294 | G164: 6221 | H164: 5682 | I164: 8536 | J164: 7842 | K164: 8177 | L164: 7968 | M164: 6736 | N164: 8989 | O164: 3878 | P164: 7172 | Q164: 3976 | R164: 8720 | S164: 4485 | T164: 10744 | U164: 4863 | V164: 12017 | W164: 5062 | X164: 12792 | Y164: 5905 | Z164: 13787 | AA164: 7008 | AB164: 16001 | AC164: 9098 | AD164: 18220 | AE164: 11079 | AF164: 20340 | AG164: 11564 | AH164: 18519 | AI164: 11047 | AJ164: 15734 | AK164: 8269 | AL164: 12161 | AM164: 10112 | AN164: 15534 | AO164: 9316 | AP164: 10925 | AQ164: 159 | AR164: 207 | AS164: 239
A165: 03020604 | B165: 30131 | C165: 11311 | D165: 18902 | E165: 3366 | F165: 3405 | G165: 2806 | H165: 2679 | I165: 993 | J165: 849 | K165: 910 | L165: 1106 | M165: 557 | N165: 1235 | O165: 109 | P165: 1281 | Q165: 105 | R165: 1442 | S165: 110 | T165: 1433 | U165: 133 | V165: 908 | W165: 110 | X165: 602 | Y165: 101 | Z165: 490 | AA165: 152 | AB165: 493 | AC165: 190 | AD165: 520 | AE165: 234 | AF165: 541 | AG165: 327 | AH165: 536 | AI165: 360 | AJ165: 445 | AK165: 296 | AL165: 375 | AM165: 452 | AN165: 562 | AO165: 625 | AP165: 827 | AQ165: 860 | AR165: 20 | AS165: 553
A166: 03020702 | B166: 51222 | C166: 23065 | D166: 28157 | E166: 632 | F166: 608 | G166: 1212 | H166: 1160 | I166: 742 | J166: 725 | K166: 691 | L166: 702 | M166: 576 | N166: 600 | O166: 309 | P166: 476 | Q166: 308 | R166: 666 | S166: 529 | T166: 822 | U166: 469 | V166: 914 | W166: 632 | X166: 1121 | Y166: 767 | Z166: 1509 | AA166: 1347 | AB166: 1669 | AC166: 1855 | AD166: 2720 | AE166: 2577 | AF166: 2840 | AG166: 2708 | AH166: 3112 | AI166: 2771 | AJ166: 2621 | AK166: 2008 | AL166: 1883 | AM166: 2932 | AN166: 4009 | AO166: 1408 | AP166: 969 | AQ166: 6 | AR166: 24 | AS166: 1735
A167: 03020806 | B167: 71536 | C167: 25923 | D167: 45613 | E167: 948 | F167: 937 | G167: 1355 | H167: 1063 | I167: 2354 | J167: 1629 | K167: 2067 | L167: 2003 | M167: 1697 | N167: 2262 | O167: 964 | P167: 2956 | Q167: 1046 | R167: 3924 | S167: 1125 | T167: 4365 | U167: 1176 | V167: 3397 | W167: 1036 | X167: 2857 | Y167: 1149 | Z167: 2626 | AA167: 1346 | AB167: 2927 | AC167: 1603 | AD167: 3251 | AE167: 1984 | AF167: 2991 | AG167: 1575 | AH167: 2202 | AI167: 1342 | AJ167: 1737 | AK167: 1263 | AL167: 1545 | AM167: 1893 | AN167: 2941 | AO167: 1366 | AP167: 6532 | AQ167: 46 | AR167: 100 | AS167: 1759
A168: 03020908 | B168: 15863 | C168: 5397 | D168: 10466 | E168: 46 | F168: 52 | G168: 319 | H168: 220 | I168: 896 | J168: 711 | K168: 1218 | L168: 1828 | M168: 880 | N168: 1400 | O168: 157 | P168: 480 | Q168: 157 | R168: 547 | S168: 163 | T168: 725 | U168: 159 | V168: 601 | W168: 119 | X168: 493 | Y168: 107 | Z168: 450 | AA168: 120 | AB168: 488 | AC168: 158 | AD168: 475 | AE168: 137 | AF168: 432 | AG168: 174 | AH168: 461 | AI168: 188 | AJ168: 380 | AK168: 156 | AL168: 314 | AM168: 243 | AN168: 409 | AO168: 145 | AP168: 265 | AQ168: 1803 | AR168: 19 | AS168: 734
A169: 03021106 | B169: 6563 | C169: 2783 | D169: 3780 | E169: 11 | F169: 7 | G169: 18 | H169: 14 | I169: 22 | J169: 44 | K169: 47 | L169: 66 | M169: 84 | N169: 179 | O169: 96 | P169: 252 | Q169: 152 | R169: 282 | S169: 198 | T169: 355 | U169: 298 | V169: 414 | W169: 430 | X169: 529 | Y169: 459 | Z169: 535 | AA169: 434 | AB169: 395 | AC169: 259 | AD169: 307 | AE169: 275 | AF169: 401 | AG169: 104 | AH169: 177
A170: 03021107 | B170: 3482 | C170: 1602 | D170: 1880 | E170: 2 | F170: 5 | G170: 7 | H170: 6 | I170: 7 | J170: 18 | K170: 38 | L170: 50 | M170: 54 | N170: 93 | O170: 77 | P170: 127 | Q170: 118 | R170: 151 | S170: 144 | T170: 177 | U170: 195 | V170: 230 | W170: 252 | X170: 288 | Y170: 268 | Z170: 272 | AA170: 214 | AB170: 193 | AC170: 106 | AD170: 131 | AE170: 120 | AF170: 139 | AG170: 49 | AH170: 72
A171: 03021108 | B171: 3977 | C171: 1543 | D171: 2434 | E171: 5 | F171: 9 | G171: 8 | H171: 16 | I171: 12 | J171: 24 | K171: 27 | L171: 48 | M171: 61 | N171: 100 | O171: 70 | P171: 155 | Q171: 83 | R171: 179 | S171: 128 | T171: 260 | U171: 191 | V171: 307 | W171: 223 | X171: 388 | Y171: 256 | Z171: 367 | AA171: 225 | AB171: 224 | AC171: 127 | AD171: 179 | AE171: 127 | AF171: 178 | AG171: 71 | AH171: 77
A172: 03030101 | B172: 3227 | C172: 1130 | D172: 2097 | E172: 11 | F172: 12 | G172: 53 | H172: 76 | I172: 51 | J172: 98 | K172: 47 | L172: 122 | M172: 69 | N172: 181 | O172: 80 | P172: 189 | Q172: 96 | R172: 238 | S172: 137 | T172: 277 | U172: 218 | V172: 345 | W172: 250 | X172: 381 | Y172: 30 | Z172: 42 | AA172: 39 | AB172: 62 | AC172: 24 | AD172: 33 | AE172: 25 | AF172: 41 | AG172: 44 | AH172: 15
A173: 03030102 | B173: 64363 | C173: 23701 | D173: 40662 | E173: 170 | F173: 308 | G173: 752 | H173: 1568 | I173: 816 | J173: 1826 | K173: 1010 | L173: 2026 | M173: 943 | N173: 2179 | O173: 964 | P173: 1967 | Q173: 969 | R173: 2129 | S173: 1076 | T173: 2199 | U173: 1296 | V173: 2256 | W173: 1477 | X173: 2394 | Y173: 3528 | Z173: 5865 | AA173: 3863 | AB173: 5421 | AC173: 3145 | AD173: 4616 | AE173: 3692 | AF173: 5908 | AG173: 898 | AH173: 1185
A174: 03030103 | B174: 4337 | C174: 523 | D174: 3814 | E174: 57 | F174: 110 | G174: 40 | H174: 366 | I174: 47 | J174: 405 | K174: 33 | L174: 473 | M174: 45 | N174: 442 | O174: 29 | P174: 333 | Q174: 27 | R174: 476 | S174: 50 | T174: 421 | U174: 40 | V174: 339 | W174: 44 | X174: 253 | Y174: 31 | Z174: 46 | AA174: 31 | AB174: 55 | AC174: 21 | AD174: 34 | AE174: 28 | AF174: 61 | AG174: 37 | AH174: 56
A175: 03030104 | B175: 13350 | C175: 4355 | D175: 8995 | E175: 47 | F175: 100 | G175: 298 | H175: 641 | I175: 344 | J175: 764 | K175: 367 | L175: 981 | M175: 401 | N175: 937 | O175: 366 | P175: 872 | Q175: 383 | R175: 852 | S175: 391 | T175: 939 | U175: 416 | V175: 874 | W175: 464 | X175: 878 | Y175: 241 | Z175: 313 | AA175: 219 | AB175: 283 | AC175: 176 | AD175: 251 | AE175: 242 | AF175: 310 | AG175: 153 | AH175: 195
A176: 03030110 | B176: 17726 | C176: 5840 | D176: 11886 | E176: 43 | F176: 78 | G176: 462 | H176: 1062 | I176: 593 | J176: 1324 | K176: 608 | L176: 1452 | M176: 700 | N176: 1548 | O176: 657 | P176: 1551 | Q176: 681 | R176: 1244 | S176: 657 | T176: 1242 | U176: 644 | V176: 1288 | W176: 717 | X176: 1021 | Y176: 38 | Z176: 25 | AA176: 20 | AB176: 12 | AC176: 8 | AD176: 14 | AE176: 12 | AF176: 25 | AG176: 288 | AH176: 446
A177: 03030120 | B177: 38102 | C177: 14316 | D177: 23786 | E177: 74 | F177: 168 | G177: 542 | H177: 1146 | I177: 705 | J177: 1477 | K177: 878 | L177: 1736 | M177: 910 | N177: 1848 | O177: 932 | P177: 1786 | Q177: 939 | R177: 1821 | S177: 994 | T177: 1893 | U177: 1155 | V177: 1899 | W177: 1437 | X177: 1905 | Y177: 1537 | Z177: 2258 | AA177: 1587 | AB177: 2070 | AC177: 1282 | AD177: 1784 | AE177: 1346 | AF177: 1994 | AG177: 540 | AH177: 681
A178: 03030130 | B178: 39254 | C178: 10902 | D178: 28352 | E178: 73 | F178: 159 | G178: 450 | H178: 1357 | I178: 581 | J178: 1862 | K178: 755 | L178: 2266 | M178: 812 | N178: 2506 | O178: 827 | P178: 2368 | Q178: 873 | R178: 2455 | S178: 963 | T178: 2472 | U178: 1056 | V178: 2510 | W178: 1062 | X178: 2310 | Y178: 1049 | Z178: 2614 | AA178: 1028 | AB178: 2228 | AC178: 719 | AD178: 1620 | AE178: 653 | AF178: 1627 | AG178: 577 | AH178: 654
A179: 03030140 | B179: 34734 | C179: 10654 | D179: 24080 | E179: 224 | F179: 106 | G179: 233 | H179: 101 | I179: 152 | J179: 117 | K179: 166 | L179: 265 | M179: 111 | N179: 319 | O179: 144 | P179: 440 | Q179: 140 | R179: 666 | S179: 140 | T179: 902 | U179: 259 | V179: 953 | W179: 274 | X179: 1287 | Y179: 428 | Z179: 1748 | AA179: 654 | AB179: 2459 | AC179: 1189 | AD179: 3214 | AE179: 1413 | AF179: 3152 | AG179: 1609 | AH179: 2961 | AI179: 1345 | AJ179: 2193 | AK179: 2173 | AL179: 3197 | AM179: 778 | AN179: 391
A180: 03030150 | B180: 4521 | C180: 1394 | D180: 3127 | E180: 41 | F180: 25 | G180: 15 | H180: 18 | I180: 5 | J180: 4 | K180: 14 | L180: 11 | M180: 16 | N180: 42 | O180: 11 | P180: 46 | Q180: 5 | R180: 55 | S180: 9 | T180: 76 | U180: 22 | V180: 85 | W180: 28 | X180: 147 | Y180: 51 | Z180: 187 | AA180: 93 | AB180: 303 | AC180: 183 | AD180: 386 | AE180: 206 | AF180: 504 | AG180: 207 | AH180: 437 | AI180: 193 | AJ180: 381 | AK180: 295 | AL180: 420 | AM180: 135 | AN180: 31
A181: 03030160 | B181: 5840 | C181: 1571 | D181: 4269 | E181: 212 | F181: 182 | G181: 77 | H181: 59 | I181: 80 | J181: 80 | K181: 43 | L181: 144 | M181: 47 | N181: 197 | O181: 36 | P181: 248 | Q181: 41 | R181: 285 | S181: 60 | T181: 284 | U181: 41 | V181: 231 | W181: 64 | X181: 267 | Y181: 56 | Z181: 306 | AA181: 86 | AB181: 341 | AC181: 135 | AD181: 385 | AE181: 116 | AF181: 356 | AG181: 159 | AH181: 326 | AI181: 130 | AJ181: 268 | AK181: 188 | AL181: 310 | AM181: 155 | AN181: 147
A182: 03030170 | B182: 71 | C182: 9 | D182: 62 | E182: 2 | F182: 0 | G182: 0 | H182: 4 | I182: 0 | J182: 2 | K182: 1 | L182: 5 | M182: 1 | N182: 10 | O182: 0 | P182: 4 | Q182: 0 | R182: 9 | S182: 0 | T182: 4 | U182: 1 | V182: 4 | W182: 0 | X182: 2 | Y182: 0 | Z182: 1 | AA182: 0 | AB182: 3 | AC182: 0 | AD182: 3 | AE182: 0 | AF182: 2 | AG182: 4 | AH182: 3 | AI182: 0 | AJ182: 3 | AK182: 0 | AL182: 3 | AM182: 1 | AN182: 0
A183: 03030180 | B183: 695 | C183: 381 | D183: 314 | E183: 10 | F183: 4 | G183: 10 | H183: 8 | I183: 9 | J183: 15 | K183: 1 | L183: 19 | M183: 4 | N183: 15 | O183: 4 | P183: 9 | Q183: 13 | R183: 8 | S183: 18 | T183: 19 | U183: 7 | V183: 68 | W183: 70 | X183: 14 | Y183: 70 | Z183: 12 | AA183: 15 | AB183: 19 | AC183: 44 | AD183: 17 | AE183: 16 | AF183: 27 | AG183: 17 | AH183: 6 | AI183: 57 | AJ183: 14 | AK183: 16 | AL183: 40 | AM183: 17 | AN183: 6
A184: 03030250 | B184: 16290 | C184: 10098 | D184: 6192 | E184: 529 | F184: 429 | G184: 6610 | H184: 3460 | I184: 1596 | J184: 727 | K184: 334 | L184: 136 | M184: 122 | N184: 60 | O184: 17 | P184: 46 | Q184: 20 | R184: 36 | S184: 5 | T184: 28 | U184: 16 | V184: 53 | W184: 23 | X184: 64 | Y184: 34 | Z184: 65 | AA184: 36 | AB184: 110 | AC184: 45 | AD184: 98 | AE184: 128 | AF184: 146 | AG184: 103 | AH184: 138 | AI184: 140 | AJ184: 132 | AK184: 123 | AL184: 174 | AM184: 217 | AN184: 290 | AO184: 138 | AP184: 163 | AQ184: 6 | AR184: 17 | AS184: 77
A185: 03030270 | B185: 3268 | C185: 1868 | D185: 1400 | E185: 50 | F185: 21 | G185: 713 | H185: 472 | I185: 418 | J185: 119 | K185: 123 | L185: 78 | M185: 64 | N185: 33 | O185: 15 | P185: 4 | Q185: 10 | R185: 5 | S185: 2 | T185: 8 | U185: 6 | V185: 10 | W185: 15 | X185: 16 | Y185: 11 | Z185: 43 | AA185: 9 | AB185: 17 | AC185: 18 | AD185: 77 | AE185: 66 | AF185: 41 | AG185: 50 | AH185: 88 | AI185: 82 | AJ185: 80 | AK185: 91 | AL185: 103 | AM185: 125 | AN185: 185 | AO185: 10 | AP185: 29 | AQ185: 0 | AR185: 3 | AS185: 6
A186: 03030280 | B186: 99 | C186: 40 | D186: 59 | E186: 4 | F186: 2 | G186: 25 | H186: 19 | I186: 0 | J186: 0 | K186: 0 | L186: 0 | M186: 0 | N186: 0 | O186: 0 | P186: 2 | Q186: 0 | R186: 6 | S186: 0 | T186: 4 | U186: 0 | V186: 5 | W186: 0 | X186: 5 | Y186: 1 | Z186: 1 | AA186: 1 | AB186: 1 | AC186: 1 | AD186: 2 | AE186: 0 | AF186: 2 | AG186: 1 | AH186: 1 | AI186: 2 | AJ186: 4 | AK186: 3 | AL186: 3 | AM186: 2 | AN186: 2 | AO186: 0 | AP186: 2 | AQ186: 0 | AR186: 0 | AS186: 0
A187: 03030290 | B187: 148349
A188: 03030330 | B188: 31557 | C188: 12646 | D188: 18911 | E188: 164 | F188: 400 | G188: 682 | H188: 1274 | I188: 679 | J188: 1237 | K188: 576 | L188: 1243 | M188: 552 | N188: 1113 | O188: 478 | P188: 949 | Q188: 474 | R188: 837 | S188: 475 | T188: 882 | U188: 496 | V188: 805 | W188: 516 | X188: 837 | Y188: 1678 | Z188: 2106 | AA188: 1948 | AB188: 2226 | AC188: 1668 | AD188: 1969 | AE188: 2260 | AF188: 3032 | AG188: 381 | AH188: 538
A189: 03030340 | B189: 5061 | C189: 1992 | D189: 3069 | E189: 22 | F189: 27 | G189: 43 | H189: 99 | I189: 26 | J189: 58 | K189: 24 | L189: 40 | M189: 17 | N189: 29 | O189: 13 | P189: 26 | Q189: 17 | R189: 16 | S189: 18 | T189: 23 | U189: 20 | V189: 22 | W189: 27 | X189: 39 | Y189: 273 | Z189: 418 | AA189: 369 | AB189: 464 | AC189: 394 | AD189: 486 | AE189: 730 | AF189: 1323 | AG189: 74 | AH189: 51
A190: 03030350 | B190: 11007 | C190: 4334 | D190: 6673 | E190: 10 | F190: 194 | G190: 113 | H190: 152 | I190: 144 | J190: 214 | K190: 167 | L190: 235 | M190: 139 | N190: 207 | O190: 153 | P190: 221 | Q190: 159 | R190: 188 | S190: 128 | T190: 179 | U190: 108 | V190: 131 | W190: 99 | X190: 150 | Y190: 667 | Z190: 1127 | AA190: 766 | AB190: 1142 | AC190: 694 | AD190: 917 | AE190: 987 | AF190: 1616 | AG190: 122 | AH190: 61
A191: 03030360 | B191: 9768 | C191: 4130 | D191: 5638 | E191: 14 | F191: 15 | G191: 27 | H191: 31 | I191: 38 | J191: 75 | K191: 93 | L191: 145 | M191: 155 | N191: 286 | O191: 175 | P191: 416 | Q191: 246 | R191: 458 | S191: 341 | T191: 606 | U191: 503 | V191: 668 | W191: 628 | X191: 776 | Y191: 646 | Z191: 762 | AA191: 568 | AB191: 535 | AC191: 328 | AD191: 399 | AE191: 368 | AF191: 466 | AG191: 142 | AH191: 241
A192: 03040210 | B192: 109 | D192: 109 | L192: 0 | N192: 2 | P192: 16 | R192: 26 | T192: 27 | V192: 17 | X192: 11 | Z192: 4 | AB192: 1 | AD192: 2 | AF192: 3 | AO192: 1 | AP192: 7 | AQ192: 0 | AR192: 0 | AS192: 0
A193: 03040220 | B193: 385 | D193: 385 | F193: 1 | H193: 2 | J193: 6 | L193: 20 | N193: 15 | P193: 19 | R193: 24 | T193: 33 | V193: 29 | X193: 42 | Z193: 38 | AB193: 42 | AD193: 28 | AF193: 27 | AH193: 24 | AJ193: 17 | AL193: 13 | AN193: 5 | AO193: 5 | AP193: 20 | AQ193: 0 | AR193: 0 | AS193: 0
A194: 03050400 | B194: 7832 | C194: 3508 | D194: 4324 | E194: 2156 | F194: 2644 | G194: 1352 | H194: 1680
A195: 03050500 | B195: 963 | C195: 484 | D195: 479 | E195: 293 | F195: 304 | G195: 191 | H195: 175
A196: 03050600 | B196: 4591 | C196: 1852 | D196: 2739 | E196: 1211 | F196: 1737 | G196: 643 | H196: 1000
A197: 03050700 | B197: 3351 | C197: 1559 | D197: 1792 | E197: 1148 | F197: 1172 | G197: 412 | H197: 619
A198: 03050710 | B198: 713 | C198: 355 | D198: 358 | E198: 271 | F198: 202 | G198: 84 | H198: 156
A199: 03051000A | B199: 12 | C199: 5 | D199: 7 | E199: 0 | F199: 0 | G199: 0 | H199: 0 | I199: 1 | J199: 0 | K199: 0 | L199: 1 | M199: 0 | N199: 0 | O199: 1 | P199: 1 | Q199: 0 | R199: 0 | S199: 2 | T199: 4 | U199: 0 | V199: 0 | W199: 0 | X199: 0 | Y199: 1 | Z199: 1 | AA199: 0 | AB199: 0
A200: 03051100 | B200: 404 | C200: 215 | D200: 189 | E200: 0 | F200: 0 | G200: 0 | H200: 0 | I200: 0 | J200: 1 | K200: 3 | L200: 3 | M200: 3 | N200: 3 | O200: 6 | P200: 1 | Q200: 9 | R200: 5 | S200: 137 | T200: 135 | U200: 21 | V200: 19 | W200: 24 | X200: 19 | Y200: 12 | Z200: 3 | AA200: 3 | AB200: 5
A201: 03051200 | B201: 450 | C201: 173 | D201: 277 | E201: 0 | F201: 0 | G201: 0 | H201: 1 | I201: 2 | J201: 2 | K201: 1 | L201: 5 | M201: 1 | N201: 3 | O201: 0 | P201: 6 | Q201: 4 | R201: 5 | S201: 104 | T201: 175 | U201: 17 | V201: 21 | W201: 36 | X201: 35 | Y201: 8 | Z201: 24 | AA201: 4 | AB201: 5
... 2762 more rows

Sheet A01
B1: SERVICIO DE SALUD
B2: =CONCATENATE("COMUNA: ",[1]NOMBRE!B2, " (",[1]NOMBRE!C2,[1]NOMBRE!D2,[1]NOMBRE!E2,[1]NOMBRE!F2,[1]NOMBRE!G2,")") -> COMUNA: ()
B3: =CONCATENATE("ESTABLECIMIENTO/ESTRATEGIA: ", [1]NOMBRE!B3, " (",[1]NOMBRE!C3,[1]NOMBRE!D3,[1]NOMBRE!E3,[1]NOMBRE!F3,[1]NOMBRE!G3,[1]NOMBRE!H3,")") -> ESTABLECIMIENTO/ESTRATEGIA: ()
B4: =CONCATENATE("MES: ",[1]NOMBRE!B6, " (",[1]NOMBRE!C6,[1]NOMBRE!D6,")") -> MES: ()
B5: =CONCATENATE("AÑO: ",[1]NOMBRE!B7) -> AÑO: 2025
B6: REM-A01. CONTROLES DE SALUD
B8: SECCIÓN A: CONTROLES DE SALUD SEXUAL Y REPRODUCTIVA
B9: TIPO DE CONTROL | C9: PROFESIONAL | D9: TOTAL | E9: RANGO ETARIO | V9: Sexo | X9: Control con pareja, familiar u otro | Y9: Control de diada con presencia del padre | Z9: Espacios Amigables/ Adolescentes | AA9: Niños, Niñas, Adolescentes y Jóvenes SENAME | AB9: Niños, Niñas, Adolescentes y Jóvenes Mejor Niñez | AC9: Pueblos Originarios | AD9: Migrantes | AE9: Personas con discapacidad | AF9: Identificación de género | AI9: Adolescente acude a control MAC con pareja
E10: Menos de 4 años | F10: 5 - 9 años | G10: 10 - 14 años | H10: 15 - 19 años | I10: 20 - 24 años | J10: 25 - 29 años | K10: 30 - 34 años | L10: 35 - 39 años | M10: 40 - 44 años | N10: 45 - 49 años | O10: 50 - 54 años | P10: 55 - 59 años | Q10: 60 - 64 años | R10: 65 - 69 años | S10: 70 - 74 años | T10: 75 - 79 años | U10: 80 y más años | V10: Hombres | W10: Mujeres | AF10: Trans masculino | AG10: Trans femenina | AH10: No binarie
A11: 01010101 | B11: Preconcepcional | C11: Médico/a | D11: =IFERROR(VLOOKUP($A11,Filtro!$A$5:$AW$2963,2,FALSE),0) -> 6 | E11: =IFERROR(VLOOKUP($A11,Filtro!$A$5:$AW$2963,3,FALSE),0) -> 0 | F11: =IFERROR(VLOOKUP($A11,Filtro!$A$5:$AW$2963,4,FALSE),0) -> 0 | G11: =IFERROR(VLOOKUP($A11,Filtro!$A$5:$AW$2963,5,FALSE),0) -> 0 | H11: =IFERROR(VLOOKUP($A11,Filtro!$A$5:$AW$2963,6,FALSE),0) -> 0 | I11: =IFERROR(VLOOKUP($A11,Filtro!$A$5:$AW$2963,7,FALSE),0) -> 1 | J11: =IFERROR(VLOOKUP($A11,Filtro!$A$5:$AW$2963,8,FALSE),0) -> 3 | K11: =IFERROR(VLOOKUP($A11,Filtro!$A$5:$AW$2963,9,FALSE),0) -> 1 | L11: =IFERROR(VLOOKUP($A11,Filtro!$A$5:$AW$2963,10,FALSE),0) -> 0 | M11: =IFERROR(VLOOKUP($A11,Filtro!$A$5:$AW$2963,11,FALSE),0) -> 0 | N11: =IFERROR(VLOOKUP($A11,Filtro!$A$5:$AW$2963,12,FALSE),0) -> 1 | O11: =IFERROR(VLOOKUP($A11,Filtro!$A$5:$AW$2963,13,FALSE),0) -> 0 | P11: =IFERROR(VLOOKUP($A11,Filtro!$A$5:$AW$2963,14,FALSE),0) -> 0 | Q11: =IFERROR(VLOOKUP($A11,Filtro!$A$5:$AW$2963,15,FALSE),0) -> 0 | R11: =IFERROR(VLOOKUP($A11,Filtro!$A$5:$AW$2963,16,FALSE),0) -> 0 | S11: =IFERROR(VLOOKUP($A11,Filtro!$A$5:$AW$2963,17,FALSE),0) -> 0 | T11: =IFERROR(VLOOKUP($A11,Filtro!$A$5:$AW$2963,18,FALSE),0) -> 0 | U11: =IFERROR(VLOOKUP($A11,Filtro!$A$5:$AW$2963,19,FALSE),0) -> 0 | V11: =IFERROR(VLOOKUP($A11,Filtro!$A$5:$AW$2963,20,FALSE),0) -> 0 | W11: =IFERROR(VLOOKUP($A11,Filtro!$A$5:$AW$2963,21,FALSE),0) -> 6 | X11: =IFERROR(VLOOKUP($A11,Filtro!$A$5:$AW$2963,22,FALSE),0) -> 0 | Y11: =IFERROR(VLOOKUP($A11,Filtro!$A$5:$AW$2963,23,FALSE),0) -> 0 | Z11: =IFERROR(VLOOKUP($A11,Filtro!$A$5:$AW$2963,24,FALSE),0) -> 0 | AA11: =IFERROR(VLOOKUP($A11,Filtro!$A$5:$AW$2963,25,FALSE),0) -> 0 | AB11: =IFERROR(VLOOKUP($A11,Filtro!$A$5:$AW$2963,26,FALSE),0) -> 0 | AC11: =IFERROR(VLOOKUP($A11,Filtro!$A$5:$AW$2963,27,FALSE),0) -> 0 | AD11: =IFERROR(VLOOKUP($A11,Filtro!$A$5:$AW$2963,28,FALSE),0) -> 0 | AE11: =IFERROR(VLOOKUP($A11,Filtro!$A$5:$AW$2963,29,FALSE),0) -> 0 | AF11: =IFERROR(VLOOKUP($A11,Filtro!$A$5:$AW$2963,30,FALSE),0) -> 0 | AG11: =IFERROR(VLOOKUP($A11,Filtro!$A$5:$AW$2963,31,FALSE),0) -> 0 | AH11: =IFERROR(VLOOKUP($A11,Filtro!$A$5:$AW$2963,32,FALSE),0) -> 0 | AI11: =IFERROR(VLOOKUP($A11,Filtro!$A$5:$AW$2963,33,FALSE),0) -> 0 | AJ11: =$CB11&CC11&CD11&CE11&CF11&CG11&CH11&CI11&CJ11&CK11&CL11&CM11&CN11 ->  | CB11: =IF((V11+W11)<>$D11," * La suma de la variable Sexo (Hombres + Mujeres) no puede ser distinto al Total","") ->  | CC11: =IF(AND($D11<>0,X11=""),"* No olvide ingresar la variable "&X$9&""&". Digite CERO si no tiene. ",IF(X11>$D11,"* La variable Control con pareja, familiar u otro no debe ser mayor al Total. ","")) ->  | CE11: =IF(AND($D11<>0,Z11=""),"* No olvide ingresar la variable "&Z$9&""&". Digite CERO si no tiene. ",IF(Z11>$D11,"* La variable Espacios Amigables/ Adolescentes no debe ser mayor al Total. ","")) ->  | CF11: =IF(AND($D11<>0,AA11=""),"* No olvide ingresar la variable "&AA9&""&". Digite CERO si no tiene. ",IF(AA11>$D11,"* La variable Niños, Niñas, Adolescentes y Jóvenes SENAME no debe ser mayor al Total. ","")) ->  | CG11: =IF(AND($D11<>0,AB11=""),"* No olvide ingresar la variable "&AB9&""&". Digite CERO si no tiene. ",IF(AB11>$D11,"* La variable Niños, Niñas, Adolescentes y Jóvenes Mejor Niñez no debe ser mayor al Total. ","")) ->  | CH11: =IF(AND($D11<>0,AC11=""),"* No olvide ingresar la variable "&AC$9&""&". Digite CERO si no tiene. ",IF(AC11>$D11,"* La variable de Pueblos Originarios no debe ser mayor al Total. ","")) ->  | CI11: =IF(AND($D11<>0,AD11=""),"* No olvide ingresar la variable "&AD$9&""&". Digite CERO si no tiene. ",IF(AD11>$D11,"* La variable Migrantes no debe ser mayor al Total. ","")) ->  | CJ11: =IF(AND($D11<>0,AE11=""),"* No olvide ingresar la variable "&AE$9&""&". Digite CERO si no tiene. ",IF(AE11>$D11,"* La variable Personas con discapacidad no debe ser mayor al Total. ","")) ->  | CK11: =IF(AND($W11<>0,AF11=""),"* No olvide ingresar la variable "&AF$10&""&". Digite CERO si no tiene. ",IF(AF11>$W11,"* La variable Trans masculino no debe ser mayor al Total Mujeres. ","")) ->  | CL11: =IF(AND($V11<>0,AG11=""),"* No olvide ingresar la variable "&AG$10&""&". Digite CERO si no tiene. ",IF(AG11>$V11,"* La variable Trans Femenino no debe ser mayor al Total Hombres ","")) ->  | CM11: =IF(AND($D11<>0,AH11=""),"* No olvide ingresar la variable "&AH$10&""&". Digite CERO si no tiene. ",IF(AH11>$D11,"* La variable No binarie no debe ser mayor al Total. ","")) ->  | CV11: =IF((V11+W11)<>$D11,1,0) -> 0 | CW11: =IF(AND(D11>0,X11=""),1,IF(X11>D11,1,0)) -> 0 | CY11: =IF(AND($D11<>0,Z11=""),1,IF(Z11>$D11,1,0)) -> 0 | CZ11: =IF(AND($D11<>0,AA11=""),1,IF(AA11>D11,1,0)) -> 0 | DA11: =IF(AND($D11<>0,AB11=""),1,IF(AB11>D11,1,0)) -> 0 | DB11: =IF(AND($D11<>0,AC11=""),1,IF(AC11>D11,1,0)) -> 0 | DC11: =IF(AND($D11<>0,AD11=""),1,IF(AD11>D11,1,0)) -> 0 | DD11: =IF(AND($D11<>0,AE11=""),1,IF(AE11>$D11,1,0)) -> 0 | DE11: =IF(AND($W11<>0,AF11=""),1,IF(AF11>$W11,1,0)) -> 0 | DF11: =IF(AND($V11<>0,AG11=""),1,IF(AG11>$V11,1,0)) -> 0 | DG11: =IF(AND($D11<>0,AH11=""),1,IF(AH11>$D11,1,0)) -> 0
A12: 01010103 | C12: Matrona/ón | D12: =IFERROR(VLOOKUP($A12,Filtro!$A$5:$AW$2963,2,FALSE),0) -> 1555 | E12: =IFERROR(VLOOKUP($A12,Filtro!$A$5:$AW$2963,3,FALSE),0) -> 0 | F12: =IFERROR(VLOOKUP($A12,Filtro!$A$5:$AW$2963,4,FALSE),0) -> 0 | G12: =IFERROR(VLOOKUP($A12,Filtro!$A$5:$AW$2963,5,FALSE),0) -> 0 | H12: =IFERROR(VLOOKUP($A12,Filtro!$A$5:$AW$2963,6,FALSE),0) -> 53 | I12: =IFERROR(VLOOKUP($A12,Filtro!$A$5:$AW$2963,7,FALSE),0) -> 285 | J12: =IFERROR(VLOOKUP($A12,Filtro!$A$5:$AW$2963,8,FALSE),0) -> 427 | K12: =IFERROR(VLOOKUP($A12,Filtro!$A$5:$AW$2963,9,FALSE),0) -> 431 | L12: =IFERROR(VLOOKUP($A12,Filtro!$A$5:$AW$2963,10,FALSE),0) -> 273 | M12: =IFERROR(VLOOKUP($A12,Filtro!$A$5:$AW$2963,11,FALSE),0) -> 78 | N12: =IFERROR(VLOOKUP($A12,Filtro!$A$5:$AW$2963,12,FALSE),0) -> 7 | O12: =IFERROR(VLOOKUP($A12,Filtro!$A$5:$AW$2963,13,FALSE),0) -> 1 | P12: =IFERROR(VLOOKUP($A12,Filtro!$A$5:$AW$2963,14,FALSE),0) -> 0 | Q12: =IFERROR(VLOOKUP($A12,Filtro!$A$5:$AW$2963,15,FALSE),0) -> 0 | R12: =IFERROR(VLOOKUP($A12,Filtro!$A$5:$AW$2963,16,FALSE),0) -> 0 | S12: =IFERROR(VLOOKUP($A12,Filtro!$A$5:$AW$2963,17,FALSE),0) -> 0 | T12: =IFERROR(VLOOKUP($A12,Filtro!$A$5:$AW$2963,18,FALSE),0) -> 0 | U12: =IFERROR(VLOOKUP($A12,Filtro!$A$5:$AW$2963,19,FALSE),0) -> 0 | V12: =IFERROR(VLOOKUP($A12,Filtro!$A$5:$AW$2963,20,FALSE),0) -> 5 | W12: =IFERROR(VLOOKUP($A12,Filtro!$A$5:$AW$2963,21,FALSE),0) -> 1549 | X12: =IFERROR(VLOOKUP($A12,Filtro!$A$5:$AW$2963,22,FALSE),0) -> 159 | Y12: =IFERROR(VLOOKUP($A12,Filtro!$A$5:$AW$2963,23,FALSE),0) -> 0 | Z12: =IFERROR(VLOOKUP($A12,Filtro!$A$5:$AW$2963,24,FALSE),0) -> 6 | AA12: =IFERROR(VLOOKUP($A12,Filtro!$A$5:$AW$2963,25,FALSE),0) -> 2 | AB12: =IFERROR(VLOOKUP($A12,Filtro!$A$5:$AW$2963,26,FALSE),0) -> 0 | AC12: =IFERROR(VLOOKUP($A12,Filtro!$A$5:$AW$2963,27,FALSE),0) -> 60 | AD12: =IFERROR(VLOOKUP($A12,Filtro!$A$5:$AW$2963,28,FALSE),0) -> 101 | AE12: =IFERROR(VLOOKUP($A12,Filtro!$A$5:$AW$2963,29,FALSE),0) -> 2 | AF12: =IFERROR(VLOOKUP($A12,Filtro!$A$5:$AW$2963,30,FALSE),0) -> 0 | AG12: =IFERROR(VLOOKUP($A12,Filtro!$A$5:$AW$2963,31,FALSE),0) -> 0 | AH12: =IFERROR(VLOOKUP($A12,Filtro!$A$5:$AW$2963,32,FALSE),0) -> 0 | AI12: =IFERROR(VLOOKUP($A12,Filtro!$A$5:$AW$2963,33,FALSE),0) -> 0 | AJ12: * La suma de la variable Sexo (Hombres + Mujeres) no puede ser distinto al Total | CB12: * La suma de la variable Sexo (Hombres + Mujeres) no puede ser distinto al Total | CE12: =IF(AND($D12<>0,Z12=""),"* No olvide ingresar la variable "&Z$9&""&". Digite CERO si no tiene. ",IF(Z12>$D12,"* La variable Espacios Amigables/ Adolescentes no debe ser mayor al Total. ","")) ->  | CL12: =IF(AND($V12<>0,AG12=""),"* No olvide ingresar la variable "&AG$10&""&". Digite CERO si no tiene. ",IF(AG12>$V12,"* La variable Trans Femenino no debe ser mayor al Total Hombres ","")) ->  | CV12: 1 | CW12: =IF(AND(D12>0,X12=""),1,IF(X12>D12,1,0)) -> 0 | CY12: =IF(AND($D12<>0,Z12=""),1,IF(Z12>$D12,1,0)) -> 0 | CZ12: 0 | DA12: 0 | DB12: 0 | DC12: 0 | DD12: 0 | DE12: 0 | DF12: =IF(AND($V12<>0,AG12=""),1,IF(AG12>$V12,1,0)) -> 0 | DG12: 0
A13: 01010201 | B13: Prenatal | C13: Médico/a | D13: =IFERROR(VLOOKUP($A13,Filtro!$A$5:$AW$2963,2,FALSE),0) -> 128 | E13: =IFERROR(VLOOKUP($A13,Filtro!$A$5:$AW$2963,3,FALSE),0) -> 0 | F13: =IFERROR(VLOOKUP($A13,Filtro!$A$5:$AW$2963,4,FALSE),0) -> 0 | G13: =IFERROR(VLOOKUP($A13,Filtro!$A$5:$AW$2963,5,FALSE),0) -> 0 | H13: =IFERROR(VLOOKUP($A13,Filtro!$A$5:$AW$2963,6,FALSE),0) -> 3 | I13: =IFERROR(VLOOKUP($A13,Filtro!$A$5:$AW$2963,7,FALSE),0) -> 20 | J13: =IFERROR(VLOOKUP($A13,Filtro!$A$5:$AW$2963,8,FALSE),0) -> 45 | K13: =IFERROR(VLOOKUP($A13,Filtro!$A$5:$AW$2963,9,FALSE),0) -> 42 | L13: =IFERROR(VLOOKUP($A13,Filtro!$A$5:$AW$2963,10,FALSE),0) -> 12 | M13: =IFERROR(VLOOKUP($A13,Filtro!$A$5:$AW$2963,11,FALSE),0) -> 5 | N13: =IFERROR(VLOOKUP($A13,Filtro!$A$5:$AW$2963,12,FALSE),0) -> 1 | O13: =IFERROR(VLOOKUP($A13,Filtro!$A$5:$AW$2963,13,FALSE),0) -> 0 | P13: =IFERROR(VLOOKUP($A13,Filtro!$A$5:$AW$2963,14,FALSE),0) -> 0 | Q13: =IFERROR(VLOOKUP($A13,Filtro!$A$5:$AW$2963,15,FALSE),0) -> 0 | R13: =IFERROR(VLOOKUP($A13,Filtro!$A$5:$AW$2963,16,FALSE),0) -> 0 | S13: =IFERROR(VLOOKUP($A13,Filtro!$A$5:$AW$2963,17,FALSE),0) -> 0 | T13: =IFERROR(VLOOKUP($A13,Filtro!$A$5:$AW$2963,18,FALSE),0) -> 0 | U13: =IFERROR(VLOOKUP($A13,Filtro!$A$5:$AW$2963,19,FALSE),0) -> 0 | V13: =IFERROR(VLOOKUP($A13,Filtro!$A$5:$AW$2963,20,FALSE),0) -> 0 | W13: =IFERROR(VLOOKUP($A13,Filtro!$A$5:$AW$2963,21,FALSE),0) -> 128 | X13: =IFERROR(VLOOKUP($A13,Filtro!$A$5:$AW$2963,22,FALSE),0) -> 15 | Y13: =IFERROR(VLOOKUP($A13,Filtro!$A$5:$AW$2963,23,FALSE),0) -> 0 | Z13: =IFERROR(VLOOKUP($A13,Filtro!$A$5:$AW$2963,24,FALSE),0) -> 0 | AA13: =IFERROR(VLOOKUP($A13,Filtro!$A$5:$AW$2963,25,FALSE),0) -> 0 | AB13: =IFERROR(VLOOKUP($A13,Filtro!$A$5:$AW$2963,26,FALSE),0) -> 0 | AC13: =IFERROR(VLOOKUP($A13,Filtro!$A$5:$AW$2963,27,FALSE),0) -> 0 | AD13: =IFERROR(VLOOKUP($A13,Filtro!$A$5:$AW$2963,28,FALSE),0) -> 1 | AE13: =IFERROR(VLOOKUP($A13,Filtro!$A$5:$AW$2963,29,FALSE),0) -> 0 | AF13: =IFERROR(VLOOKUP($A13,Filtro!$A$5:$AW$2963,30,FALSE),0) -> 0 | AG13: =IFERROR(VLOOKUP($A13,Filtro!$A$5:$AW$2963,31,FALSE),0) -> 0 | AH13: =IFERROR(VLOOKUP($A13,Filtro!$A$5:$AW$2963,32,FALSE),0) -> 0 | AI13: =IFERROR(VLOOKUP($A13,Filtro!$A$5:$AW$2963,33,FALSE),0) -> 0 | CV13: 0 | CW13: =IF(AND(D13>0,X13=""),1,IF(X13>D13,1,0)) -> 0 | CZ13: 0 | DA13: 0 | DB13: 0 | DC13: 0 | DD13: 0 | DE13: 0 | DG13: 0
A14: 01010203 | C14: Matrona/ón | D14: =IFERROR(VLOOKUP($A14,Filtro!$A$5:$AW$2963,2,FALSE),0) -> 38286 | E14: =IFERROR(VLOOKUP($A14,Filtro!$A$5:$AW$2963,3,FALSE),0) -> 0 | F14: =IFERROR(VLOOKUP($A14,Filtro!$A$5:$AW$2963,4,FALSE),0) -> 0 | G14: =IFERROR(VLOOKUP($A14,Filtro!$A$5:$AW$2963,5,FALSE),0) -> 60 | H14: =IFERROR(VLOOKUP($A14,Filtro!$A$5:$AW$2963,6,FALSE),0) -> 1993 | I14: =IFERROR(VLOOKUP($A14,Filtro!$A$5:$AW$2963,7,FALSE),0) -> 8297 | J14: =IFERROR(VLOOKUP($A14,Filtro!$A$5:$AW$2963,8,FALSE),0) -> 10825 | K14: =IFERROR(VLOOKUP($A14,Filtro!$A$5:$AW$2963,9,FALSE),0) -> 10118 | L14: =IFERROR(VLOOKUP($A14,Filtro!$A$5:$AW$2963,10,FALSE),0) -> 5603 | M14: =IFERROR(VLOOKUP($A14,Filtro!$A$5:$AW$2963,11,FALSE),0) -> 1293 | N14: =IFERROR(VLOOKUP($A14,Filtro!$A$5:$AW$2963,12,FALSE),0) -> 90 | O14: =IFERROR(VLOOKUP($A14,Filtro!$A$5:$AW$2963,13,FALSE),0) -> 7 | P14: =IFERROR(VLOOKUP($A14,Filtro!$A$5:$AW$2963,14,FALSE),0) -> 0 | Q14: =IFERROR(VLOOKUP($A14,Filtro!$A$5:$AW$2963,15,FALSE),0) -> 0 | R14: =IFERROR(VLOOKUP($A14,Filtro!$A$5:$AW$2963,16,FALSE),0) -> 0 | S14: =IFERROR(VLOOKUP($A14,Filtro!$A$5:$AW$2963,17,FALSE),0) -> 0 | T14: =IFERROR(VLOOKUP($A14,Filtro!$A$5:$AW$2963,18,FALSE),0) -> 0 | U14: =IFERROR(VLOOKUP($A14,Filtro!$A$5:$AW$2963,19,FALSE),0) -> 0 | V14: =IFERROR(VLOOKUP($A14,Filtro!$A$5:$AW$2963,20,FALSE),0) -> 0 | W14: =IFERROR(VLOOKUP($A14,Filtro!$A$5:$AW$2963,21,FALSE),0) -> 38288 | X14: =IFERROR(VLOOKUP($A14,Filtro!$A$5:$AW$2963,22,FALSE),0) -> 12732 | Y14: =IFERROR(VLOOKUP($A14,Filtro!$A$5:$AW$2963,23,FALSE),0) -> 0 | Z14: =IFERROR(VLOOKUP($A14,Filtro!$A$5:$AW$2963,24,FALSE),0) -> 0 | AA14: =IFERROR(VLOOKUP($A14,Filtro!$A$5:$AW$2963,25,FALSE),0) -> 33 | AB14: =IFERROR(VLOOKUP($A14,Filtro!$A$5:$AW$2963,26,FALSE),0) -> 12 | AC14: =IFERROR(VLOOKUP($A14,Filtro!$A$5:$AW$2963,27,FALSE),0) -> 1485 | AD14: =IFERROR(VLOOKUP($A14,Filtro!$A$5:$AW$2963,28,FALSE),0) -> 4378 | AE14: =IFERROR(VLOOKUP($A14,Filtro!$A$5:$AW$2963,29,FALSE),0) -> 23 | AF14: =IFERROR(VLOOKUP($A14,Filtro!$A$5:$AW$2963,30,FALSE),0) -> 3 | AG14: =IFERROR(VLOOKUP($A14,Filtro!$A$5:$AW$2963,31,FALSE),0) -> 0 | AH14: =IFERROR(VLOOKUP($A14,Filtro!$A$5:$AW$2963,32,FALSE),0) -> 0 | AI14: =IFERROR(VLOOKUP($A14,Filtro!$A$5:$AW$2963,33,FALSE),0) -> 0 | AJ14: * La suma de la variable Sexo (Hombres + Mujeres) no puede ser distinto al Total | CB14: * La suma de la variable Sexo (Hombres + Mujeres) no puede ser distinto al Total | CV14: 1 | CW14: =IF(AND(D14>0,X14=""),1,IF(X14>SUM(D14),1,0)) -> 0 | CZ14: 0 | DA14: 0 | DB14: 0 | DC14: 0 | DD14: 0 | DE14: 0 | DG14: 0
A15: 01501050 | B15: Post Parto | C15: Médico/a | D15: =IFERROR(VLOOKUP($A15,Filtro!$A$5:$AW$2963,2,FALSE),0) -> 0 | E15: =IFERROR(VLOOKUP($A15,Filtro!$A$5:$AW$2963,3,FALSE),0) -> 0 | F15: =IFERROR(VLOOKUP($A15,Filtro!$A$5:$AW$2963,4,FALSE),0) -> 0 | G15: =IFERROR(VLOOKUP($A15,Filtro!$A$5:$AW$2963,5,FALSE),0) -> 0 | H15: =IFERROR(VLOOKUP($A15,Filtro!$A$5:$AW$2963,6,FALSE),0) -> 0 | I15: =IFERROR(VLOOKUP($A15,Filtro!$A$5:$AW$2963,7,FALSE),0) -> 0 | J15: =IFERROR(VLOOKUP($A15,Filtro!$A$5:$AW$2963,8,FALSE),0) -> 0 | K15: =IFERROR(VLOOKUP($A15,Filtro!$A$5:$AW$2963,9,FALSE),0) -> 0 | L15: =IFERROR(VLOOKUP($A15,Filtro!$A$5:$AW$2963,10,FALSE),0) -> 0 | M15: =IFERROR(VLOOKUP($A15,Filtro!$A$5:$AW$2963,11,FALSE),0) -> 0 | N15: =IFERROR(VLOOKUP($A15,Filtro!$A$5:$AW$2963,12,FALSE),0) -> 0 | O15: =IFERROR(VLOOKUP($A15,Filtro!$A$5:$AW$2963,13,FALSE),0) -> 0 | P15: =IFERROR(VLOOKUP($A15,Filtro!$A$5:$AW$2963,14,FALSE),0) -> 0 | Q15: =IFERROR(VLOOKUP($A15,Filtro!$A$5:$AW$2963,15,FALSE),0) -> 0 | R15: =IFERROR(VLOOKUP($A15,Filtro!$A$5:$AW$2963,16,FALSE),0) -> 0 | S15: =IFERROR(VLOOKUP($A15,Filtro!$A$5:$AW$2963,17,FALSE),0) -> 0 | T15: =IFERROR(VLOOKUP($A15,Filtro!$A$5:$AW$2963,18,FALSE),0) -> 0 | U15: =IFERROR(VLOOKUP($A15,Filtro!$A$5:$AW$2963,19,FALSE),0) -> 0 | V15: =IFERROR(VLOOKUP($A15,Filtro!$A$5:$AW$2963,20,FALSE),0) -> 0 | W15: =IFERROR(VLOOKUP($A15,Filtro!$A$5:$AW$2963,21,FALSE),0) -> 0 | X15: =IFERROR(VLOOKUP($A15,Filtro!$A$5:$AW$2963,22,FALSE),0) -> 0 | Y15: =IFERROR(VLOOKUP($A15,Filtro!$A$5:$AW$2963,23,FALSE),0) -> 0 | Z15: =IFERROR(VLOOKUP($A15,Filtro!$A$5:$AW$2963,24,FALSE),0) -> 0 | AA15: =IFERROR(VLOOKUP($A15,Filtro!$A$5:$AW$2963,25,FALSE),0) -> 0 | AB15: =IFERROR(VLOOKUP($A15,Filtro!$A$5:$AW$2963,26,FALSE),0) -> 0 | AC15: =IFERROR(VLOOKUP($A15,Filtro!$A$5:$AW$2963,27,FALSE),0) -> 0 | AD15: =IFERROR(VLOOKUP($A15,Filtro!$A$5:$AW$2963,28,FALSE),0) -> 0 | AE15: =IFERROR(VLOOKUP($A15,Filtro!$A$5:$AW$2963,29,FALSE),0) -> 0 | AF15: =IFERROR(VLOOKUP($A15,Filtro!$A$5:$AW$2963,30,FALSE),0) -> 0 | AG15: =IFERROR(VLOOKUP($A15,Filtro!$A$5:$AW$2963,31,FALSE),0) -> 0 | AH15: =IFERROR(VLOOKUP($A15,Filtro!$A$5:$AW$2963,32,FALSE),0) -> 0 | AI15: =IFERROR(VLOOKUP($A15,Filtro!$A$5:$AW$2963,33,FALSE),0) -> 0 | CV15: 0 | CW15: 0 | CZ15: 0 | DA15: 0 | DB15: 0 | DC15: 0 | DD15: 0 | DE15: 0 | DG15: 0
A16: 01501060 | C16: Matrona/ón | D16: =IFERROR(VLOOKUP($A16,Filtro!$A$5:$AW$2963,2,FALSE),0) -> 569 | E16: =IFERROR(VLOOKUP($A16,Filtro!$A$5:$AW$2963,3,FALSE),0) -> 0 | F16: =IFERROR(VLOOKUP($A16,Filtro!$A$5:$AW$2963,4,FALSE),0) -> 0 | G16: =IFERROR(VLOOKUP($A16,Filtro!$A$5:$AW$2963,5,FALSE),0) -> 1 | H16: =IFERROR(VLOOKUP($A16,Filtro!$A$5:$AW$2963,6,FALSE),0) -> 31 | I16: =IFERROR(VLOOKUP($A16,Filtro!$A$5:$AW$2963,7,FALSE),0) -> 104 | J16: =IFERROR(VLOOKUP($A16,Filtro!$A$5:$AW$2963,8,FALSE),0) -> 159 | K16: =IFERROR(VLOOKUP($A16,Filtro!$A$5:$AW$2963,9,FALSE),0) -> 156 | L16: =IFERROR(VLOOKUP($A16,Filtro!$A$5:$AW$2963,10,FALSE),0) -> 88 | M16: =IFERROR(VLOOKUP($A16,Filtro!$A$5:$AW$2963,11,FALSE),0) -> 28 | N16: =IFERROR(VLOOKUP($A16,Filtro!$A$5:$AW$2963,12,FALSE),0) -> 1 | O16: =IFERROR(VLOOKUP($A16,Filtro!$A$5:$AW$2963,13,FALSE),0) -> 1 | P16: =IFERROR(VLOOKUP($A16,Filtro!$A$5:$AW$2963,14,FALSE),0) -> 0 | Q16: =IFERROR(VLOOKUP($A16,Filtro!$A$5:$AW$2963,15,FALSE),0) -> 0 | R16: =IFERROR(VLOOKUP($A16,Filtro!$A$5:$AW$2963,16,FALSE),0) -> 0 | S16: =IFERROR(VLOOKUP($A16,Filtro!$A$5:$AW$2963,17,FALSE),0) -> 0 | T16: =IFERROR(VLOOKUP($A16,Filtro!$A$5:$AW$2963,18,FALSE),0) -> 0 | U16: =IFERROR(VLOOKUP($A16,Filtro!$A$5:$AW$2963,19,FALSE),0) -> 0 | V16: =IFERROR(VLOOKUP($A16,Filtro!$A$5:$AW$2963,20,FALSE),0) -> 0 | W16: =IFERROR(VLOOKUP($A16,Filtro!$A$5:$AW$2963,21,FALSE),0) -> 556 | X16: =IFERROR(VLOOKUP($A16,Filtro!$A$5:$AW$2963,22,FALSE),0) -> 125 | Y16: =IFERROR(VLOOKUP($A16,Filtro!$A$5:$AW$2963,23,FALSE),0) -> 0 | Z16: =IFERROR(VLOOKUP($A16,Filtro!$A$5:$AW$2963,24,FALSE),0) -> 0 | AA16: =IFERROR(VLOOKUP($A16,Filtro!$A$5:$AW$2963,25,FALSE),0) -> 1 | AB16: =IFERROR(VLOOKUP($A16,Filtro!$A$5:$AW$2963,26,FALSE),0) -> 0 | AC16: =IFERROR(VLOOKUP($A16,Filtro!$A$5:$AW$2963,27,FALSE),0) -> 14 | AD16: =IFERROR(VLOOKUP($A16,Filtro!$A$5:$AW$2963,28,FALSE),0) -> 46 | AE16: =IFERROR(VLOOKUP($A16,Filtro!$A$5:$AW$2963,29,FALSE),0) -> 0 | AF16: =IFERROR(VLOOKUP($A16,Filtro!$A$5:$AW$2963,30,FALSE),0) -> 0 | AG16: =IFERROR(VLOOKUP($A16,Filtro!$A$5:$AW$2963,31,FALSE),0) -> 0 | AH16: =IFERROR(VLOOKUP($A16,Filtro!$A$5:$AW$2963,32,FALSE),0) -> 0 | AI16: =IFERROR(VLOOKUP($A16,Filtro!$A$5:$AW$2963,33,FALSE),0) -> 0 | AJ16: * La suma de la variable Sexo (Hombres + Mujeres) no puede ser distinto al Total | CB16: * La suma de la variable Sexo (Hombres + Mujeres) no puede ser distinto al Total | CV16: 1 | CW16: 0 | CZ16: 0 | DA16: 0 | DB16: 0 | DC16: 0 | DD16: 0 | DE16: 0 | DG16: 0
A17: 01501070 | B17: Post Aborto | C17: Médico/a | D17: =IFERROR(VLOOKUP($A17,Filtro!$A$5:$AW$2963,2,FALSE),0) -> 1 | E17: =IFERROR(VLOOKUP($A17,Filtro!$A$5:$AW$2963,3,FALSE),0) -> 0 | F17: =IFERROR(VLOOKUP($A17,Filtro!$A$5:$AW$2963,4,FALSE),0) -> 0 | G17: =IFERROR(VLOOKUP($A17,Filtro!$A$5:$AW$2963,5,FALSE),0) -> 0 | H17: =IFERROR(VLOOKUP($A17,Filtro!$A$5:$AW$2963,6,FALSE),0) -> 0 | I17: =IFERROR(VLOOKUP($A17,Filtro!$A$5:$AW$2963,7,FALSE),0) -> 0 | J17: =IFERROR(VLOOKUP($A17,Filtro!$A$5:$AW$2963,8,FALSE),0) -> 1 | K17: =IFERROR(VLOOKUP($A17,Filtro!$A$5:$AW$2963,9,FALSE),0) -> 0 | L17: =IFERROR(VLOOKUP($A17,Filtro!$A$5:$AW$2963,10,FALSE),0) -> 0 | M17: =IFERROR(VLOOKUP($A17,Filtro!$A$5:$AW$2963,11,FALSE),0) -> 0 | N17: =IFERROR(VLOOKUP($A17,Filtro!$A$5:$AW$2963,12,FALSE),0) -> 0 | O17: =IFERROR(VLOOKUP($A17,Filtro!$A$5:$AW$2963,13,FALSE),0) -> 0 | P17: =IFERROR(VLOOKUP($A17,Filtro!$A$5:$AW$2963,14,FALSE),0) -> 0 | Q17: =IFERROR(VLOOKUP($A17,Filtro!$A$5:$AW$2963,15,FALSE),0) -> 0 | R17: =IFERROR(VLOOKUP($A17,Filtro!$A$5:$AW$2963,16,FALSE),0) -> 0 | S17: =IFERROR(VLOOKUP($A17,Filtro!$A$5:$AW$2963,17,FALSE),0) -> 0 | T17: =IFERROR(VLOOKUP($A17,Filtro!$A$5:$AW$2963,18,FALSE),0) -> 0 | U17: =IFERROR(VLOOKUP($A17,Filtro!$A$5:$AW$2963,19,FALSE),0) -> 0 | V17: =IFERROR(VLOOKUP($A17,Filtro!$A$5:$AW$2963,20,FALSE),0) -> 0 | W17: =IFERROR(VLOOKUP($A17,Filtro!$A$5:$AW$2963,21,FALSE),0) -> 1 | X17: =IFERROR(VLOOKUP($A17,Filtro!$A$5:$AW$2963,22,FALSE),0) -> 1 | Y17: =IFERROR(VLOOKUP($A17,Filtro!$A$5:$AW$2963,23,FALSE),0) -> 0 | Z17: =IFERROR(VLOOKUP($A17,Filtro!$A$5:$AW$2963,24,FALSE),0) -> 0 | AA17: =IFERROR(VLOOKUP($A17,Filtro!$A$5:$AW$2963,25,FALSE),0) -> 0 | AB17: =IFERROR(VLOOKUP($A17,Filtro!$A$5:$AW$2963,26,FALSE),0) -> 0 | AC17: =IFERROR(VLOOKUP($A17,Filtro!$A$5:$AW$2963,27,FALSE),0) -> 0 | AD17: =IFERROR(VLOOKUP($A17,Filtro!$A$5:$AW$2963,28,FALSE),0) -> 0 | AE17: =IFERROR(VLOOKUP($A17,Filtro!$A$5:$AW$2963,29,FALSE),0) -> 0 | AF17: =IFERROR(VLOOKUP($A17,Filtro!$A$5:$AW$2963,30,FALSE),0) -> 0 | AG17: =IFERROR(VLOOKUP($A17,Filtro!$A$5:$AW$2963,31,FALSE),0) -> 0 | AH17: =IFERROR(VLOOKUP($A17,Filtro!$A$5:$AW$2963,32,FALSE),0) -> 0 | AI17: =IFERROR(VLOOKUP($A17,Filtro!$A$5:$AW$2963,33,FALSE),0) -> 0 | CV17: 0 | CW17: 0 | CZ17: 0 | DA17: 0 | DB17: 0 | DC17: 0 | DD17: 0 | DE17: 0 | DG17: 0
A18: 01501080 | C18: Matrona/ón | D18: =IFERROR(VLOOKUP($A18,Filtro!$A$5:$AW$2963,2,FALSE),0) -> 231 | E18: =IFERROR(VLOOKUP($A18,Filtro!$A$5:$AW$2963,3,FALSE),0) -> 0 | F18: =IFERROR(VLOOKUP($A18,Filtro!$A$5:$AW$2963,4,FALSE),0) -> 0 | G18: =IFERROR(VLOOKUP($A18,Filtro!$A$5:$AW$2963,5,FALSE),0) -> 0 | H18: =IFERROR(VLOOKUP($A18,Filtro!$A$5:$AW$2963,6,FALSE),0) -> 11 | I18: =IFERROR(VLOOKUP($A18,Filtro!$A$5:$AW$2963,7,FALSE),0) -> 38 | J18: =IFERROR(VLOOKUP($A18,Filtro!$A$5:$AW$2963,8,FALSE),0) -> 49 | K18: =IFERROR(VLOOKUP($A18,Filtro!$A$5:$AW$2963,9,FALSE),0) -> 68 | L18: =IFERROR(VLOOKUP($A18,Filtro!$A$5:$AW$2963,10,FALSE),0) -> 41 | M18: =IFERROR(VLOOKUP($A18,Filtro!$A$5:$AW$2963,11,FALSE),0) -> 23 | N18: =IFERROR(VLOOKUP($A18,Filtro!$A$5:$AW$2963,12,FALSE),0) -> 1 | O18: =IFERROR(VLOOKUP($A18,Filtro!$A$5:$AW$2963,13,FALSE),0) -> 0 | P18: =IFERROR(VLOOKUP($A18,Filtro!$A$5:$AW$2963,14,FALSE),0) -> 0 | Q18: =IFERROR(VLOOKUP($A18,Filtro!$A$5:$AW$2963,15,FALSE),0) -> 0 | R18: =IFERROR(VLOOKUP($A18,Filtro!$A$5:$AW$2963,16,FALSE),0) -> 0 | S18: =IFERROR(VLOOKUP($A18,Filtro!$A$5:$AW$2963,17,FALSE),0) -> 0 | T18: =IFERROR(VLOOKUP($A18,Filtro!$A$5:$AW$2963,18,FALSE),0) -> 0 | U18: =IFERROR(VLOOKUP($A18,Filtro!$A$5:$AW$2963,19,FALSE),0) -> 0 | V18: =IFERROR(VLOOKUP($A18,Filtro!$A$5:$AW$2963,20,FALSE),0) -> 0 | W18: =IFERROR(VLOOKUP($A18,Filtro!$A$5:$AW$2963,21,FALSE),0) -> 231 | X18: =IFERROR(VLOOKUP($A18,Filtro!$A$5:$AW$2963,22,FALSE),0) -> 31 | Y18: =IFERROR(VLOOKUP($A18,Filtro!$A$5:$AW$2963,23,FALSE),0) -> 0 | Z18: =IFERROR(VLOOKUP($A18,Filtro!$A$5:$AW$2963,24,FALSE),0) -> 0 | AA18: =IFERROR(VLOOKUP($A18,Filtro!$A$5:$AW$2963,25,FALSE),0) -> 0 | AB18: =IFERROR(VLOOKUP($A18,Filtro!$A$5:$AW$2963,26,FALSE),0) -> 1 | AC18: =IFERROR(VLOOKUP($A18,Filtro!$A$5:$AW$2963,27,FALSE),0) -> 4 | AD18: =IFERROR(VLOOKUP($A18,Filtro!$A$5:$AW$2963,28,FALSE),0) -> 27 | AE18: =IFERROR(VLOOKUP($A18,Filtro!$A$5:$AW$2963,29,FALSE),0) -> 2 | AF18: =IFERROR(VLOOKUP($A18,Filtro!$A$5:$AW$2963,30,FALSE),0) -> 0 | AG18: =IFERROR(VLOOKUP($A18,Filtro!$A$5:$AW$2963,31,FALSE),0) -> 0 | AH18: =IFERROR(VLOOKUP($A18,Filtro!$A$5:$AW$2963,32,FALSE),0) -> 0 | AI18: =IFERROR(VLOOKUP($A18,Filtro!$A$5:$AW$2963,33,FALSE),0) -> 0 | CV18: 0 | CW18: 0 | CZ18: 0 | DA18: 0 | DB18: 0 | DC18: 0 | DD18: 0 | DE18: 0 | DG18: 0
A19: 01110106 | B19: Puérpera con recién nacido hasta 10 días de vida | C19: Médico/a | D19: =IFERROR(VLOOKUP($A19,Filtro!$A$5:$AW$2963,2,FALSE),0) -> 26 | E19: =IFERROR(VLOOKUP($A19,Filtro!$A$5:$AW$2963,3,FALSE),0) -> 0 | F19: =IFERROR(VLOOKUP($A19,Filtro!$A$5:$AW$2963,4,FALSE),0) -> 0 | G19: =IFERROR(VLOOKUP($A19,Filtro!$A$5:$AW$2963,5,FALSE),0) -> 0 | H19: =IFERROR(VLOOKUP($A19,Filtro!$A$5:$AW$2963,6,FALSE),0) -> 1 | I19: =IFERROR(VLOOKUP($A19,Filtro!$A$5:$AW$2963,7,FALSE),0) -> 6 | J19: =IFERROR(VLOOKUP($A19,Filtro!$A$5:$AW$2963,8,FALSE),0) -> 7 | K19: =IFERROR(VLOOKUP($A19,Filtro!$A$5:$AW$2963,9,FALSE),0) -> 10 | L19: =IFERROR(VLOOKUP($A19,Filtro!$A$5:$AW$2963,10,FALSE),0) -> 1 | M19: =IFERROR(VLOOKUP($A19,Filtro!$A$5:$AW$2963,11,FALSE),0) -> 1 | N19: =IFERROR(VLOOKUP($A19,Filtro!$A$5:$AW$2963,12,FALSE),0) -> 0 | O19: =IFERROR(VLOOKUP($A19,Filtro!$A$5:$AW$2963,13,FALSE),0) -> 0 | P19: =IFERROR(VLOOKUP($A19,Filtro!$A$5:$AW$2963,14,FALSE),0) -> 0 | Q19: =IFERROR(VLOOKUP($A19,Filtro!$A$5:$AW$2963,15,FALSE),0) -> 0 | R19: =IFERROR(VLOOKUP($A19,Filtro!$A$5:$AW$2963,16,FALSE),0) -> 0 | S19: =IFERROR(VLOOKUP($A19,Filtro!$A$5:$AW$2963,17,FALSE),0) -> 0 | T19: =IFERROR(VLOOKUP($A19,Filtro!$A$5:$AW$2963,18,FALSE),0) -> 0 | U19: =IFERROR(VLOOKUP($A19,Filtro!$A$5:$AW$2963,19,FALSE),0) -> 0 | V19: =IFERROR(VLOOKUP($A19,Filtro!$A$5:$AW$2963,20,FALSE),0) -> 0 | W19: =IFERROR(VLOOKUP($A19,Filtro!$A$5:$AW$2963,21,FALSE),0) -> 26 | X19: =IFERROR(VLOOKUP($A19,Filtro!$A$5:$AW$2963,22,FALSE),0) -> 15 | Y19: =IFERROR(VLOOKUP($A19,Filtro!$A$5:$AW$2963,23,FALSE),0) -> 12 | Z19: =IFERROR(VLOOKUP($A19,Filtro!$A$5:$AW$2963,24,FALSE),0) -> 0 | AA19: =IFERROR(VLOOKUP($A19,Filtro!$A$5:$AW$2963,25,FALSE),0) -> 0 | AB19: =IFERROR(VLOOKUP($A19,Filtro!$A$5:$AW$2963,26,FALSE),0) -> 0 | AC19: =IFERROR(VLOOKUP($A19,Filtro!$A$5:$AW$2963,27,FALSE),0) -> 0 | AD19: =IFERROR(VLOOKUP($A19,Filtro!$A$5:$AW$2963,28,FALSE),0) -> 5 | AE19: =IFERROR(VLOOKUP($A19,Filtro!$A$5:$AW$2963,29,FALSE),0) -> 0 | AF19: =IFERROR(VLOOKUP($A19,Filtro!$A$5:$AW$2963,30,FALSE),0) -> 0 | AG19: =IFERROR(VLOOKUP($A19,Filtro!$A$5:$AW$2963,31,FALSE),0) -> 0 | AH19: =IFERROR(VLOOKUP($A19,Filtro!$A$5:$AW$2963,32,FALSE),0) -> 0 | AI19: =IFERROR(VLOOKUP($A19,Filtro!$A$5:$AW$2963,33,FALSE),0) -> 0 | CD19: =IF(AND($D19<>0,Y19=""),"* No olvide ingresar la columna "&Y$9&""&" (Digite CERO si no tiene). ",IF(Y19>$D19,"* El Número de Control de diada con presencia del padre no puede superar el Total. ","")) ->  | CV19: 0 | CW19: 0 | CX19: =IF(AND(D19<>0,Y19=""),1,IF(Y19>D19,1,0)) -> 0 | CZ19: 0 | DA19: 0 | DB19: 0 | DC19: 0 | DD19: 0 | DE19: 0 | DG19: 0
A20: 01110107 | C20: Matrona/ón | D20: =IFERROR(VLOOKUP($A20,Filtro!$A$5:$AW$2963,2,FALSE),0) -> 3339 | E20: =IFERROR(VLOOKUP($A20,Filtro!$A$5:$AW$2963,3,FALSE),0) -> 0 | F20: =IFERROR(VLOOKUP($A20,Filtro!$A$5:$AW$2963,4,FALSE),0) -> 0 | G20: =IFERROR(VLOOKUP($A20,Filtro!$A$5:$AW$2963,5,FALSE),0) -> 3 | H20: =IFERROR(VLOOKUP($A20,Filtro!$A$5:$AW$2963,6,FALSE),0) -> 143 | I20: =IFERROR(VLOOKUP($A20,Filtro!$A$5:$AW$2963,7,FALSE),0) -> 706 | J20: =IFERROR(VLOOKUP($A20,Filtro!$A$5:$AW$2963,8,FALSE),0) -> 932 | K20: =IFERROR(VLOOKUP($A20,Filtro!$A$5:$AW$2963,9,FALSE),0) -> 892 | L20: =IFERROR(VLOOKUP($A20,Filtro!$A$5:$AW$2963,10,FALSE),0) -> 521 | M20: =IFERROR(VLOOKUP($A20,Filtro!$A$5:$AW$2963,11,FALSE),0) -> 136 | N20: =IFERROR(VLOOKUP($A20,Filtro!$A$5:$AW$2963,12,FALSE),0) -> 6 | O20: =IFERROR(VLOOKUP($A20,Filtro!$A$5:$AW$2963,13,FALSE),0) -> 0 | P20: =IFERROR(VLOOKUP($A20,Filtro!$A$5:$AW$2963,14,FALSE),0) -> 0 | Q20: =IFERROR(VLOOKUP($A20,Filtro!$A$5:$AW$2963,15,FALSE),0) -> 0 | R20: =IFERROR(VLOOKUP($A20,Filtro!$A$5:$AW$2963,16,FALSE),0) -> 0 | S20: =IFERROR(VLOOKUP($A20,Filtro!$A$5:$AW$2963,17,FALSE),0) -> 0 | T20: =IFERROR(VLOOKUP($A20,Filtro!$A$5:$AW$2963,18,FALSE),0) -> 0 | U20: =IFERROR(VLOOKUP($A20,Filtro!$A$5:$AW$2963,19,FALSE),0) -> 0 | V20: =IFERROR(VLOOKUP($A20,Filtro!$A$5:$AW$2963,20,FALSE),0) -> 0 | W20: =IFERROR(VLOOKUP($A20,Filtro!$A$5:$AW$2963,21,FALSE),0) -> 3338 | X20: =IFERROR(VLOOKUP($A20,Filtro!$A$5:$AW$2963,22,FALSE),0) -> 1108 | Y20: =IFERROR(VLOOKUP($A20,Filtro!$A$5:$AW$2963,23,FALSE),0) -> 1737 | Z20: =IFERROR(VLOOKUP($A20,Filtro!$A$5:$AW$2963,24,FALSE),0) -> 0 | AA20: =IFERROR(VLOOKUP($A20,Filtro!$A$5:$AW$2963,25,FALSE),0) -> 0 | AB20: =IFERROR(VLOOKUP($A20,Filtro!$A$5:$AW$2963,26,FALSE),0) -> 0 | AC20: =IFERROR(VLOOKUP($A20,Filtro!$A$5:$AW$2963,27,FALSE),0) -> 153 | AD20: =IFERROR(VLOOKUP($A20,Filtro!$A$5:$AW$2963,28,FALSE),0) -> 322 | AE20: =IFERROR(VLOOKUP($A20,Filtro!$A$5:$AW$2963,29,FALSE),0) -> 0 | AF20: =IFERROR(VLOOKUP($A20,Filtro!$A$5:$AW$2963,30,FALSE),0) -> 0 | AG20: =IFERROR(VLOOKUP($A20,Filtro!$A$5:$AW$2963,31,FALSE),0) -> 0 | AH20: =IFERROR(VLOOKUP($A20,Filtro!$A$5:$AW$2963,32,FALSE),0) -> 0 | AI20: =IFERROR(VLOOKUP($A20,Filtro!$A$5:$AW$2963,33,FALSE),0) -> 0 | AJ20: * La suma de la variable Sexo (Hombres + Mujeres) no puede ser distinto al Total | CB20: * La suma de la variable Sexo (Hombres + Mujeres) no puede ser distinto al Total | CV20: 1 | CW20: 0 | CX20: 0 | CZ20: 0 | DA20: 0 | DB20: 0 | DC20: 0 | DD20: 0 | DE20: 0 | DG20: 0
A21: 01080030 | B21: Puérpera con recién nacido entre 11 y 28 días | C21: Médico/a | D21: =IFERROR(VLOOKUP($A21,Filtro!$A$5:$AW$2963,2,FALSE),0) -> 4 | E21: =IFERROR(VLOOKUP($A21,Filtro!$A$5:$AW$2963,3,FALSE),0) -> 0 | F21: =IFERROR(VLOOKUP($A21,Filtro!$A$5:$AW$2963,4,FALSE),0) -> 0 | G21: =IFERROR(VLOOKUP($A21,Filtro!$A$5:$AW$2963,5,FALSE),0) -> 0 | H21: =IFERROR(VLOOKUP($A21,Filtro!$A$5:$AW$2963,6,FALSE),0) -> 0 | I21: =IFERROR(VLOOKUP($A21,Filtro!$A$5:$AW$2963,7,FALSE),0) -> 0 | J21: =IFERROR(VLOOKUP($A21,Filtro!$A$5:$AW$2963,8,FALSE),0) -> 0 | K21: =IFERROR(VLOOKUP($A21,Filtro!$A$5:$AW$2963,9,FALSE),0) -> 2 | L21: =IFERROR(VLOOKUP($A21,Filtro!$A$5:$AW$2963,10,FALSE),0) -> 1 | M21: =IFERROR(VLOOKUP($A21,Filtro!$A$5:$AW$2963,11,FALSE),0) -> 1 | N21: =IFERROR(VLOOKUP($A21,Filtro!$A$5:$AW$2963,12,FALSE),0) -> 0 | O21: =IFERROR(VLOOKUP($A21,Filtro!$A$5:$AW$2963,13,FALSE),0) -> 0 | P21: =IFERROR(VLOOKUP($A21,Filtro!$A$5:$AW$2963,14,FALSE),0) -> 0 | Q21: =IFERROR(VLOOKUP($A21,Filtro!$A$5:$AW$2963,15,FALSE),0) -> 0 | R21: =IFERROR(VLOOKUP($A21,Filtro!$A$5:$AW$2963,16,FALSE),0) -> 0 | S21: =IFERROR(VLOOKUP($A21,Filtro!$A$5:$AW$2963,17,FALSE),0) -> 0 | T21: =IFERROR(VLOOKUP($A21,Filtro!$A$5:$AW$2963,18,FALSE),0) -> 0 | U21: =IFERROR(VLOOKUP($A21,Filtro!$A$5:$AW$2963,19,FALSE),0) -> 0 | V21: =IFERROR(VLOOKUP($A21,Filtro!$A$5:$AW$2963,20,FALSE),0) -> 0 | W21: =IFERROR(VLOOKUP($A21,Filtro!$A$5:$AW$2963,21,FALSE),0) -> 4 | X21: =IFERROR(VLOOKUP($A21,Filtro!$A$5:$AW$2963,22,FALSE),0) -> 3 | Y21: =IFERROR(VLOOKUP($A21,Filtro!$A$5:$AW$2963,23,FALSE),0) -> 3 | Z21: =IFERROR(VLOOKUP($A21,Filtro!$A$5:$AW$2963,24,FALSE),0) -> 0 | AA21: =IFERROR(VLOOKUP($A21,Filtro!$A$5:$AW$2963,25,FALSE),0) -> 0 | AB21: =IFERROR(VLOOKUP($A21,Filtro!$A$5:$AW$2963,26,FALSE),0) -> 0 | AC21: =IFERROR(VLOOKUP($A21,Filtro!$A$5:$AW$2963,27,FALSE),0) -> 0 | AD21: =IFERROR(VLOOKUP($A21,Filtro!$A$5:$AW$2963,28,FALSE),0) -> 0 | AE21: =IFERROR(VLOOKUP($A21,Filtro!$A$5:$AW$2963,29,FALSE),0) -> 0 | AF21: =IFERROR(VLOOKUP($A21,Filtro!$A$5:$AW$2963,30,FALSE),0) -> 0 | AG21: =IFERROR(VLOOKUP($A21,Filtro!$A$5:$AW$2963,31,FALSE),0) -> 0 | AH21: =IFERROR(VLOOKUP($A21,Filtro!$A$5:$AW$2963,32,FALSE),0) -> 0 | AI21: =IFERROR(VLOOKUP($A21,Filtro!$A$5:$AW$2963,33,FALSE),0) -> 0 | CV21: 0 | CW21: 0 | CX21: 0 | CZ21: 0 | DA21: 0 | DB21: 0 | DC21: 0 | DD21: 0 | DE21: 0 | DG21: 0
A22: 01080040 | C22: Matrona/ón | D22: =IFERROR(VLOOKUP($A22,Filtro!$A$5:$AW$2963,2,FALSE),0) -> 1420 | E22: =IFERROR(VLOOKUP($A22,Filtro!$A$5:$AW$2963,3,FALSE),0) -> 0 | F22: =IFERROR(VLOOKUP($A22,Filtro!$A$5:$AW$2963,4,FALSE),0) -> 0 | G22: =IFERROR(VLOOKUP($A22,Filtro!$A$5:$AW$2963,5,FALSE),0) -> 1 | H22: =IFERROR(VLOOKUP($A22,Filtro!$A$5:$AW$2963,6,FALSE),0) -> 57 | I22: =IFERROR(VLOOKUP($A22,Filtro!$A$5:$AW$2963,7,FALSE),0) -> 284 | J22: =IFERROR(VLOOKUP($A22,Filtro!$A$5:$AW$2963,8,FALSE),0) -> 384 | K22: =IFERROR(VLOOKUP($A22,Filtro!$A$5:$AW$2963,9,FALSE),0) -> 394 | L22: =IFERROR(VLOOKUP($A22,Filtro!$A$5:$AW$2963,10,FALSE),0) -> 230 | M22: =IFERROR(VLOOKUP($A22,Filtro!$A$5:$AW$2963,11,FALSE),0) -> 65 | N22: =IFERROR(VLOOKUP($A22,Filtro!$A$5:$AW$2963,12,FALSE),0) -> 5 | O22: =IFERROR(VLOOKUP($A22,Filtro!$A$5:$AW$2963,13,FALSE),0) -> 0 | P22: =IFERROR(VLOOKUP($A22,Filtro!$A$5:$AW$2963,14,FALSE),0) -> 0 | Q22: =IFERROR(VLOOKUP($A22,Filtro!$A$5:$AW$2963,15,FALSE),0) -> 0 | R22: =IFERROR(VLOOKUP($A22,Filtro!$A$5:$AW$2963,16,FALSE),0) -> 0 | S22: =IFERROR(VLOOKUP($A22,Filtro!$A$5:$AW$2963,17,FALSE),0) -> 0 | T22: =IFERROR(VLOOKUP($A22,Filtro!$A$5:$AW$2963,18,FALSE),0) -> 0 | U22: =IFERROR(VLOOKUP($A22,Filtro!$A$5:$AW$2963,19,FALSE),0) -> 0 | V22: =IFERROR(VLOOKUP($A22,Filtro!$A$5:$AW$2963,20,FALSE),0) -> 0 | W22: =IFERROR(VLOOKUP($A22,Filtro!$A$5:$AW$2963,21,FALSE),0) -> 1418 | X22: =IFERROR(VLOOKUP($A22,Filtro!$A$5:$AW$2963,22,FALSE),0) -> 452 | Y22: =IFERROR(VLOOKUP($A22,Filtro!$A$5:$AW$2963,23,FALSE),0) -> 593 | Z22: =IFERROR(VLOOKUP($A22,Filtro!$A$5:$AW$2963,24,FALSE),0) -> 0 | AA22: =IFERROR(VLOOKUP($A22,Filtro!$A$5:$AW$2963,25,FALSE),0) -> 0 | AB22: =IFERROR(VLOOKUP($A22,Filtro!$A$5:$AW$2963,26,FALSE),0) -> 0 | AC22: =IFERROR(VLOOKUP($A22,Filtro!$A$5:$AW$2963,27,FALSE),0) -> 41 | AD22: =IFERROR(VLOOKUP($A22,Filtro!$A$5:$AW$2963,28,FALSE),0) -> 156 | AE22: =IFERROR(VLOOKUP($A22,Filtro!$A$5:$AW$2963,29,FALSE),0) -> 3 | AF22: =IFERROR(VLOOKUP($A22,Filtro!$A$5:$AW$2963,30,FALSE),0) -> 0 | AG22: =IFERROR(VLOOKUP($A22,Filtro!$A$5:$AW$2963,31,FALSE),0) -> 0 | AH22: =IFERROR(VLOOKUP($A22,Filtro!$A$5:$AW$2963,32,FALSE),0) -> 0 | AI22: =IFERROR(VLOOKUP($A22,Filtro!$A$5:$AW$2963,33,FALSE),0) -> 0 | AJ22: * La suma de la variable Sexo (Hombres + Mujeres) no puede ser distinto al Total | CB22: * La suma de la variable Sexo (Hombres + Mujeres) no puede ser distinto al Total | CV22: 1 | CW22: 0 | CX22: 0 | CZ22: 0 | DA22: 0 | DB22: 0 | DC22: 0 | DD22: 0 | DE22: 0 | DG22: 0
A23: 01501090 | B23: Recién nacido hasta 10 días de vida | C23: Médico/a | D23: =IFERROR(VLOOKUP($A23,Filtro!$A$5:$AW$2963,2,FALSE),0) -> 6 | E23: =IFERROR(VLOOKUP($A23,Filtro!$A$5:$AW$2963,3,FALSE),0) -> 6 | F23: =IFERROR(VLOOKUP($A23,Filtro!$A$5:$AW$2963,4,FALSE),0) -> 0 | G23: =IFERROR(VLOOKUP($A23,Filtro!$A$5:$AW$2963,5,FALSE),0) -> 0 | H23: =IFERROR(VLOOKUP($A23,Filtro!$A$5:$AW$2963,6,FALSE),0) -> 0 | I23: =IFERROR(VLOOKUP($A23,Filtro!$A$5:$AW$2963,7,FALSE),0) -> 0 | J23: =IFERROR(VLOOKUP($A23,Filtro!$A$5:$AW$2963,8,FALSE),0) -> 0 | K23: =IFERROR(VLOOKUP($A23,Filtro!$A$5:$AW$2963,9,FALSE),0) -> 0 | L23: =IFERROR(VLOOKUP($A23,Filtro!$A$5:$AW$2963,10,FALSE),0) -> 0 | M23: =IFERROR(VLOOKUP($A23,Filtro!$A$5:$AW$2963,11,FALSE),0) -> 0 | N23: =IFERROR(VLOOKUP($A23,Filtro!$A$5:$AW$2963,12,FALSE),0) -> 0 | O23: =IFERROR(VLOOKUP($A23,Filtro!$A$5:$AW$2963,13,FALSE),0) -> 0 | P23: =IFERROR(VLOOKUP($A23,Filtro!$A$5:$AW$2963,14,FALSE),0) -> 0 | Q23: =IFERROR(VLOOKUP($A23,Filtro!$A$5:$AW$2963,15,FALSE),0) -> 0 | R23: =IFERROR(VLOOKUP($A23,Filtro!$A$5:$AW$2963,16,FALSE),0) -> 0 | S23: =IFERROR(VLOOKUP($A23,Filtro!$A$5:$AW$2963,17,FALSE),0) -> 0 | T23: =IFERROR(VLOOKUP($A23,Filtro!$A$5:$AW$2963,18,FALSE),0) -> 0 | U23: =IFERROR(VLOOKUP($A23,Filtro!$A$5:$AW$2963,19,FALSE),0) -> 0 | V23: =IFERROR(VLOOKUP($A23,Filtro!$A$5:$AW$2963,20,FALSE),0) -> 3 | W23: =IFERROR(VLOOKUP($A23,Filtro!$A$5:$AW$2963,21,FALSE),0) -> 3 | X23: =IFERROR(VLOOKUP($A23,Filtro!$A$5:$AW$2963,22,FALSE),0) -> 0 | Y23: =IFERROR(VLOOKUP($A23,Filtro!$A$5:$AW$2963,23,FALSE),0) -> 1 | Z23: =IFERROR(VLOOKUP($A23,Filtro!$A$5:$AW$2963,24,FALSE),0) -> 0 | AA23: =IFERROR(VLOOKUP($A23,Filtro!$A$5:$AW$2963,25,FALSE),0) -> 0 | AB23: =IFERROR(VLOOKUP($A23,Filtro!$A$5:$AW$2963,26,FALSE),0) -> 0 | AC23: =IFERROR(VLOOKUP($A23,Filtro!$A$5:$AW$2963,27,FALSE),0) -> 0 | AD23: =IFERROR(VLOOKUP($A23,Filtro!$A$5:$AW$2963,28,FALSE),0) -> 0 | AE23: =IFERROR(VLOOKUP($A23,Filtro!$A$5:$AW$2963,29,FALSE),0) -> 0 | AF23: =IFERROR(VLOOKUP($A23,Filtro!$A$5:$AW$2963,30,FALSE),0) -> 0 | AG23: =IFERROR(VLOOKUP($A23,Filtro!$A$5:$AW$2963,31,FALSE),0) -> 0 | AH23: =IFERROR(VLOOKUP($A23,Filtro!$A$5:$AW$2963,32,FALSE),0) -> 0 | AI23: =IFERROR(VLOOKUP($A23,Filtro!$A$5:$AW$2963,33,FALSE),0) -> 0 | CV23: 0 | CX23: 0 | CZ23: 0 | DA23: 0 | DB23: 0 | DC23: 0 | DD23: 0
A24: 01502000 | C24: Matrona/ón | D24: =IFERROR(VLOOKUP($A24,Filtro!$A$5:$AW$2963,2,FALSE),0) -> 921 | E24: =IFERROR(VLOOKUP($A24,Filtro!$A$5:$AW$2963,3,FALSE),0) -> 921 | F24: =IFERROR(VLOOKUP($A24,Filtro!$A$5:$AW$2963,4,FALSE),0) -> 0 | G24: =IFERROR(VLOOKUP($A24,Filtro!$A$5:$AW$2963,5,FALSE),0) -> 0 | H24: =IFERROR(VLOOKUP($A24,Filtro!$A$5:$AW$2963,6,FALSE),0) -> 0 | I24: =IFERROR(VLOOKUP($A24,Filtro!$A$5:$AW$2963,7,FALSE),0) -> 0 | J24: =IFERROR(VLOOKUP($A24,Filtro!$A$5:$AW$2963,8,FALSE),0) -> 0 | K24: =IFERROR(VLOOKUP($A24,Filtro!$A$5:$AW$2963,9,FALSE),0) -> 0 | L24: =IFERROR(VLOOKUP($A24,Filtro!$A$5:$AW$2963,10,FALSE),0) -> 0 | M24: =IFERROR(VLOOKUP($A24,Filtro!$A$5:$AW$2963,11,FALSE),0) -> 0 | N24: =IFERROR(VLOOKUP($A24,Filtro!$A$5:$AW$2963,12,FALSE),0) -> 0 | O24: =IFERROR(VLOOKUP($A24,Filtro!$A$5:$AW$2963,13,FALSE),0) -> 0 | P24: =IFERROR(VLOOKUP($A24,Filtro!$A$5:$AW$2963,14,FALSE),0) -> 0 | Q24: =IFERROR(VLOOKUP($A24,Filtro!$A$5:$AW$2963,15,FALSE),0) -> 0 | R24: =IFERROR(VLOOKUP($A24,Filtro!$A$5:$AW$2963,16,FALSE),0) -> 0 | S24: =IFERROR(VLOOKUP($A24,Filtro!$A$5:$AW$2963,17,FALSE),0) -> 0 | T24: =IFERROR(VLOOKUP($A24,Filtro!$A$5:$AW$2963,18,FALSE),0) -> 0 | U24: =IFERROR(VLOOKUP($A24,Filtro!$A$5:$AW$2963,19,FALSE),0) -> 0 | V24: =IFERROR(VLOOKUP($A24,Filtro!$A$5:$AW$2963,20,FALSE),0) -> 448 | W24: =IFERROR(VLOOKUP($A24,Filtro!$A$5:$AW$2963,21,FALSE),0) -> 472 | X24: =IFERROR(VLOOKUP($A24,Filtro!$A$5:$AW$2963,22,FALSE),0) -> 0 | Y24: =IFERROR(VLOOKUP($A24,Filtro!$A$5:$AW$2963,23,FALSE),0) -> 477 | Z24: =IFERROR(VLOOKUP($A24,Filtro!$A$5:$AW$2963,24,FALSE),0) -> 0 | AA24: =IFERROR(VLOOKUP($A24,Filtro!$A$5:$AW$2963,25,FALSE),0) -> 0 | AB24: =IFERROR(VLOOKUP($A24,Filtro!$A$5:$AW$2963,26,FALSE),0) -> 0 | AC24: =IFERROR(VLOOKUP($A24,Filtro!$A$5:$AW$2963,27,FALSE),0) -> 21 | AD24: =IFERROR(VLOOKUP($A24,Filtro!$A$5:$AW$2963,28,FALSE),0) -> 3 | AE24: =IFERROR(VLOOKUP($A24,Filtro!$A$5:$AW$2963,29,FALSE),0) -> 0 | AF24: =IFERROR(VLOOKUP($A24,Filtro!$A$5:$AW$2963,30,FALSE),0) -> 0 | AG24: =IFERROR(VLOOKUP($A24,Filtro!$A$5:$AW$2963,31,FALSE),0) -> 0 | AH24: =IFERROR(VLOOKUP($A24,Filtro!$A$5:$AW$2963,32,FALSE),0) -> 0 | AI24: =IFERROR(VLOOKUP($A24,Filtro!$A$5:$AW$2963,33,FALSE),0) -> 0 | AJ24: * La suma de la variable Sexo (Hombres + Mujeres) no puede ser distinto al Total | CB24: * La suma de la variable Sexo (Hombres + Mujeres) no puede ser distinto al Total | CV24: 1 | CX24: 0 | CZ24: 0 | DA24: 0 | DB24: 0 | DC24: 0 | DD24: 0
A25: 01502010 | B25: Recién nacido entre 11 y 28 días | C25: Médico/a | D25: =IFERROR(VLOOKUP($A25,Filtro!$A$5:$AW$2963,2,FALSE),0) -> 2 | E25: =IFERROR(VLOOKUP($A25,Filtro!$A$5:$AW$2963,3,FALSE),0) -> 2 | F25: =IFERROR(VLOOKUP($A25,Filtro!$A$5:$AW$2963,4,FALSE),0) -> 0 | G25: =IFERROR(VLOOKUP($A25,Filtro!$A$5:$AW$2963,5,FALSE),0) -> 0 | H25: =IFERROR(VLOOKUP($A25,Filtro!$A$5:$AW$2963,6,FALSE),0) -> 0 | I25: =IFERROR(VLOOKUP($A25,Filtro!$A$5:$AW$2963,7,FALSE),0) -> 0 | J25: =IFERROR(VLOOKUP($A25,Filtro!$A$5:$AW$2963,8,FALSE),0) -> 0 | K25: =IFERROR(VLOOKUP($A25,Filtro!$A$5:$AW$2963,9,FALSE),0) -> 0 | L25: =IFERROR(VLOOKUP($A25,Filtro!$A$5:$AW$2963,10,FALSE),0) -> 0 | M25: =IFERROR(VLOOKUP($A25,Filtro!$A$5:$AW$2963,11,FALSE),0) -> 0 | N25: =IFERROR(VLOOKUP($A25,Filtro!$A$5:$AW$2963,12,FALSE),0) -> 0 | O25: =IFERROR(VLOOKUP($A25,Filtro!$A$5:$AW$2963,13,FALSE),0) -> 0 | P25: =IFERROR(VLOOKUP($A25,Filtro!$A$5:$AW$2963,14,FALSE),0) -> 0 | Q25: =IFERROR(VLOOKUP($A25,Filtro!$A$5:$AW$2963,15,FALSE),0) -> 0 | R25: =IFERROR(VLOOKUP($A25,Filtro!$A$5:$AW$2963,16,FALSE),0) -> 0 | S25: =IFERROR(VLOOKUP($A25,Filtro!$A$5:$AW$2963,17,FALSE),0) -> 0 | T25: =IFERROR(VLOOKUP($A25,Filtro!$A$5:$AW$2963,18,FALSE),0) -> 0 | U25: =IFERROR(VLOOKUP($A25,Filtro!$A$5:$AW$2963,19,FALSE),0) -> 0 | V25: =IFERROR(VLOOKUP($A25,Filtro!$A$5:$AW$2963,20,FALSE),0) -> 0 | W25: =IFERROR(VLOOKUP($A25,Filtro!$A$5:$AW$2963,21,FALSE),0) -> 2 | X25: =IFERROR(VLOOKUP($A25,Filtro!$A$5:$AW$2963,22,FALSE),0) -> 0 | Y25: =IFERROR(VLOOKUP($A25,Filtro!$A$5:$AW$2963,23,FALSE),0) -> 0 | Z25: =IFERROR(VLOOKUP($A25,Filtro!$A$5:$AW$2963,24,FALSE),0) -> 0 | AA25: =IFERROR(VLOOKUP($A25,Filtro!$A$5:$AW$2963,25,FALSE),0) -> 0 | AB25: =IFERROR(VLOOKUP($A25,Filtro!$A$5:$AW$2963,26,FALSE),0) -> 0 | AC25: =IFERROR(VLOOKUP($A25,Filtro!$A$5:$AW$2963,27,FALSE),0) -> 0 | AD25: =IFERROR(VLOOKUP($A25,Filtro!$A$5:$AW$2963,28,FALSE),0) -> 0 | AE25: =IFERROR(VLOOKUP($A25,Filtro!$A$5:$AW$2963,29,FALSE),0) -> 0 | AF25: =IFERROR(VLOOKUP($A25,Filtro!$A$5:$AW$2963,30,FALSE),0) -> 0 | AG25: =IFERROR(VLOOKUP($A25,Filtro!$A$5:$AW$2963,31,FALSE),0) -> 0 | AH25: =IFERROR(VLOOKUP($A25,Filtro!$A$5:$AW$2963,32,FALSE),0) -> 0 | AI25: =IFERROR(VLOOKUP($A25,Filtro!$A$5:$AW$2963,33,FALSE),0) -> 0 | CV25: 0 | CX25: 0 | CZ25: 0 | DA25: 0 | DB25: 0 | DC25: 0 | DD25: 0
A26: 01502020 | C26: Matrona/ón | D26: =IFERROR(VLOOKUP($A26,Filtro!$A$5:$AW$2963,2,FALSE),0) -> 303 | E26: =IFERROR(VLOOKUP($A26,Filtro!$A$5:$AW$2963,3,FALSE),0) -> 303 | F26: =IFERROR(VLOOKUP($A26,Filtro!$A$5:$AW$2963,4,FALSE),0) -> 0 | G26: =IFERROR(VLOOKUP($A26,Filtro!$A$5:$AW$2963,5,FALSE),0) -> 0 | H26: =IFERROR(VLOOKUP($A26,Filtro!$A$5:$AW$2963,6,FALSE),0) -> 0 | I26: =IFERROR(VLOOKUP($A26,Filtro!$A$5:$AW$2963,7,FALSE),0) -> 0 | J26: =IFERROR(VLOOKUP($A26,Filtro!$A$5:$AW$2963,8,FALSE),0) -> 0 | K26: =IFERROR(VLOOKUP($A26,Filtro!$A$5:$AW$2963,9,FALSE),0) -> 0 | L26: =IFERROR(VLOOKUP($A26,Filtro!$A$5:$AW$2963,10,FALSE),0) -> 0 | M26: =IFERROR(VLOOKUP($A26,Filtro!$A$5:$AW$2963,11,FALSE),0) -> 0 | N26: =IFERROR(VLOOKUP($A26,Filtro!$A$5:$AW$2963,12,FALSE),0) -> 0 | O26: =IFERROR(VLOOKUP($A26,Filtro!$A$5:$AW$2963,13,FALSE),0) -> 0 | P26: =IFERROR(VLOOKUP($A26,Filtro!$A$5:$AW$2963,14,FALSE),0) -> 0 | Q26: =IFERROR(VLOOKUP($A26,Filtro!$A$5:$AW$2963,15,FALSE),0) -> 0 | R26: =IFERROR(VLOOKUP($A26,Filtro!$A$5:$AW$2963,16,FALSE),0) -> 0 | S26: =IFERROR(VLOOKUP($A26,Filtro!$A$5:$AW$2963,17,FALSE),0) -> 0 | T26: =IFERROR(VLOOKUP($A26,Filtro!$A$5:$AW$2963,18,FALSE),0) -> 0 | U26: =IFERROR(VLOOKUP($A26,Filtro!$A$5:$AW$2963,19,FALSE),0) -> 0 | V26: =IFERROR(VLOOKUP($A26,Filtro!$A$5:$AW$2963,20,FALSE),0) -> 142 | W26: =IFERROR(VLOOKUP($A26,Filtro!$A$5:$AW$2963,21,FALSE),0) -> 161 | X26: =IFERROR(VLOOKUP($A26,Filtro!$A$5:$AW$2963,22,FALSE),0) -> 0 | Y26: =IFERROR(VLOOKUP($A26,Filtro!$A$5:$AW$2963,23,FALSE),0) -> 140 | Z26: =IFERROR(VLOOKUP($A26,Filtro!$A$5:$AW$2963,24,FALSE),0) -> 0 | AA26: =IFERROR(VLOOKUP($A26,Filtro!$A$5:$AW$2963,25,FALSE),0) -> 0 | AB26: =IFERROR(VLOOKUP($A26,Filtro!$A$5:$AW$2963,26,FALSE),0) -> 1 | AC26: =IFERROR(VLOOKUP($A26,Filtro!$A$5:$AW$2963,27,FALSE),0) -> 8 | AD26: =IFERROR(VLOOKUP($A26,Filtro!$A$5:$AW$2963,28,FALSE),0) -> 9 | AE26: =IFERROR(VLOOKUP($A26,Filtro!$A$5:$AW$2963,29,FALSE),0) -> 0 | AF26: =IFERROR(VLOOKUP($A26,Filtro!$A$5:$AW$2963,30,FALSE),0) -> 0 | AG26: =IFERROR(VLOOKUP($A26,Filtro!$A$5:$AW$2963,31,FALSE),0) -> 0 | AH26: =IFERROR(VLOOKUP($A26,Filtro!$A$5:$AW$2963,32,FALSE),0) -> 0 | AI26: =IFERROR(VLOOKUP($A26,Filtro!$A$5:$AW$2963,33,FALSE),0) -> 0 | CV26: 0 | CX26: 0 | CZ26: 0 | DA26: 0 | DB26: 0 | DC26: 0 | DD26: 0
A27: 01010601 | B27: Ginecológico | C27: Médico/a | D27: =IFERROR(VLOOKUP($A27,Filtro!$A$5:$AW$2963,2,FALSE),0) -> 1804 | E27: =IFERROR(VLOOKUP($A27,Filtro!$A$5:$AW$2963,3,FALSE),0) -> 0 | F27: =IFERROR(VLOOKUP($A27,Filtro!$A$5:$AW$2963,4,FALSE),0) -> 0 | G27: =IFERROR(VLOOKUP($A27,Filtro!$A$5:$AW$2963,5,FALSE),0) -> 27 | H27: =IFERROR(VLOOKUP($A27,Filtro!$A$5:$AW$2963,6,FALSE),0) -> 90 | I27: =IFERROR(VLOOKUP($A27,Filtro!$A$5:$AW$2963,7,FALSE),0) -> 125 | J27: =IFERROR(VLOOKUP($A27,Filtro!$A$5:$AW$2963,8,FALSE),0) -> 200 | K27: =IFERROR(VLOOKUP($A27,Filtro!$A$5:$AW$2963,9,FALSE),0) -> 233 | L27: =IFERROR(VLOOKUP($A27,Filtro!$A$5:$AW$2963,10,FALSE),0) -> 194 | M27: =IFERROR(VLOOKUP($A27,Filtro!$A$5:$AW$2963,11,FALSE),0) -> 171 | N27: =IFERROR(VLOOKUP($A27,Filtro!$A$5:$AW$2963,12,FALSE),0) -> 203 | O27: =IFERROR(VLOOKUP($A27,Filtro!$A$5:$AW$2963,13,FALSE),0) -> 209 | P27: =IFERROR(VLOOKUP($A27,Filtro!$A$5:$AW$2963,14,FALSE),0) -> 129 | Q27: =IFERROR(VLOOKUP($A27,Filtro!$A$5:$AW$2963,15,FALSE),0) -> 83 | R27: =IFERROR(VLOOKUP($A27,Filtro!$A$5:$AW$2963,16,FALSE),0) -> 61 | S27: =IFERROR(VLOOKUP($A27,Filtro!$A$5:$AW$2963,17,FALSE),0) -> 41 | T27: =IFERROR(VLOOKUP($A27,Filtro!$A$5:$AW$2963,18,FALSE),0) -> 22 | U27: =IFERROR(VLOOKUP($A27,Filtro!$A$5:$AW$2963,19,FALSE),0) -> 16 | V27: =IFERROR(VLOOKUP($A27,Filtro!$A$5:$AW$2963,20,FALSE),0) -> 0 | W27: =IFERROR(VLOOKUP($A27,Filtro!$A$5:$AW$2963,21,FALSE),0) -> 1804 | X27: =IFERROR(VLOOKUP($A27,Filtro!$A$5:$AW$2963,22,FALSE),0) -> 0 | Y27: =IFERROR(VLOOKUP($A27,Filtro!$A$5:$AW$2963,23,FALSE),0) -> 0 | Z27: =IFERROR(VLOOKUP($A27,Filtro!$A$5:$AW$2963,24,FALSE),0) -> 0 | AA27: =IFERROR(VLOOKUP($A27,Filtro!$A$5:$AW$2963,25,FALSE),0) -> 0 | AB27: =IFERROR(VLOOKUP($A27,Filtro!$A$5:$AW$2963,26,FALSE),0) -> 0 | AC27: =IFERROR(VLOOKUP($A27,Filtro!$A$5:$AW$2963,27,FALSE),0) -> 1 | AD27: =IFERROR(VLOOKUP($A27,Filtro!$A$5:$AW$2963,28,FALSE),0) -> 0 | AE27: =IFERROR(VLOOKUP($A27,Filtro!$A$5:$AW$2963,29,FALSE),0) -> 0 | AF27: =IFERROR(VLOOKUP($A27,Filtro!$A$5:$AW$2963,30,FALSE),0) -> 0 | AG27: =IFERROR(VLOOKUP($A27,Filtro!$A$5:$AW$2963,31,FALSE),0) -> 0 | AH27: =IFERROR(VLOOKUP($A27,Filtro!$A$5:$AW$2963,32,FALSE),0) -> 0 | AI27: =IFERROR(VLOOKUP($A27,Filtro!$A$5:$AW$2963,33,FALSE),0) -> 0 | CE27: =IF(AND($D27<>0,Z27=""),"* No olvide ingresar la variable "&Z$9&""&". Digite CERO si no tiene. ",IF(Z27>$D27,"* La variable Espacios Amigables/ Adolescentes no debe ser mayor al Total. ","")) ->  | CK27: =IF(AND($W27<>0,AF27=""),"* No olvide ingresar la variable "&AF$10&""&". Digite CERO si no tiene. ",IF(AF27>$W27,"* La variable Trans masculino no debe ser mayor al Total Mujeres. ","")) ->  | CM27: =IF(AND($D27<>0,AH27=""),"* No olvide ingresar la variable "&AH$10&""&". Digite CERO si no tiene. ",IF(AH27>$D27,"* La variable No binarie no debe ser mayor al Total. ","")) ->  | CV27: 0 | CY27: =IF(AND($D27<>0,Z27=""),1,IF(Z27>$D27,1,0)) -> 0 | CZ27: 0 | DA27: 0 | DB27: 0 | DC27: 0 | DD27: 0 | DE27: =IF(AND($W27<>0,AF27=""),1,IF(AF27>$W27,1,0)) -> 0 | DG27: =IF(AND($D27<>0,AH27=""),1,IF(AH27>$D27,1,0)) -> 0
A28: 01010603 | C28: Matrona/ón | D28: =IFERROR(VLOOKUP($A28,Filtro!$A$5:$AW$2963,2,FALSE),0) -> 55909 | E28: =IFERROR(VLOOKUP($A28,Filtro!$A$5:$AW$2963,3,FALSE),0) -> 0 | F28: =IFERROR(VLOOKUP($A28,Filtro!$A$5:$AW$2963,4,FALSE),0) -> 0 | G28: =IFERROR(VLOOKUP($A28,Filtro!$A$5:$AW$2963,5,FALSE),0) -> 260 | H28: =IFERROR(VLOOKUP($A28,Filtro!$A$5:$AW$2963,6,FALSE),0) -> 739 | I28: =IFERROR(VLOOKUP($A28,Filtro!$A$5:$AW$2963,7,FALSE),0) -> 2068 | J28: =IFERROR(VLOOKUP($A28,Filtro!$A$5:$AW$2963,8,FALSE),0) -> 4479 | K28: =IFERROR(VLOOKUP($A28,Filtro!$A$5:$AW$2963,9,FALSE),0) -> 5444 | L28: =IFERROR(VLOOKUP($A28,Filtro!$A$5:$AW$2963,10,FALSE),0) -> 5763 | M28: =IFERROR(VLOOKUP($A28,Filtro!$A$5:$AW$2963,11,FALSE),0) -> 6535 | N28: =IFERROR(VLOOKUP($A28,Filtro!$A$5:$AW$2963,12,FALSE),0) -> 6638 | O28: =IFERROR(VLOOKUP($A28,Filtro!$A$5:$AW$2963,13,FALSE),0) -> 6800 | P28: =IFERROR(VLOOKUP($A28,Filtro!$A$5:$AW$2963,14,FALSE),0) -> 6359 | Q28: =IFERROR(VLOOKUP($A28,Filtro!$A$5:$AW$2963,15,FALSE),0) -> 5879 | R28: =IFERROR(VLOOKUP($A28,Filtro!$A$5:$AW$2963,16,FALSE),0) -> 2883 | S28: =IFERROR(VLOOKUP($A28,Filtro!$A$5:$AW$2963,17,FALSE),0) -> 1243 | T28: =IFERROR(VLOOKUP($A28,Filtro!$A$5:$AW$2963,18,FALSE),0) -> 510 | U28: =IFERROR(VLOOKUP($A28,Filtro!$A$5:$AW$2963,19,FALSE),0) -> 309 | V28: =IFERROR(VLOOKUP($A28,Filtro!$A$5:$AW$2963,20,FALSE),0) -> 0 | W28: =IFERROR(VLOOKUP($A28,Filtro!$A$5:$AW$2963,21,FALSE),0) -> 55903 | X28: =IFERROR(VLOOKUP($A28,Filtro!$A$5:$AW$2963,22,FALSE),0) -> 0 | Y28: =IFERROR(VLOOKUP($A28,Filtro!$A$5:$AW$2963,23,FALSE),0) -> 0 | Z28: =IFERROR(VLOOKUP($A28,Filtro!$A$5:$AW$2963,24,FALSE),0) -> 100 | AA28: =IFERROR(VLOOKUP($A28,Filtro!$A$5:$AW$2963,25,FALSE),0) -> 25 | AB28: =IFERROR(VLOOKUP($A28,Filtro!$A$5:$AW$2963,26,FALSE),0) -> 5 | AC28: =IFERROR(VLOOKUP($A28,Filtro!$A$5:$AW$2963,27,FALSE),0) -> 1225 | AD28: =IFERROR(VLOOKUP($A28,Filtro!$A$5:$AW$2963,28,FALSE),0) -> 2723 | AE28: =IFERROR(VLOOKUP($A28,Filtro!$A$5:$AW$2963,29,FALSE),0) -> 82 | AF28: =IFERROR(VLOOKUP($A28,Filtro!$A$5:$AW$2963,30,FALSE),0) -> 10 | AG28: =IFERROR(VLOOKUP($A28,Filtro!$A$5:$AW$2963,31,FALSE),0) -> 0 | AH28: =IFERROR(VLOOKUP($A28,Filtro!$A$5:$AW$2963,32,FALSE),0) -> 20 | AI28: =IFERROR(VLOOKUP($A28,Filtro!$A$5:$AW$2963,33,FALSE),0) -> 0 | AJ28: * La suma de la variable Sexo (Hombres + Mujeres) no puede ser distinto al Total | CB28: * La suma de la variable Sexo (Hombres + Mujeres) no puede ser distinto al Total | CE28: =IF(AND($D28<>0,Z28=""),"* No olvide ingresar la variable "&Z$9&""&". Digite CERO si no tiene. ",IF(Z28>$D28,"* La variable Espacios Amigables/ Adolescentes no debe ser mayor al Total. ","")) ->  | CV28: 1 | CY28: =IF(AND($D28<>0,Z28=""),1,IF(Z28>$D28,1,0)) -> 0 | CZ28: 0 | DA28: 0 | DB28: 0 | DC28: 0 | DD28: 0 | DE28: 0 | DG28: 0
A29: 01010901 | B29: Climaterio | C29: Médico/a | D29: =IFERROR(VLOOKUP($A29,Filtro!$A$5:$AW$2963,2,FALSE),0) -> 240 | E29: =IFERROR(VLOOKUP($A29,Filtro!$A$5:$AW$2963,3,FALSE),0) -> 0 | F29: =IFERROR(VLOOKUP($A29,Filtro!$A$5:$AW$2963,4,FALSE),0) -> 0 | G29: =IFERROR(VLOOKUP($A29,Filtro!$A$5:$AW$2963,5,FALSE),0) -> 0 | H29: =IFERROR(VLOOKUP($A29,Filtro!$A$5:$AW$2963,6,FALSE),0) -> 0 | I29: =IFERROR(VLOOKUP($A29,Filtro!$A$5:$AW$2963,7,FALSE),0) -> 0 | J29: =IFERROR(VLOOKUP($A29,Filtro!$A$5:$AW$2963,8,FALSE),0) -> 0 | K29: =IFERROR(VLOOKUP($A29,Filtro!$A$5:$AW$2963,9,FALSE),0) -> 0 | L29: =IFERROR(VLOOKUP($A29,Filtro!$A$5:$AW$2963,10,FALSE),0) -> 0 | M29: =IFERROR(VLOOKUP($A29,Filtro!$A$5:$AW$2963,11,FALSE),0) -> 28 | N29: =IFERROR(VLOOKUP($A29,Filtro!$A$5:$AW$2963,12,FALSE),0) -> 60 | O29: =IFERROR(VLOOKUP($A29,Filtro!$A$5:$AW$2963,13,FALSE),0) -> 85 | P29: =IFERROR(VLOOKUP($A29,Filtro!$A$5:$AW$2963,14,FALSE),0) -> 38 | Q29: =IFERROR(VLOOKUP($A29,Filtro!$A$5:$AW$2963,15,FALSE),0) -> 29 | R29: =IFERROR(VLOOKUP($A29,Filtro!$A$5:$AW$2963,16,FALSE),0) -> 0 | S29: =IFERROR(VLOOKUP($A29,Filtro!$A$5:$AW$2963,17,FALSE),0) -> 0 | T29: =IFERROR(VLOOKUP($A29,Filtro!$A$5:$AW$2963,18,FALSE),0) -> 0 | U29: =IFERROR(VLOOKUP($A29,Filtro!$A$5:$AW$2963,19,FALSE),0) -> 0 | V29: =IFERROR(VLOOKUP($A29,Filtro!$A$5:$AW$2963,20,FALSE),0) -> 0 | W29: =IFERROR(VLOOKUP($A29,Filtro!$A$5:$AW$2963,21,FALSE),0) -> 240 | X29: =IFERROR(VLOOKUP($A29,Filtro!$A$5:$AW$2963,22,FALSE),0) -> 0 | Y29: =IFERROR(VLOOKUP($A29,Filtro!$A$5:$AW$2963,23,FALSE),0) -> 0 | Z29: =IFERROR(VLOOKUP($A29,Filtro!$A$5:$AW$2963,24,FALSE),0) -> 0 | AA29: =IFERROR(VLOOKUP($A29,Filtro!$A$5:$AW$2963,25,FALSE),0) -> 0 | AB29: =IFERROR(VLOOKUP($A29,Filtro!$A$5:$AW$2963,26,FALSE),0) -> 0 | AC29: =IFERROR(VLOOKUP($A29,Filtro!$A$5:$AW$2963,27,FALSE),0) -> 6 | AD29: =IFERROR(VLOOKUP($A29,Filtro!$A$5:$AW$2963,28,FALSE),0) -> 1 | AE29: =IFERROR(VLOOKUP($A29,Filtro!$A$5:$AW$2963,29,FALSE),0) -> 0 | AF29: =IFERROR(VLOOKUP($A29,Filtro!$A$5:$AW$2963,30,FALSE),0) -> 0 | AG29: =IFERROR(VLOOKUP($A29,Filtro!$A$5:$AW$2963,31,FALSE),0) -> 0 | AH29: =IFERROR(VLOOKUP($A29,Filtro!$A$5:$AW$2963,32,FALSE),0) -> 0 | AI29: =IFERROR(VLOOKUP($A29,Filtro!$A$5:$AW$2963,33,FALSE),0) -> 0 | CV29: 0 | DB29: 0 | DC29: 0 | DD29: 0 | DE29: 0 | DG29: 0
A30: 01010903 | C30: Matrona/ón | D30: =IFERROR(VLOOKUP($A30,Filtro!$A$5:$AW$2963,2,FALSE),0) -> 5360 | E30: =IFERROR(VLOOKUP($A30,Filtro!$A$5:$AW$2963,3,FALSE),0) -> 0 | F30: =IFERROR(VLOOKUP($A30,Filtro!$A$5:$AW$2963,4,FALSE),0) -> 0 | G30: =IFERROR(VLOOKUP($A30,Filtro!$A$5:$AW$2963,5,FALSE),0) -> 0 | H30: =IFERROR(VLOOKUP($A30,Filtro!$A$5:$AW$2963,6,FALSE),0) -> 0 | I30: =IFERROR(VLOOKUP($A30,Filtro!$A$5:$AW$2963,7,FALSE),0) -> 0 | J30: =IFERROR(VLOOKUP($A30,Filtro!$A$5:$AW$2963,8,FALSE),0) -> 0 | K30: =IFERROR(VLOOKUP($A30,Filtro!$A$5:$AW$2963,9,FALSE),0) -> 0 | L30: =IFERROR(VLOOKUP($A30,Filtro!$A$5:$AW$2963,10,FALSE),0) -> 0 | M30: =IFERROR(VLOOKUP($A30,Filtro!$A$5:$AW$2963,11,FALSE),0) -> 252 | N30: =IFERROR(VLOOKUP($A30,Filtro!$A$5:$AW$2963,12,FALSE),0) -> 1417 | O30: =IFERROR(VLOOKUP($A30,Filtro!$A$5:$AW$2963,13,FALSE),0) -> 1913 | P30: =IFERROR(VLOOKUP($A30,Filtro!$A$5:$AW$2963,14,FALSE),0) -> 1198 | Q30: =IFERROR(VLOOKUP($A30,Filtro!$A$5:$AW$2963,15,FALSE),0) -> 580 | R30: =IFERROR(VLOOKUP($A30,Filtro!$A$5:$AW$2963,16,FALSE),0) -> 0 | S30: =IFERROR(VLOOKUP($A30,Filtro!$A$5:$AW$2963,17,FALSE),0) -> 0 | T30: =IFERROR(VLOOKUP($A30,Filtro!$A$5:$AW$2963,18,FALSE),0) -> 0 | U30: =IFERROR(VLOOKUP($A30,Filtro!$A$5:$AW$2963,19,FALSE),0) -> 0 | V30: =IFERROR(VLOOKUP($A30,Filtro!$A$5:$AW$2963,20,FALSE),0) -> 0 | W30: =IFERROR(VLOOKUP($A30,Filtro!$A$5:$AW$2963,21,FALSE),0) -> 5359 | X30: =IFERROR(VLOOKUP($A30,Filtro!$A$5:$AW$2963,22,FALSE),0) -> 0 | Y30: =IFERROR(VLOOKUP($A30,Filtro!$A$5:$AW$2963,23,FALSE),0) -> 0 | Z30: =IFERROR(VLOOKUP($A30,Filtro!$A$5:$AW$2963,24,FALSE),0) -> 0 | AA30: =IFERROR(VLOOKUP($A30,Filtro!$A$5:$AW$2963,25,FALSE),0) -> 0 | AB30: =IFERROR(VLOOKUP($A30,Filtro!$A$5:$AW$2963,26,FALSE),0) -> 0 | AC30: =IFERROR(VLOOKUP($A30,Filtro!$A$5:$AW$2963,27,FALSE),0) -> 195 | AD30: =IFERROR(VLOOKUP($A30,Filtro!$A$5:$AW$2963,28,FALSE),0) -> 139 | AE30: =IFERROR(VLOOKUP($A30,Filtro!$A$5:$AW$2963,29,FALSE),0) -> 8 | AF30: =IFERROR(VLOOKUP($A30,Filtro!$A$5:$AW$2963,30,FALSE),0) -> 0 | AG30: =IFERROR(VLOOKUP($A30,Filtro!$A$5:$AW$2963,31,FALSE),0) -> 0 | AH30: =IFERROR(VLOOKUP($A30,Filtro!$A$5:$AW$2963,32,FALSE),0) -> 0 | AI30: =IFERROR(VLOOKUP($A30,Filtro!$A$5:$AW$2963,33,FALSE),0) -> 0 | AJ30: * La suma de la variable Sexo (Hombres + Mujeres) no puede ser distinto al Total | CB30: * La suma de la variable Sexo (Hombres + Mujeres) no puede ser distinto al Total | CV30: 1 | DB30: 0 | DC30: 0 | DD30: 0 | DE30: 0 | DG30: 0
A31: 01010401 | B31: Regulación de Fecundidad | C31: Médico/a | D31: =IFERROR(VLOOKUP($A31,Filtro!$A$5:$AW$2963,2,FALSE),0) -> 11 | E31: =IFERROR(VLOOKUP($A31,Filtro!$A$5:$AW$2963,3,FALSE),0) -> 0 | F31: =IFERROR(VLOOKUP($A31,Filtro!$A$5:$AW$2963,4,FALSE),0) -> 0 | G31: =IFERROR(VLOOKUP($A31,Filtro!$A$5:$AW$2963,5,FALSE),0) -> 0 | H31: =IFERROR(VLOOKUP($A31,Filtro!$A$5:$AW$2963,6,FALSE),0) -> 1 | I31: =IFERROR(VLOOKUP($A31,Filtro!$A$5:$AW$2963,7,FALSE),0) -> 0 | J31: =IFERROR(VLOOKUP($A31,Filtro!$A$5:$AW$2963,8,FALSE),0) -> 2 | K31: =IFERROR(VLOOKUP($A31,Filtro!$A$5:$AW$2963,9,FALSE),0) -> 2 | L31: =IFERROR(VLOOKUP($A31,Filtro!$A$5:$AW$2963,10,FALSE),0) -> 0 | M31: =IFERROR(VLOOKUP($A31,Filtro!$A$5:$AW$2963,11,FALSE),0) -> 2 | N31: =IFERROR(VLOOKUP($A31,Filtro!$A$5:$AW$2963,12,FALSE),0) -> 0 | O31: =IFERROR(VLOOKUP($A31,Filtro!$A$5:$AW$2963,13,FALSE),0) -> 1 | P31: =IFERROR(VLOOKUP($A31,Filtro!$A$5:$AW$2963,14,FALSE),0) -> 2 | Q31: =IFERROR(VLOOKUP($A31,Filtro!$A$5:$AW$2963,15,FALSE),0) -> 0 | R31: =IFERROR(VLOOKUP($A31,Filtro!$A$5:$AW$2963,16,FALSE),0) -> 0 | S31: =IFERROR(VLOOKUP($A31,Filtro!$A$5:$AW$2963,17,FALSE),0) -> 0 | T31: =IFERROR(VLOOKUP($A31,Filtro!$A$5:$AW$2963,18,FALSE),0) -> 1 | U31: =IFERROR(VLOOKUP($A31,Filtro!$A$5:$AW$2963,19,FALSE),0) -> 0 | V31: =IFERROR(VLOOKUP($A31,Filtro!$A$5:$AW$2963,20,FALSE),0) -> 0 | W31: =IFERROR(VLOOKUP($A31,Filtro!$A$5:$AW$2963,21,FALSE),0) -> 11 | X31: =IFERROR(VLOOKUP($A31,Filtro!$A$5:$AW$2963,22,FALSE),0) -> 1 | Y31: =IFERROR(VLOOKUP($A31,Filtro!$A$5:$AW$2963,23,FALSE),0) -> 0 | Z31: =IFERROR(VLOOKUP($A31,Filtro!$A$5:$AW$2963,24,FALSE),0) -> 0 | AA31: =IFERROR(VLOOKUP($A31,Filtro!$A$5:$AW$2963,25,FALSE),0) -> 0 | AB31: =IFERROR(VLOOKUP($A31,Filtro!$A$5:$AW$2963,26,FALSE),0) -> 0 | AC31: =IFERROR(VLOOKUP($A31,Filtro!$A$5:$AW$2963,27,FALSE),0) -> 0 | AD31: =IFERROR(VLOOKUP($A31,Filtro!$A$5:$AW$2963,28,FALSE),0) -> 2 | AE31: =IFERROR(VLOOKUP($A31,Filtro!$A$5:$AW$2963,29,FALSE),0) -> 0 | AF31: =IFERROR(VLOOKUP($A31,Filtro!$A$5:$AW$2963,30,FALSE),0) -> 0 | AG31: =IFERROR(VLOOKUP($A31,Filtro!$A$5:$AW$2963,31,FALSE),0) -> 0 | AH31: =IFERROR(VLOOKUP($A31,Filtro!$A$5:$AW$2963,32,FALSE),0) -> 0 | AI31: =IFERROR(VLOOKUP($A31,Filtro!$A$5:$AW$2963,33,FALSE),0) -> 0 | CC31: =IF(AND($D31<>0,X31=""),"* No olvide ingresar la variable "&X$9&""&". Digite CERO si no tiene. ",IF(X31>$D31,"* La variable Control con pareja, familiar u otro no debe ser mayor al Total. ","")) ->  | CE31: =IF(AND($D31<>0,Z31=""),"* No olvide ingresar la variable "&Z$9&""&". Digite CERO si no tiene. ",IF(Z31>$D31,"* La variable Espacios Amigables/ Adolescentes no debe ser mayor al Total. ","")) ->  | CF31: =IF(AND($D31<>0,AA31=""),"* No olvide ingresar la variable "&AA29&""&". Digite CERO si no tiene. ",IF(AA31>$D31,"* La variable Niños, Niñas, Adolescentes y Jóvenes SENAME no debe ser mayor al Total. ","")) ->  | CG31: =IF(AND($D31<>0,AB31=""),"* No olvide ingresar la variable "&AB29&""&". Digite CERO si no tiene. ",IF(AB31>$D31,"* La variable Niños, Niñas, Adolescentes y Jóvenes Mejor Niñez no debe ser mayor al Total. ","")) ->  | CL31: =IF(AND($V31<>0,AG31=""),"* No olvide ingresar la variable "&AG$10&""&". Digite CERO si no tiene. ",IF(AG31>$V31,"* La variable Trans Femenino no debe ser mayor al Total Hombres ","")) ->  | CN31: =IF(AND($D31<>0,AI31=""),"* No olvide ingresar la variable "&AI$9&""&". Digite CERO si no tiene. ",IF(AI31>$D31,"* La variable Adolescente acude a control MAC con pareja no debe ser mayor al Total. ","")) ->  | CV31: 0 | CW31: =IF(AND(D31>0,X31=""),1,IF(X31>SUM(D31),1,0)) -> 0 | CY31: =IF(AND($D31<>0,Z31=""),1,IF(Z31>$D31,1,0)) -> 0 | CZ31: =IF(AND($D31<>0,AA31=""),1,IF(AA31>D31,1,0)) -> 0 | DA31: =IF(AND($D31<>0,AB31=""),1,IF(AB31>D31,1,0)) -> 0 | DB31: 0 | DC31: 0 | DD31: 0 | DE31: 0 | DF31: =IF(AND($V31<>0,AG31=""),1,IF(AG31>$V31,1,0)) -> 0 | DG31: 0 | DH31: =IF(AND($D31<>0,AI31=""),1,IF(AI31>$D31,1,0)) -> 0
A32: 01010403 | C32: Matrona/ón | D32: =IFERROR(VLOOKUP($A32,Filtro!$A$5:$AW$2963,2,FALSE),0) -> 80515 | E32: =IFERROR(VLOOKUP($A32,Filtro!$A$5:$AW$2963,3,FALSE),0) -> 0 | F32: =IFERROR(VLOOKUP($A32,Filtro!$A$5:$AW$2963,4,FALSE),0) -> 0 | G32: =IFERROR(VLOOKUP($A32,Filtro!$A$5:$AW$2963,5,FALSE),0) -> 1511 | H32: =IFERROR(VLOOKUP($A32,Filtro!$A$5:$AW$2963,6,FALSE),0) -> 12593 | I32: =IFERROR(VLOOKUP($A32,Filtro!$A$5:$AW$2963,7,FALSE),0) -> 12431 | J32: =IFERROR(VLOOKUP($A32,Filtro!$A$5:$AW$2963,8,FALSE),0) -> 13373 | K32: =IFERROR(VLOOKUP($A32,Filtro!$A$5:$AW$2963,9,FALSE),0) -> 13062 | L32: =IFERROR(VLOOKUP($A32,Filtro!$A$5:$AW$2963,10,FALSE),0) -> 10585 | M32: =IFERROR(VLOOKUP($A32,Filtro!$A$5:$AW$2963,11,FALSE),0) -> 8378 | N32: =IFERROR(VLOOKUP($A32,Filtro!$A$5:$AW$2963,12,FALSE),0) -> 6113 | O32: =IFERROR(VLOOKUP($A32,Filtro!$A$5:$AW$2963,13,FALSE),0) -> 2234 | P32: =IFERROR(VLOOKUP($A32,Filtro!$A$5:$AW$2963,14,FALSE),0) -> 161 | Q32: =IFERROR(VLOOKUP($A32,Filtro!$A$5:$AW$2963,15,FALSE),0) -> 47 | R32: =IFERROR(VLOOKUP($A32,Filtro!$A$5:$AW$2963,16,FALSE),0) -> 16 | S32: =IFERROR(VLOOKUP($A32,Filtro!$A$5:$AW$2963,17,FALSE),0) -> 7 | T32: =IFERROR(VLOOKUP($A32,Filtro!$A$5:$AW$2963,18,FALSE),0) -> 3 | U32: =IFERROR(VLOOKUP($A32,Filtro!$A$5:$AW$2963,19,FALSE),0) -> 1 | V32: =IFERROR(VLOOKUP($A32,Filtro!$A$5:$AW$2963,20,FALSE),0) -> 317 | W32: =IFERROR(VLOOKUP($A32,Filtro!$A$5:$AW$2963,21,FALSE),0) -> 80148 | X32: =IFERROR(VLOOKUP($A32,Filtro!$A$5:$AW$2963,22,FALSE),0) -> 4843 | Y32: =IFERROR(VLOOKUP($A32,Filtro!$A$5:$AW$2963,23,FALSE),0) -> 0 | Z32: =IFERROR(VLOOKUP($A32,Filtro!$A$5:$AW$2963,24,FALSE),0) -> 2002 | AA32: =IFERROR(VLOOKUP($A32,Filtro!$A$5:$AW$2963,25,FALSE),0) -> 19 | AB32: =IFERROR(VLOOKUP($A32,Filtro!$A$5:$AW$2963,26,FALSE),0) -> 79 | AC32: =IFERROR(VLOOKUP($A32,Filtro!$A$5:$AW$2963,27,FALSE),0) -> 1915 | AD32: =IFERROR(VLOOKUP($A32,Filtro!$A$5:$AW$2963,28,FALSE),0) -> 3697 | AE32: =IFERROR(VLOOKUP($A32,Filtro!$A$5:$AW$2963,29,FALSE),0) -> 56 | AF32: =IFERROR(VLOOKUP($A32,Filtro!$A$5:$AW$2963,30,FALSE),0) -> 54 | AG32: =IFERROR(VLOOKUP($A32,Filtro!$A$5:$AW$2963,31,FALSE),0) -> 3 | AH32: =IFERROR(VLOOKUP($A32,Filtro!$A$5:$AW$2963,32,FALSE),0) -> 5 | AI32: =IFERROR(VLOOKUP($A32,Filtro!$A$5:$AW$2963,33,FALSE),0) -> 217 | AJ32: * La suma de la variable Sexo (Hombres + Mujeres) no puede ser distinto al Total | CB32: * La suma de la variable Sexo (Hombres + Mujeres) no puede ser distinto al Total | CC32: =IF(AND($D32<>0,X32=""),"* No olvide ingresar la variable "&X$9&""&". Digite CERO si no tiene. ",IF(X32>$D32,"* La variable Control con pareja, familiar u otro no debe ser mayor al Total. ","")) ->  | CE32: =IF(AND($D32<>0,Z32=""),"* No olvide ingresar la variable "&Z$9&""&". Digite CERO si no tiene. ",IF(Z32>$D32,"* La variable Espacios Amigables/ Adolescentes no debe ser mayor al Total. ","")) ->  | CF32: =IF(AND($D32<>0,AA32=""),"* No olvide ingresar la variable "&AA30&""&". Digite CERO si no tiene. ",IF(AA32>$D32,"* La variable Niños, Niñas, Adolescentes y Jóvenes SENAME no debe ser mayor al Total. ","")) ->  | CG32: =IF(AND($D32<>0,AB32=""),"* No olvide ingresar la variable "&AB30&""&". Digite CERO si no tiene. ",IF(AB32>$D32,"* La variable Niños, Niñas, Adolescentes y Jóvenes Mejor Niñez no debe ser mayor al Total. ","")) ->  | CL32: =IF(AND($V32<>0,AG32=""),"* No olvide ingresar la variable "&AG$10&""&". Digite CERO si no tiene. ",IF(AG32>$V32,"* La variable Trans Femenino no debe ser mayor al Total Hombres ","")) ->  | CN32: =IF(AND($D32<>0,AI32=""),"* No olvide ingresar la variable "&AI$9&""&". Digite CERO si no tiene. ",IF(AI32>$D32,"* La variable Adolescente acude a control MAC con pareja no debe ser mayor al Total. ","")) ->  | CV32: 1 | CW32: =IF(AND(D32>0,X32=""),1,IF(X32>SUM(D32),1,0)) -> 0 | CY32: =IF(AND($D32<>0,Z32=""),1,IF(Z32>$D32,1,0)) -> 0 | CZ32: =IF(AND($D32<>0,AA32=""),1,IF(AA32>D32,1,0)) -> 0 | DA32: =IF(AND($D32<>0,AB32=""),1,IF(AB32>D32,1,0)) -> 0 | DB32: 0 | DC32: 0 | DD32: 0 | DE32: 0 | DF32: =IF(AND($V32<>0,AG32=""),1,IF(AG32>$V32,1,0)) -> 0 | DG32: 0 | DH32: =IF(AND($D32<>0,AI32=""),1,IF(AI32>$D32,1,0)) -> 0
B33: SECCIÓN B: CONTROLES DE SALUD SEGÚN CICLO VITAL
B34: TIPO DE CONTROL | C34: PROFESIONAL | D34: TOTAL | G34: RANGO ETARIO | AJ34: Control con Presencia del Padre | AL34: Niños, Niñas, Adolescentes y Jóvenes SENAME | AM34: Niños, Niñas, Adolescentes y Jóvenes Mejor Niñez | AN34: Pueblos Originarios | AO34: Migrantes
D35: Ambos Sexos | E35: Hombres | F35: Mujeres | G35: Menos de 1 mes | H35: 1 mes | I35: 2 meses | J35: 3 meses | K35: 4 meses | L35: 5 meses | M35: 6 meses | N35: 7 - 11 meses | O35: 12 - 17 meses | P35: 18 - 23 meses | Q35: 24 - 47 meses | R35: 48 - 59 meses | S35: 60 - 71 meses | T35: 6 - 9 años | U35: 10 - 14 años | V35: 15 - 19 años | W35: 20 - 24 años | X35: 25 - 29 años | Y35: 30 - 34 años | Z35: 35 - 39 años | AA35: 40 - 44 años | AB35: 45 - 49 años | AC35: 50 - 54 años | AD35: 55 - 59 años | AE35: 60 - 64 años | AF35: 65 - 69 años | AG35: 70 - 74 años | AH35: 75 - 79 años | AI35: 80 y más años | AJ35: Menor 1 año | AK35: 1 año a 3 años 11 meses 29 días
A36: 02010101 | B36: De salud | C36: Médico/a | D36: =IFERROR(VLOOKUP($A36,Filtro!$A$5:$AW$2963,2,FALSE),0) -> 23621 | E36: =IFERROR(VLOOKUP($A36,Filtro!$A$5:$AW$2963,3,FALSE),0) -> 10362 | F36: =IFERROR(VLOOKUP($A36,Filtro!$A$5:$AW$2963,4,FALSE),0) -> 13273 | G36: =IFERROR(VLOOKUP($A36,Filtro!$A$5:$AW$2963,5,FALSE),0) -> 165 | H36: =IFERROR(VLOOKUP($A36,Filtro!$A$5:$AW$2963,6,FALSE),0) -> 4290 | I36: =IFERROR(VLOOKUP($A36,Filtro!$A$5:$AW$2963,7,FALSE),0) -> 414 | J36: =IFERROR(VLOOKUP($A36,Filtro!$A$5:$AW$2963,8,FALSE),0) -> 4071 | K36: =IFERROR(VLOOKUP($A36,Filtro!$A$5:$AW$2963,9,FALSE),0) -> 452 | L36: =IFERROR(VLOOKUP($A36,Filtro!$A$5:$AW$2963,10,FALSE),0) -> 120 | M36: =IFERROR(VLOOKUP($A36,Filtro!$A$5:$AW$2963,11,FALSE),0) -> 49 | N36: =IFERROR(VLOOKUP($A36,Filtro!$A$5:$AW$2963,12,FALSE),0) -> 95 | O36: =IFERROR(VLOOKUP($A36,Filtro!$A$5:$AW$2963,13,FALSE),0) -> 84 | P36: =IFERROR(VLOOKUP($A36,Filtro!$A$5:$AW$2963,14,FALSE),0) -> 119 | Q36: =IFERROR(VLOOKUP($A36,Filtro!$A$5:$AW$2963,15,FALSE),0) -> 220 | R36: =IFERROR(VLOOKUP($A36,Filtro!$A$5:$AW$2963,16,FALSE),0) -> 206 | S36: =IFERROR(VLOOKUP($A36,Filtro!$A$5:$AW$2963,17,FALSE),0) -> 317 | T36: =IFERROR(VLOOKUP($A36,Filtro!$A$5:$AW$2963,18,FALSE),0) -> 1287 | U36: =IFERROR(VLOOKUP($A36,Filtro!$A$5:$AW$2963,19,FALSE),0) -> 1251 | V36: =IFERROR(VLOOKUP($A36,Filtro!$A$5:$AW$2963,20,FALSE),0) -> 775 | W36: =IFERROR(VLOOKUP($A36,Filtro!$A$5:$AW$2963,21,FALSE),0) -> 168 | X36: =IFERROR(VLOOKUP($A36,Filtro!$A$5:$AW$2963,22,FALSE),0) -> 241 | Y36: =IFERROR(VLOOKUP($A36,Filtro!$A$5:$AW$2963,23,FALSE),0) -> 287 | Z36: =IFERROR(VLOOKUP($A36,Filtro!$A$5:$AW$2963,24,FALSE),0) -> 355 | AA36: =IFERROR(VLOOKUP($A36,Filtro!$A$5:$AW$2963,25,FALSE),0) -> 429 | AB36: =IFERROR(VLOOKUP($A36,Filtro!$A$5:$AW$2963,26,FALSE),0) -> 565 | AC36: =IFERROR(VLOOKUP($A36,Filtro!$A$5:$AW$2963,27,FALSE),0) -> 825 | AD36: =IFERROR(VLOOKUP($A36,Filtro!$A$5:$AW$2963,28,FALSE),0) -> 1085 | AE36: =IFERROR(VLOOKUP($A36,Filtro!$A$5:$AW$2963,29,FALSE),0) -> 1357 | AF36: =IFERROR(VLOOKUP($A36,Filtro!$A$5:$AW$2963,30,FALSE),0) -> 1464 | AG36: =IFERROR(VLOOKUP($A36,Filtro!$A$5:$AW$2963,31,FALSE),0) -> 1312 | AH36: =IFERROR(VLOOKUP($A36,Filtro!$A$5:$AW$2963,32,FALSE),0) -> 1066 | AI36: =IFERROR(VLOOKUP($A36,Filtro!$A$5:$AW$2963,33,FALSE),0) -> 1225 | AJ36: =IFERROR(VLOOKUP($A36,Filtro!$A$5:$AW$2963,34,FALSE),0) -> 2532 | AK36: =IFERROR(VLOOKUP($A36,Filtro!$A$5:$AW$2963,35,FALSE),0) -> 38 | AL36: =IFERROR(VLOOKUP($A36,Filtro!$A$5:$AW$2963,36,FALSE),0) -> 13 | AM36: =IFERROR(VLOOKUP($A36,Filtro!$A$5:$AW$2963,37,FALSE),0) -> 133 | AN36: =IFERROR(VLOOKUP($A36,Filtro!$A$5:$AW$2963,38,FALSE),0) -> 702 | AO36: =IFERROR(VLOOKUP($A36,Filtro!$A$5:$AW$2963,39,FALSE),0) -> 721 | AP36: =CB36&CC36&CD36&CE36&CF36&CG36&CH36 -> * La suma de la variable Sexo (Hombres + Mujeres) no puede ser distinto al Total | CB36: =IF((E36+F36)<>$D36," * La suma de la variable Sexo (Hombres + Mujeres) no puede ser distinto al Total","") -> * La suma de la variable Sexo (Hombres + Mujeres) no puede ser distinto al Total | CC36: =IF(AND(SUM(G36:N36)>0,AJ36="")," * No olvide digitar la variable "&AJ$34&""&" de menor de 1 año. Digite CERO si no tiene. ",IF(AJ36>SUM(G36:N36),"* La variable Control con Presencia del padre de menor de 1 año no debe ser mayor al Total de Controles de menores de 1 año. ","")) ->  | CD36: =IF(AND(SUM(O36:Q36)>0,AK36="")," * No olvide digitar la variable "&AJ$34&""&" de 1 año a 3 años 11 meses 29 días. Digite CERO si no tiene. ",IF(AK36>SUM(O36:Q36),"* La variable Control con Presencia del padre de 1 año a 3 años 11 meses 29 días no debe ser mayor al Total de Controles de 12 a 47 meses. ","")) ->  | CE36: =IF(AND($D36<>0,AL36=""),"* No olvide ingresar la variable "&AL$34&""&". Digite CERO si no tiene. ",IF(AL36>$D36,"* La variable Niños, Niñas, Adolescentes y Jóvenes SENAME no debe ser mayor al Total Ambos Sexos. ","")) ->  | CF36: =IF(AND($D36<>0,AM36=""),"* No olvide ingresar la variable "&AM$34&""&". Digite CERO si no tiene. ",IF(AM36>$D36,"* La variable de Niños, Niñas, Adolescentes y Jóvenes Mejor Niñez no debe ser mayor al Total Ambos Sexos. ","")) ->  | CG36: =IF(AND($D36<>0,AN36=""),"* No olvide ingresar la variable "&AN$34&""&". Digite CERO si no tiene. ",IF(AN36>$D36,"* La variable Pueblos Originarios no debe ser mayor al Total Ambos Sexos. ","")) ->  | CH36: =IF(AND($D36<>0,AO36=""),"* No olvide ingresar la variable "&AO$34&""&". Digite CERO si no tiene. ",IF(AO36>$D36,"* La variable Migrantes no debe ser mayor al Total Ambos Sexos. ","")) ->  | CV36: =IF(D36<>SUM(E36:F36),1,0) -> 1 | CW36: =IF(AND(SUM(G36:N36)>0,AJ36=""),1,IF(AJ36>SUM(G36:N36),1,0)) -> 0 | CX36: =IF(AND(SUM(O36:Q36)>0,AK36=""),1,IF(AK36>SUM(O36:Q36),1,0)) -> 0 | CY36: =IF(AND($D36<>0,AL36=""),1,IF(AL36>$D36,1,0)) -> 0 | CZ36: 0 | DA36: 0 | DB36: 0
A37: 02010201 | C37: Enfermera/o | D37: =IFERROR(VLOOKUP($A37,Filtro!$A$5:$AW$2963,2,FALSE),0) -> 103368 | E37: =IFERROR(VLOOKUP($A37,Filtro!$A$5:$AW$2963,3,FALSE),0) -> 49295 | F37: =IFERROR(VLOOKUP($A37,Filtro!$A$5:$AW$2963,4,FALSE),0) -> 54081 | G37: =IFERROR(VLOOKUP($A37,Filtro!$A$5:$AW$2963,5,FALSE),0) -> 221 | H37: =IFERROR(VLOOKUP($A37,Filtro!$A$5:$AW$2963,6,FALSE),0) -> 134 | I37: =IFERROR(VLOOKUP($A37,Filtro!$A$5:$AW$2963,7,FALSE),0) -> 4538 | J37: =IFERROR(VLOOKUP($A37,Filtro!$A$5:$AW$2963,8,FALSE),0) -> 300 | K37: =IFERROR(VLOOKUP($A37,Filtro!$A$5:$AW$2963,9,FALSE),0) -> 4271 | L37: =IFERROR(VLOOKUP($A37,Filtro!$A$5:$AW$2963,10,FALSE),0) -> 425 | M37: =IFERROR(VLOOKUP($A37,Filtro!$A$5:$AW$2963,11,FALSE),0) -> 3985 | N37: =IFERROR(VLOOKUP($A37,Filtro!$A$5:$AW$2963,12,FALSE),0) -> 5675 | O37: =IFERROR(VLOOKUP($A37,Filtro!$A$5:$AW$2963,13,FALSE),0) -> 5799 | P37: =IFERROR(VLOOKUP($A37,Filtro!$A$5:$AW$2963,14,FALSE),0) -> 5904 | Q37: =IFERROR(VLOOKUP($A37,Filtro!$A$5:$AW$2963,15,FALSE),0) -> 12767 | R37: =IFERROR(VLOOKUP($A37,Filtro!$A$5:$AW$2963,16,FALSE),0) -> 4870 | S37: =IFERROR(VLOOKUP($A37,Filtro!$A$5:$AW$2963,17,FALSE),0) -> 5241 | T37: =IFERROR(VLOOKUP($A37,Filtro!$A$5:$AW$2963,18,FALSE),0) -> 16165 | U37: =IFERROR(VLOOKUP($A37,Filtro!$A$5:$AW$2963,19,FALSE),0) -> 5210 | V37: =IFERROR(VLOOKUP($A37,Filtro!$A$5:$AW$2963,20,FALSE),0) -> 2450 | W37: =IFERROR(VLOOKUP($A37,Filtro!$A$5:$AW$2963,21,FALSE),0) -> 407 | X37: =IFERROR(VLOOKUP($A37,Filtro!$A$5:$AW$2963,22,FALSE),0) -> 489 | Y37: =IFERROR(VLOOKUP($A37,Filtro!$A$5:$AW$2963,23,FALSE),0) -> 616 | Z37: =IFERROR(VLOOKUP($A37,Filtro!$A$5:$AW$2963,24,FALSE),0) -> 718 | AA37: =IFERROR(VLOOKUP($A37,Filtro!$A$5:$AW$2963,25,FALSE),0) -> 878 | AB37: =IFERROR(VLOOKUP($A37,Filtro!$A$5:$AW$2963,26,FALSE),0) -> 1006 | AC37: =IFERROR(VLOOKUP($A37,Filtro!$A$5:$AW$2963,27,FALSE),0) -> 1346 | AD37: =IFERROR(VLOOKUP($A37,Filtro!$A$5:$AW$2963,28,FALSE),0) -> 1900 | AE37: =IFERROR(VLOOKUP($A37,Filtro!$A$5:$AW$2963,29,FALSE),0) -> 2327 | AF37: =IFERROR(VLOOKUP($A37,Filtro!$A$5:$AW$2963,30,FALSE),0) -> 4714 | AG37: =IFERROR(VLOOKUP($A37,Filtro!$A$5:$AW$2963,31,FALSE),0) -> 4734 | AH37: =IFERROR(VLOOKUP($A37,Filtro!$A$5:$AW$2963,32,FALSE),0) -> 3633 | AI37: =IFERROR(VLOOKUP($A37,Filtro!$A$5:$AW$2963,33,FALSE),0) -> 4790 | AJ37: =IFERROR(VLOOKUP($A37,Filtro!$A$5:$AW$2963,34,FALSE),0) -> 4590 | AK37: =IFERROR(VLOOKUP($A37,Filtro!$A$5:$AW$2963,35,FALSE),0) -> 4875 | AL37: =IFERROR(VLOOKUP($A37,Filtro!$A$5:$AW$2963,36,FALSE),0) -> 123 | AM37: =IFERROR(VLOOKUP($A37,Filtro!$A$5:$AW$2963,37,FALSE),0) -> 534 | AN37: =IFERROR(VLOOKUP($A37,Filtro!$A$5:$AW$2963,38,FALSE),0) -> 2619 | AO37: =IFERROR(VLOOKUP($A37,Filtro!$A$5:$AW$2963,39,FALSE),0) -> 2679 | AP37: =CB37&CC37&CD37&CE37&CF37&CG37&CH37 -> * La suma de la variable Sexo (Hombres + Mujeres) no puede ser distinto al Total | CB37: =IF((E37+F37)<>$D37," * La suma de la variable Sexo (Hombres + Mujeres) no puede ser distinto al Total","") -> * La suma de la variable Sexo (Hombres + Mujeres) no puede ser distinto al Total | CC37: =IF(AND(SUM(G37:N37)>0,AJ37="")," * No olvide digitar la variable "&AJ$34&""&" de menor de 1 año. Digite CERO si no tiene. ",IF(AJ37>SUM(G37:N37),"* La variable Control con Presencia del padre de menor de 1 año no debe ser mayor al Total de Controles de menores de 1 año. ","")) ->  | CD37: =IF(AND(SUM(O37:Q37)>0,AK37="")," * No olvide digitar la variable "&AJ$34&""&" de 1 año a 3 años 11 meses 29 días. Digite CERO si no tiene. ",IF(AK37>SUM(O37:Q37),"* La variable Control con Presencia del padre de 1 año a 3 años 11 meses 29 días no debe ser mayor al Total de Controles de 12 a 47 meses. ","")) ->  | CE37: =IF(AND($D37<>0,AL37=""),"* No olvide ingresar la variable "&AL$34&""&". Digite CERO si no tiene. ",IF(AL37>$D37,"* La variable Niños, Niñas, Adolescentes y Jóvenes SENAME no debe ser mayor al Total Ambos Sexos. ","")) ->  | CF37: =IF(AND($D37<>0,AM37=""),"* No olvide ingresar la variable "&AM$34&""&". Digite CERO si no tiene. ",IF(AM37>$D37,"* La variable de Niños, Niñas, Adolescentes y Jóvenes Mejor Niñez no debe ser mayor al Total Ambos Sexos. ","")) ->  | CG37: =IF(AND($D37<>0,AN37=""),"* No olvide ingresar la variable "&AN$34&""&". Digite CERO si no tiene. ",IF(AN37>$D37,"* La variable Pueblos Originarios no debe ser mayor al Total Ambos Sexos. ","")) ->  | CH37: =IF(AND($D37<>0,AO37=""),"* No olvide ingresar la variable "&AO$34&""&". Digite CERO si no tiene. ",IF(AO37>$D37,"* La variable Migrantes no debe ser mayor al Total Ambos Sexos. ","")) ->  | CV37: =IF(D37<>SUM(E37:F37),1,0) -> 1 | CW37: =IF(AND(SUM(G37:N37)>0,AJ37=""),1,IF(AJ37>SUM(G37:N37),1,0)) -> 0 | CX37: =IF(AND(SUM(O37:Q37)>0,AK37=""),1,IF(AK37>SUM(O37:Q37),1,0)) -> 0 | CY37: 0 | CZ37: 0 | DA37: 0 | DB37: 0
A38: 02010103 | C38: Matrona/ón | D38: =IFERROR(VLOOKUP($A38,Filtro!$A$5:$AW$2963,2,FALSE),0) -> 24762 | E38: =IFERROR(VLOOKUP($A38,Filtro!$A$5:$AW$2963,3,FALSE),0) -> 5839 | F38: =IFERROR(VLOOKUP($A38,Filtro!$A$5:$AW$2963,4,FALSE),0) -> 18923 | G38: =IFERROR(VLOOKUP($A38,Filtro!$A$5:$AW$2963,5,FALSE),0) -> 4084 | H38: =IFERROR(VLOOKUP($A38,Filtro!$A$5:$AW$2963,6,FALSE),0) -> 0 | I38: =IFERROR(VLOOKUP($A38,Filtro!$A$5:$AW$2963,7,FALSE),0) -> 0 | J38: =IFERROR(VLOOKUP($A38,Filtro!$A$5:$AW$2963,8,FALSE),0) -> 0 | K38: =IFERROR(VLOOKUP($A38,Filtro!$A$5:$AW$2963,9,FALSE),0) -> 0 | L38: =IFERROR(VLOOKUP($A38,Filtro!$A$5:$AW$2963,10,FALSE),0) -> 0 | M38: =IFERROR(VLOOKUP($A38,Filtro!$A$5:$AW$2963,11,FALSE),0) -> 0 | N38: =IFERROR(VLOOKUP($A38,Filtro!$A$5:$AW$2963,12,FALSE),0) -> 0 | O38: =IFERROR(VLOOKUP($A38,Filtro!$A$5:$AW$2963,13,FALSE),0) -> 0 | P38: =IFERROR(VLOOKUP($A38,Filtro!$A$5:$AW$2963,14,FALSE),0) -> 0 | Q38: =IFERROR(VLOOKUP($A38,Filtro!$A$5:$AW$2963,15,FALSE),0) -> 0 | R38: =IFERROR(VLOOKUP($A38,Filtro!$A$5:$AW$2963,16,FALSE),0) -> 0 | S38: =IFERROR(VLOOKUP($A38,Filtro!$A$5:$AW$2963,17,FALSE),0) -> 0 | T38: =IFERROR(VLOOKUP($A38,Filtro!$A$5:$AW$2963,18,FALSE),0) -> 3 | U38: =IFERROR(VLOOKUP($A38,Filtro!$A$5:$AW$2963,19,FALSE),0) -> 5196 | V38: =IFERROR(VLOOKUP($A38,Filtro!$A$5:$AW$2963,20,FALSE),0) -> 3886 | W38: =IFERROR(VLOOKUP($A38,Filtro!$A$5:$AW$2963,21,FALSE),0) -> 1289 | X38: =IFERROR(VLOOKUP($A38,Filtro!$A$5:$AW$2963,22,FALSE),0) -> 1583 | Y38: =IFERROR(VLOOKUP($A38,Filtro!$A$5:$AW$2963,23,FALSE),0) -> 1744 | Z38: =IFERROR(VLOOKUP($A38,Filtro!$A$5:$AW$2963,24,FALSE),0) -> 1925 | AA38: =IFERROR(VLOOKUP($A38,Filtro!$A$5:$AW$2963,25,FALSE),0) -> 1513 | AB38: =IFERROR(VLOOKUP($A38,Filtro!$A$5:$AW$2963,26,FALSE),0) -> 1361 | AC38: =IFERROR(VLOOKUP($A38,Filtro!$A$5:$AW$2963,27,FALSE),0) -> 1107 | AD38: =IFERROR(VLOOKUP($A38,Filtro!$A$5:$AW$2963,28,FALSE),0) -> 802 | AE38: =IFERROR(VLOOKUP($A38,Filtro!$A$5:$AW$2963,29,FALSE),0) -> 681 | AF38: =IFERROR(VLOOKUP($A38,Filtro!$A$5:$AW$2963,30,FALSE),0) -> 306 | AG38: =IFERROR(VLOOKUP($A38,Filtro!$A$5:$AW$2963,31,FALSE),0) -> 131 | AH38: =IFERROR(VLOOKUP($A38,Filtro!$A$5:$AW$2963,32,FALSE),0) -> 51 | AI38: =IFERROR(VLOOKUP($A38,Filtro!$A$5:$AW$2963,33,FALSE),0) -> 22 | AJ38: =IFERROR(VLOOKUP($A38,Filtro!$A$5:$AW$2963,34,FALSE),0) -> 1806 | AK38: =IFERROR(VLOOKUP($A38,Filtro!$A$5:$AW$2963,35,FALSE),0) -> 0 | AL38: =IFERROR(VLOOKUP($A38,Filtro!$A$5:$AW$2963,36,FALSE),0) -> 71 | AM38: =IFERROR(VLOOKUP($A38,Filtro!$A$5:$AW$2963,37,FALSE),0) -> 95 | AN38: =IFERROR(VLOOKUP($A38,Filtro!$A$5:$AW$2963,38,FALSE),0) -> 631 | AO38: =IFERROR(VLOOKUP($A38,Filtro!$A$5:$AW$2963,39,FALSE),0) -> 595 | AP38: =CB38&CC38&CD38&CE38&CF38&CG38&CH38 ->  | CB38: =IF((E38+F38)<>$D38," * La suma de la variable Sexo (Hombres + Mujeres) no puede ser distinto al Total","") ->  | CC38: =IF(AND(SUM(G38:N38)>0,AJ38="")," * No olvide digitar la variable "&AJ$34&""&" de menor de 1 año. Digite CERO si no tiene. ",IF(AJ38>SUM(G38:N38),"* La variable Control con Presencia del padre de menor de 1 año no debe ser mayor al Total de Controles de menores de 1 año. ","")) ->  | CE38: =IF(AND($D38<>0,AL38=""),"* No olvide ingresar la variable "&AL$34&""&". Digite CERO si no tiene. ",IF(AL38>$D38,"* La variable Niños, Niñas, Adolescentes y Jóvenes SENAME no debe ser mayor al Total Ambos Sexos. ","")) ->  | CF38: =IF(AND($D38<>0,AM38=""),"* No olvide ingresar la variable "&AM$34&""&". Digite CERO si no tiene. ",IF(AM38>$D38,"* La variable de Niños, Niñas, Adolescentes y Jóvenes Mejor Niñez no debe ser mayor al Total Ambos Sexos. ","")) ->  | CG38: =IF(AND($D38<>0,AN38=""),"* No olvide ingresar la variable "&AN$34&""&". Digite CERO si no tiene. ",IF(AN38>$D38,"* La variable Pueblos Originarios no debe ser mayor al Total Ambos Sexos. ","")) ->  | CH38: =IF(AND($D38<>0,AO38=""),"* No olvide ingresar la variable "&AO$34&""&". Digite CERO si no tiene. ",IF(AO38>$D38,"* La variable Migrantes no debe ser mayor al Total Ambos Sexos. ","")) ->  | CV38: =IF(D38<>SUM(E38:F38),1,0) -> 0 | CW38: =IF(AND(SUM(G38)>0,AJ38=""),1,IF(AJ38>SUM(G38),1,0)) -> 0 | CY38: 0 | CZ38: 0 | DA38: 0 | DB38: 0
A39: 02010105 | C39: Técnico en Enfermería | D39: =IFERROR(VLOOKUP($A39,Filtro!$A$5:$AW$2963,2,FALSE),0) -> 52 | E39: =IFERROR(VLOOKUP($A39,Filtro!$A$5:$AW$2963,3,FALSE),0) -> 24 | F39: =IFERROR(VLOOKUP($A39,Filtro!$A$5:$AW$2963,4,FALSE),0) -> 28 | G39: =IFERROR(VLOOKUP($A39,Filtro!$A$5:$AW$2963,5,FALSE),0) -> 0 | H39: =IFERROR(VLOOKUP($A39,Filtro!$A$5:$AW$2963,6,FALSE),0) -> 0 | I39: =IFERROR(VLOOKUP($A39,Filtro!$A$5:$AW$2963,7,FALSE),0) -> 0 | J39: =IFERROR(VLOOKUP($A39,Filtro!$A$5:$AW$2963,8,FALSE),0) -> 0 | K39: =IFERROR(VLOOKUP($A39,Filtro!$A$5:$AW$2963,9,FALSE),0) -> 0 | L39: =IFERROR(VLOOKUP($A39,Filtro!$A$5:$AW$2963,10,FALSE),0) -> 0 | M39: =IFERROR(VLOOKUP($A39,Filtro!$A$5:$AW$2963,11,FALSE),0) -> 0 | N39: =IFERROR(VLOOKUP($A39,Filtro!$A$5:$AW$2963,12,FALSE),0) -> 0 | O39: =IFERROR(VLOOKUP($A39,Filtro!$A$5:$AW$2963,13,FALSE),0) -> 0 | P39: =IFERROR(VLOOKUP($A39,Filtro!$A$5:$AW$2963,14,FALSE),0) -> 0 | Q39: =IFERROR(VLOOKUP($A39,Filtro!$A$5:$AW$2963,15,FALSE),0) -> 21 | R39: =IFERROR(VLOOKUP($A39,Filtro!$A$5:$AW$2963,16,FALSE),0) -> 10 | S39: =IFERROR(VLOOKUP($A39,Filtro!$A$5:$AW$2963,17,FALSE),0) -> 3 | T39: =IFERROR(VLOOKUP($A39,Filtro!$A$5:$AW$2963,18,FALSE),0) -> 16 | U39: =IFERROR(VLOOKUP($A39,Filtro!$A$5:$AW$2963,19,FALSE),0) -> 0 | V39: =IFERROR(VLOOKUP($A39,Filtro!$A$5:$AW$2963,20,FALSE),0) -> 0 | W39: =IFERROR(VLOOKUP($A39,Filtro!$A$5:$AW$2963,21,FALSE),0) -> 0 | X39: =IFERROR(VLOOKUP($A39,Filtro!$A$5:$AW$2963,22,FALSE),0) -> 0 | Y39: =IFERROR(VLOOKUP($A39,Filtro!$A$5:$AW$2963,23,FALSE),0) -> 0 | Z39: =IFERROR(VLOOKUP($A39,Filtro!$A$5:$AW$2963,24,FALSE),0) -> 0 | AA39: =IFERROR(VLOOKUP($A39,Filtro!$A$5:$AW$2963,25,FALSE),0) -> 0 | AB39: =IFERROR(VLOOKUP($A39,Filtro!$A$5:$AW$2963,26,FALSE),0) -> 0 | AC39: =IFERROR(VLOOKUP($A39,Filtro!$A$5:$AW$2963,27,FALSE),0) -> 0 | AD39: =IFERROR(VLOOKUP($A39,Filtro!$A$5:$AW$2963,28,FALSE),0) -> 0 | AE39: =IFERROR(VLOOKUP($A39,Filtro!$A$5:$AW$2963,29,FALSE),0) -> 0 | AF39: =IFERROR(VLOOKUP($A39,Filtro!$A$5:$AW$2963,30,FALSE),0) -> 0 | AG39: =IFERROR(VLOOKUP($A39,Filtro!$A$5:$AW$2963,31,FALSE),0) -> 0 | AH39: =IFERROR(VLOOKUP($A39,Filtro!$A$5:$AW$2963,32,FALSE),0) -> 0 | AI39: =IFERROR(VLOOKUP($A39,Filtro!$A$5:$AW$2963,33,FALSE),0) -> 0 | AJ39: =IFERROR(VLOOKUP($A39,Filtro!$A$5:$AW$2963,34,FALSE),0) -> 0 | AK39: =IFERROR(VLOOKUP($A39,Filtro!$A$5:$AW$2963,35,FALSE),0) -> 0 | AL39: =IFERROR(VLOOKUP($A39,Filtro!$A$5:$AW$2963,36,FALSE),0) -> 0 | AM39: =IFERROR(VLOOKUP($A39,Filtro!$A$5:$AW$2963,37,FALSE),0) -> 0 | AN39: =IFERROR(VLOOKUP($A39,Filtro!$A$5:$AW$2963,38,FALSE),0) -> 0 | AO39: =IFERROR(VLOOKUP($A39,Filtro!$A$5:$AW$2963,39,FALSE),0) -> 0 | AP39: =CB39&CC39&CD39&CE39&CF39&CG39&CH39 ->  | CB39: =IF((E39+F39)<>$D39," * La suma de la variable Sexo (Hombres + Mujeres) no puede ser distinto al Total","") ->  | CD39: =IF(AND(SUM(O39:Q39)>0,AK39="")," * No olvide digitar la variable "&AJ$34&""&" de 1 año a 3 años 11 meses 29 días. Digite CERO si no tiene. ",IF(AK39>SUM(O39:Q39),"* La variable Control con Presencia del padre de 1 año a 3 años 11 meses 29 días no debe ser mayor al Total de Controles de 12 a 47 meses. ","")) ->  | CE39: =IF(AND($D39<>0,AL39=""),"* No olvide ingresar la variable "&AL$34&""&". Digite CERO si no tiene. ",IF(AL39>$D39,"* La variable Niños, Niñas, Adolescentes y Jóvenes SENAME no debe ser mayor al Total Ambos Sexos. ","")) ->  | CF39: =IF(AND($D39<>0,AM39=""),"* No olvide ingresar la variable "&AM$34&""&". Digite CERO si no tiene. ",IF(AM39>$D39,"* La variable de Niños, Niñas, Adolescentes y Jóvenes Mejor Niñez no debe ser mayor al Total Ambos Sexos. ","")) ->  | CG39: =IF(AND($D39<>0,AN39=""),"* No olvide ingresar la variable "&AN$34&""&". Digite CERO si no tiene. ",IF(AN39>$D39,"* La variable Pueblos Originarios no debe ser mayor al Total Ambos Sexos. ","")) ->  | CH39: =IF(AND($D39<>0,AO39=""),"* No olvide ingresar la variable "&AO$34&""&". Digite CERO si no tiene. ",IF(AO39>$D39,"* La variable Migrantes no debe ser mayor al Total Ambos Sexos. ","")) ->  | CV39: =IF(D39<>SUM(E39:F39),1,0) -> 0 | CX39: =IF(AND(SUM(O39:Q39)>0,AK39=""),1,IF(AK39>SUM(O39:Q39),1,0)) -> 0 | CY39: 0 | CZ39: 0 | DA39: 0 | DB39: 0
B40: SECCIÓN C: CONTROLES SEGÚN PROBLEMA DE SALUD
B41: TIPO DE CONTROL | C41: PROFESIONAL | D41: TOTAL | G41: RANGO ETARIO Y SEXO | AO41: Pueblos Originarios | AP41: Migrantes | AQ41: Extensión Horaria (PRAPS)
G42: 0 - 4 años | I42: 5 - 9 años | K42: 10 - 14 años | M42: 15 - 19 años | O42: 20 - 24 años | Q42: 25 - 29 años | S42: 30 - 34 años | U42: 35 - 39 años | W42: 40 - 44 años | Y42: 45 - 49 años | AA42: 50 - 54 años | AC42: 55 - 59 años | AE42: 60 - 64 años | AG42: 65 - 69 años | AI42: 70 - 74 años | AK42: 75 - 79 años | AM42: 80 y más años
D43: Ambos Sexos | E43: Hombres | F43: Mujeres | G43: Hombres | H43: Mujeres | I43: Hombres | J43: Mujeres | K43: Hombres | L43: Mujeres | M43: Hombres | N43: Mujeres | O43: Hombres | P43: Mujeres | Q43: Hombres | R43: Mujeres | S43: Hombres | T43: Mujeres | U43: Hombres | V43: Mujeres | W43: Hombres | X43: Mujeres | Y43: Hombres | Z43: Mujeres | AA43: Hombres | AB43: Mujeres | AC43: Hombres | AD43: Mujeres | AE43: Hombres | AF43: Mujeres | AG43: Hombres | AH43: Mujeres | AI43: Hombres | AJ43: Mujeres | AK43: Hombres | AL43: Mujeres | AM43: Hombres | AN43: Mujeres
A44: 03010501 | B44: De Salud Cardiovascular | C44: Médico/a | D44: =IFERROR(VLOOKUP($A44,Filtro!$A$5:$AW$2963,2,FALSE),0) -> 148173 | E44: =IFERROR(VLOOKUP($A44,Filtro!$A$5:$AW$2963,3,FALSE),0) -> 51633 | F44: =IFERROR(VLOOKUP($A44,Filtro!$A$5:$AW$2963,4,FALSE),0) -> 96540 | G44: =IFERROR(VLOOKUP($A44,Filtro!$A$5:$AW$2963,5,FALSE),0) -> 0 | H44: =IFERROR(VLOOKUP($A44,Filtro!$A$5:$AW$2963,6,FALSE),0) -> 0 | I44: =IFERROR(VLOOKUP($A44,Filtro!$A$5:$AW$2963,7,FALSE),0) -> 0 | J44: =IFERROR(VLOOKUP($A44,Filtro!$A$5:$AW$2963,8,FALSE),0) -> 0 | K44: =IFERROR(VLOOKUP($A44,Filtro!$A$5:$AW$2963,9,FALSE),0) -> 0 | L44: =IFERROR(VLOOKUP($A44,Filtro!$A$5:$AW$2963,10,FALSE),0) -> 0 | M44: =IFERROR(VLOOKUP($A44,Filtro!$A$5:$AW$2963,11,FALSE),0) -> 85 | N44: =IFERROR(VLOOKUP($A44,Filtro!$A$5:$AW$2963,12,FALSE),0) -> 128 | O44: =IFERROR(VLOOKUP($A44,Filtro!$A$5:$AW$2963,13,FALSE),0) -> 119 | P44: =IFERROR(VLOOKUP($A44,Filtro!$A$5:$AW$2963,14,FALSE),0) -> 281 | Q44: =IFERROR(VLOOKUP($A44,Filtro!$A$5:$AW$2963,15,FALSE),0) -> 181 | R44: =IFERROR(VLOOKUP($A44,Filtro!$A$5:$AW$2963,16,FALSE),0) -> 505 | S44: =IFERROR(VLOOKUP($A44,Filtro!$A$5:$AW$2963,17,FALSE),0) -> 363 | T44: =IFERROR(VLOOKUP($A44,Filtro!$A$5:$AW$2963,18,FALSE),0) -> 1062 | U44: =IFERROR(VLOOKUP($A44,Filtro!$A$5:$AW$2963,19,FALSE),0) -> 704 | V44: =IFERROR(VLOOKUP($A44,Filtro!$A$5:$AW$2963,20,FALSE),0) -> 1890 | W44: =IFERROR(VLOOKUP($A44,Filtro!$A$5:$AW$2963,21,FALSE),0) -> 1044 | X44: =IFERROR(VLOOKUP($A44,Filtro!$A$5:$AW$2963,22,FALSE),0) -> 3050 | Y44: =IFERROR(VLOOKUP($A44,Filtro!$A$5:$AW$2963,23,FALSE),0) -> 1728 | Z44: =IFERROR(VLOOKUP($A44,Filtro!$A$5:$AW$2963,24,FALSE),0) -> 4745 | AA44: =IFERROR(VLOOKUP($A44,Filtro!$A$5:$AW$2963,25,FALSE),0) -> 2966 | AB44: =IFERROR(VLOOKUP($A44,Filtro!$A$5:$AW$2963,26,FALSE),0) -> 7250 | AC44: =IFERROR(VLOOKUP($A44,Filtro!$A$5:$AW$2963,27,FALSE),0) -> 4628 | AD44: =IFERROR(VLOOKUP($A44,Filtro!$A$5:$AW$2963,28,FALSE),0) -> 10750 | AE44: =IFERROR(VLOOKUP($A44,Filtro!$A$5:$AW$2963,29,FALSE),0) -> 6894 | AF44: =IFERROR(VLOOKUP($A44,Filtro!$A$5:$AW$2963,30,FALSE),0) -> 13859 | AG44: =IFERROR(VLOOKUP($A44,Filtro!$A$5:$AW$2963,31,FALSE),0) -> 8701 | AH44: =IFERROR(VLOOKUP($A44,Filtro!$A$5:$AW$2963,32,FALSE),0) -> 14740 | AI44: =IFERROR(VLOOKUP($A44,Filtro!$A$5:$AW$2963,33,FALSE),0) -> 8715 | AJ44: =IFERROR(VLOOKUP($A44,Filtro!$A$5:$AW$2963,34,FALSE),0) -> 13453 | AK44: =IFERROR(VLOOKUP($A44,Filtro!$A$5:$AW$2963,35,FALSE),0) -> 7094 | AL44: =IFERROR(VLOOKUP($A44,Filtro!$A$5:$AW$2963,36,FALSE),0) -> 11031 | AM44: =IFERROR(VLOOKUP($A44,Filtro!$A$5:$AW$2963,37,FALSE),0) -> 8411 | AN44: =IFERROR(VLOOKUP($A44,Filtro!$A$5:$AW$2963,38,FALSE),0) -> 13796 | AO44: =IFERROR(VLOOKUP($A44,Filtro!$A$5:$AW$2963,39,FALSE),0) -> 3527 | AP44: =IFERROR(VLOOKUP($A44,Filtro!$A$5:$AW$2963,40,FALSE),0) -> 1985 | AQ44: =IFERROR(VLOOKUP($A44,Filtro!$A$5:$AW$2963,41,FALSE),0) -> 136 | AR44: =CB44&CC44&CD44 ->  | CB44: =IF(AND($D44<>0,AO44=""),"* No olvide ingresar la variable "&AO$41&""&". Digite CERO si no tiene. ",IF(AO44>$D44,"* La variable Pueblos Originarios no debe ser mayor al Total Ambos Sexos. ","")) ->  | CC44: =IF(AND($D44<>0,AP44=""),"* No olvide ingresar la variable "&AP$41&""&" (Digite CERO si no tiene). ",IF(AP44>$D44,"* La variable Migrantes no debe ser mayor al Total Ambos Sexos. ","")) ->  | CD44: =IF(AND($D44<>0,AQ44=""),"* No olvide ingresar la variable "&AQ$41&""&" (Digite CERO si no tiene). ",IF(AQ44>$D44,"* La variable Extensión Horaria (PRAPS) no debe ser mayor al Total Ambos Sexos. ","")) ->  | CV44: =IF(AND($D44<>0,AO44=""),1,IF(AO44>$D44,1,0)) -> 0 | CW44: 0 | CX44: 0
A45: 03010502 | C45: Enfermera/o | D45: =IFERROR(VLOOKUP($A45,Filtro!$A$5:$AW$2963,2,FALSE),0) -> 68056 | E45: =IFERROR(VLOOKUP($A45,Filtro!$A$5:$AW$2963,3,FALSE),0) -> 25177 | F45: =IFERROR(VLOOKUP($A45,Filtro!$A$5:$AW$2963,4,FALSE),0) -> 42879 | G45: =IFERROR(VLOOKUP($A45,Filtro!$A$5:$AW$2963,5,FALSE),0) -> 0 | H45: =IFERROR(VLOOKUP($A45,Filtro!$A$5:$AW$2963,6,FALSE),0) -> 0 | I45: =IFERROR(VLOOKUP($A45,Filtro!$A$5:$AW$2963,7,FALSE),0) -> 0 | J45: =IFERROR(VLOOKUP($A45,Filtro!$A$5:$AW$2963,8,FALSE),0) -> 0 | K45: =IFERROR(VLOOKUP($A45,Filtro!$A$5:$AW$2963,9,FALSE),0) -> 0 | L45: =IFERROR(VLOOKUP($A45,Filtro!$A$5:$AW$2963,10,FALSE),0) -> 0 | M45: =IFERROR(VLOOKUP($A45,Filtro!$A$5:$AW$2963,11,FALSE),0) -> 20 | N45: =IFERROR(VLOOKUP($A45,Filtro!$A$5:$AW$2963,12,FALSE),0) -> 32 | O45: =IFERROR(VLOOKUP($A45,Filtro!$A$5:$AW$2963,13,FALSE),0) -> 50 | P45: =IFERROR(VLOOKUP($A45,Filtro!$A$5:$AW$2963,14,FALSE),0) -> 67 | Q45: =IFERROR(VLOOKUP($A45,Filtro!$A$5:$AW$2963,15,FALSE),0) -> 72 | R45: =IFERROR(VLOOKUP($A45,Filtro!$A$5:$AW$2963,16,FALSE),0) -> 193 | S45: =IFERROR(VLOOKUP($A45,Filtro!$A$5:$AW$2963,17,FALSE),0) -> 166 | T45: =IFERROR(VLOOKUP($A45,Filtro!$A$5:$AW$2963,18,FALSE),0) -> 423 | U45: =IFERROR(VLOOKUP($A45,Filtro!$A$5:$AW$2963,19,FALSE),0) -> 315 | V45: =IFERROR(VLOOKUP($A45,Filtro!$A$5:$AW$2963,20,FALSE),0) -> 754 | W45: =IFERROR(VLOOKUP($A45,Filtro!$A$5:$AW$2963,21,FALSE),0) -> 542 | X45: =IFERROR(VLOOKUP($A45,Filtro!$A$5:$AW$2963,22,FALSE),0) -> 1297 | Y45: =IFERROR(VLOOKUP($A45,Filtro!$A$5:$AW$2963,23,FALSE),0) -> 774 | Z45: =IFERROR(VLOOKUP($A45,Filtro!$A$5:$AW$2963,24,FALSE),0) -> 1978 | AA45: =IFERROR(VLOOKUP($A45,Filtro!$A$5:$AW$2963,25,FALSE),0) -> 1390 | AB45: =IFERROR(VLOOKUP($A45,Filtro!$A$5:$AW$2963,26,FALSE),0) -> 3124 | AC45: =IFERROR(VLOOKUP($A45,Filtro!$A$5:$AW$2963,27,FALSE),0) -> 2185 | AD45: =IFERROR(VLOOKUP($A45,Filtro!$A$5:$AW$2963,28,FALSE),0) -> 4701 | AE45: =IFERROR(VLOOKUP($A45,Filtro!$A$5:$AW$2963,29,FALSE),0) -> 3188 | AF45: =IFERROR(VLOOKUP($A45,Filtro!$A$5:$AW$2963,30,FALSE),0) -> 5982 | AG45: =IFERROR(VLOOKUP($A45,Filtro!$A$5:$AW$2963,31,FALSE),0) -> 4382 | AH45: =IFERROR(VLOOKUP($A45,Filtro!$A$5:$AW$2963,32,FALSE),0) -> 6847 | AI45: =IFERROR(VLOOKUP($A45,Filtro!$A$5:$AW$2963,33,FALSE),0) -> 4466 | AJ45: =IFERROR(VLOOKUP($A45,Filtro!$A$5:$AW$2963,34,FALSE),0) -> 6185 | AK45: =IFERROR(VLOOKUP($A45,Filtro!$A$5:$AW$2963,35,FALSE),0) -> 3328 | AL45: =IFERROR(VLOOKUP($A45,Filtro!$A$5:$AW$2963,36,FALSE),0) -> 4974 | AM45: =IFERROR(VLOOKUP($A45,Filtro!$A$5:$AW$2963,37,FALSE),0) -> 4299 | AN45: =IFERROR(VLOOKUP($A45,Filtro!$A$5:$AW$2963,38,FALSE),0) -> 6322 | AO45: =IFERROR(VLOOKUP($A45,Filtro!$A$5:$AW$2963,39,FALSE),0) -> 1310 | AP45: =IFERROR(VLOOKUP($A45,Filtro!$A$5:$AW$2963,40,FALSE),0) -> 698 | AQ45: =IFERROR(VLOOKUP($A45,Filtro!$A$5:$AW$2963,41,FALSE),0) -> 213 | CD45: =IF(AND($D45<>0,AQ45=""),"* No olvide ingresar la variable "&AQ$41&""&" (Digite CERO si no tiene). ",IF(AQ45>$D45,"* La variable Extensión Horaria (PRAPS) no debe ser mayor al Total Ambos Sexos. ","")) ->  | CV45: 0 | CW45: 0 | CX45: 0
A46: 03010504 | C46: Nutricionista | D46: =IFERROR(VLOOKUP($A46,Filtro!$A$5:$AW$2963,2,FALSE),0) -> 68514 | E46: =IFERROR(VLOOKUP($A46,Filtro!$A$5:$AW$2963,3,FALSE),0) -> 23299 | F46: =IFERROR(VLOOKUP($A46,Filtro!$A$5:$AW$2963,4,FALSE),0) -> 45215 | G46: =IFERROR(VLOOKUP($A46,Filtro!$A$5:$AW$2963,5,FALSE),0) -> 0 | H46: =IFERROR(VLOOKUP($A46,Filtro!$A$5:$AW$2963,6,FALSE),0) -> 0 | I46: =IFERROR(VLOOKUP($A46,Filtro!$A$5:$AW$2963,7,FALSE),0) -> 0 | J46: =IFERROR(VLOOKUP($A46,Filtro!$A$5:$AW$2963,8,FALSE),0) -> 0 | K46: =IFERROR(VLOOKUP($A46,Filtro!$A$5:$AW$2963,9,FALSE),0) -> 0 | L46: =IFERROR(VLOOKUP($A46,Filtro!$A$5:$AW$2963,10,FALSE),0) -> 0 | M46: =IFERROR(VLOOKUP($A46,Filtro!$A$5:$AW$2963,11,FALSE),0) -> 29 | N46: =IFERROR(VLOOKUP($A46,Filtro!$A$5:$AW$2963,12,FALSE),0) -> 48 | O46: =IFERROR(VLOOKUP($A46,Filtro!$A$5:$AW$2963,13,FALSE),0) -> 59 | P46: =IFERROR(VLOOKUP($A46,Filtro!$A$5:$AW$2963,14,FALSE),0) -> 118 | Q46: =IFERROR(VLOOKUP($A46,Filtro!$A$5:$AW$2963,15,FALSE),0) -> 92 | R46: =IFERROR(VLOOKUP($A46,Filtro!$A$5:$AW$2963,16,FALSE),0) -> 249 | S46: =IFERROR(VLOOKUP($A46,Filtro!$A$5:$AW$2963,17,FALSE),0) -> 203 | T46: =IFERROR(VLOOKUP($A46,Filtro!$A$5:$AW$2963,18,FALSE),0) -> 579 | U46: =IFERROR(VLOOKUP($A46,Filtro!$A$5:$AW$2963,19,FALSE),0) -> 383 | V46: =IFERROR(VLOOKUP($A46,Filtro!$A$5:$AW$2963,20,FALSE),0) -> 992 | W46: =IFERROR(VLOOKUP($A46,Filtro!$A$5:$AW$2963,21,FALSE),0) -> 555 | X46: =IFERROR(VLOOKUP($A46,Filtro!$A$5:$AW$2963,22,FALSE),0) -> 1597 | Y46: =IFERROR(VLOOKUP($A46,Filtro!$A$5:$AW$2963,23,FALSE),0) -> 778 | Z46: =IFERROR(VLOOKUP($A46,Filtro!$A$5:$AW$2963,24,FALSE),0) -> 2543 | AA46: =IFERROR(VLOOKUP($A46,Filtro!$A$5:$AW$2963,25,FALSE),0) -> 1363 | AB46: =IFERROR(VLOOKUP($A46,Filtro!$A$5:$AW$2963,26,FALSE),0) -> 3716 | AC46: =IFERROR(VLOOKUP($A46,Filtro!$A$5:$AW$2963,27,FALSE),0) -> 2219 | AD46: =IFERROR(VLOOKUP($A46,Filtro!$A$5:$AW$2963,28,FALSE),0) -> 5167 | AE46: =IFERROR(VLOOKUP($A46,Filtro!$A$5:$AW$2963,29,FALSE),0) -> 3078 | AF46: =IFERROR(VLOOKUP($A46,Filtro!$A$5:$AW$2963,30,FALSE),0) -> 6544 | AG46: =IFERROR(VLOOKUP($A46,Filtro!$A$5:$AW$2963,31,FALSE),0) -> 3822 | AH46: =IFERROR(VLOOKUP($A46,Filtro!$A$5:$AW$2963,32,FALSE),0) -> 6833 | AI46: =IFERROR(VLOOKUP($A46,Filtro!$A$5:$AW$2963,33,FALSE),0) -> 3962 | AJ46: =IFERROR(VLOOKUP($A46,Filtro!$A$5:$AW$2963,34,FALSE),0) -> 6014 | AK46: =IFERROR(VLOOKUP($A46,Filtro!$A$5:$AW$2963,35,FALSE),0) -> 3038 | AL46: =IFERROR(VLOOKUP($A46,Filtro!$A$5:$AW$2963,36,FALSE),0) -> 4877 | AM46: =IFERROR(VLOOKUP($A46,Filtro!$A$5:$AW$2963,37,FALSE),0) -> 3718 | AN46: =IFERROR(VLOOKUP($A46,Filtro!$A$5:$AW$2963,38,FALSE),0) -> 5938 | AO46: =IFERROR(VLOOKUP($A46,Filtro!$A$5:$AW$2963,39,FALSE),0) -> 1035 | AP46: =IFERROR(VLOOKUP($A46,Filtro!$A$5:$AW$2963,40,FALSE),0) -> 748 | AQ46: =IFERROR(VLOOKUP($A46,Filtro!$A$5:$AW$2963,41,FALSE),0) -> 300 | CD46: =IF(AND($D46<>0,AQ46=""),"* No olvide ingresar la variable "&AQ$41&""&" (Digite CERO si no tiene). ",IF(AQ46>$D46,"* La variable Extensión Horaria (PRAPS) no debe ser mayor al Total Ambos Sexos. ","")) ->  | CV46: 0 | CW46: 0 | CX46: 0
A47: 03010505 | C47: Técnico en Enfermería | D47: =IFERROR(VLOOKUP($A47,Filtro!$A$5:$AW$2963,2,FALSE),0) -> 141 | E47: =IFERROR(VLOOKUP($A47,Filtro!$A$5:$AW$2963,3,FALSE),0) -> 59 | F47: =IFERROR(VLOOKUP($A47,Filtro!$A$5:$AW$2963,4,FALSE),0) -> 82 | G47: =IFERROR(VLOOKUP($A47,Filtro!$A$5:$AW$2963,5,FALSE),0) -> 0 | H47: =IFERROR(VLOOKUP($A47,Filtro!$A$5:$AW$2963,6,FALSE),0) -> 0 | I47: =IFERROR(VLOOKUP($A47,Filtro!$A$5:$AW$2963,7,FALSE),0) -> 0 | J47: =IFERROR(VLOOKUP($A47,Filtro!$A$5:$AW$2963,8,FALSE),0) -> 0 | K47: =IFERROR(VLOOKUP($A47,Filtro!$A$5:$AW$2963,9,FALSE),0) -> 0 | L47: =IFERROR(VLOOKUP($A47,Filtro!$A$5:$AW$2963,10,FALSE),0) -> 0 | M47: =IFERROR(VLOOKUP($A47,Filtro!$A$5:$AW$2963,11,FALSE),0) -> 0 | N47: =IFERROR(VLOOKUP($A47,Filtro!$A$5:$AW$2963,12,FALSE),0) -> 0 | O47: =IFERROR(VLOOKUP($A47,Filtro!$A$5:$AW$2963,13,FALSE),0) -> 2 | P47: =IFERROR(VLOOKUP($A47,Filtro!$A$5:$AW$2963,14,FALSE),0) -> 2 | Q47: =IFERROR(VLOOKUP($A47,Filtro!$A$5:$AW$2963,15,FALSE),0) -> 2 | R47: =IFERROR(VLOOKUP($A47,Filtro!$A$5:$AW$2963,16,FALSE),0) -> 5 | S47: =IFERROR(VLOOKUP($A47,Filtro!$A$5:$AW$2963,17,FALSE),0) -> 6 | T47: =IFERROR(VLOOKUP($A47,Filtro!$A$5:$AW$2963,18,FALSE),0) -> 5 | U47: =IFERROR(VLOOKUP($A47,Filtro!$A$5:$AW$2963,19,FALSE),0) -> 3 | V47: =IFERROR(VLOOKUP($A47,Filtro!$A$5:$AW$2963,20,FALSE),0) -> 3 | W47: =IFERROR(VLOOKUP($A47,Filtro!$A$5:$AW$2963,21,FALSE),0) -> 2 | X47: =IFERROR(VLOOKUP($A47,Filtro!$A$5:$AW$2963,22,FALSE),0) -> 5 | Y47: =IFERROR(VLOOKUP($A47,Filtro!$A$5:$AW$2963,23,FALSE),0) -> 8 | Z47: =IFERROR(VLOOKUP($A47,Filtro!$A$5:$AW$2963,24,FALSE),0) -> 9 | AA47: =IFERROR(VLOOKUP($A47,Filtro!$A$5:$AW$2963,25,FALSE),0) -> 6 | AB47: =IFERROR(VLOOKUP($A47,Filtro!$A$5:$AW$2963,26,FALSE),0) -> 5 | AC47: =IFERROR(VLOOKUP($A47,Filtro!$A$5:$AW$2963,27,FALSE),0) -> 4 | AD47: =IFERROR(VLOOKUP($A47,Filtro!$A$5:$AW$2963,28,FALSE),0) -> 4 | AE47: =IFERROR(VLOOKUP($A47,Filtro!$A$5:$AW$2963,29,FALSE),0) -> 4 | AF47: =IFERROR(VLOOKUP($A47,Filtro!$A$5:$AW$2963,30,FALSE),0) -> 12 | AG47: =IFERROR(VLOOKUP($A47,Filtro!$A$5:$AW$2963,31,FALSE),0) -> 7 | AH47: =IFERROR(VLOOKUP($A47,Filtro!$A$5:$AW$2963,32,FALSE),0) -> 10 | AI47: =IFERROR(VLOOKUP($A47,Filtro!$A$5:$AW$2963,33,FALSE),0) -> 8 | AJ47: =IFERROR(VLOOKUP($A47,Filtro!$A$5:$AW$2963,34,FALSE),0) -> 3 | AK47: =IFERROR(VLOOKUP($A47,Filtro!$A$5:$AW$2963,35,FALSE),0) -> 5 | AL47: =IFERROR(VLOOKUP($A47,Filtro!$A$5:$AW$2963,36,FALSE),0) -> 10 | AM47: =IFERROR(VLOOKUP($A47,Filtro!$A$5:$AW$2963,37,FALSE),0) -> 2 | AN47: =IFERROR(VLOOKUP($A47,Filtro!$A$5:$AW$2963,38,FALSE),0) -> 9 | AO47: =IFERROR(VLOOKUP($A47,Filtro!$A$5:$AW$2963,39,FALSE),0) -> 0 | AP47: =IFERROR(VLOOKUP($A47,Filtro!$A$5:$AW$2963,40,FALSE),0) -> 0 | AQ47: =IFERROR(VLOOKUP($A47,Filtro!$A$5:$AW$2963,41,FALSE),0) -> 0 | CD47: =IF(AND($D47<>0,AQ47=""),"* No olvide ingresar la variable "&AQ$41&""&" (Digite CERO si no tiene). ",IF(AQ47>$D47,"* La variable Extensión Horaria (PRAPS) no debe ser mayor al Total Ambos Sexos. ","")) ->  | CV47: 0 | CW47: 0 | CX47: 0
A48: 01030100A | B48: Seguimiento Autovalente con riesgo | C48: Médico/a | D48: =IFERROR(VLOOKUP($A48,Filtro!$A$5:$AW$2963,2,FALSE),0) -> 5 | E48: =IFERROR(VLOOKUP($A48,Filtro!$A$5:$AW$2963,3,FALSE),0) -> 2 | F48: =IFERROR(VLOOKUP($A48,Filtro!$A$5:$AW$2963,4,FALSE),0) -> 3 | G48: =IFERROR(VLOOKUP($A48,Filtro!$A$5:$AW$2963,5,FALSE),0) -> 0 | H48: =IFERROR(VLOOKUP($A48,Filtro!$A$5:$AW$2963,6,FALSE),0) -> 0 | I48: =IFERROR(VLOOKUP($A48,Filtro!$A$5:$AW$2963,7,FALSE),0) -> 0 | J48: =IFERROR(VLOOKUP($A48,Filtro!$A$5:$AW$2963,8,FALSE),0) -> 0 | K48: =IFERROR(VLOOKUP($A48,Filtro!$A$5:$AW$2963,9,FALSE),0) -> 0 | L48: =IFERROR(VLOOKUP($A48,Filtro!$A$5:$AW$2963,10,FALSE),0) -> 0 | M48: =IFERROR(VLOOKUP($A48,Filtro!$A$5:$AW$2963,11,FALSE),0) -> 0 | N48: =IFERROR(VLOOKUP($A48,Filtro!$A$5:$AW$2963,12,FALSE),0) -> 0 | O48: =IFERROR(VLOOKUP($A48,Filtro!$A$5:$AW$2963,13,FALSE),0) -> 0 | P48: =IFERROR(VLOOKUP($A48,Filtro!$A$5:$AW$2963,14,FALSE),0) -> 0 | Q48: =IFERROR(VLOOKUP($A48,Filtro!$A$5:$AW$2963,15,FALSE),0) -> 0 | R48: =IFERROR(VLOOKUP($A48,Filtro!$A$5:$AW$2963,16,FALSE),0) -> 0 | S48: =IFERROR(VLOOKUP($A48,Filtro!$A$5:$AW$2963,17,FALSE),0) -> 0 | T48: =IFERROR(VLOOKUP($A48,Filtro!$A$5:$AW$2963,18,FALSE),0) -> 0 | U48: =IFERROR(VLOOKUP($A48,Filtro!$A$5:$AW$2963,19,FALSE),0) -> 0 | V48: =IFERROR(VLOOKUP($A48,Filtro!$A$5:$AW$2963,20,FALSE),0) -> 0 | W48: =IFERROR(VLOOKUP($A48,Filtro!$A$5:$AW$2963,21,FALSE),0) -> 0 | X48: =IFERROR(VLOOKUP($A48,Filtro!$A$5:$AW$2963,22,FALSE),0) -> 0 | Y48: =IFERROR(VLOOKUP($A48,Filtro!$A$5:$AW$2963,23,FALSE),0) -> 0 | Z48: =IFERROR(VLOOKUP($A48,Filtro!$A$5:$AW$2963,24,FALSE),0) -> 0 | AA48: =IFERROR(VLOOKUP($A48,Filtro!$A$5:$AW$2963,25,FALSE),0) -> 0 | AB48: =IFERROR(VLOOKUP($A48,Filtro!$A$5:$AW$2963,26,FALSE),0) -> 0 | AC48: =IFERROR(VLOOKUP($A48,Filtro!$A$5:$AW$2963,27,FALSE),0) -> 0 | AD48: =IFERROR(VLOOKUP($A48,Filtro!$A$5:$AW$2963,28,FALSE),0) -> 0 | AE48: =IFERROR(VLOOKUP($A48,Filtro!$A$5:$AW$2963,29,FALSE),0) -> 0 | AF48: =IFERROR(VLOOKUP($A48,Filtro!$A$5:$AW$2963,30,FALSE),0) -> 0 | AG48: =IFERROR(VLOOKUP($A48,Filtro!$A$5:$AW$2963,31,FALSE),0) -> 0 | AH48: =IFERROR(VLOOKUP($A48,Filtro!$A$5:$AW$2963,32,FALSE),0) -> 2 | AI48: =IFERROR(VLOOKUP($A48,Filtro!$A$5:$AW$2963,33,FALSE),0) -> 0 | AJ48: =IFERROR(VLOOKUP($A48,Filtro!$A$5:$AW$2963,34,FALSE),0) -> 0 | AK48: =IFERROR(VLOOKUP($A48,Filtro!$A$5:$AW$2963,35,FALSE),0) -> 2 | AL48: =IFERROR(VLOOKUP($A48,Filtro!$A$5:$AW$2963,36,FALSE),0) -> 0 | AM48: =IFERROR(VLOOKUP($A48,Filtro!$A$5:$AW$2963,37,FALSE),0) -> 0 | AN48: =IFERROR(VLOOKUP($A48,Filtro!$A$5:$AW$2963,38,FALSE),0) -> 1 | AO48: =IFERROR(VLOOKUP($A48,Filtro!$A$5:$AW$2963,39,FALSE),0) -> 0 | AP48: =IFERROR(VLOOKUP($A48,Filtro!$A$5:$AW$2963,40,FALSE),0) -> 0 | AQ48: =IFERROR(VLOOKUP($A48,Filtro!$A$5:$AW$2963,41,FALSE),0) -> 0 | CV48: =IF(AND($D48<>0,AO48=""),1,IF(AO48>$D48,1,0)) -> 0 | CW48: =IF(AND($D48<>0,AP48=""),1,IF(AP48>$D48,1,0)) -> 0
A49: 01030200B | C49: Enfermera/o | D49: =IFERROR(VLOOKUP($A49,Filtro!$A$5:$AW$2963,2,FALSE),0) -> 1022 | E49: =IFERROR(VLOOKUP($A49,Filtro!$A$5:$AW$2963,3,FALSE),0) -> 401 | F49: =IFERROR(VLOOKUP($A49,Filtro!$A$5:$AW$2963,4,FALSE),0) -> 621 | G49: =IFERROR(VLOOKUP($A49,Filtro!$A$5:$AW$2963,5,FALSE),0) -> 0 | H49: =IFERROR(VLOOKUP($A49,Filtro!$A$5:$AW$2963,6,FALSE),0) -> 0 | I49: =IFERROR(VLOOKUP($A49,Filtro!$A$5:$AW$2963,7,FALSE),0) -> 0 | J49: =IFERROR(VLOOKUP($A49,Filtro!$A$5:$AW$2963,8,FALSE),0) -> 0 | K49: =IFERROR(VLOOKUP($A49,Filtro!$A$5:$AW$2963,9,FALSE),0) -> 0 | L49: =IFERROR(VLOOKUP($A49,Filtro!$A$5:$AW$2963,10,FALSE),0) -> 0 | M49: =IFERROR(VLOOKUP($A49,Filtro!$A$5:$AW$2963,11,FALSE),0) -> 0 | N49: =IFERROR(VLOOKUP($A49,Filtro!$A$5:$AW$2963,12,FALSE),0) -> 0 | O49: =IFERROR(VLOOKUP($A49,Filtro!$A$5:$AW$2963,13,FALSE),0) -> 0 | P49: =IFERROR(VLOOKUP($A49,Filtro!$A$5:$AW$2963,14,FALSE),0) -> 0 | Q49: =IFERROR(VLOOKUP($A49,Filtro!$A$5:$AW$2963,15,FALSE),0) -> 0 | R49: =IFERROR(VLOOKUP($A49,Filtro!$A$5:$AW$2963,16,FALSE),0) -> 0 | S49: =IFERROR(VLOOKUP($A49,Filtro!$A$5:$AW$2963,17,FALSE),0) -> 0 | T49: =IFERROR(VLOOKUP($A49,Filtro!$A$5:$AW$2963,18,FALSE),0) -> 0 | U49: =IFERROR(VLOOKUP($A49,Filtro!$A$5:$AW$2963,19,FALSE),0) -> 0 | V49: =IFERROR(VLOOKUP($A49,Filtro!$A$5:$AW$2963,20,FALSE),0) -> 0 | W49: =IFERROR(VLOOKUP($A49,Filtro!$A$5:$AW$2963,21,FALSE),0) -> 0 | X49: =IFERROR(VLOOKUP($A49,Filtro!$A$5:$AW$2963,22,FALSE),0) -> 0 | Y49: =IFERROR(VLOOKUP($A49,Filtro!$A$5:$AW$2963,23,FALSE),0) -> 0 | Z49: =IFERROR(VLOOKUP($A49,Filtro!$A$5:$AW$2963,24,FALSE),0) -> 0 | AA49: =IFERROR(VLOOKUP($A49,Filtro!$A$5:$AW$2963,25,FALSE),0) -> 0 | AB49: =IFERROR(VLOOKUP($A49,Filtro!$A$5:$AW$2963,26,FALSE),0) -> 0 | AC49: =IFERROR(VLOOKUP($A49,Filtro!$A$5:$AW$2963,27,FALSE),0) -> 0 | AD49: =IFERROR(VLOOKUP($A49,Filtro!$A$5:$AW$2963,28,FALSE),0) -> 0 | AE49: =IFERROR(VLOOKUP($A49,Filtro!$A$5:$AW$2963,29,FALSE),0) -> 0 | AF49: =IFERROR(VLOOKUP($A49,Filtro!$A$5:$AW$2963,30,FALSE),0) -> 0 | AG49: =IFERROR(VLOOKUP($A49,Filtro!$A$5:$AW$2963,31,FALSE),0) -> 113 | AH49: =IFERROR(VLOOKUP($A49,Filtro!$A$5:$AW$2963,32,FALSE),0) -> 185 | AI49: =IFERROR(VLOOKUP($A49,Filtro!$A$5:$AW$2963,33,FALSE),0) -> 133 | AJ49: =IFERROR(VLOOKUP($A49,Filtro!$A$5:$AW$2963,34,FALSE),0) -> 181 | AK49: =IFERROR(VLOOKUP($A49,Filtro!$A$5:$AW$2963,35,FALSE),0) -> 65 | AL49: =IFERROR(VLOOKUP($A49,Filtro!$A$5:$AW$2963,36,FALSE),0) -> 147 | AM49: =IFERROR(VLOOKUP($A49,Filtro!$A$5:$AW$2963,37,FALSE),0) -> 90 | AN49: =IFERROR(VLOOKUP($A49,Filtro!$A$5:$AW$2963,38,FALSE),0) -> 108 | AO49: =IFERROR(VLOOKUP($A49,Filtro!$A$5:$AW$2963,39,FALSE),0) -> 23 | AP49: =IFERROR(VLOOKUP($A49,Filtro!$A$5:$AW$2963,40,FALSE),0) -> 1 | AQ49: =IFERROR(VLOOKUP($A49,Filtro!$A$5:$AW$2963,41,FALSE),0) -> 0 | CV49: 0 | CW49: 0
A50: 09600204 | C50: Otros Profesionales debidamente capacitados | D50: =IFERROR(VLOOKUP($A50,Filtro!$A$5:$AW$2963,2,FALSE),0) -> 187 | E50: =IFERROR(VLOOKUP($A50,Filtro!$A$5:$AW$2963,3,FALSE),0) -> 58 | F50: =IFERROR(VLOOKUP($A50,Filtro!$A$5:$AW$2963,4,FALSE),0) -> 129 | G50: =IFERROR(VLOOKUP($A50,Filtro!$A$5:$AW$2963,5,FALSE),0) -> 0 | H50: =IFERROR(VLOOKUP($A50,Filtro!$A$5:$AW$2963,6,FALSE),0) -> 0 | I50: =IFERROR(VLOOKUP($A50,Filtro!$A$5:$AW$2963,7,FALSE),0) -> 0 | J50: =IFERROR(VLOOKUP($A50,Filtro!$A$5:$AW$2963,8,FALSE),0) -> 0 | K50: =IFERROR(VLOOKUP($A50,Filtro!$A$5:$AW$2963,9,FALSE),0) -> 0 | L50: =IFERROR(VLOOKUP($A50,Filtro!$A$5:$AW$2963,10,FALSE),0) -> 0 | M50: =IFERROR(VLOOKUP($A50,Filtro!$A$5:$AW$2963,11,FALSE),0) -> 0 | N50: =IFERROR(VLOOKUP($A50,Filtro!$A$5:$AW$2963,12,FALSE),0) -> 0 | O50: =IFERROR(VLOOKUP($A50,Filtro!$A$5:$AW$2963,13,FALSE),0) -> 0 | P50: =IFERROR(VLOOKUP($A50,Filtro!$A$5:$AW$2963,14,FALSE),0) -> 0 | Q50: =IFERROR(VLOOKUP($A50,Filtro!$A$5:$AW$2963,15,FALSE),0) -> 0 | R50: =IFERROR(VLOOKUP($A50,Filtro!$A$5:$AW$2963,16,FALSE),0) -> 0 | S50: =IFERROR(VLOOKUP($A50,Filtro!$A$5:$AW$2963,17,FALSE),0) -> 0 | T50: =IFERROR(VLOOKUP($A50,Filtro!$A$5:$AW$2963,18,FALSE),0) -> 0 | U50: =IFERROR(VLOOKUP($A50,Filtro!$A$5:$AW$2963,19,FALSE),0) -> 0 | V50: =IFERROR(VLOOKUP($A50,Filtro!$A$5:$AW$2963,20,FALSE),0) -> 0 | W50: =IFERROR(VLOOKUP($A50,Filtro!$A$5:$AW$2963,21,FALSE),0) -> 0 | X50: =IFERROR(VLOOKUP($A50,Filtro!$A$5:$AW$2963,22,FALSE),0) -> 0 | Y50: =IFERROR(VLOOKUP($A50,Filtro!$A$5:$AW$2963,23,FALSE),0) -> 0 | Z50: =IFERROR(VLOOKUP($A50,Filtro!$A$5:$AW$2963,24,FALSE),0) -> 0 | AA50: =IFERROR(VLOOKUP($A50,Filtro!$A$5:$AW$2963,25,FALSE),0) -> 0 | AB50: =IFERROR(VLOOKUP($A50,Filtro!$A$5:$AW$2963,26,FALSE),0) -> 0 | AC50: =IFERROR(VLOOKUP($A50,Filtro!$A$5:$AW$2963,27,FALSE),0) -> 0 | AD50: =IFERROR(VLOOKUP($A50,Filtro!$A$5:$AW$2963,28,FALSE),0) -> 0 | AE50: =IFERROR(VLOOKUP($A50,Filtro!$A$5:$AW$2963,29,FALSE),0) -> 0 | AF50: =IFERROR(VLOOKUP($A50,Filtro!$A$5:$AW$2963,30,FALSE),0) -> 0 | AG50: =IFERROR(VLOOKUP($A50,Filtro!$A$5:$AW$2963,31,FALSE),0) -> 14 | AH50: =IFERROR(VLOOKUP($A50,Filtro!$A$5:$AW$2963,32,FALSE),0) -> 36 | AI50: =IFERROR(VLOOKUP($A50,Filtro!$A$5:$AW$2963,33,FALSE),0) -> 22 | AJ50: =IFERROR(VLOOKUP($A50,Filtro!$A$5:$AW$2963,34,FALSE),0) -> 36 | AK50: =IFERROR(VLOOKUP($A50,Filtro!$A$5:$AW$2963,35,FALSE),0) -> 11 | AL50: =IFERROR(VLOOKUP($A50,Filtro!$A$5:$AW$2963,36,FALSE),0) -> 32 | AM50: =IFERROR(VLOOKUP($A50,Filtro!$A$5:$AW$2963,37,FALSE),0) -> 11 | AN50: =IFERROR(VLOOKUP($A50,Filtro!$A$5:$AW$2963,38,FALSE),0) -> 25 | AO50: =IFERROR(VLOOKUP($A50,Filtro!$A$5:$AW$2963,39,FALSE),0) -> 10 | AP50: =IFERROR(VLOOKUP($A50,Filtro!$A$5:$AW$2963,40,FALSE),0) -> 0 | AQ50: =IFERROR(VLOOKUP($A50,Filtro!$A$5:$AW$2963,41,FALSE),0) -> 0 | CV50: 0 | CW50: 0
A51: 01030300C | B51: Seguimiento riesgo dependencia | C51: Médico/a | D51: =IFERROR(VLOOKUP($A51,Filtro!$A$5:$AW$2963,2,FALSE),0) -> 29 | E51: =IFERROR(VLOOKUP($A51,Filtro!$A$5:$AW$2963,3,FALSE),0) -> 13 | F51: =IFERROR(VLOOKUP($A51,Filtro!$A$5:$AW$2963,4,FALSE),0) -> 16 | G51: =IFERROR(VLOOKUP($A51,Filtro!$A$5:$AW$2963,5,FALSE),0) -> 0 | H51: =IFERROR(VLOOKUP($A51,Filtro!$A$5:$AW$2963,6,FALSE),0) -> 0 | I51: =IFERROR(VLOOKUP($A51,Filtro!$A$5:$AW$2963,7,FALSE),0) -> 0 | J51: =IFERROR(VLOOKUP($A51,Filtro!$A$5:$AW$2963,8,FALSE),0) -> 0 | K51: =IFERROR(VLOOKUP($A51,Filtro!$A$5:$AW$2963,9,FALSE),0) -> 0 | L51: =IFERROR(VLOOKUP($A51,Filtro!$A$5:$AW$2963,10,FALSE),0) -> 0 | M51: =IFERROR(VLOOKUP($A51,Filtro!$A$5:$AW$2963,11,FALSE),0) -> 0 | N51: =IFERROR(VLOOKUP($A51,Filtro!$A$5:$AW$2963,12,FALSE),0) -> 0 | O51: =IFERROR(VLOOKUP($A51,Filtro!$A$5:$AW$2963,13,FALSE),0) -> 0 | P51: =IFERROR(VLOOKUP($A51,Filtro!$A$5:$AW$2963,14,FALSE),0) -> 0 | Q51: =IFERROR(VLOOKUP($A51,Filtro!$A$5:$AW$2963,15,FALSE),0) -> 0 | R51: =IFERROR(VLOOKUP($A51,Filtro!$A$5:$AW$2963,16,FALSE),0) -> 0 | S51: =IFERROR(VLOOKUP($A51,Filtro!$A$5:$AW$2963,17,FALSE),0) -> 0 | T51: =IFERROR(VLOOKUP($A51,Filtro!$A$5:$AW$2963,18,FALSE),0) -> 0 | U51: =IFERROR(VLOOKUP($A51,Filtro!$A$5:$AW$2963,19,FALSE),0) -> 0 | V51: =IFERROR(VLOOKUP($A51,Filtro!$A$5:$AW$2963,20,FALSE),0) -> 0 | W51: =IFERROR(VLOOKUP($A51,Filtro!$A$5:$AW$2963,21,FALSE),0) -> 0 | X51: =IFERROR(VLOOKUP($A51,Filtro!$A$5:$AW$2963,22,FALSE),0) -> 0 | Y51: =IFERROR(VLOOKUP($A51,Filtro!$A$5:$AW$2963,23,FALSE),0) -> 0 | Z51: =IFERROR(VLOOKUP($A51,Filtro!$A$5:$AW$2963,24,FALSE),0) -> 0 | AA51: =IFERROR(VLOOKUP($A51,Filtro!$A$5:$AW$2963,25,FALSE),0) -> 0 | AB51: =IFERROR(VLOOKUP($A51,Filtro!$A$5:$AW$2963,26,FALSE),0) -> 0 | AC51: =IFERROR(VLOOKUP($A51,Filtro!$A$5:$AW$2963,27,FALSE),0) -> 0 | AD51: =IFERROR(VLOOKUP($A51,Filtro!$A$5:$AW$2963,28,FALSE),0) -> 0 | AE51: =IFERROR(VLOOKUP($A51,Filtro!$A$5:$AW$2963,29,FALSE),0) -> 0 | AF51: =IFERROR(VLOOKUP($A51,Filtro!$A$5:$AW$2963,30,FALSE),0) -> 0 | AG51: =IFERROR(VLOOKUP($A51,Filtro!$A$5:$AW$2963,31,FALSE),0) -> 3 | AH51: =IFERROR(VLOOKUP($A51,Filtro!$A$5:$AW$2963,32,FALSE),0) -> 2 | AI51: =IFERROR(VLOOKUP($A51,Filtro!$A$5:$AW$2963,33,FALSE),0) -> 1 | AJ51: =IFERROR(VLOOKUP($A51,Filtro!$A$5:$AW$2963,34,FALSE),0) -> 4 | AK51: =IFERROR(VLOOKUP($A51,Filtro!$A$5:$AW$2963,35,FALSE),0) -> 6 | AL51: =IFERROR(VLOOKUP($A51,Filtro!$A$5:$AW$2963,36,FALSE),0) -> 3 | AM51: =IFERROR(VLOOKUP($A51,Filtro!$A$5:$AW$2963,37,FALSE),0) -> 3 | AN51: =IFERROR(VLOOKUP($A51,Filtro!$A$5:$AW$2963,38,FALSE),0) -> 7 | AO51: =IFERROR(VLOOKUP($A51,Filtro!$A$5:$AW$2963,39,FALSE),0) -> 1 | AP51: =IFERROR(VLOOKUP($A51,Filtro!$A$5:$AW$2963,40,FALSE),0) -> 0 | AQ51: =IFERROR(VLOOKUP($A51,Filtro!$A$5:$AW$2963,41,FALSE),0) -> 0 | CV51: 0 | CW51: 0
A52: 01030400D | C52: Enfermera/o | D52: =IFERROR(VLOOKUP($A52,Filtro!$A$5:$AW$2963,2,FALSE),0) -> 408 | E52: =IFERROR(VLOOKUP($A52,Filtro!$A$5:$AW$2963,3,FALSE),0) -> 128 | F52: =IFERROR(VLOOKUP($A52,Filtro!$A$5:$AW$2963,4,FALSE),0) -> 280 | G52: =IFERROR(VLOOKUP($A52,Filtro!$A$5:$AW$2963,5,FALSE),0) -> 0 | H52: =IFERROR(VLOOKUP($A52,Filtro!$A$5:$AW$2963,6,FALSE),0) -> 0 | I52: =IFERROR(VLOOKUP($A52,Filtro!$A$5:$AW$2963,7,FALSE),0) -> 0 | J52: =IFERROR(VLOOKUP($A52,Filtro!$A$5:$AW$2963,8,FALSE),0) -> 0 | K52: =IFERROR(VLOOKUP($A52,Filtro!$A$5:$AW$2963,9,FALSE),0) -> 0 | L52: =IFERROR(VLOOKUP($A52,Filtro!$A$5:$AW$2963,10,FALSE),0) -> 0 | M52: =IFERROR(VLOOKUP($A52,Filtro!$A$5:$AW$2963,11,FALSE),0) -> 0 | N52: =IFERROR(VLOOKUP($A52,Filtro!$A$5:$AW$2963,12,FALSE),0) -> 0 | O52: =IFERROR(VLOOKUP($A52,Filtro!$A$5:$AW$2963,13,FALSE),0) -> 0 | P52: =IFERROR(VLOOKUP($A52,Filtro!$A$5:$AW$2963,14,FALSE),0) -> 0 | Q52: =IFERROR(VLOOKUP($A52,Filtro!$A$5:$AW$2963,15,FALSE),0) -> 0 | R52: =IFERROR(VLOOKUP($A52,Filtro!$A$5:$AW$2963,16,FALSE),0) -> 0 | S52: =IFERROR(VLOOKUP($A52,Filtro!$A$5:$AW$2963,17,FALSE),0) -> 0 | T52: =IFERROR(VLOOKUP($A52,Filtro!$A$5:$AW$2963,18,FALSE),0) -> 0 | U52: =IFERROR(VLOOKUP($A52,Filtro!$A$5:$AW$2963,19,FALSE),0) -> 0 | V52: =IFERROR(VLOOKUP($A52,Filtro!$A$5:$AW$2963,20,FALSE),0) -> 0 | W52: =IFERROR(VLOOKUP($A52,Filtro!$A$5:$AW$2963,21,FALSE),0) -> 0 | X52: =IFERROR(VLOOKUP($A52,Filtro!$A$5:$AW$2963,22,FALSE),0) -> 0 | Y52: =IFERROR(VLOOKUP($A52,Filtro!$A$5:$AW$2963,23,FALSE),0) -> 0 | Z52: =IFERROR(VLOOKUP($A52,Filtro!$A$5:$AW$2963,24,FALSE),0) -> 0 | AA52: =IFERROR(VLOOKUP($A52,Filtro!$A$5:$AW$2963,25,FALSE),0) -> 0 | AB52: =IFERROR(VLOOKUP($A52,Filtro!$A$5:$AW$2963,26,FALSE),0) -> 0 | AC52: =IFERROR(VLOOKUP($A52,Filtro!$A$5:$AW$2963,27,FALSE),0) -> 0 | AD52: =IFERROR(VLOOKUP($A52,Filtro!$A$5:$AW$2963,28,FALSE),0) -> 0 | AE52: =IFERROR(VLOOKUP($A52,Filtro!$A$5:$AW$2963,29,FALSE),0) -> 0 | AF52: =IFERROR(VLOOKUP($A52,Filtro!$A$5:$AW$2963,30,FALSE),0) -> 0 | AG52: =IFERROR(VLOOKUP($A52,Filtro!$A$5:$AW$2963,31,FALSE),0) -> 9 | AH52: =IFERROR(VLOOKUP($A52,Filtro!$A$5:$AW$2963,32,FALSE),0) -> 24 | AI52: =IFERROR(VLOOKUP($A52,Filtro!$A$5:$AW$2963,33,FALSE),0) -> 17 | AJ52: =IFERROR(VLOOKUP($A52,Filtro!$A$5:$AW$2963,34,FALSE),0) -> 39 | AK52: =IFERROR(VLOOKUP($A52,Filtro!$A$5:$AW$2963,35,FALSE),0) -> 36 | AL52: =IFERROR(VLOOKUP($A52,Filtro!$A$5:$AW$2963,36,FALSE),0) -> 50 | AM52: =IFERROR(VLOOKUP($A52,Filtro!$A$5:$AW$2963,37,FALSE),0) -> 66 | AN52: =IFERROR(VLOOKUP($A52,Filtro!$A$5:$AW$2963,38,FALSE),0) -> 167 | AO52: =IFERROR(VLOOKUP($A52,Filtro!$A$5:$AW$2963,39,FALSE),0) -> 13 | AP52: =IFERROR(VLOOKUP($A52,Filtro!$A$5:$AW$2963,40,FALSE),0) -> 2 | AQ52: =IFERROR(VLOOKUP($A52,Filtro!$A$5:$AW$2963,41,FALSE),0) -> 0 | CV52: 0 | CW52: 0
A53: 09600205 | C53: Otros Profesionales debidamente capacitados | D53: =IFERROR(VLOOKUP($A53,Filtro!$A$5:$AW$2963,2,FALSE),0) -> 86 | E53: =IFERROR(VLOOKUP($A53,Filtro!$A$5:$AW$2963,3,FALSE),0) -> 28 | F53: =IFERROR(VLOOKUP($A53,Filtro!$A$5:$AW$2963,4,FALSE),0) -> 58 | G53: =IFERROR(VLOOKUP($A53,Filtro!$A$5:$AW$2963,5,FALSE),0) -> 0 | H53: =IFERROR(VLOOKUP($A53,Filtro!$A$5:$AW$2963,6,FALSE),0) -> 0 | I53: =IFERROR(VLOOKUP($A53,Filtro!$A$5:$AW$2963,7,FALSE),0) -> 0 | J53: =IFERROR(VLOOKUP($A53,Filtro!$A$5:$AW$2963,8,FALSE),0) -> 0 | K53: =IFERROR(VLOOKUP($A53,Filtro!$A$5:$AW$2963,9,FALSE),0) -> 0 | L53: =IFERROR(VLOOKUP($A53,Filtro!$A$5:$AW$2963,10,FALSE),0) -> 0 | M53: =IFERROR(VLOOKUP($A53,Filtro!$A$5:$AW$2963,11,FALSE),0) -> 0 | N53: =IFERROR(VLOOKUP($A53,Filtro!$A$5:$AW$2963,12,FALSE),0) -> 0 | O53: =IFERROR(VLOOKUP($A53,Filtro!$A$5:$AW$2963,13,FALSE),0) -> 0 | P53: =IFERROR(VLOOKUP($A53,Filtro!$A$5:$AW$2963,14,FALSE),0) -> 0 | Q53: =IFERROR(VLOOKUP($A53,Filtro!$A$5:$AW$2963,15,FALSE),0) -> 0 | R53: =IFERROR(VLOOKUP($A53,Filtro!$A$5:$AW$2963,16,FALSE),0) -> 0 | S53: =IFERROR(VLOOKUP($A53,Filtro!$A$5:$AW$2963,17,FALSE),0) -> 0 | T53: =IFERROR(VLOOKUP($A53,Filtro!$A$5:$AW$2963,18,FALSE),0) -> 0 | U53: =IFERROR(VLOOKUP($A53,Filtro!$A$5:$AW$2963,19,FALSE),0) -> 0 | V53: =IFERROR(VLOOKUP($A53,Filtro!$A$5:$AW$2963,20,FALSE),0) -> 0 | W53: =IFERROR(VLOOKUP($A53,Filtro!$A$5:$AW$2963,21,FALSE),0) -> 0 | X53: =IFERROR(VLOOKUP($A53,Filtro!$A$5:$AW$2963,22,FALSE),0) -> 0 | Y53: =IFERROR(VLOOKUP($A53,Filtro!$A$5:$AW$2963,23,FALSE),0) -> 0 | Z53: =IFERROR(VLOOKUP($A53,Filtro!$A$5:$AW$2963,24,FALSE),0) -> 0 | AA53: =IFERROR(VLOOKUP($A53,Filtro!$A$5:$AW$2963,25,FALSE),0) -> 0 | AB53: =IFERROR(VLOOKUP($A53,Filtro!$A$5:$AW$2963,26,FALSE),0) -> 0 | AC53: =IFERROR(VLOOKUP($A53,Filtro!$A$5:$AW$2963,27,FALSE),0) -> 0 | AD53: =IFERROR(VLOOKUP($A53,Filtro!$A$5:$AW$2963,28,FALSE),0) -> 0 | AE53: =IFERROR(VLOOKUP($A53,Filtro!$A$5:$AW$2963,29,FALSE),0) -> 0 | AF53: =IFERROR(VLOOKUP($A53,Filtro!$A$5:$AW$2963,30,FALSE),0) -> 0 | AG53: =IFERROR(VLOOKUP($A53,Filtro!$A$5:$AW$2963,31,FALSE),0) -> 2 | AH53: =IFERROR(VLOOKUP($A53,Filtro!$A$5:$AW$2963,32,FALSE),0) -> 1 | AI53: =IFERROR(VLOOKUP($A53,Filtro!$A$5:$AW$2963,33,FALSE),0) -> 3 | AJ53: =IFERROR(VLOOKUP($A53,Filtro!$A$5:$AW$2963,34,FALSE),0) -> 5 | AK53: =IFERROR(VLOOKUP($A53,Filtro!$A$5:$AW$2963,35,FALSE),0) -> 7 | AL53: =IFERROR(VLOOKUP($A53,Filtro!$A$5:$AW$2963,36,FALSE),0) -> 4 | AM53: =IFERROR(VLOOKUP($A53,Filtro!$A$5:$AW$2963,37,FALSE),0) -> 16 | AN53: =IFERROR(VLOOKUP($A53,Filtro!$A$5:$AW$2963,38,FALSE),0) -> 48 | AO53: =IFERROR(VLOOKUP($A53,Filtro!$A$5:$AW$2963,39,FALSE),0) -> 1 | AP53: =IFERROR(VLOOKUP($A53,Filtro!$A$5:$AW$2963,40,FALSE),0) -> 3 | AQ53: =IFERROR(VLOOKUP($A53,Filtro!$A$5:$AW$2963,41,FALSE),0) -> 0 | CV53: 0 | CW53: 0
A54: 01200010 | B54: De Infección Transmisión Sexual | C54: Médico/a | D54: =IFERROR(VLOOKUP($A54,Filtro!$A$5:$AW$2963,2,FALSE),0) -> 157 | E54: =IFERROR(VLOOKUP($A54,Filtro!$A$5:$AW$2963,3,FALSE),0) -> 44 | F54: =IFERROR(VLOOKUP($A54,Filtro!$A$5:$AW$2963,4,FALSE),0) -> 113 | G54: =IFERROR(VLOOKUP($A54,Filtro!$A$5:$AW$2963,5,FALSE),0) -> 0 | H54: =IFERROR(VLOOKUP($A54,Filtro!$A$5:$AW$2963,6,FALSE),0) -> 0 | I54: =IFERROR(VLOOKUP($A54,Filtro!$A$5:$AW$2963,7,FALSE),0) -> 0 | J54: =IFERROR(VLOOKUP($A54,Filtro!$A$5:$AW$2963,8,FALSE),0) -> 0 | K54: =IFERROR(VLOOKUP($A54,Filtro!$A$5:$AW$2963,9,FALSE),0) -> 0 | L54: =IFERROR(VLOOKUP($A54,Filtro!$A$5:$AW$2963,10,FALSE),0) -> 2 | M54: =IFERROR(VLOOKUP($A54,Filtro!$A$5:$AW$2963,11,FALSE),0) -> 1 | N54: =IFERROR(VLOOKUP($A54,Filtro!$A$5:$AW$2963,12,FALSE),0) -> 1 | O54: =IFERROR(VLOOKUP($A54,Filtro!$A$5:$AW$2963,13,FALSE),0) -> 1 | P54: =IFERROR(VLOOKUP($A54,Filtro!$A$5:$AW$2963,14,FALSE),0) -> 0 | Q54: =IFERROR(VLOOKUP($A54,Filtro!$A$5:$AW$2963,15,FALSE),0) -> 0 | R54: =IFERROR(VLOOKUP($A54,Filtro!$A$5:$AW$2963,16,FALSE),0) -> 3 | S54: =IFERROR(VLOOKUP($A54,Filtro!$A$5:$AW$2963,17,FALSE),0) -> 0 | T54: =IFERROR(VLOOKUP($A54,Filtro!$A$5:$AW$2963,18,FALSE),0) -> 3 | U54: =IFERROR(VLOOKUP($A54,Filtro!$A$5:$AW$2963,19,FALSE),0) -> 1 | V54: =IFERROR(VLOOKUP($A54,Filtro!$A$5:$AW$2963,20,FALSE),0) -> 5 | W54: =IFERROR(VLOOKUP($A54,Filtro!$A$5:$AW$2963,21,FALSE),0) -> 1 | X54: =IFERROR(VLOOKUP($A54,Filtro!$A$5:$AW$2963,22,FALSE),0) -> 7 | Y54: =IFERROR(VLOOKUP($A54,Filtro!$A$5:$AW$2963,23,FALSE),0) -> 2 | Z54: =IFERROR(VLOOKUP($A54,Filtro!$A$5:$AW$2963,24,FALSE),0) -> 6 | AA54: =IFERROR(VLOOKUP($A54,Filtro!$A$5:$AW$2963,25,FALSE),0) -> 4 | AB54: =IFERROR(VLOOKUP($A54,Filtro!$A$5:$AW$2963,26,FALSE),0) -> 7 | AC54: =IFERROR(VLOOKUP($A54,Filtro!$A$5:$AW$2963,27,FALSE),0) -> 5 | AD54: =IFERROR(VLOOKUP($A54,Filtro!$A$5:$AW$2963,28,FALSE),0) -> 14 | AE54: =IFERROR(VLOOKUP($A54,Filtro!$A$5:$AW$2963,29,FALSE),0) -> 6 | AF54: =IFERROR(VLOOKUP($A54,Filtro!$A$5:$AW$2963,30,FALSE),0) -> 14 | AG54: =IFERROR(VLOOKUP($A54,Filtro!$A$5:$AW$2963,31,FALSE),0) -> 7 | AH54: =IFERROR(VLOOKUP($A54,Filtro!$A$5:$AW$2963,32,FALSE),0) -> 10 | AI54: =IFERROR(VLOOKUP($A54,Filtro!$A$5:$AW$2963,33,FALSE),0) -> 7 | AJ54: =IFERROR(VLOOKUP($A54,Filtro!$A$5:$AW$2963,34,FALSE),0) -> 13 | AK54: =IFERROR(VLOOKUP($A54,Filtro!$A$5:$AW$2963,35,FALSE),0) -> 3 | AL54: =IFERROR(VLOOKUP($A54,Filtro!$A$5:$AW$2963,36,FALSE),0) -> 11 | AM54: =IFERROR(VLOOKUP($A54,Filtro!$A$5:$AW$2963,37,FALSE),0) -> 6 | AN54: =IFERROR(VLOOKUP($A54,Filtro!$A$5:$AW$2963,38,FALSE),0) -> 17 | AO54: =IFERROR(VLOOKUP($A54,Filtro!$A$5:$AW$2963,39,FALSE),0) -> 2 | AP54: =IFERROR(VLOOKUP($A54,Filtro!$A$5:$AW$2963,40,FALSE),0) -> 2 | AQ54: =IFERROR(VLOOKUP($A54,Filtro!$A$5:$AW$2963,41,FALSE),0) -> 0 | CV54: 0 | CW54: 0
A55: 01200020 | C55: Enfermera/o | D55: =IFERROR(VLOOKUP($A55,Filtro!$A$5:$AW$2963,2,FALSE),0) -> 12 | E55: =IFERROR(VLOOKUP($A55,Filtro!$A$5:$AW$2963,3,FALSE),0) -> 5 | F55: =IFERROR(VLOOKUP($A55,Filtro!$A$5:$AW$2963,4,FALSE),0) -> 7 | G55: =IFERROR(VLOOKUP($A55,Filtro!$A$5:$AW$2963,5,FALSE),0) -> 0 | H55: =IFERROR(VLOOKUP($A55,Filtro!$A$5:$AW$2963,6,FALSE),0) -> 0 | I55: =IFERROR(VLOOKUP($A55,Filtro!$A$5:$AW$2963,7,FALSE),0) -> 0 | J55: =IFERROR(VLOOKUP($A55,Filtro!$A$5:$AW$2963,8,FALSE),0) -> 1 | K55: =IFERROR(VLOOKUP($A55,Filtro!$A$5:$AW$2963,9,FALSE),0) -> 0 | L55: =IFERROR(VLOOKUP($A55,Filtro!$A$5:$AW$2963,10,FALSE),0) -> 0 | M55: =IFERROR(VLOOKUP($A55,Filtro!$A$5:$AW$2963,11,FALSE),0) -> 0 | N55: =IFERROR(VLOOKUP($A55,Filtro!$A$5:$AW$2963,12,FALSE),0) -> 1 | O55: =IFERROR(VLOOKUP($A55,Filtro!$A$5:$AW$2963,13,FALSE),0) -> 0 | P55: =IFERROR(VLOOKUP($A55,Filtro!$A$5:$AW$2963,14,FALSE),0) -> 0 | Q55: =IFERROR(VLOOKUP($A55,Filtro!$A$5:$AW$2963,15,FALSE),0) -> 0 | R55: =IFERROR(VLOOKUP($A55,Filtro!$A$5:$AW$2963,16,FALSE),0) -> 0 | S55: =IFERROR(VLOOKUP($A55,Filtro!$A$5:$AW$2963,17,FALSE),0) -> 0 | T55: =IFERROR(VLOOKUP($A55,Filtro!$A$5:$AW$2963,18,FALSE),0) -> 0 | U55: =IFERROR(VLOOKUP($A55,Filtro!$A$5:$AW$2963,19,FALSE),0) -> 0 | V55: =IFERROR(VLOOKUP($A55,Filtro!$A$5:$AW$2963,20,FALSE),0) -> 0 | W55: =IFERROR(VLOOKUP($A55,Filtro!$A$5:$AW$2963,21,FALSE),0) -> 0 | X55: =IFERROR(VLOOKUP($A55,Filtro!$A$5:$AW$2963,22,FALSE),0) -> 0 | Y55: =IFERROR(VLOOKUP($A55,Filtro!$A$5:$AW$2963,23,FALSE),0) -> 0 | Z55: =IFERROR(VLOOKUP($A55,Filtro!$A$5:$AW$2963,24,FALSE),0) -> 0 | AA55: =IFERROR(VLOOKUP($A55,Filtro!$A$5:$AW$2963,25,FALSE),0) -> 0 | AB55: =IFERROR(VLOOKUP($A55,Filtro!$A$5:$AW$2963,26,FALSE),0) -> 0 | AC55: =IFERROR(VLOOKUP($A55,Filtro!$A$5:$AW$2963,27,FALSE),0) -> 1 | AD55: =IFERROR(VLOOKUP($A55,Filtro!$A$5:$AW$2963,28,FALSE),0) -> 0 | AE55: =IFERROR(VLOOKUP($A55,Filtro!$A$5:$AW$2963,29,FALSE),0) -> 0 | AF55: =IFERROR(VLOOKUP($A55,Filtro!$A$5:$AW$2963,30,FALSE),0) -> 1 | AG55: =IFERROR(VLOOKUP($A55,Filtro!$A$5:$AW$2963,31,FALSE),0) -> 0 | AH55: =IFERROR(VLOOKUP($A55,Filtro!$A$5:$AW$2963,32,FALSE),0) -> 0 | AI55: =IFERROR(VLOOKUP($A55,Filtro!$A$5:$AW$2963,33,FALSE),0) -> 1 | AJ55: =IFERROR(VLOOKUP($A55,Filtro!$A$5:$AW$2963,34,FALSE),0) -> 2 | AK55: =IFERROR(VLOOKUP($A55,Filtro!$A$5:$AW$2963,35,FALSE),0) -> 1 | AL55: =IFERROR(VLOOKUP($A55,Filtro!$A$5:$AW$2963,36,FALSE),0) -> 2 | AM55: =IFERROR(VLOOKUP($A55,Filtro!$A$5:$AW$2963,37,FALSE),0) -> 2 | AN55: =IFERROR(VLOOKUP($A55,Filtro!$A$5:$AW$2963,38,FALSE),0) -> 0 | AO55: =IFERROR(VLOOKUP($A55,Filtro!$A$5:$AW$2963,39,FALSE),0) -> 0 | AP55: =IFERROR(VLOOKUP($A55,Filtro!$A$5:$AW$2963,40,FALSE),0) -> 0 | AQ55: =IFERROR(VLOOKUP($A55,Filtro!$A$5:$AW$2963,41,FALSE),0) -> 0 | CV55: 0 | CW55: 0
A56: 01200030 | C56: Matrona/ón | D56: =IFERROR(VLOOKUP($A56,Filtro!$A$5:$AW$2963,2,FALSE),0) -> 376 | E56: =IFERROR(VLOOKUP($A56,Filtro!$A$5:$AW$2963,3,FALSE),0) -> 89 | F56: =IFERROR(VLOOKUP($A56,Filtro!$A$5:$AW$2963,4,FALSE),0) -> 287 | G56: =IFERROR(VLOOKUP($A56,Filtro!$A$5:$AW$2963,5,FALSE),0) -> 0 | H56: =IFERROR(VLOOKUP($A56,Filtro!$A$5:$AW$2963,6,FALSE),0) -> 0 | I56: =IFERROR(VLOOKUP($A56,Filtro!$A$5:$AW$2963,7,FALSE),0) -> 0 | J56: =IFERROR(VLOOKUP($A56,Filtro!$A$5:$AW$2963,8,FALSE),0) -> 0 | K56: =IFERROR(VLOOKUP($A56,Filtro!$A$5:$AW$2963,9,FALSE),0) -> 0 | L56: =IFERROR(VLOOKUP($A56,Filtro!$A$5:$AW$2963,10,FALSE),0) -> 0 | M56: =IFERROR(VLOOKUP($A56,Filtro!$A$5:$AW$2963,11,FALSE),0) -> 12 | N56: =IFERROR(VLOOKUP($A56,Filtro!$A$5:$AW$2963,12,FALSE),0) -> 12 | O56: =IFERROR(VLOOKUP($A56,Filtro!$A$5:$AW$2963,13,FALSE),0) -> 14 | P56: =IFERROR(VLOOKUP($A56,Filtro!$A$5:$AW$2963,14,FALSE),0) -> 39 | Q56: =IFERROR(VLOOKUP($A56,Filtro!$A$5:$AW$2963,15,FALSE),0) -> 22 | R56: =IFERROR(VLOOKUP($A56,Filtro!$A$5:$AW$2963,16,FALSE),0) -> 59 | S56: =IFERROR(VLOOKUP($A56,Filtro!$A$5:$AW$2963,17,FALSE),0) -> 13 | T56: =IFERROR(VLOOKUP($A56,Filtro!$A$5:$AW$2963,18,FALSE),0) -> 47 | U56: =IFERROR(VLOOKUP($A56,Filtro!$A$5:$AW$2963,19,FALSE),0) -> 6 | V56: =IFERROR(VLOOKUP($A56,Filtro!$A$5:$AW$2963,20,FALSE),0) -> 36 | W56: =IFERROR(VLOOKUP($A56,Filtro!$A$5:$AW$2963,21,FALSE),0) -> 6 | X56: =IFERROR(VLOOKUP($A56,Filtro!$A$5:$AW$2963,22,FALSE),0) -> 39 | Y56: =IFERROR(VLOOKUP($A56,Filtro!$A$5:$AW$2963,23,FALSE),0) -> 6 | Z56: =IFERROR(VLOOKUP($A56,Filtro!$A$5:$AW$2963,24,FALSE),0) -> 20 | AA56: =IFERROR(VLOOKUP($A56,Filtro!$A$5:$AW$2963,25,FALSE),0) -> 2 | AB56: =IFERROR(VLOOKUP($A56,Filtro!$A$5:$AW$2963,26,FALSE),0) -> 5 | AC56: =IFERROR(VLOOKUP($A56,Filtro!$A$5:$AW$2963,27,FALSE),0) -> 0 | AD56: =IFERROR(VLOOKUP($A56,Filtro!$A$5:$AW$2963,28,FALSE),0) -> 13 | AE56: =IFERROR(VLOOKUP($A56,Filtro!$A$5:$AW$2963,29,FALSE),0) -> 4 | AF56: =IFERROR(VLOOKUP($A56,Filtro!$A$5:$AW$2963,30,FALSE),0) -> 6 | AG56: =IFERROR(VLOOKUP($A56,Filtro!$A$5:$AW$2963,31,FALSE),0) -> 1 | AH56: =IFERROR(VLOOKUP($A56,Filtro!$A$5:$AW$2963,32,FALSE),0) -> 7 | AI56: =IFERROR(VLOOKUP($A56,Filtro!$A$5:$AW$2963,33,FALSE),0) -> 2 | AJ56: =IFERROR(VLOOKUP($A56,Filtro!$A$5:$AW$2963,34,FALSE),0) -> 3 | AK56: =IFERROR(VLOOKUP($A56,Filtro!$A$5:$AW$2963,35,FALSE),0) -> 1 | AL56: =IFERROR(VLOOKUP($A56,Filtro!$A$5:$AW$2963,36,FALSE),0) -> 0 | AM56: =IFERROR(VLOOKUP($A56,Filtro!$A$5:$AW$2963,37,FALSE),0) -> 0 | AN56: =IFERROR(VLOOKUP($A56,Filtro!$A$5:$AW$2963,38,FALSE),0) -> 1 | AO56: =IFERROR(VLOOKUP($A56,Filtro!$A$5:$AW$2963,39,FALSE),0) -> 1 | AP56: =IFERROR(VLOOKUP($A56,Filtro!$A$5:$AW$2963,40,FALSE),0) -> 47 | AQ56: =IFERROR(VLOOKUP($A56,Filtro!$A$5:$AW$2963,41,FALSE),0) -> 0 | CV56: 0 | CW56: 0
A57: 03030140 | B57: Otros problemas de salud | C57: Médico/a | D57: =IFERROR(VLOOKUP($A57,Filtro!$A$5:$AW$2963,2,FALSE),0) -> 34734 | E57: =IFERROR(VLOOKUP($A57,Filtro!$A$5:$AW$2963,3,FALSE),0) -> 10654 | F57: =IFERROR(VLOOKUP($A57,Filtro!$A$5:$AW$2963,4,FALSE),0) -> 24080 | G57: =IFERROR(VLOOKUP($A57,Filtro!$A$5:$AW$2963,5,FALSE),0) -> 224 | H57: =IFERROR(VLOOKUP($A57,Filtro!$A$5:$AW$2963,6,FALSE),0) -> 106 | I57: =IFERROR(VLOOKUP($A57,Filtro!$A$5:$AW$2963,7,FALSE),0) -> 233 | J57: =IFERROR(VLOOKUP($A57,Filtro!$A$5:$AW$2963,8,FALSE),0) -> 101 | K57: =IFERROR(VLOOKUP($A57,Filtro!$A$5:$AW$2963,9,FALSE),0) -> 152 | L57: =IFERROR(VLOOKUP($A57,Filtro!$A$5:$AW$2963,10,FALSE),0) -> 117 | M57: =IFERROR(VLOOKUP($A57,Filtro!$A$5:$AW$2963,11,FALSE),0) -> 166 | N57: =IFERROR(VLOOKUP($A57,Filtro!$A$5:$AW$2963,12,FALSE),0) -> 265 | O57: =IFERROR(VLOOKUP($A57,Filtro!$A$5:$AW$2963,13,FALSE),0) -> 111 | P57: =IFERROR(VLOOKUP($A57,Filtro!$A$5:$AW$2963,14,FALSE),0) -> 319 | Q57: =IFERROR(VLOOKUP($A57,Filtro!$A$5:$AW$2963,15,FALSE),0) -> 144 | R57: =IFERROR(VLOOKUP($A57,Filtro!$A$5:$AW$2963,16,FALSE),0) -> 440 | S57: =IFERROR(VLOOKUP($A57,Filtro!$A$5:$AW$2963,17,FALSE),0) -> 140 | T57: =IFERROR(VLOOKUP($A57,Filtro!$A$5:$AW$2963,18,FALSE),0) -> 666 | U57: =IFERROR(VLOOKUP($A57,Filtro!$A$5:$AW$2963,19,FALSE),0) -> 140 | V57: =IFERROR(VLOOKUP($A57,Filtro!$A$5:$AW$2963,20,FALSE),0) -> 902 | W57: =IFERROR(VLOOKUP($A57,Filtro!$A$5:$AW$2963,21,FALSE),0) -> 259 | X57: =IFERROR(VLOOKUP($A57,Filtro!$A$5:$AW$2963,22,FALSE),0) -> 953 | Y57: =IFERROR(VLOOKUP($A57,Filtro!$A$5:$AW$2963,23,FALSE),0) -> 274 | Z57: =IFERROR(VLOOKUP($A57,Filtro!$A$5:$AW$2963,24,FALSE),0) -> 1287 | AA57: =IFERROR(VLOOKUP($A57,Filtro!$A$5:$AW$2963,25,FALSE),0) -> 428 | AB57: =IFERROR(VLOOKUP($A57,Filtro!$A$5:$AW$2963,26,FALSE),0) -> 1748 | AC57: =IFERROR(VLOOKUP($A57,Filtro!$A$5:$AW$2963,27,FALSE),0) -> 654 | AD57: =IFERROR(VLOOKUP($A57,Filtro!$A$5:$AW$2963,28,FALSE),0) -> 2459 | AE57: =IFERROR(VLOOKUP($A57,Filtro!$A$5:$AW$2963,29,FALSE),0) -> 1189 | AF57: =IFERROR(VLOOKUP($A57,Filtro!$A$5:$AW$2963,30,FALSE),0) -> 3214 | AG57: =IFERROR(VLOOKUP($A57,Filtro!$A$5:$AW$2963,31,FALSE),0) -> 1413 | AH57: =IFERROR(VLOOKUP($A57,Filtro!$A$5:$AW$2963,32,FALSE),0) -> 3152 | AI57: =IFERROR(VLOOKUP($A57,Filtro!$A$5:$AW$2963,33,FALSE),0) -> 1609 | AJ57: =IFERROR(VLOOKUP($A57,Filtro!$A$5:$AW$2963,34,FALSE),0) -> 2961 | AK57: =IFERROR(VLOOKUP($A57,Filtro!$A$5:$AW$2963,35,FALSE),0) -> 1345 | AL57: =IFERROR(VLOOKUP($A57,Filtro!$A$5:$AW$2963,36,FALSE),0) -> 2193 | AM57: =IFERROR(VLOOKUP($A57,Filtro!$A$5:$AW$2963,37,FALSE),0) -> 2173 | AN57: =IFERROR(VLOOKUP($A57,Filtro!$A$5:$AW$2963,38,FALSE),0) -> 3197 | AO57: =IFERROR(VLOOKUP($A57,Filtro!$A$5:$AW$2963,39,FALSE),0) -> 778 | AP57: =IFERROR(VLOOKUP($A57,Filtro!$A$5:$AW$2963,40,FALSE),0) -> 391 | AQ57: =IFERROR(VLOOKUP($A57,Filtro!$A$5:$AW$2963,41,FALSE),0) -> 0 | CV57: 0 | CW57: 0
A58: 03030150 | C58: Enfermera/o | D58: =IFERROR(VLOOKUP($A58,Filtro!$A$5:$AW$2963,2,FALSE),0) -> 4521 | E58: =IFERROR(VLOOKUP($A58,Filtro!$A$5:$AW$2963,3,FALSE),0) -> 1394 | F58: =IFERROR(VLOOKUP($A58,Filtro!$A$5:$AW$2963,4,FALSE),0) -> 3127 | G58: =IFERROR(VLOOKUP($A58,Filtro!$A$5:$AW$2963,5,FALSE),0) -> 41 | H58: =IFERROR(VLOOKUP($A58,Filtro!$A$5:$AW$2963,6,FALSE),0) -> 25 | I58: =IFERROR(VLOOKUP($A58,Filtro!$A$5:$AW$2963,7,FALSE),0) -> 15 | J58: =IFERROR(VLOOKUP($A58,Filtro!$A$5:$AW$2963,8,FALSE),0) -> 18 | K58: =IFERROR(VLOOKUP($A58,Filtro!$A$5:$AW$2963,9,FALSE),0) -> 5 | L58: =IFERROR(VLOOKUP($A58,Filtro!$A$5:$AW$2963,10,FALSE),0) -> 4 | M58: =IFERROR(VLOOKUP($A58,Filtro!$A$5:$AW$2963,11,FALSE),0) -> 14 | N58: =IFERROR(VLOOKUP($A58,Filtro!$A$5:$AW$2963,12,FALSE),0) -> 11 | O58: =IFERROR(VLOOKUP($A58,Filtro!$A$5:$AW$2963,13,FALSE),0) -> 16 | P58: =IFERROR(VLOOKUP($A58,Filtro!$A$5:$AW$2963,14,FALSE),0) -> 42 | Q58: =IFERROR(VLOOKUP($A58,Filtro!$A$5:$AW$2963,15,FALSE),0) -> 11 | R58: =IFERROR(VLOOKUP($A58,Filtro!$A$5:$AW$2963,16,FALSE),0) -> 46 | S58: =IFERROR(VLOOKUP($A58,Filtro!$A$5:$AW$2963,17,FALSE),0) -> 5 | T58: =IFERROR(VLOOKUP($A58,Filtro!$A$5:$AW$2963,18,FALSE),0) -> 55 | U58: =IFERROR(VLOOKUP($A58,Filtro!$A$5:$AW$2963,19,FALSE),0) -> 9 | V58: =IFERROR(VLOOKUP($A58,Filtro!$A$5:$AW$2963,20,FALSE),0) -> 76 | W58: =IFERROR(VLOOKUP($A58,Filtro!$A$5:$AW$2963,21,FALSE),0) -> 22 | X58: =IFERROR(VLOOKUP($A58,Filtro!$A$5:$AW$2963,22,FALSE),0) -> 85 | Y58: =IFERROR(VLOOKUP($A58,Filtro!$A$5:$AW$2963,23,FALSE),0) -> 28 | Z58: =IFERROR(VLOOKUP($A58,Filtro!$A$5:$AW$2963,24,FALSE),0) -> 147 | AA58: =IFERROR(VLOOKUP($A58,Filtro!$A$5:$AW$2963,25,FALSE),0) -> 51 | AB58: =IFERROR(VLOOKUP($A58,Filtro!$A$5:$AW$2963,26,FALSE),0) -> 187 | AC58: =IFERROR(VLOOKUP($A58,Filtro!$A$5:$AW$2963,27,FALSE),0) -> 93 | AD58: =IFERROR(VLOOKUP($A58,Filtro!$A$5:$AW$2963,28,FALSE),0) -> 303 | AE58: =IFERROR(VLOOKUP($A58,Filtro!$A$5:$AW$2963,29,FALSE),0) -> 183 | AF58: =IFERROR(VLOOKUP($A58,Filtro!$A$5:$AW$2963,30,FALSE),0) -> 386 | AG58: =IFERROR(VLOOKUP($A58,Filtro!$A$5:$AW$2963,31,FALSE),0) -> 206 | AH58: =IFERROR(VLOOKUP($A58,Filtro!$A$5:$AW$2963,32,FALSE),0) -> 504 | AI58: =IFERROR(VLOOKUP($A58,Filtro!$A$5:$AW$2963,33,FALSE),0) -> 207 | AJ58: =IFERROR(VLOOKUP($A58,Filtro!$A$5:$AW$2963,34,FALSE),0) -> 437 | AK58: =IFERROR(VLOOKUP($A58,Filtro!$A$5:$AW$2963,35,FALSE),0) -> 193 | AL58: =IFERROR(VLOOKUP($A58,Filtro!$A$5:$AW$2963,36,FALSE),0) -> 381 | AM58: =IFERROR(VLOOKUP($A58,Filtro!$A$5:$AW$2963,37,FALSE),0) -> 295 | AN58: =IFERROR(VLOOKUP($A58,Filtro!$A$5:$AW$2963,38,FALSE),0) -> 420 | AO58: =IFERROR(VLOOKUP($A58,Filtro!$A$5:$AW$2963,39,FALSE),0) -> 135 | AP58: =IFERROR(VLOOKUP($A58,Filtro!$A$5:$AW$2963,40,FALSE),0) -> 31 | AQ58: =IFERROR(VLOOKUP($A58,Filtro!$A$5:$AW$2963,41,FALSE),0) -> 0 | CV58: 0 | CW58: 0
A59: 03030170 | C59: Matrona/ón | D59: =IFERROR(VLOOKUP($A59,Filtro!$A$5:$AW$2963,2,FALSE),0) -> 71 | E59: =IFERROR(VLOOKUP($A59,Filtro!$A$5:$AW$2963,3,FALSE),0) -> 9 | F59: =IFERROR(VLOOKUP($A59,Filtro!$A$5:$AW$2963,4,FALSE),0) -> 62 | G59: =IFERROR(VLOOKUP($A59,Filtro!$A$5:$AW$2963,5,FALSE),0) -> 2 | H59: =IFERROR(VLOOKUP($A59,Filtro!$A$5:$AW$2963,6,FALSE),0) -> 0 | I59: =IFERROR(VLOOKUP($A59,Filtro!$A$5:$AW$2963,7,FALSE),0) -> 0 | J59: =IFERROR(VLOOKUP($A59,Filtro!$A$5:$AW$2963,8,FALSE),0) -> 4 | K59: =IFERROR(VLOOKUP($A59,Filtro!$A$5:$AW$2963,9,FALSE),0) -> 0 | L59: =IFERROR(VLOOKUP($A59,Filtro!$A$5:$AW$2963,10,FALSE),0) -> 2 | M59: =IFERROR(VLOOKUP($A59,Filtro!$A$5:$AW$2963,11,FALSE),0) -> 1 | N59: =IFERROR(VLOOKUP($A59,Filtro!$A$5:$AW$2963,12,FALSE),0) -> 5 | O59: =IFERROR(VLOOKUP($A59,Filtro!$A$5:$AW$2963,13,FALSE),0) -> 1 | P59: =IFERROR(VLOOKUP($A59,Filtro!$A$5:$AW$2963,14,FALSE),0) -> 10 | Q59: =IFERROR(VLOOKUP($A59,Filtro!$A$5:$AW$2963,15,FALSE),0) -> 0 | R59: =IFERROR(VLOOKUP($A59,Filtro!$A$5:$AW$2963,16,FALSE),0) -> 4 | S59: =IFERROR(VLOOKUP($A59,Filtro!$A$5:$AW$2963,17,FALSE),0) -> 0 | T59: =IFERROR(VLOOKUP($A59,Filtro!$A$5:$AW$2963,18,FALSE),0) -> 9 | U59: =IFERROR(VLOOKUP($A59,Filtro!$A$5:$AW$2963,19,FALSE),0) -> 0 | V59: =IFERROR(VLOOKUP($A59,Filtro!$A$5:$AW$2963,20,FALSE),0) -> 4 | W59: =IFERROR(VLOOKUP($A59,Filtro!$A$5:$AW$2963,21,FALSE),0) -> 1 | X59: =IFERROR(VLOOKUP($A59,Filtro!$A$5:$AW$2963,22,FALSE),0) -> 4 | Y59: =IFERROR(VLOOKUP($A59,Filtro!$A$5:$AW$2963,23,FALSE),0) -> 0 | Z59: =IFERROR(VLOOKUP($A59,Filtro!$A$5:$AW$2963,24,FALSE),0) -> 2 | AA59: =IFERROR(VLOOKUP($A59,Filtro!$A$5:$AW$2963,25,FALSE),0) -> 0 | AB59: =IFERROR(VLOOKUP($A59,Filtro!$A$5:$AW$2963,26,FALSE),0) -> 1 | AC59: =IFERROR(VLOOKUP($A59,Filtro!$A$5:$AW$2963,27,FALSE),0) -> 0 | AD59: =IFERROR(VLOOKUP($A59,Filtro!$A$5:$AW$2963,28,FALSE),0) -> 3 | AE59: =IFERROR(VLOOKUP($A59,Filtro!$A$5:$AW$2963,29,FALSE),0) -> 0 | AF59: =IFERROR(VLOOKUP($A59,Filtro!$A$5:$AW$2963,30,FALSE),0) -> 3 | AG59: =IFERROR(VLOOKUP($A59,Filtro!$A$5:$AW$2963,31,FALSE),0) -> 0 | AH59: =IFERROR(VLOOKUP($A59,Filtro!$A$5:$AW$2963,32,FALSE),0) -> 2 | AI59: =IFERROR(VLOOKUP($A59,Filtro!$A$5:$AW$2963,33,FALSE),0) -> 4 | AJ59: =IFERROR(VLOOKUP($A59,Filtro!$A$5:$AW$2963,34,FALSE),0) -> 3 | AK59: =IFERROR(VLOOKUP($A59,Filtro!$A$5:$AW$2963,35,FALSE),0) -> 0 | AL59: =IFERROR(VLOOKUP($A59,Filtro!$A$5:$AW$2963,36,FALSE),0) -> 3 | AM59: =IFERROR(VLOOKUP($A59,Filtro!$A$5:$AW$2963,37,FALSE),0) -> 0 | AN59: =IFERROR(VLOOKUP($A59,Filtro!$A$5:$AW$2963,38,FALSE),0) -> 3 | AO59: =IFERROR(VLOOKUP($A59,Filtro!$A$5:$AW$2963,39,FALSE),0) -> 1 | AP59: =IFERROR(VLOOKUP($A59,Filtro!$A$5:$AW$2963,40,FALSE),0) -> 0 | AQ59: =IFERROR(VLOOKUP($A59,Filtro!$A$5:$AW$2963,41,FALSE),0) -> 0 | CV59: 0 | CW59: 0
A60: 03030160 | C60: Nutricionista | D60: =IFERROR(VLOOKUP($A60,Filtro!$A$5:$AW$2963,2,FALSE),0) -> 5840 | E60: =IFERROR(VLOOKUP($A60,Filtro!$A$5:$AW$2963,3,FALSE),0) -> 1571 | F60: =IFERROR(VLOOKUP($A60,Filtro!$A$5:$AW$2963,4,FALSE),0) -> 4269 | G60: =IFERROR(VLOOKUP($A60,Filtro!$A$5:$AW$2963,5,FALSE),0) -> 212 | H60: =IFERROR(VLOOKUP($A60,Filtro!$A$5:$AW$2963,6,FALSE),0) -> 182 | I60: =IFERROR(VLOOKUP($A60,Filtro!$A$5:$AW$2963,7,FALSE),0) -> 77 | J60: =IFERROR(VLOOKUP($A60,Filtro!$A$5:$AW$2963,8,FALSE),0) -> 59 | K60: =IFERROR(VLOOKUP($A60,Filtro!$A$5:$AW$2963,9,FALSE),0) -> 80 | L60: =IFERROR(VLOOKUP($A60,Filtro!$A$5:$AW$2963,10,FALSE),0) -> 80 | M60: =IFERROR(VLOOKUP($A60,Filtro!$A$5:$AW$2963,11,FALSE),0) -> 43 | N60: =IFERROR(VLOOKUP($A60,Filtro!$A$5:$AW$2963,12,FALSE),0) -> 144 | O60: =IFERROR(VLOOKUP($A60,Filtro!$A$5:$AW$2963,13,FALSE),0) -> 47 | P60: =IFERROR(VLOOKUP($A60,Filtro!$A$5:$AW$2963,14,FALSE),0) -> 197 | Q60: =IFERROR(VLOOKUP($A60,Filtro!$A$5:$AW$2963,15,FALSE),0) -> 36 | R60: =IFERROR(VLOOKUP($A60,Filtro!$A$5:$AW$2963,16,FALSE),0) -> 248 | S60: =IFERROR(VLOOKUP($A60,Filtro!$A$5:$AW$2963,17,FALSE),0) -> 41 | T60: =IFERROR(VLOOKUP($A60,Filtro!$A$5:$AW$2963,18,FALSE),0) -> 285 | U60: =IFERROR(VLOOKUP($A60,Filtro!$A$5:$AW$2963,19,FALSE),0) -> 60 | V60: =IFERROR(VLOOKUP($A60,Filtro!$A$5:$AW$2963,20,FALSE),0) -> 284 | W60: =IFERROR(VLOOKUP($A60,Filtro!$A$5:$AW$2963,21,FALSE),0) -> 41 | X60: =IFERROR(VLOOKUP($A60,Filtro!$A$5:$AW$2963,22,FALSE),0) -> 231 | Y60: =IFERROR(VLOOKUP($A60,Filtro!$A$5:$AW$2963,23,FALSE),0) -> 64 | Z60: =IFERROR(VLOOKUP($A60,Filtro!$A$5:$AW$2963,24,FALSE),0) -> 267 | AA60: =IFERROR(VLOOKUP($A60,Filtro!$A$5:$AW$2963,25,FALSE),0) -> 56 | AB60: =IFERROR(VLOOKUP($A60,Filtro!$A$5:$AW$2963,26,FALSE),0) -> 306 | AC60: =IFERROR(VLOOKUP($A60,Filtro!$A$5:$AW$2963,27,FALSE),0) -> 86 | AD60: =IFERROR(VLOOKUP($A60,Filtro!$A$5:$AW$2963,28,FALSE),0) -> 341 | AE60: =IFERROR(VLOOKUP($A60,Filtro!$A$5:$AW$2963,29,FALSE),0) -> 135 | AF60: =IFERROR(VLOOKUP($A60,Filtro!$A$5:$AW$2963,30,FALSE),0) -> 385 | AG60: =IFERROR(VLOOKUP($A60,Filtro!$A$5:$AW$2963,31,FALSE),0) -> 116 | AH60: =IFERROR(VLOOKUP($A60,Filtro!$A$5:$AW$2963,32,FALSE),0) -> 356 | AI60: =IFERROR(VLOOKUP($A60,Filtro!$A$5:$AW$2963,33,FALSE),0) -> 159 | AJ60: =IFERROR(VLOOKUP($A60,Filtro!$A$5:$AW$2963,34,FALSE),0) -> 326 | AK60: =IFERROR(VLOOKUP($A60,Filtro!$A$5:$AW$2963,35,FALSE),0) -> 130 | AL60: =IFERROR(VLOOKUP($A60,Filtro!$A$5:$AW$2963,36,FALSE),0) -> 268 | AM60: =IFERROR(VLOOKUP($A60,Filtro!$A$5:$AW$2963,37,FALSE),0) -> 188 | AN60: =IFERROR(VLOOKUP($A60,Filtro!$A$5:$AW$2963,38,FALSE),0) -> 310 | AO60: =IFERROR(VLOOKUP($A60,Filtro!$A$5:$AW$2963,39,FALSE),0) -> 155 | AP60: =IFERROR(VLOOKUP($A60,Filtro!$A$5:$AW$2963,40,FALSE),0) -> 147 | AQ60: =IFERROR(VLOOKUP($A60,Filtro!$A$5:$AW$2963,41,FALSE),0) -> 0 | CV60: 0 | CW60: 0
A61: 03030180 | C61: Técnico en Enfermería | D61: =IFERROR(VLOOKUP($A61,Filtro!$A$5:$AW$2963,2,FALSE),0) -> 695 | E61: =IFERROR(VLOOKUP($A61,Filtro!$A$5:$AW$2963,3,FALSE),0) -> 381 | F61: =IFERROR(VLOOKUP($A61,Filtro!$A$5:$AW$2963,4,FALSE),0) -> 314 | G61: =IFERROR(VLOOKUP($A61,Filtro!$A$5:$AW$2963,5,FALSE),0) -> 10 | H61: =IFERROR(VLOOKUP($A61,Filtro!$A$5:$AW$2963,6,FALSE),0) -> 4 | I61: =IFERROR(VLOOKUP($A61,Filtro!$A$5:$AW$2963,7,FALSE),0) -> 10 | J61: =IFERROR(VLOOKUP($A61,Filtro!$A$5:$AW$2963,8,FALSE),0) -> 8 | K61: =IFERROR(VLOOKUP($A61,Filtro!$A$5:$AW$2963,9,FALSE),0) -> 9 | L61: =IFERROR(VLOOKUP($A61,Filtro!$A$5:$AW$2963,10,FALSE),0) -> 15 | M61: =IFERROR(VLOOKUP($A61,Filtro!$A$5:$AW$2963,11,FALSE),0) -> 1 | N61: =IFERROR(VLOOKUP($A61,Filtro!$A$5:$AW$2963,12,FALSE),0) -> 19 | O61: =IFERROR(VLOOKUP($A61,Filtro!$A$5:$AW$2963,13,FALSE),0) -> 4 | P61: =IFERROR(VLOOKUP($A61,Filtro!$A$5:$AW$2963,14,FALSE),0) -> 15 | Q61: =IFERROR(VLOOKUP($A61,Filtro!$A$5:$AW$2963,15,FALSE),0) -> 4 | R61: =IFERROR(VLOOKUP($A61,Filtro!$A$5:$AW$2963,16,FALSE),0) -> 9 | S61: =IFERROR(VLOOKUP($A61,Filtro!$A$5:$AW$2963,17,FALSE),0) -> 13 | T61: =IFERROR(VLOOKUP($A61,Filtro!$A$5:$AW$2963,18,FALSE),0) -> 8 | U61: =IFERROR(VLOOKUP($A61,Filtro!$A$5:$AW$2963,19,FALSE),0) -> 18 | V61: =IFERROR(VLOOKUP($A61,Filtro!$A$5:$AW$2963,20,FALSE),0) -> 19 | W61: =IFERROR(VLOOKUP($A61,Filtro!$A$5:$AW$2963,21,FALSE),0) -> 7 | X61: =IFERROR(VLOOKUP($A61,Filtro!$A$5:$AW$2963,22,FALSE),0) -> 68 | Y61: =IFERROR(VLOOKUP($A61,Filtro!$A$5:$AW$2963,23,FALSE),0) -> 70 | Z61: =IFERROR(VLOOKUP($A61,Filtro!$A$5:$AW$2963,24,FALSE),0) -> 14 | AA61: =IFERROR(VLOOKUP($A61,Filtro!$A$5:$AW$2963,25,FALSE),0) -> 70 | AB61: =IFERROR(VLOOKUP($A61,Filtro!$A$5:$AW$2963,26,FALSE),0) -> 12 | AC61: =IFERROR(VLOOKUP($A61,Filtro!$A$5:$AW$2963,27,FALSE),0) -> 15 | AD61: =IFERROR(VLOOKUP($A61,Filtro!$A$5:$AW$2963,28,FALSE),0) -> 19 | AE61: =IFERROR(VLOOKUP($A61,Filtro!$A$5:$AW$2963,29,FALSE),0) -> 44 | AF61: =IFERROR(VLOOKUP($A61,Filtro!$A$5:$AW$2963,30,FALSE),0) -> 17 | AG61: =IFERROR(VLOOKUP($A61,Filtro!$A$5:$AW$2963,31,FALSE),0) -> 16 | AH61: =IFERROR(VLOOKUP($A61,Filtro!$A$5:$AW$2963,32,FALSE),0) -> 27 | AI61: =IFERROR(VLOOKUP($A61,Filtro!$A$5:$AW$2963,33,FALSE),0) -> 17 | AJ61: =IFERROR(VLOOKUP($A61,Filtro!$A$5:$AW$2963,34,FALSE),0) -> 6 | AK61: =IFERROR(VLOOKUP($A61,Filtro!$A$5:$AW$2963,35,FALSE),0) -> 57 | AL61: =IFERROR(VLOOKUP($A61,Filtro!$A$5:$AW$2963,36,FALSE),0) -> 14 | AM61: =IFERROR(VLOOKUP($A61,Filtro!$A$5:$AW$2963,37,FALSE),0) -> 16 | AN61: =IFERROR(VLOOKUP($A61,Filtro!$A$5:$AW$2963,38,FALSE),0) -> 40 | AO61: =IFERROR(VLOOKUP($A61,Filtro!$A$5:$AW$2963,39,FALSE),0) -> 17 | AP61: =IFERROR(VLOOKUP($A61,Filtro!$A$5:$AW$2963,40,FALSE),0) -> 6 | AQ61: =IFERROR(VLOOKUP($A61,Filtro!$A$5:$AW$2963,41,FALSE),0) -> 0 | CV61: 0 | CW61: 0
A62: 09600206 | C62: Otros Profesionales debidamente capacitados | D62: =IFERROR(VLOOKUP($A62,Filtro!$A$5:$AW$2963,2,FALSE),0) -> 104 | E62: =IFERROR(VLOOKUP($A62,Filtro!$A$5:$AW$2963,3,FALSE),0) -> 36 | F62: =IFERROR(VLOOKUP($A62,Filtro!$A$5:$AW$2963,4,FALSE),0) -> 68 | G62: =IFERROR(VLOOKUP($A62,Filtro!$A$5:$AW$2963,5,FALSE),0) -> 1 | H62: =IFERROR(VLOOKUP($A62,Filtro!$A$5:$AW$2963,6,FALSE),0) -> 0 | I62: =IFERROR(VLOOKUP($A62,Filtro!$A$5:$AW$2963,7,FALSE),0) -> 0 | J62: =IFERROR(VLOOKUP($A62,Filtro!$A$5:$AW$2963,8,FALSE),0) -> 0 | K62: =IFERROR(VLOOKUP($A62,Filtro!$A$5:$AW$2963,9,FALSE),0) -> 3 | L62: =IFERROR(VLOOKUP($A62,Filtro!$A$5:$AW$2963,10,FALSE),0) -> 0 | M62: =IFERROR(VLOOKUP($A62,Filtro!$A$5:$AW$2963,11,FALSE),0) -> 0 | N62: =IFERROR(VLOOKUP($A62,Filtro!$A$5:$AW$2963,12,FALSE),0) -> 0 | O62: =IFERROR(VLOOKUP($A62,Filtro!$A$5:$AW$2963,13,FALSE),0) -> 0 | P62: =IFERROR(VLOOKUP($A62,Filtro!$A$5:$AW$2963,14,FALSE),0) -> 1 | Q62: =IFERROR(VLOOKUP($A62,Filtro!$A$5:$AW$2963,15,FALSE),0) -> 0 | R62: =IFERROR(VLOOKUP($A62,Filtro!$A$5:$AW$2963,16,FALSE),0) -> 1 | S62: =IFERROR(VLOOKUP($A62,Filtro!$A$5:$AW$2963,17,FALSE),0) -> 0 | T62: =IFERROR(VLOOKUP($A62,Filtro!$A$5:$AW$2963,18,FALSE),0) -> 0 | U62: =IFERROR(VLOOKUP($A62,Filtro!$A$5:$AW$2963,19,FALSE),0) -> 0 | V62: =IFERROR(VLOOKUP($A62,Filtro!$A$5:$AW$2963,20,FALSE),0) -> 1 | W62: =IFERROR(VLOOKUP($A62,Filtro!$A$5:$AW$2963,21,FALSE),0) -> 0 | X62: =IFERROR(VLOOKUP($A62,Filtro!$A$5:$AW$2963,22,FALSE),0) -> 2 | Y62: =IFERROR(VLOOKUP($A62,Filtro!$A$5:$AW$2963,23,FALSE),0) -> 1 | Z62: =IFERROR(VLOOKUP($A62,Filtro!$A$5:$AW$2963,24,FALSE),0) -> 2 | AA62: =IFERROR(VLOOKUP($A62,Filtro!$A$5:$AW$2963,25,FALSE),0) -> 1 | AB62: =IFERROR(VLOOKUP($A62,Filtro!$A$5:$AW$2963,26,FALSE),0) -> 4 | AC62: =IFERROR(VLOOKUP($A62,Filtro!$A$5:$AW$2963,27,FALSE),0) -> 5 | AD62: =IFERROR(VLOOKUP($A62,Filtro!$A$5:$AW$2963,28,FALSE),0) -> 5 | AE62: =IFERROR(VLOOKUP($A62,Filtro!$A$5:$AW$2963,29,FALSE),0) -> 7 | AF62: =IFERROR(VLOOKUP($A62,Filtro!$A$5:$AW$2963,30,FALSE),0) -> 12 | AG62: =IFERROR(VLOOKUP($A62,Filtro!$A$5:$AW$2963,31,FALSE),0) -> 1 | AH62: =IFERROR(VLOOKUP($A62,Filtro!$A$5:$AW$2963,32,FALSE),0) -> 15 | AI62: =IFERROR(VLOOKUP($A62,Filtro!$A$5:$AW$2963,33,FALSE),0) -> 10 | AJ62: =IFERROR(VLOOKUP($A62,Filtro!$A$5:$AW$2963,34,FALSE),0) -> 4 | AK62: =IFERROR(VLOOKUP($A62,Filtro!$A$5:$AW$2963,35,FALSE),0) -> 4 | AL62: =IFERROR(VLOOKUP($A62,Filtro!$A$5:$AW$2963,36,FALSE),0) -> 11 | AM62: =IFERROR(VLOOKUP($A62,Filtro!$A$5:$AW$2963,37,FALSE),0) -> 3 | AN62: =IFERROR(VLOOKUP($A62,Filtro!$A$5:$AW$2963,38,FALSE),0) -> 10 | AO62: =IFERROR(VLOOKUP($A62,Filtro!$A$5:$AW$2963,39,FALSE),0) -> 3 | AP62: =IFERROR(VLOOKUP($A62,Filtro!$A$5:$AW$2963,40,FALSE),0) -> 0 | AQ62: =IFERROR(VLOOKUP($A62,Filtro!$A$5:$AW$2963,41,FALSE),0) -> 0 | CV62: 0 | CW62: 0
A63: 01200031 | B63: Niños/as con necesidades especiales | C63: Médico/a | D63: =IFERROR(VLOOKUP($A63,Filtro!$A$5:$AW$2963,2,FALSE),0) -> 353 | E63: =IFERROR(VLOOKUP($A63,Filtro!$A$5:$AW$2963,3,FALSE),0) -> 187 | F63: =IFERROR(VLOOKUP($A63,Filtro!$A$5:$AW$2963,4,FALSE),0) -> 166 | G63: =IFERROR(VLOOKUP($A63,Filtro!$A$5:$AW$2963,5,FALSE),0) -> 80 | H63: =IFERROR(VLOOKUP($A63,Filtro!$A$5:$AW$2963,6,FALSE),0) -> 80 | I63: =IFERROR(VLOOKUP($A63,Filtro!$A$5:$AW$2963,7,FALSE),0) -> 98 | J63: =IFERROR(VLOOKUP($A63,Filtro!$A$5:$AW$2963,8,FALSE),0) -> 80 | K63: =IFERROR(VLOOKUP($A63,Filtro!$A$5:$AW$2963,9,FALSE),0) -> 5 | L63: =IFERROR(VLOOKUP($A63,Filtro!$A$5:$AW$2963,10,FALSE),0) -> 4 | M63: =IFERROR(VLOOKUP($A63,Filtro!$A$5:$AW$2963,11,FALSE),0) -> 4 | N63: =IFERROR(VLOOKUP($A63,Filtro!$A$5:$AW$2963,12,FALSE),0) -> 2 | O63: =IFERROR(VLOOKUP($A63,Filtro!$A$5:$AW$2963,13,FALSE),0) -> 0 | P63: =IFERROR(VLOOKUP($A63,Filtro!$A$5:$AW$2963,14,FALSE),0) -> 0 | Q63: =IFERROR(VLOOKUP($A63,Filtro!$A$5:$AW$2963,15,FALSE),0) -> 0 | R63: =IFERROR(VLOOKUP($A63,Filtro!$A$5:$AW$2963,16,FALSE),0) -> 0 | S63: =IFERROR(VLOOKUP($A63,Filtro!$A$5:$AW$2963,17,FALSE),0) -> 0 | T63: =IFERROR(VLOOKUP($A63,Filtro!$A$5:$AW$2963,18,FALSE),0) -> 0 | U63: =IFERROR(VLOOKUP($A63,Filtro!$A$5:$AW$2963,19,FALSE),0) -> 0 | V63: =IFERROR(VLOOKUP($A63,Filtro!$A$5:$AW$2963,20,FALSE),0) -> 0 | W63: =IFERROR(VLOOKUP($A63,Filtro!$A$5:$AW$2963,21,FALSE),0) -> 0 | X63: =IFERROR(VLOOKUP($A63,Filtro!$A$5:$AW$2963,22,FALSE),0) -> 0 | Y63: =IFERROR(VLOOKUP($A63,Filtro!$A$5:$AW$2963,23,FALSE),0) -> 0 | Z63: =IFERROR(VLOOKUP($A63,Filtro!$A$5:$AW$2963,24,FALSE),0) -> 0 | AA63: =IFERROR(VLOOKUP($A63,Filtro!$A$5:$AW$2963,25,FALSE),0) -> 0 | AB63: =IFERROR(VLOOKUP($A63,Filtro!$A$5:$AW$2963,26,FALSE),0) -> 0 | AC63: =IFERROR(VLOOKUP($A63,Filtro!$A$5:$AW$2963,27,FALSE),0) -> 0 | AD63: =IFERROR(VLOOKUP($A63,Filtro!$A$5:$AW$2963,28,FALSE),0) -> 0 | AE63: =IFERROR(VLOOKUP($A63,Filtro!$A$5:$AW$2963,29,FALSE),0) -> 0 | AF63: =IFERROR(VLOOKUP($A63,Filtro!$A$5:$AW$2963,30,FALSE),0) -> 0 | AG63: =IFERROR(VLOOKUP($A63,Filtro!$A$5:$AW$2963,31,FALSE),0) -> 0 | AH63: =IFERROR(VLOOKUP($A63,Filtro!$A$5:$AW$2963,32,FALSE),0) -> 0 | AI63: =IFERROR(VLOOKUP($A63,Filtro!$A$5:$AW$2963,33,FALSE),0) -> 0 | AJ63: =IFERROR(VLOOKUP($A63,Filtro!$A$5:$AW$2963,34,FALSE),0) -> 0 | AK63: =IFERROR(VLOOKUP($A63,Filtro!$A$5:$AW$2963,35,FALSE),0) -> 0 | AL63: =IFERROR(VLOOKUP($A63,Filtro!$A$5:$AW$2963,36,FALSE),0) -> 0 | AM63: =IFERROR(VLOOKUP($A63,Filtro!$A$5:$AW$2963,37,FALSE),0) -> 0 | AN63: =IFERROR(VLOOKUP($A63,Filtro!$A$5:$AW$2963,38,FALSE),0) -> 0 | AO63: =IFERROR(VLOOKUP($A63,Filtro!$A$5:$AW$2963,39,FALSE),0) -> 15 | AP63: =IFERROR(VLOOKUP($A63,Filtro!$A$5:$AW$2963,40,FALSE),0) -> 18 | AQ63: =IFERROR(VLOOKUP($A63,Filtro!$A$5:$AW$2963,41,FALSE),0) -> 0 | CV63: 0 | CW63: 0
A64: 01200032 | C64: Enfermera/o | D64: =IFERROR(VLOOKUP($A64,Filtro!$A$5:$AW$2963,2,FALSE),0) -> 2000 | E64: =IFERROR(VLOOKUP($A64,Filtro!$A$5:$AW$2963,3,FALSE),0) -> 1197 | F64: =IFERROR(VLOOKUP($A64,Filtro!$A$5:$AW$2963,4,FALSE),0) -> 803 | G64: =IFERROR(VLOOKUP($A64,Filtro!$A$5:$AW$2963,5,FALSE),0) -> 668 | H64: =IFERROR(VLOOKUP($A64,Filtro!$A$5:$AW$2963,6,FALSE),0) -> 510 | I64: =IFERROR(VLOOKUP($A64,Filtro!$A$5:$AW$2963,7,FALSE),0) -> 438 | J64: =IFERROR(VLOOKUP($A64,Filtro!$A$5:$AW$2963,8,FALSE),0) -> 237 | K64: =IFERROR(VLOOKUP($A64,Filtro!$A$5:$AW$2963,9,FALSE),0) -> 62 | L64: =IFERROR(VLOOKUP($A64,Filtro!$A$5:$AW$2963,10,FALSE),0) -> 39 | M64: =IFERROR(VLOOKUP($A64,Filtro!$A$5:$AW$2963,11,FALSE),0) -> 29 | N64: =IFERROR(VLOOKUP($A64,Filtro!$A$5:$AW$2963,12,FALSE),0) -> 17 | O64: =IFERROR(VLOOKUP($A64,Filtro!$A$5:$AW$2963,13,FALSE),0) -> 0 | P64: =IFERROR(VLOOKUP($A64,Filtro!$A$5:$AW$2963,14,FALSE),0) -> 0 | Q64: =IFERROR(VLOOKUP($A64,Filtro!$A$5:$AW$2963,15,FALSE),0) -> 0 | R64: =IFERROR(VLOOKUP($A64,Filtro!$A$5:$AW$2963,16,FALSE),0) -> 0 | S64: =IFERROR(VLOOKUP($A64,Filtro!$A$5:$AW$2963,17,FALSE),0) -> 0 | T64: =IFERROR(VLOOKUP($A64,Filtro!$A$5:$AW$2963,18,FALSE),0) -> 0 | U64: =IFERROR(VLOOKUP($A64,Filtro!$A$5:$AW$2963,19,FALSE),0) -> 0 | V64: =IFERROR(VLOOKUP($A64,Filtro!$A$5:$AW$2963,20,FALSE),0) -> 0 | W64: =IFERROR(VLOOKUP($A64,Filtro!$A$5:$AW$2963,21,FALSE),0) -> 0 | X64: =IFERROR(VLOOKUP($A64,Filtro!$A$5:$AW$2963,22,FALSE),0) -> 0 | Y64: =IFERROR(VLOOKUP($A64,Filtro!$A$5:$AW$2963,23,FALSE),0) -> 0 | Z64: =IFERROR(VLOOKUP($A64,Filtro!$A$5:$AW$2963,24,FALSE),0) -> 0 | AA64: =IFERROR(VLOOKUP($A64,Filtro!$A$5:$AW$2963,25,FALSE),0) -> 0 | AB64: =IFERROR(VLOOKUP($A64,Filtro!$A$5:$AW$2963,26,FALSE),0) -> 0 | AC64: =IFERROR(VLOOKUP($A64,Filtro!$A$5:$AW$2963,27,FALSE),0) -> 0 | AD64: =IFERROR(VLOOKUP($A64,Filtro!$A$5:$AW$2963,28,FALSE),0) -> 0 | AE64: =IFERROR(VLOOKUP($A64,Filtro!$A$5:$AW$2963,29,FALSE),0) -> 0 | AF64: =IFERROR(VLOOKUP($A64,Filtro!$A$5:$AW$2963,30,FALSE),0) -> 0 | AG64: =IFERROR(VLOOKUP($A64,Filtro!$A$5:$AW$2963,31,FALSE),0) -> 0 | AH64: =IFERROR(VLOOKUP($A64,Filtro!$A$5:$AW$2963,32,FALSE),0) -> 0 | AI64: =IFERROR(VLOOKUP($A64,Filtro!$A$5:$AW$2963,33,FALSE),0) -> 0 | AJ64: =IFERROR(VLOOKUP($A64,Filtro!$A$5:$AW$2963,34,FALSE),0) -> 0 | AK64: =IFERROR(VLOOKUP($A64,Filtro!$A$5:$AW$2963,35,FALSE),0) -> 0 | AL64: =IFERROR(VLOOKUP($A64,Filtro!$A$5:$AW$2963,36,FALSE),0) -> 0 | AM64: =IFERROR(VLOOKUP($A64,Filtro!$A$5:$AW$2963,37,FALSE),0) -> 0 | AN64: =IFERROR(VLOOKUP($A64,Filtro!$A$5:$AW$2963,38,FALSE),0) -> 0 | AO64: =IFERROR(VLOOKUP($A64,Filtro!$A$5:$AW$2963,39,FALSE),0) -> 27 | AP64: =IFERROR(VLOOKUP($A64,Filtro!$A$5:$AW$2963,40,FALSE),0) -> 16 | AQ64: =IFERROR(VLOOKUP($A64,Filtro!$A$5:$AW$2963,41,FALSE),0) -> 0 | CV64: 0 | CW64: 0
A65: 01200033 | C65: Matrona/ón | D65: =IFERROR(VLOOKUP($A65,Filtro!$A$5:$AW$2963,2,FALSE),0) -> 119 | E65: =IFERROR(VLOOKUP($A65,Filtro!$A$5:$AW$2963,3,FALSE),0) -> 70 | F65: =IFERROR(VLOOKUP($A65,Filtro!$A$5:$AW$2963,4,FALSE),0) -> 49 | G65: =IFERROR(VLOOKUP($A65,Filtro!$A$5:$AW$2963,5,FALSE),0) -> 8 | H65: =IFERROR(VLOOKUP($A65,Filtro!$A$5:$AW$2963,6,FALSE),0) -> 8 | I65: =IFERROR(VLOOKUP($A65,Filtro!$A$5:$AW$2963,7,FALSE),0) -> 1 | J65: =IFERROR(VLOOKUP($A65,Filtro!$A$5:$AW$2963,8,FALSE),0) -> 2 | K65: =IFERROR(VLOOKUP($A65,Filtro!$A$5:$AW$2963,9,FALSE),0) -> 17 | L65: =IFERROR(VLOOKUP($A65,Filtro!$A$5:$AW$2963,10,FALSE),0) -> 13 | M65: =IFERROR(VLOOKUP($A65,Filtro!$A$5:$AW$2963,11,FALSE),0) -> 44 | N65: =IFERROR(VLOOKUP($A65,Filtro!$A$5:$AW$2963,12,FALSE),0) -> 26 | O65: =IFERROR(VLOOKUP($A65,Filtro!$A$5:$AW$2963,13,FALSE),0) -> 0 | P65: =IFERROR(VLOOKUP($A65,Filtro!$A$5:$AW$2963,14,FALSE),0) -> 0 | Q65: =IFERROR(VLOOKUP($A65,Filtro!$A$5:$AW$2963,15,FALSE),0) -> 0 | R65: =IFERROR(VLOOKUP($A65,Filtro!$A$5:$AW$2963,16,FALSE),0) -> 0 | S65: =IFERROR(VLOOKUP($A65,Filtro!$A$5:$AW$2963,17,FALSE),0) -> 0 | T65: =IFERROR(VLOOKUP($A65,Filtro!$A$5:$AW$2963,18,FALSE),0) -> 0 | U65: =IFERROR(VLOOKUP($A65,Filtro!$A$5:$AW$2963,19,FALSE),0) -> 0 | V65: =IFERROR(VLOOKUP($A65,Filtro!$A$5:$AW$2963,20,FALSE),0) -> 0 | W65: =IFERROR(VLOOKUP($A65,Filtro!$A$5:$AW$2963,21,FALSE),0) -> 0 | X65: =IFERROR(VLOOKUP($A65,Filtro!$A$5:$AW$2963,22,FALSE),0) -> 0 | Y65: =IFERROR(VLOOKUP($A65,Filtro!$A$5:$AW$2963,23,FALSE),0) -> 0 | Z65: =IFERROR(VLOOKUP($A65,Filtro!$A$5:$AW$2963,24,FALSE),0) -> 0 | AA65: =IFERROR(VLOOKUP($A65,Filtro!$A$5:$AW$2963,25,FALSE),0) -> 0 | AB65: =IFERROR(VLOOKUP($A65,Filtro!$A$5:$AW$2963,26,FALSE),0) -> 0 | AC65: =IFERROR(VLOOKUP($A65,Filtro!$A$5:$AW$2963,27,FALSE),0) -> 0 | AD65: =IFERROR(VLOOKUP($A65,Filtro!$A$5:$AW$2963,28,FALSE),0) -> 0 | AE65: =IFERROR(VLOOKUP($A65,Filtro!$A$5:$AW$2963,29,FALSE),0) -> 0 | AF65: =IFERROR(VLOOKUP($A65,Filtro!$A$5:$AW$2963,30,FALSE),0) -> 0 | AG65: =IFERROR(VLOOKUP($A65,Filtro!$A$5:$AW$2963,31,FALSE),0) -> 0 | AH65: =IFERROR(VLOOKUP($A65,Filtro!$A$5:$AW$2963,32,FALSE),0) -> 0 | AI65: =IFERROR(VLOOKUP($A65,Filtro!$A$5:$AW$2963,33,FALSE),0) -> 0 | AJ65: =IFERROR(VLOOKUP($A65,Filtro!$A$5:$AW$2963,34,FALSE),0) -> 0 | AK65: =IFERROR(VLOOKUP($A65,Filtro!$A$5:$AW$2963,35,FALSE),0) -> 0 | AL65: =IFERROR(VLOOKUP($A65,Filtro!$A$5:$AW$2963,36,FALSE),0) -> 0 | AM65: =IFERROR(VLOOKUP($A65,Filtro!$A$5:$AW$2963,37,FALSE),0) -> 0 | AN65: =IFERROR(VLOOKUP($A65,Filtro!$A$5:$AW$2963,38,FALSE),0) -> 0 | AO65: =IFERROR(VLOOKUP($A65,Filtro!$A$5:$AW$2963,39,FALSE),0) -> 6 | AP65: =IFERROR(VLOOKUP($A65,Filtro!$A$5:$AW$2963,40,FALSE),0) -> 6 | AQ65: =IFERROR(VLOOKUP($A65,Filtro!$A$5:$AW$2963,41,FALSE),0) -> 0 | CV65: 0 | CW65: 0
A66: 01200034 | C66: Nutricionista | D66: =IFERROR(VLOOKUP($A66,Filtro!$A$5:$AW$2963,2,FALSE),0) -> 834 | E66: =IFERROR(VLOOKUP($A66,Filtro!$A$5:$AW$2963,3,FALSE),0) -> 525 | F66: =IFERROR(VLOOKUP($A66,Filtro!$A$5:$AW$2963,4,FALSE),0) -> 309 | G66: =IFERROR(VLOOKUP($A66,Filtro!$A$5:$AW$2963,5,FALSE),0) -> 265 | H66: =IFERROR(VLOOKUP($A66,Filtro!$A$5:$AW$2963,6,FALSE),0) -> 209 | I66: =IFERROR(VLOOKUP($A66,Filtro!$A$5:$AW$2963,7,FALSE),0) -> 200 | J66: =IFERROR(VLOOKUP($A66,Filtro!$A$5:$AW$2963,8,FALSE),0) -> 74 | K66: =IFERROR(VLOOKUP($A66,Filtro!$A$5:$AW$2963,9,FALSE),0) -> 49 | L66: =IFERROR(VLOOKUP($A66,Filtro!$A$5:$AW$2963,10,FALSE),0) -> 17 | M66: =IFERROR(VLOOKUP($A66,Filtro!$A$5:$AW$2963,11,FALSE),0) -> 11 | N66: =IFERROR(VLOOKUP($A66,Filtro!$A$5:$AW$2963,12,FALSE),0) -> 9 | O66: =IFERROR(VLOOKUP($A66,Filtro!$A$5:$AW$2963,13,FALSE),0) -> 0 | P66: =IFERROR(VLOOKUP($A66,Filtro!$A$5:$AW$2963,14,FALSE),0) -> 0 | Q66: =IFERROR(VLOOKUP($A66,Filtro!$A$5:$AW$2963,15,FALSE),0) -> 0 | R66: =IFERROR(VLOOKUP($A66,Filtro!$A$5:$AW$2963,16,FALSE),0) -> 0 | S66: =IFERROR(VLOOKUP($A66,Filtro!$A$5:$AW$2963,17,FALSE),0) -> 0 | T66: =IFERROR(VLOOKUP($A66,Filtro!$A$5:$AW$2963,18,FALSE),0) -> 0 | U66: =IFERROR(VLOOKUP($A66,Filtro!$A$5:$AW$2963,19,FALSE),0) -> 0 | V66: =IFERROR(VLOOKUP($A66,Filtro!$A$5:$AW$2963,20,FALSE),0) -> 0 | W66: =IFERROR(VLOOKUP($A66,Filtro!$A$5:$AW$2963,21,FALSE),0) -> 0 | X66: =IFERROR(VLOOKUP($A66,Filtro!$A$5:$AW$2963,22,FALSE),0) -> 0 | Y66: =IFERROR(VLOOKUP($A66,Filtro!$A$5:$AW$2963,23,FALSE),0) -> 0 | Z66: =IFERROR(VLOOKUP($A66,Filtro!$A$5:$AW$2963,24,FALSE),0) -> 0 | AA66: =IFERROR(VLOOKUP($A66,Filtro!$A$5:$AW$2963,25,FALSE),0) -> 0 | AB66: =IFERROR(VLOOKUP($A66,Filtro!$A$5:$AW$2963,26,FALSE),0) -> 0 | AC66: =IFERROR(VLOOKUP($A66,Filtro!$A$5:$AW$2963,27,FALSE),0) -> 0 | AD66: =IFERROR(VLOOKUP($A66,Filtro!$A$5:$AW$2963,28,FALSE),0) -> 0 | AE66: =IFERROR(VLOOKUP($A66,Filtro!$A$5:$AW$2963,29,FALSE),0) -> 0 | AF66: =IFERROR(VLOOKUP($A66,Filtro!$A$5:$AW$2963,30,FALSE),0) -> 0 | AG66: =IFERROR(VLOOKUP($A66,Filtro!$A$5:$AW$2963,31,FALSE),0) -> 0 | AH66: =IFERROR(VLOOKUP($A66,Filtro!$A$5:$AW$2963,32,FALSE),0) -> 0 | AI66: =IFERROR(VLOOKUP($A66,Filtro!$A$5:$AW$2963,33,FALSE),0) -> 0 | AJ66: =IFERROR(VLOOKUP($A66,Filtro!$A$5:$AW$2963,34,FALSE),0) -> 0 | AK66: =IFERROR(VLOOKUP($A66,Filtro!$A$5:$AW$2963,35,FALSE),0) -> 0 | AL66: =IFERROR(VLOOKUP($A66,Filtro!$A$5:$AW$2963,36,FALSE),0) -> 0 | AM66: =IFERROR(VLOOKUP($A66,Filtro!$A$5:$AW$2963,37,FALSE),0) -> 0 | AN66: =IFERROR(VLOOKUP($A66,Filtro!$A$5:$AW$2963,38,FALSE),0) -> 0 | AO66: =IFERROR(VLOOKUP($A66,Filtro!$A$5:$AW$2963,39,FALSE),0) -> 6 | AP66: =IFERROR(VLOOKUP($A66,Filtro!$A$5:$AW$2963,40,FALSE),0) -> 3 | AQ66: =IFERROR(VLOOKUP($A66,Filtro!$A$5:$AW$2963,41,FALSE),0) -> 0 | CV66: 0 | CW66: 0
B67: SECCIÓN D: CONTROL DE SALUD INTEGRAL DE ADOLESCENTES (incluidos en sección B)
B68: LUGAR DEL CONTROL, SEGÚN EDAD | D68: 10 - 14 años | G68: 15 - 19 años | J68: Pueblos Originarios | K68: Migrantes | L68: Niños, Niñas, Adolescentes y Jóvenes SENAME | M68: Niños, Niñas, Adolescentes y Jóvenes Mejor Niñez
D69: Ambos Sexos | E69: Hombres | F69: Mujeres | G69: Ambos Sexos | H69: Hombres | I69: Mujeres
A70: 01030500 | B70: En Espacio Amigable | D70: =IFERROR(VLOOKUP($A70,Filtro!$A$5:$AW$2963,2,FALSE),0) -> 2016 | E70: =IFERROR(VLOOKUP($A70,Filtro!$A$5:$AW$2963,3,FALSE),0) -> 853 | F70: =IFERROR(VLOOKUP($A70,Filtro!$A$5:$AW$2963,4,FALSE),0) -> 1163 | G70: =IFERROR(VLOOKUP($A70,Filtro!$A$5:$AW$2963,5,FALSE),0) -> 1711 | H70: =IFERROR(VLOOKUP($A70,Filtro!$A$5:$AW$2963,6,FALSE),0) -> 694 | I70: =IFERROR(VLOOKUP($A70,Filtro!$A$5:$AW$2963,7,FALSE),0) -> 1017 | J70: =IFERROR(VLOOKUP($A70,Filtro!$A$5:$AW$2963,8,FALSE),0) -> 254 | K70: =IFERROR(VLOOKUP($A70,Filtro!$A$5:$AW$2963,9,FALSE),0) -> 232 | L70: =IFERROR(VLOOKUP($A70,Filtro!$A$5:$AW$2963,10,FALSE),0) -> 22 | M70: =IFERROR(VLOOKUP($A70,Filtro!$A$5:$AW$2963,11,FALSE),0) -> 71 | N70: =$CB70&CC70&CD70&CE70 ->  | CB70: =IF(AND(($D70+G70)<>0,$J70=""),"* No olvide ingresar la variable "&$J$68&""&". Digite CERO si no tiene. ",IF(J70>($D70+$G70),"* La variable de Pueblos Originarios no debe ser mayor a la suma de los grupos etarios de Ambos Sexos. ","")) ->  | CC70: =IF(AND(($D70+G70)<>0,$K70=""),"* No olvide ingresar la variable "&$K$68&""&". Digite CERO si no tiene. ",IF(K70>($D70+$G70),"* La variable Migrantes no debe ser mayor a la suma de los grupos etarios de Ambos Sexos. ","")) ->  | CD70: =IF(AND(($D70+G70)<>0,$L70=""),"* No olvide ingresar la variable "&$L$68&""&". Digite CERO si no tiene. ",IF(L70>($D70+$G70),"* La variable "&$L$68&" no debe ser mayor a la suma de los grupos etarios de Ambos Sexos. ","")) ->  | CE70: =IF(AND(($D70+G70)<>0,$M70=""),"* No olvide ingresar la variable "&$M$68&""&". Digite CERO si no tiene. ",IF(M70>($D70+$G70),"* El Número de "&$M$68&" no debe ser mayor a la suma de los grupos etarios de Ambos Sexos. ","")) ->  | CV70: =IF(AND(($D70+G70)<>0,$J70=""),1,IF(J70>($D70+$G70),1,0)) -> 0 | CW70: =IF(AND(($D70+G70)<>0,$K70=""),1,IF(K70>($D70+$G70),1,0)) -> 0 | CX70: =IF(AND(($D70+G70)<>0,$L70=""),1,IF(L70>($D70+$G70),1,0)) -> 0 | CY70: =IF(AND(($D70+G70)<>0,$M70=""),1,IF(M70>($D70+$G70),1,0)) -> 0
A71: 01030600 | B71: En otros espacios del Establecimiento de Salud | D71: =IFERROR(VLOOKUP($A71,Filtro!$A$5:$AW$2963,2,FALSE),0) -> 4880 | E71: =IFERROR(VLOOKUP($A71,Filtro!$A$5:$AW$2963,3,FALSE),0) -> 2186 | F71: =IFERROR(VLOOKUP($A71,Filtro!$A$5:$AW$2963,4,FALSE),0) -> 2693 | G71: =IFERROR(VLOOKUP($A71,Filtro!$A$5:$AW$2963,5,FALSE),0) -> 2430 | H71: =IFERROR(VLOOKUP($A71,Filtro!$A$5:$AW$2963,6,FALSE),0) -> 906 | I71: =IFERROR(VLOOKUP($A71,Filtro!$A$5:$AW$2963,7,FALSE),0) -> 1524 | J71: =IFERROR(VLOOKUP($A71,Filtro!$A$5:$AW$2963,8,FALSE),0) -> 673 | K71: =IFERROR(VLOOKUP($A71,Filtro!$A$5:$AW$2963,9,FALSE),0) -> 378 | L71: =IFERROR(VLOOKUP($A71,Filtro!$A$5:$AW$2963,10,FALSE),0) -> 96 | M71: =IFERROR(VLOOKUP($A71,Filtro!$A$5:$AW$2963,11,FALSE),0) -> 250 | N71: =$CB71&CC71&CD71&CE71 ->  | CB71: =IF(AND(($D71+G71)<>0,$J71=""),"* No olvide ingresar la variable "&$J$68&""&". Digite CERO si no tiene. ",IF(J71>($D71+$G71),"* La variable de Pueblos Originarios no debe ser mayor a la suma de los grupos etarios de Ambos Sexos. ","")) ->  | CC71: =IF(AND(($D71+G71)<>0,$K71=""),"* No olvide ingresar la variable "&$K$68&""&". Digite CERO si no tiene. ",IF(K71>($D71+$G71),"* La variable Migrantes no debe ser mayor a la suma de los grupos etarios de Ambos Sexos. ","")) ->  | CD71: =IF(AND(($D71+G71)<>0,$L71=""),"* No olvide ingresar la variable "&$L$68&""&". Digite CERO si no tiene. ",IF(L71>($D71+$G71),"* La variable "&$L$68&" no debe ser mayor a la suma de los grupos etarios de Ambos Sexos. ","")) ->  | CE71: =IF(AND(($D71+G71)<>0,$M71=""),"* No olvide ingresar la variable "&$M$68&""&". Digite CERO si no tiene. ",IF(M71>($D71+$G71),"* El Número de "&$M$68&" no debe ser mayor a la suma de los grupos etarios de Ambos Sexos. ","")) ->  | CV71: =IF(AND(($D71+G71)<>0,$J71=""),1,IF(J71>($D71+$G71),1,0)) -> 0 | CW71: =IF(AND(($D71+G71)<>0,$K71=""),1,IF(K71>($D71+$G71),1,0)) -> 0 | CX71: =IF(AND(($D71+G71)<>0,$L71=""),1,IF(L71>($D71+$G71),1,0)) -> 0 | CY71: =IF(AND(($D71+G71)<>0,$M71=""),1,IF(M71>($D71+$G71),1,0)) -> 0
A72: 01030700 | B72: En Establecimientos Educacionales | D72: =IFERROR(VLOOKUP($A72,Filtro!$A$5:$AW$2963,2,FALSE),0) -> 4706 | E72: =IFERROR(VLOOKUP($A72,Filtro!$A$5:$AW$2963,3,FALSE),0) -> 2178 | F72: =IFERROR(VLOOKUP($A72,Filtro!$A$5:$AW$2963,4,FALSE),0) -> 2528 | G72: =IFERROR(VLOOKUP($A72,Filtro!$A$5:$AW$2963,5,FALSE),0) -> 2488 | H72: =IFERROR(VLOOKUP($A72,Filtro!$A$5:$AW$2963,6,FALSE),0) -> 1241 | I72: =IFERROR(VLOOKUP($A72,Filtro!$A$5:$AW$2963,7,FALSE),0) -> 1247 | J72: =IFERROR(VLOOKUP($A72,Filtro!$A$5:$AW$2963,8,FALSE),0) -> 319 | K72: =IFERROR(VLOOKUP($A72,Filtro!$A$5:$AW$2963,9,FALSE),0) -> 384 | L72: =IFERROR(VLOOKUP($A72,Filtro!$A$5:$AW$2963,10,FALSE),0) -> 16 | M72: =IFERROR(VLOOKUP($A72,Filtro!$A$5:$AW$2963,11,FALSE),0) -> 34 | N72: =$CB72&CC72&CD72&CE72 ->  | CB72: =IF(AND(($D72+G72)<>0,$J72=""),"* No olvide ingresar la variable "&$J$68&""&". Digite CERO si no tiene. ",IF(J72>($D72+$G72),"* La variable de Pueblos Originarios no debe ser mayor a la suma de los grupos etarios de Ambos Sexos. ","")) ->  | CC72: =IF(AND(($D72+G72)<>0,$K72=""),"* No olvide ingresar la variable "&$K$68&""&". Digite CERO si no tiene. ",IF(K72>($D72+$G72),"* La variable Migrantes no debe ser mayor a la suma de los grupos etarios de Ambos Sexos. ","")) ->  | CD72: =IF(AND(($D72+G72)<>0,$L72=""),"* No olvide ingresar la variable "&$L$68&""&". Digite CERO si no tiene. ",IF(L72>($D72+$G72),"* La variable "&$L$68&" no debe ser mayor a la suma de los grupos etarios de Ambos Sexos. ","")) ->  | CE72: =IF(AND(($D72+G72)<>0,$M72=""),"* No olvide ingresar la variable "&$M$68&""&". Digite CERO si no tiene. ",IF(M72>($D72+$G72),"* El Número de "&$M$68&" no debe ser mayor a la suma de los grupos etarios de Ambos Sexos. ","")) ->  | CV72: =IF(AND(($D72+G72)<>0,$J72=""),1,IF(J72>($D72+$G72),1,0)) -> 0 | CW72: =IF(AND(($D72+G72)<>0,$K72=""),1,IF(K72>($D72+$G72),1,0)) -> 0 | CX72: =IF(AND(($D72+G72)<>0,$L72=""),1,IF(L72>($D72+$G72),1,0)) -> 0 | CY72: =IF(AND(($D72+G72)<>0,$M72=""),1,IF(M72>($D72+$G72),1,0)) -> 0
A73: 01030800 | B73: En otros lugares fuera del Establecimiento de Salud | D73: =IFERROR(VLOOKUP($A73,Filtro!$A$5:$AW$2963,2,FALSE),0) -> 61 | E73: =IFERROR(VLOOKUP($A73,Filtro!$A$5:$AW$2963,3,FALSE),0) -> 34 | F73: =IFERROR(VLOOKUP($A73,Filtro!$A$5:$AW$2963,4,FALSE),0) -> 27 | G73: =IFERROR(VLOOKUP($A73,Filtro!$A$5:$AW$2963,5,FALSE),0) -> 34 | H73: =IFERROR(VLOOKUP($A73,Filtro!$A$5:$AW$2963,6,FALSE),0) -> 20 | I73: =IFERROR(VLOOKUP($A73,Filtro!$A$5:$AW$2963,7,FALSE),0) -> 14 | J73: =IFERROR(VLOOKUP($A73,Filtro!$A$5:$AW$2963,8,FALSE),0) -> 7 | K73: =IFERROR(VLOOKUP($A73,Filtro!$A$5:$AW$2963,9,FALSE),0) -> 6 | L73: =IFERROR(VLOOKUP($A73,Filtro!$A$5:$AW$2963,10,FALSE),0) -> 9 | M73: =IFERROR(VLOOKUP($A73,Filtro!$A$5:$AW$2963,11,FALSE),0) -> 13 | N73: =$CB73&CC73&CD73&CE73 ->  | CB73: =IF(AND(($D73+G73)<>0,$J73=""),"* No olvide ingresar la variable "&$J$68&""&". Digite CERO si no tiene. ",IF(J73>($D73+$G73),"* La variable de Pueblos Originarios no debe ser mayor a la suma de los grupos etarios de Ambos Sexos. ","")) ->  | CC73: =IF(AND(($D73+G73)<>0,$K73=""),"* No olvide ingresar la variable "&$K$68&""&". Digite CERO si no tiene. ",IF(K73>($D73+$G73),"* La variable Migrantes no debe ser mayor a la suma de los grupos etarios de Ambos Sexos. ","")) ->  | CD73: =IF(AND(($D73+G73)<>0,$L73=""),"* No olvide ingresar la variable "&$L$68&""&". Digite CERO si no tiene. ",IF(L73>($D73+$G73),"* La variable "&$L$68&" no debe ser mayor a la suma de los grupos etarios de Ambos Sexos. ","")) ->  | CE73: =IF(AND(($D73+G73)<>0,$M73=""),"* No olvide ingresar la variable "&$M$68&""&". Digite CERO si no tiene. ",IF(M73>($D73+$G73),"* El Número de "&$M$68&" no debe ser mayor a la suma de los grupos etarios de Ambos Sexos. ","")) ->  | CV73: =IF(AND(($D73+G73)<>0,$J73=""),1,IF(J73>($D73+$G73),1,0)) -> 0 | CW73: =IF(AND(($D73+G73)<>0,$K73=""),1,IF(K73>($D73+$G73),1,0)) -> 0 | CX73: =IF(AND(($D73+G73)<>0,$L73=""),1,IF(L73>($D73+$G73),1,0)) -> 0 | CY73: =IF(AND(($D73+G73)<>0,$M73=""),1,IF(M73>($D73+$G73),1,0)) -> 0
B74: TOTAL | D74: =SUM(D70:D73) -> 11663 | E74: 5251 | F74: 6411 | G74: 6663 | H74: 2861 | I74: 3802 | J74: 1253 | K74: 1000 | L74: 143 | M74: 368
B75: SECCIÓN E: CONTROLES INDIVIDUALES DE SALUD EN ESTABLECIMIENTOS EDUCACIONALES
B76: CURSO | C76: TOTAL | D76: Sexo | F76: Gestión de casos | H76: Planificación Intervención educativa | K76: Pueblos Originarios | L76: Migrantes | M76: Niños, Niñas, Adolescentes y Jóvenes SENAME | N76: Niños, Niñas, Adolescentes y Jóvenes Mejor Niñez
D77: Hombres | E77: Mujeres | F77: Total casos gestionados | G77: Casos pesquisados con riesgo | H77: Diagnóstico participativo | I77: Número de problemáticas intervenidas | J77: Intervenciones educativas finalizadas
A78: 01031000 | B78: Kínder | C78: =IFERROR(VLOOKUP($A78,Filtro!$A$5:$AW$2963,2,FALSE),0) -> 1039 | D78: =IFERROR(VLOOKUP($A78,Filtro!$A$5:$AW$2963,3,FALSE),0) -> 493 | E78: =IFERROR(VLOOKUP($A78,Filtro!$A$5:$AW$2963,4,FALSE),0) -> 546 | F78: =IFERROR(VLOOKUP($A78,Filtro!$A$5:$AW$2963,5,FALSE),0) -> 444 | G78: =IFERROR(VLOOKUP($A78,Filtro!$A$5:$AW$2963,6,FALSE),0) -> 249 | H78: =IFERROR(VLOOKUP($A78,Filtro!$A$5:$AW$2963,7,FALSE),0) -> 0 | I78: =IFERROR(VLOOKUP($A78,Filtro!$A$5:$AW$2963,8,FALSE),0) -> 0 | J78: =IFERROR(VLOOKUP($A78,Filtro!$A$5:$AW$2963,9,FALSE),0) -> 0 | K78: =IFERROR(VLOOKUP($A78,Filtro!$A$5:$AW$2963,10,FALSE),0) -> 22 | L78: =IFERROR(VLOOKUP($A78,Filtro!$A$5:$AW$2963,11,FALSE),0) -> 67 | M78: =IFERROR(VLOOKUP($A78,Filtro!$A$5:$AW$2963,12,FALSE),0) -> 0 | N78: =IFERROR(VLOOKUP($A78,Filtro!$A$5:$AW$2963,13,FALSE),0) -> 0 | O78: =CB78&CC78&CD78&CE78 ->  | CB78: =IF(AND($C78<>0,K78=""),"* No olvide ingresar la variable "&K$76&""&". Digite CERO si no tiene. ",IF(K78>$C78,"* La variable Pueblos Originarios no debe ser mayor al Total. ","")) ->  | CC78: =IF(AND($C78<>0,L78=""),"* No olvide ingresar la variable "&L$76&""&". Digite CERO si no tiene. ",IF(L78>$C78,"* La variable Migrantes no debe ser mayor al Total. ","")) ->  | CD78: =IF(AND($C78<>0,M78=""),"* No olvide ingresar la variable "&M$76&""&". Digite CERO si no tiene. ",IF(M78>$C78,"* La variable Niños, Niñas, Adolescentes y Jóvenes SENAME no debe ser mayor al Total. ","")) ->  | CE78: =IF(AND($C78<>0,N78=""),"* No olvide ingresar la variable "&N$76&""&". Digite CERO si no tiene. ",IF(N78>$C78,"* La variable Niños, Niñas, Adolescentes y Jóvenes Mejor Niñez no debe ser mayor al Total. ","")) ->  | CV78: =IF(AND($C78<>0,K78=""),1,IF(K78>$C78,1,0)) -> 0 | CW78: 0 | CX78: 0 | CY78: 0
A79: 01031100 | B79: Primero básico | C79: =IFERROR(VLOOKUP($A79,Filtro!$A$5:$AW$2963,2,FALSE),0) -> 1430 | D79: =IFERROR(VLOOKUP($A79,Filtro!$A$5:$AW$2963,3,FALSE),0) -> 670 | E79: =IFERROR(VLOOKUP($A79,Filtro!$A$5:$AW$2963,4,FALSE),0) -> 760 | F79: =IFERROR(VLOOKUP($A79,Filtro!$A$5:$AW$2963,5,FALSE),0) -> 605 | G79: =IFERROR(VLOOKUP($A79,Filtro!$A$5:$AW$2963,6,FALSE),0) -> 362 | H79: =IFERROR(VLOOKUP($A79,Filtro!$A$5:$AW$2963,7,FALSE),0) -> 0 | I79: =IFERROR(VLOOKUP($A79,Filtro!$A$5:$AW$2963,8,FALSE),0) -> 0 | J79: =IFERROR(VLOOKUP($A79,Filtro!$A$5:$AW$2963,9,FALSE),0) -> 0 | K79: =IFERROR(VLOOKUP($A79,Filtro!$A$5:$AW$2963,10,FALSE),0) -> 36 | L79: =IFERROR(VLOOKUP($A79,Filtro!$A$5:$AW$2963,11,FALSE),0) -> 62 | M79: =IFERROR(VLOOKUP($A79,Filtro!$A$5:$AW$2963,12,FALSE),0) -> 0 | N79: =IFERROR(VLOOKUP($A79,Filtro!$A$5:$AW$2963,13,FALSE),0) -> 0 | O79: =CB79&CC79&CD79&CE79 ->  | CB79: =IF(AND($C79<>0,K79=""),"* No olvide ingresar la variable "&K$76&""&". Digite CERO si no tiene. ",IF(K79>$C79,"* La variable Pueblos Originarios no debe ser mayor al Total. ","")) ->  | CC79: =IF(AND($C79<>0,L79=""),"* No olvide ingresar la variable "&L$76&""&". Digite CERO si no tiene. ",IF(L79>$C79,"* La variable Migrantes no debe ser mayor al Total. ","")) ->  | CD79: =IF(AND($C79<>0,M79=""),"* No olvide ingresar la variable "&M$76&""&". Digite CERO si no tiene. ",IF(M79>$C79,"* La variable Niños, Niñas, Adolescentes y Jóvenes SENAME no debe ser mayor al Total. ","")) ->  | CE79: =IF(AND($C79<>0,N79=""),"* No olvide ingresar la variable "&N$76&""&". Digite CERO si no tiene. ",IF(N79>$C79,"* La variable Niños, Niñas, Adolescentes y Jóvenes Mejor Niñez no debe ser mayor al Total. ","")) ->  | CV79: 0 | CW79: 0 | CX79: 0 | CY79: 0
A80: 01031200 | B80: Segundo básico | C80: =IFERROR(VLOOKUP($A80,Filtro!$A$5:$AW$2963,2,FALSE),0) -> 1567 | D80: =IFERROR(VLOOKUP($A80,Filtro!$A$5:$AW$2963,3,FALSE),0) -> 741 | E80: =IFERROR(VLOOKUP($A80,Filtro!$A$5:$AW$2963,4,FALSE),0) -> 826 | F80: =IFERROR(VLOOKUP($A80,Filtro!$A$5:$AW$2963,5,FALSE),0) -> 694 | G80: =IFERROR(VLOOKUP($A80,Filtro!$A$5:$AW$2963,6,FALSE),0) -> 414 | H80: =IFERROR(VLOOKUP($A80,Filtro!$A$5:$AW$2963,7,FALSE),0) -> 0 | I80: =IFERROR(VLOOKUP($A80,Filtro!$A$5:$AW$2963,8,FALSE),0) -> 0 | J80: =IFERROR(VLOOKUP($A80,Filtro!$A$5:$AW$2963,9,FALSE),0) -> 0 | K80: =IFERROR(VLOOKUP($A80,Filtro!$A$5:$AW$2963,10,FALSE),0) -> 40 | L80: =IFERROR(VLOOKUP($A80,Filtro!$A$5:$AW$2963,11,FALSE),0) -> 123 | M80: =IFERROR(VLOOKUP($A80,Filtro!$A$5:$AW$2963,12,FALSE),0) -> 0 | N80: =IFERROR(VLOOKUP($A80,Filtro!$A$5:$AW$2963,13,FALSE),0) -> 0 | O80: =CB80&CC80&CD80&CE80 ->  | CB80: =IF(AND($C80<>0,K80=""),"* No olvide ingresar la variable "&K$76&""&". Digite CERO si no tiene. ",IF(K80>$C80,"* La variable Pueblos Originarios no debe ser mayor al Total. ","")) ->  | CC80: =IF(AND($C80<>0,L80=""),"* No olvide ingresar la variable "&L$76&""&". Digite CERO si no tiene. ",IF(L80>$C80,"* La variable Migrantes no debe ser mayor al Total. ","")) ->  | CD80: =IF(AND($C80<>0,M80=""),"* No olvide ingresar la variable "&M$76&""&". Digite CERO si no tiene. ",IF(M80>$C80,"* La variable Niños, Niñas, Adolescentes y Jóvenes SENAME no debe ser mayor al Total. ","")) ->  | CE80: =IF(AND($C80<>0,N80=""),"* No olvide ingresar la variable "&N$76&""&". Digite CERO si no tiene. ",IF(N80>$C80,"* La variable Niños, Niñas, Adolescentes y Jóvenes Mejor Niñez no debe ser mayor al Total. ","")) ->  | CV80: 0 | CW80: 0 | CX80: 0 | CY80: 0
A81: 01031300 | B81: Tercero básico | C81: =IFERROR(VLOOKUP($A81,Filtro!$A$5:$AW$2963,2,FALSE),0) -> 1763 | D81: =IFERROR(VLOOKUP($A81,Filtro!$A$5:$AW$2963,3,FALSE),0) -> 825 | E81: =IFERROR(VLOOKUP($A81,Filtro!$A$5:$AW$2963,4,FALSE),0) -> 938 | F81: =IFERROR(VLOOKUP($A81,Filtro!$A$5:$AW$2963,5,FALSE),0) -> 909 | G81: =IFERROR(VLOOKUP($A81,Filtro!$A$5:$AW$2963,6,FALSE),0) -> 507 | H81: =IFERROR(VLOOKUP($A81,Filtro!$A$5:$AW$2963,7,FALSE),0) -> 0 | I81: =IFERROR(VLOOKUP($A81,Filtro!$A$5:$AW$2963,8,FALSE),0) -> 0 | J81: =IFERROR(VLOOKUP($A81,Filtro!$A$5:$AW$2963,9,FALSE),0) -> 0 | K81: =IFERROR(VLOOKUP($A81,Filtro!$A$5:$AW$2963,10,FALSE),0) -> 34 | L81: =IFERROR(VLOOKUP($A81,Filtro!$A$5:$AW$2963,11,FALSE),0) -> 130 | M81: =IFERROR(VLOOKUP($A81,Filtro!$A$5:$AW$2963,12,FALSE),0) -> 0 | N81: =IFERROR(VLOOKUP($A81,Filtro!$A$5:$AW$2963,13,FALSE),0) -> 0 | O81: =CB81&CC81&CD81&CE81 ->  | CB81: =IF(AND($C81<>0,K81=""),"* No olvide ingresar la variable "&K$76&""&". Digite CERO si no tiene. ",IF(K81>$C81,"* La variable Pueblos Originarios no debe ser mayor al Total. ","")) ->  | CC81: =IF(AND($C81<>0,L81=""),"* No olvide ingresar la variable "&L$76&""&". Digite CERO si no tiene. ",IF(L81>$C81,"* La variable Migrantes no debe ser mayor al Total. ","")) ->  | CD81: =IF(AND($C81<>0,M81=""),"* No olvide ingresar la variable "&M$76&""&". Digite CERO si no tiene. ",IF(M81>$C81,"* La variable Niños, Niñas, Adolescentes y Jóvenes SENAME no debe ser mayor al Total. ","")) ->  | CE81: =IF(AND($C81<>0,N81=""),"* No olvide ingresar la variable "&N$76&""&". Digite CERO si no tiene. ",IF(N81>$C81,"* La variable Niños, Niñas, Adolescentes y Jóvenes Mejor Niñez no debe ser mayor al Total. ","")) ->  | CV81: 0 | CW81: 0 | CX81: 0 | CY81: 0
A82: 01031400 | B82: Cuarto básico | C82: =IFERROR(VLOOKUP($A82,Filtro!$A$5:$AW$2963,2,FALSE),0) -> 1602 | D82: =IFERROR(VLOOKUP($A82,Filtro!$A$5:$AW$2963,3,FALSE),0) -> 704 | E82: =IFERROR(VLOOKUP($A82,Filtro!$A$5:$AW$2963,4,FALSE),0) -> 898 | F82: =IFERROR(VLOOKUP($A82,Filtro!$A$5:$AW$2963,5,FALSE),0) -> 753 | G82: =IFERROR(VLOOKUP($A82,Filtro!$A$5:$AW$2963,6,FALSE),0) -> 482 | H82: =IFERROR(VLOOKUP($A82,Filtro!$A$5:$AW$2963,7,FALSE),0) -> 0 | I82: =IFERROR(VLOOKUP($A82,Filtro!$A$5:$AW$2963,8,FALSE),0) -> 0 | J82: =IFERROR(VLOOKUP($A82,Filtro!$A$5:$AW$2963,9,FALSE),0) -> 0 | K82: =IFERROR(VLOOKUP($A82,Filtro!$A$5:$AW$2963,10,FALSE),0) -> 29 | L82: =IFERROR(VLOOKUP($A82,Filtro!$A$5:$AW$2963,11,FALSE),0) -> 111 | M82: =IFERROR(VLOOKUP($A82,Filtro!$A$5:$AW$2963,12,FALSE),0) -> 0 | N82: =IFERROR(VLOOKUP($A82,Filtro!$A$5:$AW$2963,13,FALSE),0) -> 0 | O82: =CB82&CC82&CD82&CE82 ->  | CB82: =IF(AND($C82<>0,K82=""),"* No olvide ingresar la variable "&K$76&""&". Digite CERO si no tiene. ",IF(K82>$C82,"* La variable Pueblos Originarios no debe ser mayor al Total. ","")) ->  | CC82: =IF(AND($C82<>0,L82=""),"* No olvide ingresar la variable "&L$76&""&". Digite CERO si no tiene. ",IF(L82>$C82,"* La variable Migrantes no debe ser mayor al Total. ","")) ->  | CD82: =IF(AND($C82<>0,M82=""),"* No olvide ingresar la variable "&M$76&""&". Digite CERO si no tiene. ",IF(M82>$C82,"* La variable Niños, Niñas, Adolescentes y Jóvenes SENAME no debe ser mayor al Total. ","")) ->  | CE82: =IF(AND($C82<>0,N82=""),"* No olvide ingresar la variable "&N$76&""&". Digite CERO si no tiene. ",IF(N82>$C82,"* La variable Niños, Niñas, Adolescentes y Jóvenes Mejor Niñez no debe ser mayor al Total. ","")) ->  | CV82: 0 | CW82: 0 | CX82: 0 | CY82: 0
A83: 01502041 | B83: Total de Establecimientos Educacionales | C83: =IFERROR(VLOOKUP($A83,Filtro!$A$5:$AW$2963,2,FALSE),0) -> 457 | D83: =IFERROR(VLOOKUP($A83,Filtro!$A$5:$AW$2963,3,FALSE),0) -> 0 | E83: =IFERROR(VLOOKUP($A83,Filtro!$A$5:$AW$2963,4,FALSE),0) -> 0 | F83: =IFERROR(VLOOKUP($A83,Filtro!$A$5:$AW$2963,5,FALSE),0) -> 0 | G83: =IFERROR(VLOOKUP($A83,Filtro!$A$5:$AW$2963,6,FALSE),0) -> 0 | H83: =IFERROR(VLOOKUP($A83,Filtro!$A$5:$AW$2963,7,FALSE),0) -> 139 | I83: =IFERROR(VLOOKUP($A83,Filtro!$A$5:$AW$2963,8,FALSE),0) -> 17 | J83: =IFERROR(VLOOKUP($A83,Filtro!$A$5:$AW$2963,9,FALSE),0) -> 13 | K83: =IFERROR(VLOOKUP($A83,Filtro!$A$5:$AW$2963,10,FALSE),0) -> 0 | L83: =IFERROR(VLOOKUP($A83,Filtro!$A$5:$AW$2963,11,FALSE),0) -> 0 | M83: =IFERROR(VLOOKUP($A83,Filtro!$A$5:$AW$2963,12,FALSE),0) -> 0 | N83: =IFERROR(VLOOKUP($A83,Filtro!$A$5:$AW$2963,13,FALSE),0) -> 0
B84: SECCIÓN F: CONTROLES INTEGRALES DE PERSONAS CON CONDICIONES CRÓNICAS (incluidos en Secciones B y C)
B85: TIPO DE CONTROL | C85: TOTAL | F85: RANGO ETARIO Y SEXO | AH85: Migrantes | AI85: Pueblos Originarios
F86: 15 - 19 años | H86: 20 - 24 años | J86: 25 - 29 años | L86: 30 - 34 años | N86: 35 - 39 años | P86: 40 - 44 años | R86: 45 - 49 años | T86: 50 - 54 años | V86: 55 - 59 años | X86: 60 - 64 años | Z86: 65 - 69 años | AB86: 70 - 74 años | AD86: 75 - 79 años | AF86: 80 y más años
C87: Ambos Sexos | D87: Hombres | E87: Mujeres | F87: Hombres | G87: Mujeres | H87: Hombres | I87: Mujeres | J87: Hombres | K87: Mujeres | L87: Hombres | M87: Mujeres | N87: Hombres | O87: Mujeres | P87: Hombres | Q87: Mujeres | R87: Hombres | S87: Mujeres | T87: Hombres | U87: Mujeres | V87: Hombres | W87: Mujeres | X87: Hombres | Y87: Mujeres | Z87: Hombres | AA87: Mujeres | AB87: Hombres | AC87: Mujeres | AD87: Hombres | AE87: Mujeres | AF87: Hombres | AG87: Mujeres
A88: 01501010 | B88: Control integral con riesgo leve (G1) | C88: =IFERROR(VLOOKUP($A88,Filtro!$A$5:$AW$2963,2,FALSE),0) -> 260 | D88: =IFERROR(VLOOKUP($A88,Filtro!$A$5:$AW$2963,3,FALSE),0) -> 57 | E88: =IFERROR(VLOOKUP($A88,Filtro!$A$5:$AW$2963,4,FALSE),0) -> 203 | F88: =IFERROR(VLOOKUP($A88,Filtro!$A$5:$AW$2963,5,FALSE),0) -> 3 | G88: =IFERROR(VLOOKUP($A88,Filtro!$A$5:$AW$2963,6,FALSE),0) -> 9 | H88: =IFERROR(VLOOKUP($A88,Filtro!$A$5:$AW$2963,7,FALSE),0) -> 0 | I88: =IFERROR(VLOOKUP($A88,Filtro!$A$5:$AW$2963,8,FALSE),0) -> 6 | J88: =IFERROR(VLOOKUP($A88,Filtro!$A$5:$AW$2963,9,FALSE),0) -> 0 | K88: =IFERROR(VLOOKUP($A88,Filtro!$A$5:$AW$2963,10,FALSE),0) -> 8 | L88: =IFERROR(VLOOKUP($A88,Filtro!$A$5:$AW$2963,11,FALSE),0) -> 1 | M88: =IFERROR(VLOOKUP($A88,Filtro!$A$5:$AW$2963,12,FALSE),0) -> 6 | N88: =IFERROR(VLOOKUP($A88,Filtro!$A$5:$AW$2963,13,FALSE),0) -> 4 | O88: =IFERROR(VLOOKUP($A88,Filtro!$A$5:$AW$2963,14,FALSE),0) -> 7 | P88: =IFERROR(VLOOKUP($A88,Filtro!$A$5:$AW$2963,15,FALSE),0) -> 4 | Q88: =IFERROR(VLOOKUP($A88,Filtro!$A$5:$AW$2963,16,FALSE),0) -> 6 | R88: =IFERROR(VLOOKUP($A88,Filtro!$A$5:$AW$2963,17,FALSE),0) -> 1 | S88: =IFERROR(VLOOKUP($A88,Filtro!$A$5:$AW$2963,18,FALSE),0) -> 14 | T88: =IFERROR(VLOOKUP($A88,Filtro!$A$5:$AW$2963,19,FALSE),0) -> 4 | U88: =IFERROR(VLOOKUP($A88,Filtro!$A$5:$AW$2963,20,FALSE),0) -> 22 | V88: =IFERROR(VLOOKUP($A88,Filtro!$A$5:$AW$2963,21,FALSE),0) -> 7 | W88: =IFERROR(VLOOKUP($A88,Filtro!$A$5:$AW$2963,22,FALSE),0) -> 26 | X88: =IFERROR(VLOOKUP($A88,Filtro!$A$5:$AW$2963,23,FALSE),0) -> 6 | Y88: =IFERROR(VLOOKUP($A88,Filtro!$A$5:$AW$2963,24,FALSE),0) -> 33 | Z88: =IFERROR(VLOOKUP($A88,Filtro!$A$5:$AW$2963,25,FALSE),0) -> 2 | AA88: =IFERROR(VLOOKUP($A88,Filtro!$A$5:$AW$2963,26,FALSE),0) -> 22 | AB88: =IFERROR(VLOOKUP($A88,Filtro!$A$5:$AW$2963,27,FALSE),0) -> 12 | AC88: =IFERROR(VLOOKUP($A88,Filtro!$A$5:$AW$2963,28,FALSE),0) -> 18 | AD88: =IFERROR(VLOOKUP($A88,Filtro!$A$5:$AW$2963,29,FALSE),0) -> 7 | AE88: =IFERROR(VLOOKUP($A88,Filtro!$A$5:$AW$2963,30,FALSE),0) -> 12 | AF88: =IFERROR(VLOOKUP($A88,Filtro!$A$5:$AW$2963,31,FALSE),0) -> 6 | AG88: =IFERROR(VLOOKUP($A88,Filtro!$A$5:$AW$2963,32,FALSE),0) -> 14 | AH88: =IFERROR(VLOOKUP($A88,Filtro!$A$5:$AW$2963,33,FALSE),0) -> 2 | AI88: =IFERROR(VLOOKUP($A88,Filtro!$A$5:$AW$2963,34,FALSE),0) -> 6 | AJ88: =$CB88&CC88 ->  | CB88: =IF(AND($C88<>0,AH88=""),"* No olvide ingresar la variable "&AH$85&""&". Digite CERO si no tiene. ",IF(AH88>$C88,"* La variable Migrantes no debe ser mayor al Total Ambos Sexos. ","")) ->  | CC88: =IF(AND($C88<>0,AI88=""),"* No olvide ingresar la variable "&AI$85&""&". Digite CERO si no tiene. ",IF(AI88>$C88,"* La variable Pueblos Originarios no debe ser mayor al Total Ambos Sexos. ","")) ->  | CV88: =IF(AND($C88<>0,AH88=""),1,IF(AH88>$C88,1,0)) -> 0 | CW88: 0
A89: 01501020 | B89: Control integral con riesgo moderado (G2) | C89: =IFERROR(VLOOKUP($A89,Filtro!$A$5:$AW$2963,2,FALSE),0) -> 1518 | D89: =IFERROR(VLOOKUP($A89,Filtro!$A$5:$AW$2963,3,FALSE),0) -> 553 | E89: =IFERROR(VLOOKUP($A89,Filtro!$A$5:$AW$2963,4,FALSE),0) -> 965 | F89: =IFERROR(VLOOKUP($A89,Filtro!$A$5:$AW$2963,5,FALSE),0) -> 0 | G89: =IFERROR(VLOOKUP($A89,Filtro!$A$5:$AW$2963,6,FALSE),0) -> 2 | H89: =IFERROR(VLOOKUP($A89,Filtro!$A$5:$AW$2963,7,FALSE),0) -> 2 | I89: =IFERROR(VLOOKUP($A89,Filtro!$A$5:$AW$2963,8,FALSE),0) -> 10 | J89: =IFERROR(VLOOKUP($A89,Filtro!$A$5:$AW$2963,9,FALSE),0) -> 1 | K89: =IFERROR(VLOOKUP($A89,Filtro!$A$5:$AW$2963,10,FALSE),0) -> 4 | L89: =IFERROR(VLOOKUP($A89,Filtro!$A$5:$AW$2963,11,FALSE),0) -> 9 | M89: =IFERROR(VLOOKUP($A89,Filtro!$A$5:$AW$2963,12,FALSE),0) -> 15 | N89: =IFERROR(VLOOKUP($A89,Filtro!$A$5:$AW$2963,13,FALSE),0) -> 18 | O89: =IFERROR(VLOOKUP($A89,Filtro!$A$5:$AW$2963,14,FALSE),0) -> 13 | P89: =IFERROR(VLOOKUP($A89,Filtro!$A$5:$AW$2963,15,FALSE),0) -> 7 | Q89: =IFERROR(VLOOKUP($A89,Filtro!$A$5:$AW$2963,16,FALSE),0) -> 51 | R89: =IFERROR(VLOOKUP($A89,Filtro!$A$5:$AW$2963,17,FALSE),0) -> 27 | S89: =IFERROR(VLOOKUP($A89,Filtro!$A$5:$AW$2963,18,FALSE),0) -> 62 | T89: =IFERROR(VLOOKUP($A89,Filtro!$A$5:$AW$2963,19,FALSE),0) -> 43 | U89: =IFERROR(VLOOKUP($A89,Filtro!$A$5:$AW$2963,20,FALSE),0) -> 86 | V89: =IFERROR(VLOOKUP($A89,Filtro!$A$5:$AW$2963,21,FALSE),0) -> 65 | W89: =IFERROR(VLOOKUP($A89,Filtro!$A$5:$AW$2963,22,FALSE),0) -> 114 | X89: =IFERROR(VLOOKUP($A89,Filtro!$A$5:$AW$2963,23,FALSE),0) -> 73 | Y89: =IFERROR(VLOOKUP($A89,Filtro!$A$5:$AW$2963,24,FALSE),0) -> 160 | Z89: =IFERROR(VLOOKUP($A89,Filtro!$A$5:$AW$2963,25,FALSE),0) -> 95 | AA89: =IFERROR(VLOOKUP($A89,Filtro!$A$5:$AW$2963,26,FALSE),0) -> 133 | AB89: =IFERROR(VLOOKUP($A89,Filtro!$A$5:$AW$2963,27,FALSE),0) -> 100 | AC89: =IFERROR(VLOOKUP($A89,Filtro!$A$5:$AW$2963,28,FALSE),0) -> 129 | AD89: =IFERROR(VLOOKUP($A89,Filtro!$A$5:$AW$2963,29,FALSE),0) -> 64 | AE89: =IFERROR(VLOOKUP($A89,Filtro!$A$5:$AW$2963,30,FALSE),0) -> 101 | AF89: =IFERROR(VLOOKUP($A89,Filtro!$A$5:$AW$2963,31,FALSE),0) -> 49 | AG89: =IFERROR(VLOOKUP($A89,Filtro!$A$5:$AW$2963,32,FALSE),0) -> 85 | AH89: =IFERROR(VLOOKUP($A89,Filtro!$A$5:$AW$2963,33,FALSE),0) -> 4 | AI89: =IFERROR(VLOOKUP($A89,Filtro!$A$5:$AW$2963,34,FALSE),0) -> 19 | CV89: 0 | CW89: 0
A90: 01501030 | B90: Control integral con riesgo alto (G3) | C90: =IFERROR(VLOOKUP($A90,Filtro!$A$5:$AW$2963,2,FALSE),0) -> 12862 | D90: =IFERROR(VLOOKUP($A90,Filtro!$A$5:$AW$2963,3,FALSE),0) -> 4063 | E90: =IFERROR(VLOOKUP($A90,Filtro!$A$5:$AW$2963,4,FALSE),0) -> 8799 | F90: =IFERROR(VLOOKUP($A90,Filtro!$A$5:$AW$2963,5,FALSE),0) -> 2 | G90: =IFERROR(VLOOKUP($A90,Filtro!$A$5:$AW$2963,6,FALSE),0) -> 3 | H90: =IFERROR(VLOOKUP($A90,Filtro!$A$5:$AW$2963,7,FALSE),0) -> 8 | I90: =IFERROR(VLOOKUP($A90,Filtro!$A$5:$AW$2963,8,FALSE),0) -> 9 | J90: =IFERROR(VLOOKUP($A90,Filtro!$A$5:$AW$2963,9,FALSE),0) -> 10 | K90: =IFERROR(VLOOKUP($A90,Filtro!$A$5:$AW$2963,10,FALSE),0) -> 15 | L90: =IFERROR(VLOOKUP($A90,Filtro!$A$5:$AW$2963,11,FALSE),0) -> 10 | M90: =IFERROR(VLOOKUP($A90,Filtro!$A$5:$AW$2963,12,FALSE),0) -> 50 | N90: =IFERROR(VLOOKUP($A90,Filtro!$A$5:$AW$2963,13,FALSE),0) -> 25 | O90: =IFERROR(VLOOKUP($A90,Filtro!$A$5:$AW$2963,14,FALSE),0) -> 71 | P90: =IFERROR(VLOOKUP($A90,Filtro!$A$5:$AW$2963,15,FALSE),0) -> 50 | Q90: =IFERROR(VLOOKUP($A90,Filtro!$A$5:$AW$2963,16,FALSE),0) -> 130 | R90: =IFERROR(VLOOKUP($A90,Filtro!$A$5:$AW$2963,17,FALSE),0) -> 94 | S90: =IFERROR(VLOOKUP($A90,Filtro!$A$5:$AW$2963,18,FALSE),0) -> 319 | T90: =IFERROR(VLOOKUP($A90,Filtro!$A$5:$AW$2963,19,FALSE),0) -> 184 | U90: =IFERROR(VLOOKUP($A90,Filtro!$A$5:$AW$2963,20,FALSE),0) -> 615 | V90: =IFERROR(VLOOKUP($A90,Filtro!$A$5:$AW$2963,21,FALSE),0) -> 304 | W90: =IFERROR(VLOOKUP($A90,Filtro!$A$5:$AW$2963,22,FALSE),0) -> 832 | X90: =IFERROR(VLOOKUP($A90,Filtro!$A$5:$AW$2963,23,FALSE),0) -> 475 | Y90: =IFERROR(VLOOKUP($A90,Filtro!$A$5:$AW$2963,24,FALSE),0) -> 1150 | Z90: =IFERROR(VLOOKUP($A90,Filtro!$A$5:$AW$2963,25,FALSE),0) -> 857 | AA90: =IFERROR(VLOOKUP($A90,Filtro!$A$5:$AW$2963,26,FALSE),0) -> 1752 | AB90: =IFERROR(VLOOKUP($A90,Filtro!$A$5:$AW$2963,27,FALSE),0) -> 752 | AC90: =IFERROR(VLOOKUP($A90,Filtro!$A$5:$AW$2963,28,FALSE),0) -> 1444 | AD90: =IFERROR(VLOOKUP($A90,Filtro!$A$5:$AW$2963,29,FALSE),0) -> 609 | AE90: =IFERROR(VLOOKUP($A90,Filtro!$A$5:$AW$2963,30,FALSE),0) -> 1089 | AF90: =IFERROR(VLOOKUP($A90,Filtro!$A$5:$AW$2963,31,FALSE),0) -> 683 | AG90: =IFERROR(VLOOKUP($A90,Filtro!$A$5:$AW$2963,32,FALSE),0) -> 1319 | AH90: =IFERROR(VLOOKUP($A90,Filtro!$A$5:$AW$2963,33,FALSE),0) -> 93 | AI90: =IFERROR(VLOOKUP($A90,Filtro!$A$5:$AW$2963,34,FALSE),0) -> 329 | CV90: 0 | CW90: 0
A91: 01502030 | B91: Seguimiento a distancia con riesgo leve (G1) | C91: =IFERROR(VLOOKUP($A91,Filtro!$A$5:$AW$2963,2,FALSE),0) -> 306 | D91: =IFERROR(VLOOKUP($A91,Filtro!$A$5:$AW$2963,3,FALSE),0) -> 84 | E91: =IFERROR(VLOOKUP($A91,Filtro!$A$5:$AW$2963,4,FALSE),0) -> 222 | F91: =IFERROR(VLOOKUP($A91,Filtro!$A$5:$AW$2963,5,FALSE),0) -> 4 | G91: =IFERROR(VLOOKUP($A91,Filtro!$A$5:$AW$2963,6,FALSE),0) -> 4 | H91: =IFERROR(VLOOKUP($A91,Filtro!$A$5:$AW$2963,7,FALSE),0) -> 5 | I91: =IFERROR(VLOOKUP($A91,Filtro!$A$5:$AW$2963,8,FALSE),0) -> 11 | J91: =IFERROR(VLOOKUP($A91,Filtro!$A$5:$AW$2963,9,FALSE),0) -> 3 | K91: =IFERROR(VLOOKUP($A91,Filtro!$A$5:$AW$2963,10,FALSE),0) -> 12 | L91: =IFERROR(VLOOKUP($A91,Filtro!$A$5:$AW$2963,11,FALSE),0) -> 6 | M91: =IFERROR(VLOOKUP($A91,Filtro!$A$5:$AW$2963,12,FALSE),0) -> 20 | N91: =IFERROR(VLOOKUP($A91,Filtro!$A$5:$AW$2963,13,FALSE),0) -> 1 | O91: =IFERROR(VLOOKUP($A91,Filtro!$A$5:$AW$2963,14,FALSE),0) -> 12 | P91: =IFERROR(VLOOKUP($A91,Filtro!$A$5:$AW$2963,15,FALSE),0) -> 5 | Q91: =IFERROR(VLOOKUP($A91,Filtro!$A$5:$AW$2963,16,FALSE),0) -> 16 | R91: =IFERROR(VLOOKUP($A91,Filtro!$A$5:$AW$2963,17,FALSE),0) -> 4 | S91: =IFERROR(VLOOKUP($A91,Filtro!$A$5:$AW$2963,18,FALSE),0) -> 19 | T91: =IFERROR(VLOOKUP($A91,Filtro!$A$5:$AW$2963,19,FALSE),0) -> 7 | U91: =IFERROR(VLOOKUP($A91,Filtro!$A$5:$AW$2963,20,FALSE),0) -> 28 | V91: =IFERROR(VLOOKUP($A91,Filtro!$A$5:$AW$2963,21,FALSE),0) -> 9 | W91: =IFERROR(VLOOKUP($A91,Filtro!$A$5:$AW$2963,22,FALSE),0) -> 22 | X91: =IFERROR(VLOOKUP($A91,Filtro!$A$5:$AW$2963,23,FALSE),0) -> 13 | Y91: =IFERROR(VLOOKUP($A91,Filtro!$A$5:$AW$2963,24,FALSE),0) -> 20 | Z91: =IFERROR(VLOOKUP($A91,Filtro!$A$5:$AW$2963,25,FALSE),0) -> 9 | AA91: =IFERROR(VLOOKUP($A91,Filtro!$A$5:$AW$2963,26,FALSE),0) -> 38 | AB91: =IFERROR(VLOOKUP($A91,Filtro!$A$5:$AW$2963,27,FALSE),0) -> 7 | AC91: =IFERROR(VLOOKUP($A91,Filtro!$A$5:$AW$2963,28,FALSE),0) -> 10 | AD91: =IFERROR(VLOOKUP($A91,Filtro!$A$5:$AW$2963,29,FALSE),0) -> 6 | AE91: =IFERROR(VLOOKUP($A91,Filtro!$A$5:$AW$2963,30,FALSE),0) -> 5 | AF91: =IFERROR(VLOOKUP($A91,Filtro!$A$5:$AW$2963,31,FALSE),0) -> 5 | AG91: =IFERROR(VLOOKUP($A91,Filtro!$A$5:$AW$2963,32,FALSE),0) -> 5 | AH91: =IFERROR(VLOOKUP($A91,Filtro!$A$5:$AW$2963,33,FALSE),0) -> 1 | AI91: =IFERROR(VLOOKUP($A91,Filtro!$A$5:$AW$2963,34,FALSE),0) -> 3 | CV91: 0 | CW91: 0
A92: 01502040 | B92: Seguimiento a distancia con riesgo moderado (G2) | C92: =IFERROR(VLOOKUP($A92,Filtro!$A$5:$AW$2963,2,FALSE),0) -> 1547 | D92: =IFERROR(VLOOKUP($A92,Filtro!$A$5:$AW$2963,3,FALSE),0) -> 575 | E92: =IFERROR(VLOOKUP($A92,Filtro!$A$5:$AW$2963,4,FALSE),0) -> 972 | F92: =IFERROR(VLOOKUP($A92,Filtro!$A$5:$AW$2963,5,FALSE),0) -> 0 | G92: =IFERROR(VLOOKUP($A92,Filtro!$A$5:$AW$2963,6,FALSE),0) -> 6 | H92: =IFERROR(VLOOKUP($A92,Filtro!$A$5:$AW$2963,7,FALSE),0) -> 7 | I92: =IFERROR(VLOOKUP($A92,Filtro!$A$5:$AW$2963,8,FALSE),0) -> 4 | J92: =IFERROR(VLOOKUP($A92,Filtro!$A$5:$AW$2963,9,FALSE),0) -> 5 | K92: =IFERROR(VLOOKUP($A92,Filtro!$A$5:$AW$2963,10,FALSE),0) -> 11 | L92: =IFERROR(VLOOKUP($A92,Filtro!$A$5:$AW$2963,11,FALSE),0) -> 17 | M92: =IFERROR(VLOOKUP($A92,Filtro!$A$5:$AW$2963,12,FALSE),0) -> 13 | N92: =IFERROR(VLOOKUP($A92,Filtro!$A$5:$AW$2963,13,FALSE),0) -> 15 | O92: =IFERROR(VLOOKUP($A92,Filtro!$A$5:$AW$2963,14,FALSE),0) -> 25 | P92: =IFERROR(VLOOKUP($A92,Filtro!$A$5:$AW$2963,15,FALSE),0) -> 16 | Q92: =IFERROR(VLOOKUP($A92,Filtro!$A$5:$AW$2963,16,FALSE),0) -> 55 | R92: =IFERROR(VLOOKUP($A92,Filtro!$A$5:$AW$2963,17,FALSE),0) -> 29 | S92: =IFERROR(VLOOKUP($A92,Filtro!$A$5:$AW$2963,18,FALSE),0) -> 62 | T92: =IFERROR(VLOOKUP($A92,Filtro!$A$5:$AW$2963,19,FALSE),0) -> 40 | U92: =IFERROR(VLOOKUP($A92,Filtro!$A$5:$AW$2963,20,FALSE),0) -> 107 | V92: =IFERROR(VLOOKUP($A92,Filtro!$A$5:$AW$2963,21,FALSE),0) -> 53 | W92: =IFERROR(VLOOKUP($A92,Filtro!$A$5:$AW$2963,22,FALSE),0) -> 120 | X92: =IFERROR(VLOOKUP($A92,Filtro!$A$5:$AW$2963,23,FALSE),0) -> 79 | Y92: =IFERROR(VLOOKUP($A92,Filtro!$A$5:$AW$2963,24,FALSE),0) -> 166 | Z92: =IFERROR(VLOOKUP($A92,Filtro!$A$5:$AW$2963,25,FALSE),0) -> 98 | AA92: =IFERROR(VLOOKUP($A92,Filtro!$A$5:$AW$2963,26,FALSE),0) -> 117 | AB92: =IFERROR(VLOOKUP($A92,Filtro!$A$5:$AW$2963,27,FALSE),0) -> 89 | AC92: =IFERROR(VLOOKUP($A92,Filtro!$A$5:$AW$2963,28,FALSE),0) -> 109 | AD92: =IFERROR(VLOOKUP($A92,Filtro!$A$5:$AW$2963,29,FALSE),0) -> 61 | AE92: =IFERROR(VLOOKUP($A92,Filtro!$A$5:$AW$2963,30,FALSE),0) -> 88 | AF92: =IFERROR(VLOOKUP($A92,Filtro!$A$5:$AW$2963,31,FALSE),0) -> 66 | AG92: =IFERROR(VLOOKUP($A92,Filtro!$A$5:$AW$2963,32,FALSE),0) -> 89 | AH92: =IFERROR(VLOOKUP($A92,Filtro!$A$5:$AW$2963,33,FALSE),0) -> 8 | AI92: =IFERROR(VLOOKUP($A92,Filtro!$A$5:$AW$2963,34,FALSE),0) -> 11 | CV92: 0 | CW92: 0
A93: 01501040 | B93: Seguimiento a distancia con riesgo alto (G3) | C93: =IFERROR(VLOOKUP($A93,Filtro!$A$5:$AW$2963,2,FALSE),0) -> 9356 | D93: =IFERROR(VLOOKUP($A93,Filtro!$A$5:$AW$2963,3,FALSE),0) -> 3121 | E93: =IFERROR(VLOOKUP($A93,Filtro!$A$5:$AW$2963,4,FALSE),0) -> 6235 | F93: =IFERROR(VLOOKUP($A93,Filtro!$A$5:$AW$2963,5,FALSE),0) -> 2 | G93: =IFERROR(VLOOKUP($A93,Filtro!$A$5:$AW$2963,6,FALSE),0) -> 2 | H93: =IFERROR(VLOOKUP($A93,Filtro!$A$5:$AW$2963,7,FALSE),0) -> 4 | I93: =IFERROR(VLOOKUP($A93,Filtro!$A$5:$AW$2963,8,FALSE),0) -> 10 | J93: =IFERROR(VLOOKUP($A93,Filtro!$A$5:$AW$2963,9,FALSE),0) -> 3 | K93: =IFERROR(VLOOKUP($A93,Filtro!$A$5:$AW$2963,10,FALSE),0) -> 9 | L93: =IFERROR(VLOOKUP($A93,Filtro!$A$5:$AW$2963,11,FALSE),0) -> 11 | M93: =IFERROR(VLOOKUP($A93,Filtro!$A$5:$AW$2963,12,FALSE),0) -> 23 | N93: =IFERROR(VLOOKUP($A93,Filtro!$A$5:$AW$2963,13,FALSE),0) -> 19 | O93: =IFERROR(VLOOKUP($A93,Filtro!$A$5:$AW$2963,14,FALSE),0) -> 60 | P93: =IFERROR(VLOOKUP($A93,Filtro!$A$5:$AW$2963,15,FALSE),0) -> 36 | Q93: =IFERROR(VLOOKUP($A93,Filtro!$A$5:$AW$2963,16,FALSE),0) -> 89 | R93: =IFERROR(VLOOKUP($A93,Filtro!$A$5:$AW$2963,17,FALSE),0) -> 51 | S93: =IFERROR(VLOOKUP($A93,Filtro!$A$5:$AW$2963,18,FALSE),0) -> 204 | T93: =IFERROR(VLOOKUP($A93,Filtro!$A$5:$AW$2963,19,FALSE),0) -> 90 | U93: =IFERROR(VLOOKUP($A93,Filtro!$A$5:$AW$2963,20,FALSE),0) -> 341 | V93: =IFERROR(VLOOKUP($A93,Filtro!$A$5:$AW$2963,21,FALSE),0) -> 237 | W93: =IFERROR(VLOOKUP($A93,Filtro!$A$5:$AW$2963,22,FALSE),0) -> 514 | X93: =IFERROR(VLOOKUP($A93,Filtro!$A$5:$AW$2963,23,FALSE),0) -> 346 | Y93: =IFERROR(VLOOKUP($A93,Filtro!$A$5:$AW$2963,24,FALSE),0) -> 767 | Z93: =IFERROR(VLOOKUP($A93,Filtro!$A$5:$AW$2963,25,FALSE),0) -> 596 | AA93: =IFERROR(VLOOKUP($A93,Filtro!$A$5:$AW$2963,26,FALSE),0) -> 1248 | AB93: =IFERROR(VLOOKUP($A93,Filtro!$A$5:$AW$2963,27,FALSE),0) -> 554 | AC93: =IFERROR(VLOOKUP($A93,Filtro!$A$5:$AW$2963,28,FALSE),0) -> 997 | AD93: =IFERROR(VLOOKUP($A93,Filtro!$A$5:$AW$2963,29,FALSE),0) -> 536 | AE93: =IFERROR(VLOOKUP($A93,Filtro!$A$5:$AW$2963,30,FALSE),0) -> 791 | AF93: =IFERROR(VLOOKUP($A93,Filtro!$A$5:$AW$2963,31,FALSE),0) -> 636 | AG93: =IFERROR(VLOOKUP($A93,Filtro!$A$5:$AW$2963,32,FALSE),0) -> 1180 | AH93: =IFERROR(VLOOKUP($A93,Filtro!$A$5:$AW$2963,33,FALSE),0) -> 48 | AI93: =IFERROR(VLOOKUP($A93,Filtro!$A$5:$AW$2963,34,FALSE),0) -> 146 | CV93: 0 | CW93: 0
B94: SECCIÓN G. PROGRAMA DE CANCER DE CUELLO UTERINO: PAP TOMADOS E INFORMADOS SEGÚN RESULTADOS Y GRUPOS DE EDAD (Exámenes tomados en establecimientos de atención primaria que realizan tamizaje, uso APS)
B95: RANGO ETARIO (en años) | C95: PAP TOMADOS E INFORMADOS SEGÚN RESULTADO | M95: Total PAP informados en trans masculino
C96: TOTAL | D96: Normales | E96: Inadecuados y atípicos | G96: Positivos
E97: Inadecuados | F97: Atípicos | G97: HPV | H97: NIE I | I97: NIE II | J97: NIE III | K97: Ca. Inv. (Epidermoide) | L97: Ca. Inv. (Adenocarcinoma)
A98: 01610010 | B98: Menor de 25 años | C98: =IFERROR(VLOOKUP($A98,Filtro!$A$5:$AW$2963,2,FALSE),0) -> 2214 | D98: =IFERROR(VLOOKUP($A98,Filtro!$A$5:$AW$2963,3,FALSE),0) -> 2027 | E98: =IFERROR(VLOOKUP($A98,Filtro!$A$5:$AW$2963,4,FALSE),0) -> 141 | F98: =IFERROR(VLOOKUP($A98,Filtro!$A$5:$AW$2963,5,FALSE),0) -> 17 | G98: =IFERROR(VLOOKUP($A98,Filtro!$A$5:$AW$2963,6,FALSE),0) -> 14 | H98: =IFERROR(VLOOKUP($A98,Filtro!$A$5:$AW$2963,7,FALSE),0) -> 8 | I98: =IFERROR(VLOOKUP($A98,Filtro!$A$5:$AW$2963,8,FALSE),0) -> 3 | J98: =IFERROR(VLOOKUP($A98,Filtro!$A$5:$AW$2963,9,FALSE),0) -> 3 | K98: =IFERROR(VLOOKUP($A98,Filtro!$A$5:$AW$2963,10,FALSE),0) -> 0 | L98: =IFERROR(VLOOKUP($A98,Filtro!$A$5:$AW$2963,11,FALSE),0) -> 12 | M98: =IFERROR(VLOOKUP($A98,Filtro!$A$5:$AW$2963,12,FALSE),0) -> 26 | N98: =$CB98 ->  | CB98: =IF(AND($C98<>0,M98=""),"* No olvide ingresar la variable "&M$95&""&". Digite CERO si no tiene. ",IF(M98>$C98,"* La variable Total PAP informados en trans masculino no debe ser mayor al Total. ","")) ->  | CV98: =IF(AND($C98<>0,M98=""),1,IF(M98>$C98,1,0)) -> 0
A99: 01610011 | B99: 25 a 29 años | C99: =IFERROR(VLOOKUP($A99,Filtro!$A$5:$AW$2963,2,FALSE),0) -> 5017 | D99: =IFERROR(VLOOKUP($A99,Filtro!$A$5:$AW$2963,3,FALSE),0) -> 4541 | E99: =IFERROR(VLOOKUP($A99,Filtro!$A$5:$AW$2963,4,FALSE),0) -> 288 | F99: =IFERROR(VLOOKUP($A99,Filtro!$A$5:$AW$2963,5,FALSE),0) -> 53 | G99: =IFERROR(VLOOKUP($A99,Filtro!$A$5:$AW$2963,6,FALSE),0) -> 31 | H99: =IFERROR(VLOOKUP($A99,Filtro!$A$5:$AW$2963,7,FALSE),0) -> 42 | I99: =IFERROR(VLOOKUP($A99,Filtro!$A$5:$AW$2963,8,FALSE),0) -> 15 | J99: =IFERROR(VLOOKUP($A99,Filtro!$A$5:$AW$2963,9,FALSE),0) -> 24 | K99: =IFERROR(VLOOKUP($A99,Filtro!$A$5:$AW$2963,10,FALSE),0) -> 1 | L99: =IFERROR(VLOOKUP($A99,Filtro!$A$5:$AW$2963,11,FALSE),0) -> 22 | M99: =IFERROR(VLOOKUP($A99,Filtro!$A$5:$AW$2963,12,FALSE),0) -> 40 | CV99: 0
A100: 01610012 | B100: 30 a 34 años | C100: =IFERROR(VLOOKUP($A100,Filtro!$A$5:$AW$2963,2,FALSE),0) -> 5574 | D100: =IFERROR(VLOOKUP($A100,Filtro!$A$5:$AW$2963,3,FALSE),0) -> 5118 | E100: =IFERROR(VLOOKUP($A100,Filtro!$A$5:$AW$2963,4,FALSE),0) -> 272 | F100: =IFERROR(VLOOKUP($A100,Filtro!$A$5:$AW$2963,5,FALSE),0) -> 73 | G100: =IFERROR(VLOOKUP($A100,Filtro!$A$5:$AW$2963,6,FALSE),0) -> 23 | H100: =IFERROR(VLOOKUP($A100,Filtro!$A$5:$AW$2963,7,FALSE),0) -> 27 | I100: =IFERROR(VLOOKUP($A100,Filtro!$A$5:$AW$2963,8,FALSE),0) -> 12 | J100: =IFERROR(VLOOKUP($A100,Filtro!$A$5:$AW$2963,9,FALSE),0) -> 26 | K100: =IFERROR(VLOOKUP($A100,Filtro!$A$5:$AW$2963,10,FALSE),0) -> 0 | L100: =IFERROR(VLOOKUP($A100,Filtro!$A$5:$AW$2963,11,FALSE),0) -> 23 | M100: =IFERROR(VLOOKUP($A100,Filtro!$A$5:$AW$2963,12,FALSE),0) -> 58 | CV100: 0
A101: 01610013 | B101: 35 a 39 años | C101: =IFERROR(VLOOKUP($A101,Filtro!$A$5:$AW$2963,2,FALSE),0) -> 5235 | D101: =IFERROR(VLOOKUP($A101,Filtro!$A$5:$AW$2963,3,FALSE),0) -> 4809 | E101: =IFERROR(VLOOKUP($A101,Filtro!$A$5:$AW$2963,4,FALSE),0) -> 264 | F101: =IFERROR(VLOOKUP($A101,Filtro!$A$5:$AW$2963,5,FALSE),0) -> 65 | G101: =IFERROR(VLOOKUP($A101,Filtro!$A$5:$AW$2963,6,FALSE),0) -> 20 | H101: =IFERROR(VLOOKUP($A101,Filtro!$A$5:$AW$2963,7,FALSE),0) -> 18 | I101: =IFERROR(VLOOKUP($A101,Filtro!$A$5:$AW$2963,8,FALSE),0) -> 12 | J101: =IFERROR(VLOOKUP($A101,Filtro!$A$5:$AW$2963,9,FALSE),0) -> 22 | K101: =IFERROR(VLOOKUP($A101,Filtro!$A$5:$AW$2963,10,FALSE),0) -> 0 | L101: =IFERROR(VLOOKUP($A101,Filtro!$A$5:$AW$2963,11,FALSE),0) -> 25 | M101: =IFERROR(VLOOKUP($A101,Filtro!$A$5:$AW$2963,12,FALSE),0) -> 64 | CV101: 0
A102: 01610014 | B102: 40 a 44 años | C102: =IFERROR(VLOOKUP($A102,Filtro!$A$5:$AW$2963,2,FALSE),0) -> 4921 | D102: =IFERROR(VLOOKUP($A102,Filtro!$A$5:$AW$2963,3,FALSE),0) -> 4535 | E102: =IFERROR(VLOOKUP($A102,Filtro!$A$5:$AW$2963,4,FALSE),0) -> 261 | F102: =IFERROR(VLOOKUP($A102,Filtro!$A$5:$AW$2963,5,FALSE),0) -> 48 | G102: =IFERROR(VLOOKUP($A102,Filtro!$A$5:$AW$2963,6,FALSE),0) -> 20 | H102: =IFERROR(VLOOKUP($A102,Filtro!$A$5:$AW$2963,7,FALSE),0) -> 17 | I102: =IFERROR(VLOOKUP($A102,Filtro!$A$5:$AW$2963,8,FALSE),0) -> 8 | J102: =IFERROR(VLOOKUP($A102,Filtro!$A$5:$AW$2963,9,FALSE),0) -> 16 | K102: =IFERROR(VLOOKUP($A102,Filtro!$A$5:$AW$2963,10,FALSE),0) -> 1 | L102: =IFERROR(VLOOKUP($A102,Filtro!$A$5:$AW$2963,11,FALSE),0) -> 15 | M102: =IFERROR(VLOOKUP($A102,Filtro!$A$5:$AW$2963,12,FALSE),0) -> 43 | CV102: 0
A103: 01610015 | B103: 45 a 49 años | C103: =IFERROR(VLOOKUP($A103,Filtro!$A$5:$AW$2963,2,FALSE),0) -> 4568 | D103: =IFERROR(VLOOKUP($A103,Filtro!$A$5:$AW$2963,3,FALSE),0) -> 4273 | E103: =IFERROR(VLOOKUP($A103,Filtro!$A$5:$AW$2963,4,FALSE),0) -> 205 | F103: =IFERROR(VLOOKUP($A103,Filtro!$A$5:$AW$2963,5,FALSE),0) -> 36 | G103: =IFERROR(VLOOKUP($A103,Filtro!$A$5:$AW$2963,6,FALSE),0) -> 12 | H103: =IFERROR(VLOOKUP($A103,Filtro!$A$5:$AW$2963,7,FALSE),0) -> 11 | I103: =IFERROR(VLOOKUP($A103,Filtro!$A$5:$AW$2963,8,FALSE),0) -> 7 | J103: =IFERROR(VLOOKUP($A103,Filtro!$A$5:$AW$2963,9,FALSE),0) -> 13 | K103: =IFERROR(VLOOKUP($A103,Filtro!$A$5:$AW$2963,10,FALSE),0) -> 1 | L103: =IFERROR(VLOOKUP($A103,Filtro!$A$5:$AW$2963,11,FALSE),0) -> 10 | M103: =IFERROR(VLOOKUP($A103,Filtro!$A$5:$AW$2963,12,FALSE),0) -> 38 | CV103: 0
A104: 01610016 | B104: 50 a 54 años | C104: =IFERROR(VLOOKUP($A104,Filtro!$A$5:$AW$2963,2,FALSE),0) -> 4242 | D104: =IFERROR(VLOOKUP($A104,Filtro!$A$5:$AW$2963,3,FALSE),0) -> 4035 | E104: =IFERROR(VLOOKUP($A104,Filtro!$A$5:$AW$2963,4,FALSE),0) -> 149 | F104: =IFERROR(VLOOKUP($A104,Filtro!$A$5:$AW$2963,5,FALSE),0) -> 35 | G104: =IFERROR(VLOOKUP($A104,Filtro!$A$5:$AW$2963,6,FALSE),0) -> 4 | H104: =IFERROR(VLOOKUP($A104,Filtro!$A$5:$AW$2963,7,FALSE),0) -> 3 | I104: =IFERROR(VLOOKUP($A104,Filtro!$A$5:$AW$2963,8,FALSE),0) -> 0 | J104: =IFERROR(VLOOKUP($A104,Filtro!$A$5:$AW$2963,9,FALSE),0) -> 7 | K104: =IFERROR(VLOOKUP($A104,Filtro!$A$5:$AW$2963,10,FALSE),0) -> 0 | L104: =IFERROR(VLOOKUP($A104,Filtro!$A$5:$AW$2963,11,FALSE),0) -> 9 | M104: =IFERROR(VLOOKUP($A104,Filtro!$A$5:$AW$2963,12,FALSE),0) -> 25 | CV104: 0
A105: 01610017 | B105: 55 a 59 años | C105: =IFERROR(VLOOKUP($A105,Filtro!$A$5:$AW$2963,2,FALSE),0) -> 4116 | D105: =IFERROR(VLOOKUP($A105,Filtro!$A$5:$AW$2963,3,FALSE),0) -> 3876 | E105: =IFERROR(VLOOKUP($A105,Filtro!$A$5:$AW$2963,4,FALSE),0) -> 176 | F105: =IFERROR(VLOOKUP($A105,Filtro!$A$5:$AW$2963,5,FALSE),0) -> 30 | G105: =IFERROR(VLOOKUP($A105,Filtro!$A$5:$AW$2963,6,FALSE),0) -> 5 | H105: =IFERROR(VLOOKUP($A105,Filtro!$A$5:$AW$2963,7,FALSE),0) -> 6 | I105: =IFERROR(VLOOKUP($A105,Filtro!$A$5:$AW$2963,8,FALSE),0) -> 5 | J105: =IFERROR(VLOOKUP($A105,Filtro!$A$5:$AW$2963,9,FALSE),0) -> 9 | K105: =IFERROR(VLOOKUP($A105,Filtro!$A$5:$AW$2963,10,FALSE),0) -> 0 | L105: =IFERROR(VLOOKUP($A105,Filtro!$A$5:$AW$2963,11,FALSE),0) -> 9 | M105: =IFERROR(VLOOKUP($A105,Filtro!$A$5:$AW$2963,12,FALSE),0) -> 31 | CV105: 0
A106: 01610018 | B106: 60 a 64 años | C106: =IFERROR(VLOOKUP($A106,Filtro!$A$5:$AW$2963,2,FALSE),0) -> 3679 | D106: =IFERROR(VLOOKUP($A106,Filtro!$A$5:$AW$2963,3,FALSE),0) -> 3519 | E106: =IFERROR(VLOOKUP($A106,Filtro!$A$5:$AW$2963,4,FALSE),0) -> 121 | F106: =IFERROR(VLOOKUP($A106,Filtro!$A$5:$AW$2963,5,FALSE),0) -> 18 | G106: =IFERROR(VLOOKUP($A106,Filtro!$A$5:$AW$2963,6,FALSE),0) -> 3 | H106: =IFERROR(VLOOKUP($A106,Filtro!$A$5:$AW$2963,7,FALSE),0) -> 7 | I106: =IFERROR(VLOOKUP($A106,Filtro!$A$5:$AW$2963,8,FALSE),0) -> 1 | J106: =IFERROR(VLOOKUP($A106,Filtro!$A$5:$AW$2963,9,FALSE),0) -> 7 | K106: =IFERROR(VLOOKUP($A106,Filtro!$A$5:$AW$2963,10,FALSE),0) -> 0 | L106: =IFERROR(VLOOKUP($A106,Filtro!$A$5:$AW$2963,11,FALSE),0) -> 3 | M106: =IFERROR(VLOOKUP($A106,Filtro!$A$5:$AW$2963,12,FALSE),0) -> 29 | CV106: 0
A107: 01610019 | B107: 65 a 69 años | C107: =IFERROR(VLOOKUP($A107,Filtro!$A$5:$AW$2963,2,FALSE),0) -> 1101 | D107: =IFERROR(VLOOKUP($A107,Filtro!$A$5:$AW$2963,3,FALSE),0) -> 1051 | E107: =IFERROR(VLOOKUP($A107,Filtro!$A$5:$AW$2963,4,FALSE),0) -> 33 | F107: =IFERROR(VLOOKUP($A107,Filtro!$A$5:$AW$2963,5,FALSE),0) -> 5 | G107: =IFERROR(VLOOKUP($A107,Filtro!$A$5:$AW$2963,6,FALSE),0) -> 3 | H107: =IFERROR(VLOOKUP($A107,Filtro!$A$5:$AW$2963,7,FALSE),0) -> 3 | I107: =IFERROR(VLOOKUP($A107,Filtro!$A$5:$AW$2963,8,FALSE),0) -> 2 | J107: =IFERROR(VLOOKUP($A107,Filtro!$A$5:$AW$2963,9,FALSE),0) -> 3 | K107: =IFERROR(VLOOKUP($A107,Filtro!$A$5:$AW$2963,10,FALSE),0) -> 0 | L107: =IFERROR(VLOOKUP($A107,Filtro!$A$5:$AW$2963,11,FALSE),0) -> 1 | M107: =IFERROR(VLOOKUP($A107,Filtro!$A$5:$AW$2963,12,FALSE),0) -> 5 | CV107: 0
A108: 01610020 | B108: 70 a 74 años | C108: =IFERROR(VLOOKUP($A108,Filtro!$A$5:$AW$2963,2,FALSE),0) -> 257 | D108: =IFERROR(VLOOKUP($A108,Filtro!$A$5:$AW$2963,3,FALSE),0) -> 242 | E108: =IFERROR(VLOOKUP($A108,Filtro!$A$5:$AW$2963,4,FALSE),0) -> 7 | F108: =IFERROR(VLOOKUP($A108,Filtro!$A$5:$AW$2963,5,FALSE),0) -> 4 | G108: =IFERROR(VLOOKUP($A108,Filtro!$A$5:$AW$2963,6,FALSE),0) -> 0 | H108: =IFERROR(VLOOKUP($A108,Filtro!$A$5:$AW$2963,7,FALSE),0) -> 2 | I108: =IFERROR(VLOOKUP($A108,Filtro!$A$5:$AW$2963,8,FALSE),0) -> 1 | J108: =IFERROR(VLOOKUP($A108,Filtro!$A$5:$AW$2963,9,FALSE),0) -> 1 | K108: =IFERROR(VLOOKUP($A108,Filtro!$A$5:$AW$2963,10,FALSE),0) -> 0 | L108: =IFERROR(VLOOKUP($A108,Filtro!$A$5:$AW$2963,11,FALSE),0) -> 0 | M108: =IFERROR(VLOOKUP($A108,Filtro!$A$5:$AW$2963,12,FALSE),0) -> 0 | CV108: 0
A109: 01610021 | B109: 75 a 79 años | C109: =IFERROR(VLOOKUP($A109,Filtro!$A$5:$AW$2963,2,FALSE),0) -> 72 | D109: =IFERROR(VLOOKUP($A109,Filtro!$A$5:$AW$2963,3,FALSE),0) -> 68 | E109: =IFERROR(VLOOKUP($A109,Filtro!$A$5:$AW$2963,4,FALSE),0) -> 3 | F109: =IFERROR(VLOOKUP($A109,Filtro!$A$5:$AW$2963,5,FALSE),0) -> 1 | G109: =IFERROR(VLOOKUP($A109,Filtro!$A$5:$AW$2963,6,FALSE),0) -> 0 | H109: =IFERROR(VLOOKUP($A109,Filtro!$A$5:$AW$2963,7,FALSE),0) -> 0 | I109: =IFERROR(VLOOKUP($A109,Filtro!$A$5:$AW$2963,8,FALSE),0) -> 0 | J109: =IFERROR(VLOOKUP($A109,Filtro!$A$5:$AW$2963,9,FALSE),0) -> 0 | K109: =IFERROR(VLOOKUP($A109,Filtro!$A$5:$AW$2963,10,FALSE),0) -> 0 | L109: =IFERROR(VLOOKUP($A109,Filtro!$A$5:$AW$2963,11,FALSE),0) -> 0 | M109: =IFERROR(VLOOKUP($A109,Filtro!$A$5:$AW$2963,12,FALSE),0) -> 0 | CV109: 0
A110: 01610022 | B110: 80 y más años | C110: =IFERROR(VLOOKUP($A110,Filtro!$A$5:$AW$2963,2,FALSE),0) -> 39 | D110: =IFERROR(VLOOKUP($A110,Filtro!$A$5:$AW$2963,3,FALSE),0) -> 36 | E110: =IFERROR(VLOOKUP($A110,Filtro!$A$5:$AW$2963,4,FALSE),0) -> 1 | F110: =IFERROR(VLOOKUP($A110,Filtro!$A$5:$AW$2963,5,FALSE),0) -> 0 | G110: =IFERROR(VLOOKUP($A110,Filtro!$A$5:$AW$2963,6,FALSE),0) -> 0 | H110: =IFERROR(VLOOKUP($A110,Filtro!$A$5:$AW$2963,7,FALSE),0) -> 0 | I110: =IFERROR(VLOOKUP($A110,Filtro!$A$5:$AW$2963,8,FALSE),0) -> 2 | J110: =IFERROR(VLOOKUP($A110,Filtro!$A$5:$AW$2963,9,FALSE),0) -> 0 | K110: =IFERROR(VLOOKUP($A110,Filtro!$A$5:$AW$2963,10,FALSE),0) -> 0 | L110: =IFERROR(VLOOKUP($A110,Filtro!$A$5:$AW$2963,11,FALSE),0) -> 0 | M110: =IFERROR(VLOOKUP($A110,Filtro!$A$5:$AW$2963,12,FALSE),0) -> 0 | CV110: 0
B111: TOTAL | C111: =SUM(D111:L111) -> 41046 | D111: =SUM(D98:D110) -> 38130 | E111: 1921 | F111: 385 | G111: 135 | H111: 144 | I111: 68 | J111: 131 | K111: 3 | L111: 129 | M111: 359
B112: (*) Fuente de información: Citoweb u otro sistema de registro informático.
B113: SECCIÓN G.1 PROGRAMA DE CANCER DE CUELLO UTERINO: RESULTADOS DE PAP INFORMADOS SEGÚN GRUPOS DE EDAD (Exámenes analizados en los laboratorios de la red pública, uso exclusivo laboratorios que procesan)
B114: RANGO ETARIO (en años) | C114: RESULTADOS DE PAP INFORMADOS | M114: Total PAP informados en trans masculino
C115: TOTAL | D115: Normales | E115: Inadecuados y atípicos | G115: Positivos
E116: Inadecuados | F116: Atípicos | G116: HPV | H116: NIE I | I116: NIE II | J116: NIE III | K116: Ca. Inv. (Epidermoide) | L116: Ca. Inv. (Adenocarcinoma)
A117: 01610023 | B117: Menor de 25 años | C117: =IFERROR(VLOOKUP($A117,Filtro!$A$5:$AW$2963,2,FALSE),0) -> 13 | D117: =IFERROR(VLOOKUP($A117,Filtro!$A$5:$AW$2963,3,FALSE),0) -> 13 | E117: =IFERROR(VLOOKUP($A117,Filtro!$A$5:$AW$2963,4,FALSE),0) -> 0 | F117: =IFERROR(VLOOKUP($A117,Filtro!$A$5:$AW$2963,5,FALSE),0) -> 0 | G117: =IFERROR(VLOOKUP($A117,Filtro!$A$5:$AW$2963,6,FALSE),0) -> 0 | H117: =IFERROR(VLOOKUP($A117,Filtro!$A$5:$AW$2963,7,FALSE),0) -> 0 | I117: =IFERROR(VLOOKUP($A117,Filtro!$A$5:$AW$2963,8,FALSE),0) -> 0 | J117: =IFERROR(VLOOKUP($A117,Filtro!$A$5:$AW$2963,9,FALSE),0) -> 0 | K117: =IFERROR(VLOOKUP($A117,Filtro!$A$5:$AW$2963,10,FALSE),0) -> 0 | L117: =IFERROR(VLOOKUP($A117,Filtro!$A$5:$AW$2963,11,FALSE),0) -> 0 | M117: =IFERROR(VLOOKUP($A117,Filtro!$A$5:$AW$2963,12,FALSE),0) -> 0 | N117: =$CB117 ->  | CB117: =IF(AND($C117<>0,M117=""),"* No olvide ingresar la variable "&M$114&""&". Digite CERO si no tiene. ",IF(M117>$C117,"* La variable Total PAP informados en trans masculino no debe ser mayor al Total. ","")) ->  | CV117: =IF(AND($C117<>0,M117=""),1,IF(M117>$C117,1,0)) -> 0
A118: 01610024 | B118: 25 a 29 años | C118: =IFERROR(VLOOKUP($A118,Filtro!$A$5:$AW$2963,2,FALSE),0) -> 20 | D118: =IFERROR(VLOOKUP($A118,Filtro!$A$5:$AW$2963,3,FALSE),0) -> 19 | E118: =IFERROR(VLOOKUP($A118,Filtro!$A$5:$AW$2963,4,FALSE),0) -> 1 | F118: =IFERROR(VLOOKUP($A118,Filtro!$A$5:$AW$2963,5,FALSE),0) -> 0 | G118: =IFERROR(VLOOKUP($A118,Filtro!$A$5:$AW$2963,6,FALSE),0) -> 0 | H118: =IFERROR(VLOOKUP($A118,Filtro!$A$5:$AW$2963,7,FALSE),0) -> 0 | I118: =IFERROR(VLOOKUP($A118,Filtro!$A$5:$AW$2963,8,FALSE),0) -> 0 | J118: =IFERROR(VLOOKUP($A118,Filtro!$A$5:$AW$2963,9,FALSE),0) -> 0 | K118: =IFERROR(VLOOKUP($A118,Filtro!$A$5:$AW$2963,10,FALSE),0) -> 0 | L118: =IFERROR(VLOOKUP($A118,Filtro!$A$5:$AW$2963,11,FALSE),0) -> 0 | M118: =IFERROR(VLOOKUP($A118,Filtro!$A$5:$AW$2963,12,FALSE),0) -> 0 | CV118: 0
A119: 01610025 | B119: 30 a 34 años | C119: =IFERROR(VLOOKUP($A119,Filtro!$A$5:$AW$2963,2,FALSE),0) -> 38 | D119: =IFERROR(VLOOKUP($A119,Filtro!$A$5:$AW$2963,3,FALSE),0) -> 36 | E119: =IFERROR(VLOOKUP($A119,Filtro!$A$5:$AW$2963,4,FALSE),0) -> 1 | F119: =IFERROR(VLOOKUP($A119,Filtro!$A$5:$AW$2963,5,FALSE),0) -> 0 | G119: =IFERROR(VLOOKUP($A119,Filtro!$A$5:$AW$2963,6,FALSE),0) -> 0 | H119: =IFERROR(VLOOKUP($A119,Filtro!$A$5:$AW$2963,7,FALSE),0) -> 0 | I119: =IFERROR(VLOOKUP($A119,Filtro!$A$5:$AW$2963,8,FALSE),0) -> 1 | J119: =IFERROR(VLOOKUP($A119,Filtro!$A$5:$AW$2963,9,FALSE),0) -> 0 | K119: =IFERROR(VLOOKUP($A119,Filtro!$A$5:$AW$2963,10,FALSE),0) -> 0 | L119: =IFERROR(VLOOKUP($A119,Filtro!$A$5:$AW$2963,11,FALSE),0) -> 0 | M119: =IFERROR(VLOOKUP($A119,Filtro!$A$5:$AW$2963,12,FALSE),0) -> 0 | CV119: 0
A120: 01610026 | B120: 35 a 39 años | C120: =IFERROR(VLOOKUP($A120,Filtro!$A$5:$AW$2963,2,FALSE),0) -> 39 | D120: =IFERROR(VLOOKUP($A120,Filtro!$A$5:$AW$2963,3,FALSE),0) -> 38 | E120: =IFERROR(VLOOKUP($A120,Filtro!$A$5:$AW$2963,4,FALSE),0) -> 0 | F120: =IFERROR(VLOOKUP($A120,Filtro!$A$5:$AW$2963,5,FALSE),0) -> 1 | G120: =IFERROR(VLOOKUP($A120,Filtro!$A$5:$AW$2963,6,FALSE),0) -> 0 | H120: =IFERROR(VLOOKUP($A120,Filtro!$A$5:$AW$2963,7,FALSE),0) -> 0 | I120: =IFERROR(VLOOKUP($A120,Filtro!$A$5:$AW$2963,8,FALSE),0) -> 0 | J120: =IFERROR(VLOOKUP($A120,Filtro!$A$5:$AW$2963,9,FALSE),0) -> 0 | K120: =IFERROR(VLOOKUP($A120,Filtro!$A$5:$AW$2963,10,FALSE),0) -> 0 | L120: =IFERROR(VLOOKUP($A120,Filtro!$A$5:$AW$2963,11,FALSE),0) -> 0 | M120: =IFERROR(VLOOKUP($A120,Filtro!$A$5:$AW$2963,12,FALSE),0) -> 0 | CV120: 0
A121: 01610027 | B121: 40 a 44 años | C121: =IFERROR(VLOOKUP($A121,Filtro!$A$5:$AW$2963,2,FALSE),0) -> 29 | D121: =IFERROR(VLOOKUP($A121,Filtro!$A$5:$AW$2963,3,FALSE),0) -> 28 | E121: =IFERROR(VLOOKUP($A121,Filtro!$A$5:$AW$2963,4,FALSE),0) -> 0 | F121: =IFERROR(VLOOKUP($A121,Filtro!$A$5:$AW$2963,5,FALSE),0) -> 0 | G121: =IFERROR(VLOOKUP($A121,Filtro!$A$5:$AW$2963,6,FALSE),0) -> 1 | H121: =IFERROR(VLOOKUP($A121,Filtro!$A$5:$AW$2963,7,FALSE),0) -> 0 | I121: =IFERROR(VLOOKUP($A121,Filtro!$A$5:$AW$2963,8,FALSE),0) -> 0 | J121: =IFERROR(VLOOKUP($A121,Filtro!$A$5:$AW$2963,9,FALSE),0) -> 0 | K121: =IFERROR(VLOOKUP($A121,Filtro!$A$5:$AW$2963,10,FALSE),0) -> 0 | L121: =IFERROR(VLOOKUP($A121,Filtro!$A$5:$AW$2963,11,FALSE),0) -> 0 | M121: =IFERROR(VLOOKUP($A121,Filtro!$A$5:$AW$2963,12,FALSE),0) -> 0 | CV121: 0
A122: 01610028 | B122: 45 a 49 años | C122: =IFERROR(VLOOKUP($A122,Filtro!$A$5:$AW$2963,2,FALSE),0) -> 37 | D122: =IFERROR(VLOOKUP($A122,Filtro!$A$5:$AW$2963,3,FALSE),0) -> 32 | E122: =IFERROR(VLOOKUP($A122,Filtro!$A$5:$AW$2963,4,FALSE),0) -> 3 | F122: =IFERROR(VLOOKUP($A122,Filtro!$A$5:$AW$2963,5,FALSE),0) -> 0 | G122: =IFERROR(VLOOKUP($A122,Filtro!$A$5:$AW$2963,6,FALSE),0) -> 1 | H122: =IFERROR(VLOOKUP($A122,Filtro!$A$5:$AW$2963,7,FALSE),0) -> 0 | I122: =IFERROR(VLOOKUP($A122,Filtro!$A$5:$AW$2963,8,FALSE),0) -> 0 | J122: =IFERROR(VLOOKUP($A122,Filtro!$A$5:$AW$2963,9,FALSE),0) -> 0 | K122: =IFERROR(VLOOKUP($A122,Filtro!$A$5:$AW$2963,10,FALSE),0) -> 1 | L122: =IFERROR(VLOOKUP($A122,Filtro!$A$5:$AW$2963,11,FALSE),0) -> 0 | M122: =IFERROR(VLOOKUP($A122,Filtro!$A$5:$AW$2963,12,FALSE),0) -> 0 | CV122: 0
A123: 01610029 | B123: 50 a 54 años | C123: =IFERROR(VLOOKUP($A123,Filtro!$A$5:$AW$2963,2,FALSE),0) -> 31 | D123: =IFERROR(VLOOKUP($A123,Filtro!$A$5:$AW$2963,3,FALSE),0) -> 30 | E123: =IFERROR(VLOOKUP($A123,Filtro!$A$5:$AW$2963,4,FALSE),0) -> 0 | F123: =IFERROR(VLOOKUP($A123,Filtro!$A$5:$AW$2963,5,FALSE),0) -> 1 | G123: =IFERROR(VLOOKUP($A123,Filtro!$A$5:$AW$2963,6,FALSE),0) -> 0 | H123: =IFERROR(VLOOKUP($A123,Filtro!$A$5:$AW$2963,7,FALSE),0) -> 0 | I123: =IFERROR(VLOOKUP($A123,Filtro!$A$5:$AW$2963,8,FALSE),0) -> 0 | J123: =IFERROR(VLOOKUP($A123,Filtro!$A$5:$AW$2963,9,FALSE),0) -> 0 | K123: =IFERROR(VLOOKUP($A123,Filtro!$A$5:$AW$2963,10,FALSE),0) -> 0 | L123: =IFERROR(VLOOKUP($A123,Filtro!$A$5:$AW$2963,11,FALSE),0) -> 0 | M123: =IFERROR(VLOOKUP($A123,Filtro!$A$5:$AW$2963,12,FALSE),0) -> 0 | CV123: 0
A124: 01610030 | B124: 55 a 59 años | C124: =IFERROR(VLOOKUP($A124,Filtro!$A$5:$AW$2963,2,FALSE),0) -> 32 | D124: =IFERROR(VLOOKUP($A124,Filtro!$A$5:$AW$2963,3,FALSE),0) -> 31 | E124: =IFERROR(VLOOKUP($A124,Filtro!$A$5:$AW$2963,4,FALSE),0) -> 0 | F124: =IFERROR(VLOOKUP($A124,Filtro!$A$5:$AW$2963,5,FALSE),0) -> 0 | G124: =IFERROR(VLOOKUP($A124,Filtro!$A$5:$AW$2963,6,FALSE),0) -> 1 | H124: =IFERROR(VLOOKUP($A124,Filtro!$A$5:$AW$2963,7,FALSE),0) -> 0 | I124: =IFERROR(VLOOKUP($A124,Filtro!$A$5:$AW$2963,8,FALSE),0) -> 0 | J124: =IFERROR(VLOOKUP($A124,Filtro!$A$5:$AW$2963,9,FALSE),0) -> 0 | K124: =IFERROR(VLOOKUP($A124,Filtro!$A$5:$AW$2963,10,FALSE),0) -> 0 | L124: =IFERROR(VLOOKUP($A124,Filtro!$A$5:$AW$2963,11,FALSE),0) -> 0 | M124: =IFERROR(VLOOKUP($A124,Filtro!$A$5:$AW$2963,12,FALSE),0) -> 0 | CV124: 0
A125: 01610031 | B125: 60 a 64 años | C125: =IFERROR(VLOOKUP($A125,Filtro!$A$5:$AW$2963,2,FALSE),0) -> 31 | D125: =IFERROR(VLOOKUP($A125,Filtro!$A$5:$AW$2963,3,FALSE),0) -> 26 | E125: =IFERROR(VLOOKUP($A125,Filtro!$A$5:$AW$2963,4,FALSE),0) -> 2 | F125: =IFERROR(VLOOKUP($A125,Filtro!$A$5:$AW$2963,5,FALSE),0) -> 3 | G125: =IFERROR(VLOOKUP($A125,Filtro!$A$5:$AW$2963,6,FALSE),0) -> 0 | H125: =IFERROR(VLOOKUP($A125,Filtro!$A$5:$AW$2963,7,FALSE),0) -> 0 | I125: =IFERROR(VLOOKUP($A125,Filtro!$A$5:$AW$2963,8,FALSE),0) -> 0 | J125: =IFERROR(VLOOKUP($A125,Filtro!$A$5:$AW$2963,9,FALSE),0) -> 0 | K125: =IFERROR(VLOOKUP($A125,Filtro!$A$5:$AW$2963,10,FALSE),0) -> 0 | L125: =IFERROR(VLOOKUP($A125,Filtro!$A$5:$AW$2963,11,FALSE),0) -> 0 | M125: =IFERROR(VLOOKUP($A125,Filtro!$A$5:$AW$2963,12,FALSE),0) -> 0 | CV125: 0
A126: 01610032 | B126: 65 a 69 años | C126: =IFERROR(VLOOKUP($A126,Filtro!$A$5:$AW$2963,2,FALSE),0) -> 20 | D126: =IFERROR(VLOOKUP($A126,Filtro!$A$5:$AW$2963,3,FALSE),0) -> 19 | E126: =IFERROR(VLOOKUP($A126,Filtro!$A$5:$AW$2963,4,FALSE),0) -> 1 | F126: =IFERROR(VLOOKUP($A126,Filtro!$A$5:$AW$2963,5,FALSE),0) -> 0 | G126: =IFERROR(VLOOKUP($A126,Filtro!$A$5:$AW$2963,6,FALSE),0) -> 0 | H126: =IFERROR(VLOOKUP($A126,Filtro!$A$5:$AW$2963,7,FALSE),0) -> 0 | I126: =IFERROR(VLOOKUP($A126,Filtro!$A$5:$AW$2963,8,FALSE),0) -> 0 | J126: =IFERROR(VLOOKUP($A126,Filtro!$A$5:$AW$2963,9,FALSE),0) -> 0 | K126: =IFERROR(VLOOKUP($A126,Filtro!$A$5:$AW$2963,10,FALSE),0) -> 0 | L126: =IFERROR(VLOOKUP($A126,Filtro!$A$5:$AW$2963,11,FALSE),0) -> 0 | M126: =IFERROR(VLOOKUP($A126,Filtro!$A$5:$AW$2963,12,FALSE),0) -> 0 | CV126: 0
A127: 01610033 | B127: 70 a 74 años | C127: =IFERROR(VLOOKUP($A127,Filtro!$A$5:$AW$2963,2,FALSE),0) -> 1 | D127: =IFERROR(VLOOKUP($A127,Filtro!$A$5:$AW$2963,3,FALSE),0) -> 1 | E127: =IFERROR(VLOOKUP($A127,Filtro!$A$5:$AW$2963,4,FALSE),0) -> 0 | F127: =IFERROR(VLOOKUP($A127,Filtro!$A$5:$AW$2963,5,FALSE),0) -> 0 | G127: =IFERROR(VLOOKUP($A127,Filtro!$A$5:$AW$2963,6,FALSE),0) -> 0 | H127: =IFERROR(VLOOKUP($A127,Filtro!$A$5:$AW$2963,7,FALSE),0) -> 0 | I127: =IFERROR(VLOOKUP($A127,Filtro!$A$5:$AW$2963,8,FALSE),0) -> 0 | J127: =IFERROR(VLOOKUP($A127,Filtro!$A$5:$AW$2963,9,FALSE),0) -> 0 | K127: =IFERROR(VLOOKUP($A127,Filtro!$A$5:$AW$2963,10,FALSE),0) -> 0 | L127: =IFERROR(VLOOKUP($A127,Filtro!$A$5:$AW$2963,11,FALSE),0) -> 0 | M127: =IFERROR(VLOOKUP($A127,Filtro!$A$5:$AW$2963,12,FALSE),0) -> 0 | CV127: 0
A128: 01610034 | B128: 75 a 79 años | C128: =IFERROR(VLOOKUP($A128,Filtro!$A$5:$AW$2963,2,FALSE),0) -> 0 | D128: =IFERROR(VLOOKUP($A128,Filtro!$A$5:$AW$2963,3,FALSE),0) -> 0 | E128: =IFERROR(VLOOKUP($A128,Filtro!$A$5:$AW$2963,4,FALSE),0) -> 0 | F128: =IFERROR(VLOOKUP($A128,Filtro!$A$5:$AW$2963,5,FALSE),0) -> 0 | G128: =IFERROR(VLOOKUP($A128,Filtro!$A$5:$AW$2963,6,FALSE),0) -> 0 | H128: =IFERROR(VLOOKUP($A128,Filtro!$A$5:$AW$2963,7,FALSE),0) -> 0 | I128: =IFERROR(VLOOKUP($A128,Filtro!$A$5:$AW$2963,8,FALSE),0) -> 0 | J128: =IFERROR(VLOOKUP($A128,Filtro!$A$5:$AW$2963,9,FALSE),0) -> 0 | K128: =IFERROR(VLOOKUP($A128,Filtro!$A$5:$AW$2963,10,FALSE),0) -> 0 | L128: =IFERROR(VLOOKUP($A128,Filtro!$A$5:$AW$2963,11,FALSE),0) -> 0 | M128: =IFERROR(VLOOKUP($A128,Filtro!$A$5:$AW$2963,12,FALSE),0) -> 0 | CV128: 0
A129: 01610035 | B129: 80 y más años | C129: =IFERROR(VLOOKUP($A129,Filtro!$A$5:$AW$2963,2,FALSE),0) -> 0 | D129: =IFERROR(VLOOKUP($A129,Filtro!$A$5:$AW$2963,3,FALSE),0) -> 0 | E129: =IFERROR(VLOOKUP($A129,Filtro!$A$5:$AW$2963,4,FALSE),0) -> 0 | F129: =IFERROR(VLOOKUP($A129,Filtro!$A$5:$AW$2963,5,FALSE),0) -> 0 | G129: =IFERROR(VLOOKUP($A129,Filtro!$A$5:$AW$2963,6,FALSE),0) -> 0 | H129: =IFERROR(VLOOKUP($A129,Filtro!$A$5:$AW$2963,7,FALSE),0) -> 0 | I129: =IFERROR(VLOOKUP($A129,Filtro!$A$5:$AW$2963,8,FALSE),0) -> 0 | J129: =IFERROR(VLOOKUP($A129,Filtro!$A$5:$AW$2963,9,FALSE),0) -> 0 | K129: =IFERROR(VLOOKUP($A129,Filtro!$A$5:$AW$2963,10,FALSE),0) -> 0 | L129: =IFERROR(VLOOKUP($A129,Filtro!$A$5:$AW$2963,11,FALSE),0) -> 0 | M129: =IFERROR(VLOOKUP($A129,Filtro!$A$5:$AW$2963,12,FALSE),0) -> 0 | CV129: 0
B130: TOTAL | C130: =SUM(D130:L130) -> 291 | D130: =SUM(D117:D129) -> 273 | E130: 8 | F130: 5 | G130: 3 | H130: 0 | I130: 1 | J130: 0 | K130: 1 | L130: 0 | M130: 0
B131: (*) Fuente de información: Citoweb u otro sistema de registro informático.
B132: SECCIÓN G.2 PROGRAMA DE CANCER DE CUELLO UTERINO: RESULTADOS DE PAP INFORMADOS SEGÚN GRUPOS DE EDAD (Exámenes analizados en laboratorios de extrasistema, uso mandante)
B133: RANGO ETARIO (en años) | C133: RESULTADOS DE PAP INFORMADOS | M133: Total PAP informados en trans masculino
C134: TOTAL | D134: Normales | E134: Inadecuados y atípicos | G134: Positivos
E135: Inadecuados | F135: Atípicos | G135: HPV | H135: NIE I | I135: NIE II | J135: NIE III | K135: Ca. Inv. (Epidermoide) | L135: Ca. Inv. (Adenocarcinoma)
A136: 01610036 | B136: Menor de 25 años | C136: =IFERROR(VLOOKUP($A136,Filtro!$A$5:$AW$2963,2,FALSE),0) -> 22 | D136: =IFERROR(VLOOKUP($A136,Filtro!$A$5:$AW$2963,3,FALSE),0) -> 21 | E136: =IFERROR(VLOOKUP($A136,Filtro!$A$5:$AW$2963,4,FALSE),0) -> 1 | F136: =IFERROR(VLOOKUP($A136,Filtro!$A$5:$AW$2963,5,FALSE),0) -> 0 | G136: =IFERROR(VLOOKUP($A136,Filtro!$A$5:$AW$2963,6,FALSE),0) -> 0 | H136: =IFERROR(VLOOKUP($A136,Filtro!$A$5:$AW$2963,7,FALSE),0) -> 0 | I136: =IFERROR(VLOOKUP($A136,Filtro!$A$5:$AW$2963,8,FALSE),0) -> 0 | J136: =IFERROR(VLOOKUP($A136,Filtro!$A$5:$AW$2963,9,FALSE),0) -> 0 | K136: =IFERROR(VLOOKUP($A136,Filtro!$A$5:$AW$2963,10,FALSE),0) -> 0 | L136: =IFERROR(VLOOKUP($A136,Filtro!$A$5:$AW$2963,11,FALSE),0) -> 0 | M136: =IFERROR(VLOOKUP($A136,Filtro!$A$5:$AW$2963,12,FALSE),0) -> 0 | N136: =$CB136 ->  | CB136: =IF(AND($C136<>0,M136=""),"* No olvide ingresar la variable "&M$133&""&". Digite CERO si no tiene. ",IF(M136>$C136,"* La variable Total PAP informados en trans masculino no debe ser mayor al Total. ","")) ->  | CV136: =IF(AND($C136<>0,M136=""),1,IF(M136>$C136,1,0)) -> 0
A137: 01610037 | B137: 25 a 29 años | C137: =IFERROR(VLOOKUP($A137,Filtro!$A$5:$AW$2963,2,FALSE),0) -> 29 | D137: =IFERROR(VLOOKUP($A137,Filtro!$A$5:$AW$2963,3,FALSE),0) -> 27 | E137: =IFERROR(VLOOKUP($A137,Filtro!$A$5:$AW$2963,4,FALSE),0) -> 0 | F137: =IFERROR(VLOOKUP($A137,Filtro!$A$5:$AW$2963,5,FALSE),0) -> 0 | G137: =IFERROR(VLOOKUP($A137,Filtro!$A$5:$AW$2963,6,FALSE),0) -> 0 | H137: =IFERROR(VLOOKUP($A137,Filtro!$A$5:$AW$2963,7,FALSE),0) -> 1 | I137: =IFERROR(VLOOKUP($A137,Filtro!$A$5:$AW$2963,8,FALSE),0) -> 1 | J137: =IFERROR(VLOOKUP($A137,Filtro!$A$5:$AW$2963,9,FALSE),0) -> 0 | K137: =IFERROR(VLOOKUP($A137,Filtro!$A$5:$AW$2963,10,FALSE),0) -> 0 | L137: =IFERROR(VLOOKUP($A137,Filtro!$A$5:$AW$2963,11,FALSE),0) -> 0 | M137: =IFERROR(VLOOKUP($A137,Filtro!$A$5:$AW$2963,12,FALSE),0) -> 0 | CV137: 0
A138: 01610038 | B138: 30 a 34 años | C138: =IFERROR(VLOOKUP($A138,Filtro!$A$5:$AW$2963,2,FALSE),0) -> 47 | D138: =IFERROR(VLOOKUP($A138,Filtro!$A$5:$AW$2963,3,FALSE),0) -> 45 | E138: =IFERROR(VLOOKUP($A138,Filtro!$A$5:$AW$2963,4,FALSE),0) -> 1 | F138: =IFERROR(VLOOKUP($A138,Filtro!$A$5:$AW$2963,5,FALSE),0) -> 0 | G138: =IFERROR(VLOOKUP($A138,Filtro!$A$5:$AW$2963,6,FALSE),0) -> 1 | H138: =IFERROR(VLOOKUP($A138,Filtro!$A$5:$AW$2963,7,FALSE),0) -> 0 | I138: =IFERROR(VLOOKUP($A138,Filtro!$A$5:$AW$2963,8,FALSE),0) -> 0 | J138: =IFERROR(VLOOKUP($A138,Filtro!$A$5:$AW$2963,9,FALSE),0) -> 0 | K138: =IFERROR(VLOOKUP($A138,Filtro!$A$5:$AW$2963,10,FALSE),0) -> 0 | L138: =IFERROR(VLOOKUP($A138,Filtro!$A$5:$AW$2963,11,FALSE),0) -> 0 | M138: =IFERROR(VLOOKUP($A138,Filtro!$A$5:$AW$2963,12,FALSE),0) -> 0 | CV138: 0
A139: 01610039 | B139: 35 a 39 años | C139: =IFERROR(VLOOKUP($A139,Filtro!$A$5:$AW$2963,2,FALSE),0) -> 34 | D139: =IFERROR(VLOOKUP($A139,Filtro!$A$5:$AW$2963,3,FALSE),0) -> 32 | E139: =IFERROR(VLOOKUP($A139,Filtro!$A$5:$AW$2963,4,FALSE),0) -> 1 | F139: =IFERROR(VLOOKUP($A139,Filtro!$A$5:$AW$2963,5,FALSE),0) -> 0 | G139: =IFERROR(VLOOKUP($A139,Filtro!$A$5:$AW$2963,6,FALSE),0) -> 0 | H139: =IFERROR(VLOOKUP($A139,Filtro!$A$5:$AW$2963,7,FALSE),0) -> 0 | I139: =IFERROR(VLOOKUP($A139,Filtro!$A$5:$AW$2963,8,FALSE),0) -> 0 | J139: =IFERROR(VLOOKUP($A139,Filtro!$A$5:$AW$2963,9,FALSE),0) -> 1 | K139: =IFERROR(VLOOKUP($A139,Filtro!$A$5:$AW$2963,10,FALSE),0) -> 0 | L139: =IFERROR(VLOOKUP($A139,Filtro!$A$5:$AW$2963,11,FALSE),0) -> 0 | M139: =IFERROR(VLOOKUP($A139,Filtro!$A$5:$AW$2963,12,FALSE),0) -> 0 | CV139: 0
A140: 01610040 | B140: 40 a 44 años | C140: =IFERROR(VLOOKUP($A140,Filtro!$A$5:$AW$2963,2,FALSE),0) -> 34 | D140: =IFERROR(VLOOKUP($A140,Filtro!$A$5:$AW$2963,3,FALSE),0) -> 31 | E140: =IFERROR(VLOOKUP($A140,Filtro!$A$5:$AW$2963,4,FALSE),0) -> 1 | F140: =IFERROR(VLOOKUP($A140,Filtro!$A$5:$AW$2963,5,FALSE),0) -> 0 | G140: =IFERROR(VLOOKUP($A140,Filtro!$A$5:$AW$2963,6,FALSE),0) -> 0 | H140: =IFERROR(VLOOKUP($A140,Filtro!$A$5:$AW$2963,7,FALSE),0) -> 1 | I140: =IFERROR(VLOOKUP($A140,Filtro!$A$5:$AW$2963,8,FALSE),0) -> 0 | J140: =IFERROR(VLOOKUP($A140,Filtro!$A$5:$AW$2963,9,FALSE),0) -> 1 | K140: =IFERROR(VLOOKUP($A140,Filtro!$A$5:$AW$2963,10,FALSE),0) -> 0 | L140: =IFERROR(VLOOKUP($A140,Filtro!$A$5:$AW$2963,11,FALSE),0) -> 0 | M140: =IFERROR(VLOOKUP($A140,Filtro!$A$5:$AW$2963,12,FALSE),0) -> 0 | CV140: 0
A141: 01610041 | B141: 45 a 49 años | C141: =IFERROR(VLOOKUP($A141,Filtro!$A$5:$AW$2963,2,FALSE),0) -> 26 | D141: =IFERROR(VLOOKUP($A141,Filtro!$A$5:$AW$2963,3,FALSE),0) -> 22 | E141: =IFERROR(VLOOKUP($A141,Filtro!$A$5:$AW$2963,4,FALSE),0) -> 3 | F141: =IFERROR(VLOOKUP($A141,Filtro!$A$5:$AW$2963,5,FALSE),0) -> 0 | G141: =IFERROR(VLOOKUP($A141,Filtro!$A$5:$AW$2963,6,FALSE),0) -> 0 | H141: =IFERROR(VLOOKUP($A141,Filtro!$A$5:$AW$2963,7,FALSE),0) -> 0 | I141: =IFERROR(VLOOKUP($A141,Filtro!$A$5:$AW$2963,8,FALSE),0) -> 0 | J141: =IFERROR(VLOOKUP($A141,Filtro!$A$5:$AW$2963,9,FALSE),0) -> 1 | K141: =IFERROR(VLOOKUP($A141,Filtro!$A$5:$AW$2963,10,FALSE),0) -> 0 | L141: =IFERROR(VLOOKUP($A141,Filtro!$A$5:$AW$2963,11,FALSE),0) -> 0 | M141: =IFERROR(VLOOKUP($A141,Filtro!$A$5:$AW$2963,12,FALSE),0) -> 0 | CV141: 0
A142: 01610042 | B142: 50 a 54 años | C142: =IFERROR(VLOOKUP($A142,Filtro!$A$5:$AW$2963,2,FALSE),0) -> 34 | D142: =IFERROR(VLOOKUP($A142,Filtro!$A$5:$AW$2963,3,FALSE),0) -> 32 | E142: =IFERROR(VLOOKUP($A142,Filtro!$A$5:$AW$2963,4,FALSE),0) -> 2 | F142: =IFERROR(VLOOKUP($A142,Filtro!$A$5:$AW$2963,5,FALSE),0) -> 0 | G142: =IFERROR(VLOOKUP($A142,Filtro!$A$5:$AW$2963,6,FALSE),0) -> 0 | H142: =IFERROR(VLOOKUP($A142,Filtro!$A$5:$AW$2963,7,FALSE),0) -> 0 | I142: =IFERROR(VLOOKUP($A142,Filtro!$A$5:$AW$2963,8,FALSE),0) -> 0 | J142: =IFERROR(VLOOKUP($A142,Filtro!$A$5:$AW$2963,9,FALSE),0) -> 0 | K142: =IFERROR(VLOOKUP($A142,Filtro!$A$5:$AW$2963,10,FALSE),0) -> 0 | L142: =IFERROR(VLOOKUP($A142,Filtro!$A$5:$AW$2963,11,FALSE),0) -> 0 | M142: =IFERROR(VLOOKUP($A142,Filtro!$A$5:$AW$2963,12,FALSE),0) -> 0 | CV142: 0
A143: 01610043 | B143: 55 a 59 años | C143: =IFERROR(VLOOKUP($A143,Filtro!$A$5:$AW$2963,2,FALSE),0) -> 23 | D143: =IFERROR(VLOOKUP($A143,Filtro!$A$5:$AW$2963,3,FALSE),0) -> 23 | E143: =IFERROR(VLOOKUP($A143,Filtro!$A$5:$AW$2963,4,FALSE),0) -> 0 | F143: =IFERROR(VLOOKUP($A143,Filtro!$A$5:$AW$2963,5,FALSE),0) -> 0 | G143: =IFERROR(VLOOKUP($A143,Filtro!$A$5:$AW$2963,6,FALSE),0) -> 0 | H143: =IFERROR(VLOOKUP($A143,Filtro!$A$5:$AW$2963,7,FALSE),0) -> 0 | I143: =IFERROR(VLOOKUP($A143,Filtro!$A$5:$AW$2963,8,FALSE),0) -> 0 | J143: =IFERROR(VLOOKUP($A143,Filtro!$A$5:$AW$2963,9,FALSE),0) -> 0 | K143: =IFERROR(VLOOKUP($A143,Filtro!$A$5:$AW$2963,10,FALSE),0) -> 0 | L143: =IFERROR(VLOOKUP($A143,Filtro!$A$5:$AW$2963,11,FALSE),0) -> 0 | M143: =IFERROR(VLOOKUP($A143,Filtro!$A$5:$AW$2963,12,FALSE),0) -> 0 | CV143: 0
A144: 01610044 | B144: 60 a 64 años | C144: =IFERROR(VLOOKUP($A144,Filtro!$A$5:$AW$2963,2,FALSE),0) -> 25 | D144: =IFERROR(VLOOKUP($A144,Filtro!$A$5:$AW$2963,3,FALSE),0) -> 22 | E144: =IFERROR(VLOOKUP($A144,Filtro!$A$5:$AW$2963,4,FALSE),0) -> 2 | F144: =IFERROR(VLOOKUP($A144,Filtro!$A$5:$AW$2963,5,FALSE),0) -> 1 | G144: =IFERROR(VLOOKUP($A144,Filtro!$A$5:$AW$2963,6,FALSE),0) -> 0 | H144: =IFERROR(VLOOKUP($A144,Filtro!$A$5:$AW$2963,7,FALSE),0) -> 0 | I144: =IFERROR(VLOOKUP($A144,Filtro!$A$5:$AW$2963,8,FALSE),0) -> 0 | J144: =IFERROR(VLOOKUP($A144,Filtro!$A$5:$AW$2963,9,FALSE),0) -> 0 | K144: =IFERROR(VLOOKUP($A144,Filtro!$A$5:$AW$2963,10,FALSE),0) -> 0 | L144: =IFERROR(VLOOKUP($A144,Filtro!$A$5:$AW$2963,11,FALSE),0) -> 0 | M144: =IFERROR(VLOOKUP($A144,Filtro!$A$5:$AW$2963,12,FALSE),0) -> 0 | CV144: 0
A145: 01610045 | B145: 65 a 69 años | C145: =IFERROR(VLOOKUP($A145,Filtro!$A$5:$AW$2963,2,FALSE),0) -> 14 | D145: =IFERROR(VLOOKUP($A145,Filtro!$A$5:$AW$2963,3,FALSE),0) -> 11 | E145: =IFERROR(VLOOKUP($A145,Filtro!$A$5:$AW$2963,4,FALSE),0) -> 3 | F145: =IFERROR(VLOOKUP($A145,Filtro!$A$5:$AW$2963,5,FALSE),0) -> 0 | G145: =IFERROR(VLOOKUP($A145,Filtro!$A$5:$AW$2963,6,FALSE),0) -> 0 | H145: =IFERROR(VLOOKUP($A145,Filtro!$A$5:$AW$2963,7,FALSE),0) -> 0 | I145: =IFERROR(VLOOKUP($A145,Filtro!$A$5:$AW$2963,8,FALSE),0) -> 0 | J145: =IFERROR(VLOOKUP($A145,Filtro!$A$5:$AW$2963,9,FALSE),0) -> 0 | K145: =IFERROR(VLOOKUP($A145,Filtro!$A$5:$AW$2963,10,FALSE),0) -> 0 | L145: =IFERROR(VLOOKUP($A145,Filtro!$A$5:$AW$2963,11,FALSE),0) -> 0 | M145: =IFERROR(VLOOKUP($A145,Filtro!$A$5:$AW$2963,12,FALSE),0) -> 0 | CV145: 0
A146: 01610046 | B146: 70 a 74 años | C146: =IFERROR(VLOOKUP($A146,Filtro!$A$5:$AW$2963,2,FALSE),0) -> 4 | D146: =IFERROR(VLOOKUP($A146,Filtro!$A$5:$AW$2963,3,FALSE),0) -> 3 | E146: =IFERROR(VLOOKUP($A146,Filtro!$A$5:$AW$2963,4,FALSE),0) -> 1 | F146: =IFERROR(VLOOKUP($A146,Filtro!$A$5:$AW$2963,5,FALSE),0) -> 0 | G146: =IFERROR(VLOOKUP($A146,Filtro!$A$5:$AW$2963,6,FALSE),0) -> 0 | H146: =IFERROR(VLOOKUP($A146,Filtro!$A$5:$AW$2963,7,FALSE),0) -> 0 | I146: =IFERROR(VLOOKUP($A146,Filtro!$A$5:$AW$2963,8,FALSE),0) -> 0 | J146: =IFERROR(VLOOKUP($A146,Filtro!$A$5:$AW$2963,9,FALSE),0) -> 0 | K146: =IFERROR(VLOOKUP($A146,Filtro!$A$5:$AW$2963,10,FALSE),0) -> 0 | L146: =IFERROR(VLOOKUP($A146,Filtro!$A$5:$AW$2963,11,FALSE),0) -> 0 | M146: =IFERROR(VLOOKUP($A146,Filtro!$A$5:$AW$2963,12,FALSE),0) -> 0 | CV146: 0
A147: 01610047 | B147: 75 a 79 años | C147: =IFERROR(VLOOKUP($A147,Filtro!$A$5:$AW$2963,2,FALSE),0) -> 1 | D147: =IFERROR(VLOOKUP($A147,Filtro!$A$5:$AW$2963,3,FALSE),0) -> 1 | E147: =IFERROR(VLOOKUP($A147,Filtro!$A$5:$AW$2963,4,FALSE),0) -> 0 | F147: =IFERROR(VLOOKUP($A147,Filtro!$A$5:$AW$2963,5,FALSE),0) -> 0 | G147: =IFERROR(VLOOKUP($A147,Filtro!$A$5:$AW$2963,6,FALSE),0) -> 0 | H147: =IFERROR(VLOOKUP($A147,Filtro!$A$5:$AW$2963,7,FALSE),0) -> 0 | I147: =IFERROR(VLOOKUP($A147,Filtro!$A$5:$AW$2963,8,FALSE),0) -> 0 | J147: =IFERROR(VLOOKUP($A147,Filtro!$A$5:$AW$2963,9,FALSE),0) -> 0 | K147: =IFERROR(VLOOKUP($A147,Filtro!$A$5:$AW$2963,10,FALSE),0) -> 0 | L147: =IFERROR(VLOOKUP($A147,Filtro!$A$5:$AW$2963,11,FALSE),0) -> 0 | M147: =IFERROR(VLOOKUP($A147,Filtro!$A$5:$AW$2963,12,FALSE),0) -> 0 | CV147: 0
A148: 01610048 | B148: 80 y más años | C148: =IFERROR(VLOOKUP($A148,Filtro!$A$5:$AW$2963,2,FALSE),0) -> 0 | D148: =IFERROR(VLOOKUP($A148,Filtro!$A$5:$AW$2963,3,FALSE),0) -> 0 | E148: =IFERROR(VLOOKUP($A148,Filtro!$A$5:$AW$2963,4,FALSE),0) -> 0 | F148: =IFERROR(VLOOKUP($A148,Filtro!$A$5:$AW$2963,5,FALSE),0) -> 0 | G148: =IFERROR(VLOOKUP($A148,Filtro!$A$5:$AW$2963,6,FALSE),0) -> 0 | H148: =IFERROR(VLOOKUP($A148,Filtro!$A$5:$AW$2963,7,FALSE),0) -> 0 | I148: =IFERROR(VLOOKUP($A148,Filtro!$A$5:$AW$2963,8,FALSE),0) -> 0 | J148: =IFERROR(VLOOKUP($A148,Filtro!$A$5:$AW$2963,9,FALSE),0) -> 0 | K148: =IFERROR(VLOOKUP($A148,Filtro!$A$5:$AW$2963,10,FALSE),0) -> 0 | L148: =IFERROR(VLOOKUP($A148,Filtro!$A$5:$AW$2963,11,FALSE),0) -> 0 | M148: =IFERROR(VLOOKUP($A148,Filtro!$A$5:$AW$2963,12,FALSE),0) -> 0 | CV148: 0
B149: TOTAL | C149: =SUM(D149:L149) -> 293 | D149: =SUM(D136:D148) -> 270 | E149: 15 | F149: 1 | G149: 1 | H149: 2 | I149: 1 | J149: 3 | K149: 0 | L149: 0 | M149: 0
B150: (*) FUENTE DE INFORMACIÓN: CITOWEB U OTRO SISTEMA DE REGISTRO INFORMÁTICO
B151: SECCIÓN H. PROGRAMA DE CANCER DE CUELLO UTERINO: VPH TOMADOS E INFORMADOS SEGÚN RESULTADOS Y GRUPOS DE EDAD (Exámenes tomados en establecimientos de atención primaria que realizan tamizaje, uso APS)
B152: RANGO ETARIO (en años) | C152: TOTAL EXAMEN VPH CONVENCIONAL | D152: RESULTADOS DE VPH CONVENCIONAL INFORMADOS | H152: Total VPH informados en trans masculino | I152: Total Exámen Autotoma de VPH | J152: RESULTADOS DE AUTOTOMA DE VPH INFORMADOS | N152: Total VPH autotoma en trans masculino informados
D153: VPH (-) | E153: Positivos | J153: VPH (-) | K153: Positivos
E154: VPH 16 (+) | F154: VPH 18 (+) | G154: VPH AR* (+) | K154: VPH 16 (+) | L154: VPH 18 (+) | M154: VPH AR* (+)
A155: 01610049 | B155: 30 a 34 años | C155: =IFERROR(VLOOKUP($A155,Filtro!$A$5:$AW$2963,2,FALSE),0) -> 324 | D155: =IFERROR(VLOOKUP($A155,Filtro!$A$5:$AW$2963,3,FALSE),0) -> 263 | E155: =IFERROR(VLOOKUP($A155,Filtro!$A$5:$AW$2963,4,FALSE),0) -> 10 | F155: =IFERROR(VLOOKUP($A155,Filtro!$A$5:$AW$2963,5,FALSE),0) -> 2 | G155: =IFERROR(VLOOKUP($A155,Filtro!$A$5:$AW$2963,6,FALSE),0) -> 59 | H155: =IFERROR(VLOOKUP($A155,Filtro!$A$5:$AW$2963,7,FALSE),0) -> 0 | I155: =IFERROR(VLOOKUP($A155,Filtro!$A$5:$AW$2963,8,FALSE),0) -> 0 | J155: =IFERROR(VLOOKUP($A155,Filtro!$A$5:$AW$2963,9,FALSE),0) -> 1 | K155: =IFERROR(VLOOKUP($A155,Filtro!$A$5:$AW$2963,10,FALSE),0) -> 0 | L155: =IFERROR(VLOOKUP($A155,Filtro!$A$5:$AW$2963,11,FALSE),0) -> 0 | M155: =IFERROR(VLOOKUP($A155,Filtro!$A$5:$AW$2963,12,FALSE),0) -> 0 | N155: =IFERROR(VLOOKUP($A155,Filtro!$A$5:$AW$2963,13,FALSE),0) -> 0 | O155: =$CB155 ->  | CB155: =IF(AND($C155<>0,N155=""),"* No olvide ingresar la variable "&N$152&""&". Digite CERO si no tiene. ",IF(N155>$C155,"* La variable Total PAP informados en trans masculino no debe ser mayor al Total. ","")) ->  | CV155: =IF(AND($C155<>0,N155=""),1,IF(N155>$C155,1,0)) -> 0
A156: 01610050 | B156: 35 a 39 años | C156: =IFERROR(VLOOKUP($A156,Filtro!$A$5:$AW$2963,2,FALSE),0) -> 297 | D156: =IFERROR(VLOOKUP($A156,Filtro!$A$5:$AW$2963,3,FALSE),0) -> 243 | E156: =IFERROR(VLOOKUP($A156,Filtro!$A$5:$AW$2963,4,FALSE),0) -> 17 | F156: =IFERROR(VLOOKUP($A156,Filtro!$A$5:$AW$2963,5,FALSE),0) -> 5 | G156: =IFERROR(VLOOKUP($A156,Filtro!$A$5:$AW$2963,6,FALSE),0) -> 44 | H156: =IFERROR(VLOOKUP($A156,Filtro!$A$5:$AW$2963,7,FALSE),0) -> 1 | I156: =IFERROR(VLOOKUP($A156,Filtro!$A$5:$AW$2963,8,FALSE),0) -> 0 | J156: =IFERROR(VLOOKUP($A156,Filtro!$A$5:$AW$2963,9,FALSE),0) -> 1 | K156: =IFERROR(VLOOKUP($A156,Filtro!$A$5:$AW$2963,10,FALSE),0) -> 0 | L156: =IFERROR(VLOOKUP($A156,Filtro!$A$5:$AW$2963,11,FALSE),0) -> 0 | M156: =IFERROR(VLOOKUP($A156,Filtro!$A$5:$AW$2963,12,FALSE),0) -> 0 | N156: =IFERROR(VLOOKUP($A156,Filtro!$A$5:$AW$2963,13,FALSE),0) -> 0 | CV156: 0
A157: 01610051 | B157: 40 a 44 años | C157: =IFERROR(VLOOKUP($A157,Filtro!$A$5:$AW$2963,2,FALSE),0) -> 235 | D157: =IFERROR(VLOOKUP($A157,Filtro!$A$5:$AW$2963,3,FALSE),0) -> 199 | E157: =IFERROR(VLOOKUP($A157,Filtro!$A$5:$AW$2963,4,FALSE),0) -> 6 | F157: =IFERROR(VLOOKUP($A157,Filtro!$A$5:$AW$2963,5,FALSE),0) -> 1 | G157: =IFERROR(VLOOKUP($A157,Filtro!$A$5:$AW$2963,6,FALSE),0) -> 41 | H157: =IFERROR(VLOOKUP($A157,Filtro!$A$5:$AW$2963,7,FALSE),0) -> 0 | I157: =IFERROR(VLOOKUP($A157,Filtro!$A$5:$AW$2963,8,FALSE),0) -> 0 | J157: =IFERROR(VLOOKUP($A157,Filtro!$A$5:$AW$2963,9,FALSE),0) -> 1 | K157: =IFERROR(VLOOKUP($A157,Filtro!$A$5:$AW$2963,10,FALSE),0) -> 0 | L157: =IFERROR(VLOOKUP($A157,Filtro!$A$5:$AW$2963,11,FALSE),0) -> 0 | M157: =IFERROR(VLOOKUP($A157,Filtro!$A$5:$AW$2963,12,FALSE),0) -> 0 | N157: =IFERROR(VLOOKUP($A157,Filtro!$A$5:$AW$2963,13,FALSE),0) -> 0 | CV157: 0
A158: 01610052 | B158: 45 a 49 años | C158: =IFERROR(VLOOKUP($A158,Filtro!$A$5:$AW$2963,2,FALSE),0) -> 185 | D158: =IFERROR(VLOOKUP($A158,Filtro!$A$5:$AW$2963,3,FALSE),0) -> 163 | E158: =IFERROR(VLOOKUP($A158,Filtro!$A$5:$AW$2963,4,FALSE),0) -> 1 | F158: =IFERROR(VLOOKUP($A158,Filtro!$A$5:$AW$2963,5,FALSE),0) -> 2 | G158: =IFERROR(VLOOKUP($A158,Filtro!$A$5:$AW$2963,6,FALSE),0) -> 18 | H158: =IFERROR(VLOOKUP($A158,Filtro!$A$5:$AW$2963,7,FALSE),0) -> 1 | I158: =IFERROR(VLOOKUP($A158,Filtro!$A$5:$AW$2963,8,FALSE),0) -> 0 | J158: =IFERROR(VLOOKUP($A158,Filtro!$A$5:$AW$2963,9,FALSE),0) -> 0 | K158: =IFERROR(VLOOKUP($A158,Filtro!$A$5:$AW$2963,10,FALSE),0) -> 0 | L158: =IFERROR(VLOOKUP($A158,Filtro!$A$5:$AW$2963,11,FALSE),0) -> 0 | M158: =IFERROR(VLOOKUP($A158,Filtro!$A$5:$AW$2963,12,FALSE),0) -> 0 | N158: =IFERROR(VLOOKUP($A158,Filtro!$A$5:$AW$2963,13,FALSE),0) -> 0 | CV158: 0
A159: 01610053 | B159: 50 a 54 años | C159: =IFERROR(VLOOKUP($A159,Filtro!$A$5:$AW$2963,2,FALSE),0) -> 163 | D159: =IFERROR(VLOOKUP($A159,Filtro!$A$5:$AW$2963,3,FALSE),0) -> 150 | E159: =IFERROR(VLOOKUP($A159,Filtro!$A$5:$AW$2963,4,FALSE),0) -> 1 | F159: =IFERROR(VLOOKUP($A159,Filtro!$A$5:$AW$2963,5,FALSE),0) -> 3 | G159: =IFERROR(VLOOKUP($A159,Filtro!$A$5:$AW$2963,6,FALSE),0) -> 14 | H159: =IFERROR(VLOOKUP($A159,Filtro!$A$5:$AW$2963,7,FALSE),0) -> 2 | I159: =IFERROR(VLOOKUP($A159,Filtro!$A$5:$AW$2963,8,FALSE),0) -> 0 | J159: =IFERROR(VLOOKUP($A159,Filtro!$A$5:$AW$2963,9,FALSE),0) -> 2 | K159: =IFERROR(VLOOKUP($A159,Filtro!$A$5:$AW$2963,10,FALSE),0) -> 0 | L159: =IFERROR(VLOOKUP($A159,Filtro!$A$5:$AW$2963,11,FALSE),0) -> 0 | M159: =IFERROR(VLOOKUP($A159,Filtro!$A$5:$AW$2963,12,FALSE),0) -> 0 | N159: =IFERROR(VLOOKUP($A159,Filtro!$A$5:$AW$2963,13,FALSE),0) -> 0 | CV159: 0
A160: 01610054 | B160: 55 a 59 años | C160: =IFERROR(VLOOKUP($A160,Filtro!$A$5:$AW$2963,2,FALSE),0) -> 136 | D160: =IFERROR(VLOOKUP($A160,Filtro!$A$5:$AW$2963,3,FALSE),0) -> 120 | E160: =IFERROR(VLOOKUP($A160,Filtro!$A$5:$AW$2963,4,FALSE),0) -> 2 | F160: =IFERROR(VLOOKUP($A160,Filtro!$A$5:$AW$2963,5,FALSE),0) -> 1 | G160: =IFERROR(VLOOKUP($A160,Filtro!$A$5:$AW$2963,6,FALSE),0) -> 17 | H160: =IFERROR(VLOOKUP($A160,Filtro!$A$5:$AW$2963,7,FALSE),0) -> 0 | I160: =IFERROR(VLOOKUP($A160,Filtro!$A$5:$AW$2963,8,FALSE),0) -> 0 | J160: =IFERROR(VLOOKUP($A160,Filtro!$A$5:$AW$2963,9,FALSE),0) -> 1 | K160: =IFERROR(VLOOKUP($A160,Filtro!$A$5:$AW$2963,10,FALSE),0) -> 0 | L160: =IFERROR(VLOOKUP($A160,Filtro!$A$5:$AW$2963,11,FALSE),0) -> 0 | M160: =IFERROR(VLOOKUP($A160,Filtro!$A$5:$AW$2963,12,FALSE),0) -> 0 | N160: =IFERROR(VLOOKUP($A160,Filtro!$A$5:$AW$2963,13,FALSE),0) -> 0 | CV160: 0
A161: 01610055 | B161: 60 a 64 años | C161: =IFERROR(VLOOKUP($A161,Filtro!$A$5:$AW$2963,2,FALSE),0) -> 92 | D161: =IFERROR(VLOOKUP($A161,Filtro!$A$5:$AW$2963,3,FALSE),0) -> 80 | E161: =IFERROR(VLOOKUP($A161,Filtro!$A$5:$AW$2963,4,FALSE),0) -> 4 | F161: =IFERROR(VLOOKUP($A161,Filtro!$A$5:$AW$2963,5,FALSE),0) -> 0 | G161: =IFERROR(VLOOKUP($A161,Filtro!$A$5:$AW$2963,6,FALSE),0) -> 12 | H161: =IFERROR(VLOOKUP($A161,Filtro!$A$5:$AW$2963,7,FALSE),0) -> 0 | I161: =IFERROR(VLOOKUP($A161,Filtro!$A$5:$AW$2963,8,FALSE),0) -> 0 | J161: =IFERROR(VLOOKUP($A161,Filtro!$A$5:$AW$2963,9,FALSE),0) -> 3 | K161: =IFERROR(VLOOKUP($A161,Filtro!$A$5:$AW$2963,10,FALSE),0) -> 0 | L161: =IFERROR(VLOOKUP($A161,Filtro!$A$5:$AW$2963,11,FALSE),0) -> 0 | M161: =IFERROR(VLOOKUP($A161,Filtro!$A$5:$AW$2963,12,FALSE),0) -> 0 | N161: =IFERROR(VLOOKUP($A161,Filtro!$A$5:$AW$2963,13,FALSE),0) -> 0 | CV161: 0
A162: 01610056 | B162: 65 a 69 años | C162: =IFERROR(VLOOKUP($A162,Filtro!$A$5:$AW$2963,2,FALSE),0) -> 11 | D162: =IFERROR(VLOOKUP($A162,Filtro!$A$5:$AW$2963,3,FALSE),0) -> 8 | E162: =IFERROR(VLOOKUP($A162,Filtro!$A$5:$AW$2963,4,FALSE),0) -> 0 | F162: =IFERROR(VLOOKUP($A162,Filtro!$A$5:$AW$2963,5,FALSE),0) -> 1 | G162: =IFERROR(VLOOKUP($A162,Filtro!$A$5:$AW$2963,6,FALSE),0) -> 2 | H162: =IFERROR(VLOOKUP($A162,Filtro!$A$5:$AW$2963,7,FALSE),0) -> 0 | I162: =IFERROR(VLOOKUP($A162,Filtro!$A$5:$AW$2963,8,FALSE),0) -> 0 | J162: =IFERROR(VLOOKUP($A162,Filtro!$A$5:$AW$2963,9,FALSE),0) -> 2 | K162: =IFERROR(VLOOKUP($A162,Filtro!$A$5:$AW$2963,10,FALSE),0) -> 0 | L162: =IFERROR(VLOOKUP($A162,Filtro!$A$5:$AW$2963,11,FALSE),0) -> 0 | M162: =IFERROR(VLOOKUP($A162,Filtro!$A$5:$AW$2963,12,FALSE),0) -> 0 | N162: =IFERROR(VLOOKUP($A162,Filtro!$A$5:$AW$2963,13,FALSE),0) -> 0 | CV162: 0
A163: 01610057 | B163: 70 a 74 años | C163: =IFERROR(VLOOKUP($A163,Filtro!$A$5:$AW$2963,2,FALSE),0) -> 0 | D163: =IFERROR(VLOOKUP($A163,Filtro!$A$5:$AW$2963,3,FALSE),0) -> 0 | E163: =IFERROR(VLOOKUP($A163,Filtro!$A$5:$AW$2963,4,FALSE),0) -> 0 | F163: =IFERROR(VLOOKUP($A163,Filtro!$A$5:$AW$2963,5,FALSE),0) -> 0 | G163: =IFERROR(VLOOKUP($A163,Filtro!$A$5:$AW$2963,6,FALSE),0) -> 0 | H163: =IFERROR(VLOOKUP($A163,Filtro!$A$5:$AW$2963,7,FALSE),0) -> 0 | I163: =IFERROR(VLOOKUP($A163,Filtro!$A$5:$AW$2963,8,FALSE),0) -> 0 | J163: =IFERROR(VLOOKUP($A163,Filtro!$A$5:$AW$2963,9,FALSE),0) -> 0 | K163: =IFERROR(VLOOKUP($A163,Filtro!$A$5:$AW$2963,10,FALSE),0) -> 0 | L163: =IFERROR(VLOOKUP($A163,Filtro!$A$5:$AW$2963,11,FALSE),0) -> 0 | M163: =IFERROR(VLOOKUP($A163,Filtro!$A$5:$AW$2963,12,FALSE),0) -> 0 | N163: =IFERROR(VLOOKUP($A163,Filtro!$A$5:$AW$2963,13,FALSE),0) -> 0 | CV163: 0
A164: 01610058 | B164: 75 a 79 años | C164: =IFERROR(VLOOKUP($A164,Filtro!$A$5:$AW$2963,2,FALSE),0) -> 0 | D164: =IFERROR(VLOOKUP($A164,Filtro!$A$5:$AW$2963,3,FALSE),0) -> 0 | E164: =IFERROR(VLOOKUP($A164,Filtro!$A$5:$AW$2963,4,FALSE),0) -> 0 | F164: =IFERROR(VLOOKUP($A164,Filtro!$A$5:$AW$2963,5,FALSE),0) -> 0 | G164: =IFERROR(VLOOKUP($A164,Filtro!$A$5:$AW$2963,6,FALSE),0) -> 0 | H164: =IFERROR(VLOOKUP($A164,Filtro!$A$5:$AW$2963,7,FALSE),0) -> 0 | I164: =IFERROR(VLOOKUP($A164,Filtro!$A$5:$AW$2963,8,FALSE),0) -> 0 | J164: =IFERROR(VLOOKUP($A164,Filtro!$A$5:$AW$2963,9,FALSE),0) -> 0 | K164: =IFERROR(VLOOKUP($A164,Filtro!$A$5:$AW$2963,10,FALSE),0) -> 0 | L164: =IFERROR(VLOOKUP($A164,Filtro!$A$5:$AW$2963,11,FALSE),0) -> 0 | M164: =IFERROR(VLOOKUP($A164,Filtro!$A$5:$AW$2963,12,FALSE),0) -> 0 | N164: =IFERROR(VLOOKUP($A164,Filtro!$A$5:$AW$2963,13,FALSE),0) -> 0 | CV164: 0
A165: 01610059 | B165: 80 y más años | C165: =IFERROR(VLOOKUP($A165,Filtro!$A$5:$AW$2963,2,FALSE),0) -> 1 | D165: =IFERROR(VLOOKUP($A165,Filtro!$A$5:$AW$2963,3,FALSE),0) -> 1 | E165: =IFERROR(VLOOKUP($A165,Filtro!$A$5:$AW$2963,4,FALSE),0) -> 0 | F165: =IFERROR(VLOOKUP($A165,Filtro!$A$5:$AW$2963,5,FALSE),0) -> 0 | G165: =IFERROR(VLOOKUP($A165,Filtro!$A$5:$AW$2963,6,FALSE),0) -> 0 | H165: =IFERROR(VLOOKUP($A165,Filtro!$A$5:$AW$2963,7,FALSE),0) -> 0 | I165: =IFERROR(VLOOKUP($A165,Filtro!$A$5:$AW$2963,8,FALSE),0) -> 0 | J165: =IFERROR(VLOOKUP($A165,Filtro!$A$5:$AW$2963,9,FALSE),0) -> 0 | K165: =IFERROR(VLOOKUP($A165,Filtro!$A$5:$AW$2963,10,FALSE),0) -> 0 | L165: =IFERROR(VLOOKUP($A165,Filtro!$A$5:$AW$2963,11,FALSE),0) -> 0 | M165: =IFERROR(VLOOKUP($A165,Filtro!$A$5:$AW$2963,12,FALSE),0) -> 0 | N165: =IFERROR(VLOOKUP($A165,Filtro!$A$5:$AW$2963,13,FALSE),0) -> 0 | CV165: 0
B166: TOTAL | C166: =SUM(C155:C165) -> 1444 | D166: 1227 | E166: 41 | F166: 15 | G166: 207 | H166: 4 | I166: 0 | J166: 11 | K166: 0 | L166: 0 | M166: 0 | N166: 0
B167: (*) Fuente de información: Citoweb u otro sistema de registro informático.
B168: SECCIÓN H.1 PROGRAMA DE CANCER DE CUELLO UTERINO: RESULTADOS DE VPH INFORMADOS SEGÚN GRUPOS DE EDAD (Exámenes analizados en los laboratorios de la red pública, uso exclusivo laboratorios que procesan)
B169: RANGO ETARIO (en años) | C169: TOTAL | D169: RESULTADOS DE VPH INFORMADOS | H169: Total VPH informados en trans masculino | I169: Total examen VPH autotoma informado
D170: VPH (-) | E170: Positivos
E171: VPH 16 (+) | F171: VPH 18 (+) | G171: VPH AR* (+)
A172: 01610060 | B172: 30 a 34 años | C172: =IFERROR(VLOOKUP($A172,Filtro!$A$5:$AW$2963,2,FALSE),0) -> 7 | D172: =IFERROR(VLOOKUP($A172,Filtro!$A$5:$AW$2963,3,FALSE),0) -> 5 | E172: =IFERROR(VLOOKUP($A172,Filtro!$A$5:$AW$2963,4,FALSE),0) -> 0 | F172: =IFERROR(VLOOKUP($A172,Filtro!$A$5:$AW$2963,5,FALSE),0) -> 0 | G172: =IFERROR(VLOOKUP($A172,Filtro!$A$5:$AW$2963,6,FALSE),0) -> 1 | H172: =IFERROR(VLOOKUP($A172,Filtro!$A$5:$AW$2963,7,FALSE),0) -> 0 | I172: =IFERROR(VLOOKUP($A172,Filtro!$A$5:$AW$2963,8,FALSE),0) -> 0 | J172: =$CB172&CC172 ->  | CB172: =IF(AND($C172<>0,H172=""),"* No olvide ingresar la variable "&H$169&""&". Digite CERO si no tiene. ",IF(H172>$C172,"* La variable Total VPH informados en trans masculino no debe ser mayor al Total. ","")) ->  | CC172: =IF(AND($C172<>0,I172=""),"* No olvide ingresar la variable "&I$169&""&". Digite CERO si no tiene. ",IF(I172>$C172,"* La variable Total examen VPH autotoma informado no debe ser mayor al Total. ","")) ->  | CV172: =IF(AND($C172<>0,H172=""),1,IF(H172>$C172,1,0)) -> 0 | CW172: =IF(AND($C172<>0,I172=""),1,IF(I172>$C172,1,0)) -> 0
A173: 01610061 | B173: 35 a 39 años | C173: =IFERROR(VLOOKUP($A173,Filtro!$A$5:$AW$2963,2,FALSE),0) -> 5 | D173: =IFERROR(VLOOKUP($A173,Filtro!$A$5:$AW$2963,3,FALSE),0) -> 4 | E173: =IFERROR(VLOOKUP($A173,Filtro!$A$5:$AW$2963,4,FALSE),0) -> 0 | F173: =IFERROR(VLOOKUP($A173,Filtro!$A$5:$AW$2963,5,FALSE),0) -> 0 | G173: =IFERROR(VLOOKUP($A173,Filtro!$A$5:$AW$2963,6,FALSE),0) -> 1 | H173: =IFERROR(VLOOKUP($A173,Filtro!$A$5:$AW$2963,7,FALSE),0) -> 0 | I173: =IFERROR(VLOOKUP($A173,Filtro!$A$5:$AW$2963,8,FALSE),0) -> 0 | CV173: 0 | CW173: 0
A174: 01610062 | B174: 40 a 44 años | C174: =IFERROR(VLOOKUP($A174,Filtro!$A$5:$AW$2963,2,FALSE),0) -> 5 | D174: =IFERROR(VLOOKUP($A174,Filtro!$A$5:$AW$2963,3,FALSE),0) -> 4 | E174: =IFERROR(VLOOKUP($A174,Filtro!$A$5:$AW$2963,4,FALSE),0) -> 0 | F174: =IFERROR(VLOOKUP($A174,Filtro!$A$5:$AW$2963,5,FALSE),0) -> 1 | G174: =IFERROR(VLOOKUP($A174,Filtro!$A$5:$AW$2963,6,FALSE),0) -> 0 | H174: =IFERROR(VLOOKUP($A174,Filtro!$A$5:$AW$2963,7,FALSE),0) -> 0 | I174: =IFERROR(VLOOKUP($A174,Filtro!$A$5:$AW$2963,8,FALSE),0) -> 0 | CV174: 0 | CW174: 0
A175: 01610063 | B175: 45 a 49 años | C175: =IFERROR(VLOOKUP($A175,Filtro!$A$5:$AW$2963,2,FALSE),0) -> 3 | D175: =IFERROR(VLOOKUP($A175,Filtro!$A$5:$AW$2963,3,FALSE),0) -> 2 | E175: =IFERROR(VLOOKUP($A175,Filtro!$A$5:$AW$2963,4,FALSE),0) -> 0 | F175: =IFERROR(VLOOKUP($A175,Filtro!$A$5:$AW$2963,5,FALSE),0) -> 0 | G175: =IFERROR(VLOOKUP($A175,Filtro!$A$5:$AW$2963,6,FALSE),0) -> 1 | H175: =IFERROR(VLOOKUP($A175,Filtro!$A$5:$AW$2963,7,FALSE),0) -> 0 | I175: =IFERROR(VLOOKUP($A175,Filtro!$A$5:$AW$2963,8,FALSE),0) -> 0 | CV175: 0 | CW175: 0
A176: 01610064 | B176: 50 a 54 años | C176: =IFERROR(VLOOKUP($A176,Filtro!$A$5:$AW$2963,2,FALSE),0) -> 4 | D176: =IFERROR(VLOOKUP($A176,Filtro!$A$5:$AW$2963,3,FALSE),0) -> 4 | E176: =IFERROR(VLOOKUP($A176,Filtro!$A$5:$AW$2963,4,FALSE),0) -> 0 | F176: =IFERROR(VLOOKUP($A176,Filtro!$A$5:$AW$2963,5,FALSE),0) -> 0 | G176: =IFERROR(VLOOKUP($A176,Filtro!$A$5:$AW$2963,6,FALSE),0) -> 1 | H176: =IFERROR(VLOOKUP($A176,Filtro!$A$5:$AW$2963,7,FALSE),0) -> 0 | I176: =IFERROR(VLOOKUP($A176,Filtro!$A$5:$AW$2963,8,FALSE),0) -> 0 | CV176: 0 | CW176: 0
A177: 01610065 | B177: 55 a 59 años | C177: =IFERROR(VLOOKUP($A177,Filtro!$A$5:$AW$2963,2,FALSE),0) -> 5 | D177: =IFERROR(VLOOKUP($A177,Filtro!$A$5:$AW$2963,3,FALSE),0) -> 5 | E177: =IFERROR(VLOOKUP($A177,Filtro!$A$5:$AW$2963,4,FALSE),0) -> 0 | F177: =IFERROR(VLOOKUP($A177,Filtro!$A$5:$AW$2963,5,FALSE),0) -> 0 | G177: =IFERROR(VLOOKUP($A177,Filtro!$A$5:$AW$2963,6,FALSE),0) -> 1 | H177: =IFERROR(VLOOKUP($A177,Filtro!$A$5:$AW$2963,7,FALSE),0) -> 0 | I177: =IFERROR(VLOOKUP($A177,Filtro!$A$5:$AW$2963,8,FALSE),0) -> 0 | CV177: 0 | CW177: 0
A178: 01610066 | B178: 60 a 64 años | C178: =IFERROR(VLOOKUP($A178,Filtro!$A$5:$AW$2963,2,FALSE),0) -> 1 | D178: =IFERROR(VLOOKUP($A178,Filtro!$A$5:$AW$2963,3,FALSE),0) -> 1 | E178: =IFERROR(VLOOKUP($A178,Filtro!$A$5:$AW$2963,4,FALSE),0) -> 0 | F178: =IFERROR(VLOOKUP($A178,Filtro!$A$5:$AW$2963,5,FALSE),0) -> 0 | G178: =IFERROR(VLOOKUP($A178,Filtro!$A$5:$AW$2963,6,FALSE),0) -> 0 | H178: =IFERROR(VLOOKUP($A178,Filtro!$A$5:$AW$2963,7,FALSE),0) -> 0 | I178: =IFERROR(VLOOKUP($A178,Filtro!$A$5:$AW$2963,8,FALSE),0) -> 0 | CV178: 0 | CW178: 0
A179: 01610067 | B179: 65 a 69 años | C179: =IFERROR(VLOOKUP($A179,Filtro!$A$5:$AW$2963,2,FALSE),0) -> 0 | D179: =IFERROR(VLOOKUP($A179,Filtro!$A$5:$AW$2963,3,FALSE),0) -> 0 | E179: =IFERROR(VLOOKUP($A179,Filtro!$A$5:$AW$2963,4,FALSE),0) -> 0 | F179: =IFERROR(VLOOKUP($A179,Filtro!$A$5:$AW$2963,5,FALSE),0) -> 0 | G179: =IFERROR(VLOOKUP($A179,Filtro!$A$5:$AW$2963,6,FALSE),0) -> 0 | H179: =IFERROR(VLOOKUP($A179,Filtro!$A$5:$AW$2963,7,FALSE),0) -> 0 | I179: =IFERROR(VLOOKUP($A179,Filtro!$A$5:$AW$2963,8,FALSE),0) -> 0 | CV179: 0 | CW179: 0
A180: 01610068 | B180: 70 a 74 años | C180: =IFERROR(VLOOKUP($A180,Filtro!$A$5:$AW$2963,2,FALSE),0) -> 0 | D180: =IFERROR(VLOOKUP($A180,Filtro!$A$5:$AW$2963,3,FALSE),0) -> 0 | E180: =IFERROR(VLOOKUP($A180,Filtro!$A$5:$AW$2963,4,FALSE),0) -> 0 | F180: =IFERROR(VLOOKUP($A180,Filtro!$A$5:$AW$2963,5,FALSE),0) -> 0 | G180: =IFERROR(VLOOKUP($A180,Filtro!$A$5:$AW$2963,6,FALSE),0) -> 0 | H180: =IFERROR(VLOOKUP($A180,Filtro!$A$5:$AW$2963,7,FALSE),0) -> 0 | I180: =IFERROR(VLOOKUP($A180,Filtro!$A$5:$AW$2963,8,FALSE),0) -> 0 | CV180: 0 | CW180: 0
A181: 01610069 | B181: 75 a 79 años | C181: =IFERROR(VLOOKUP($A181,Filtro!$A$5:$AW$2963,2,FALSE),0) -> 0 | D181: =IFERROR(VLOOKUP($A181,Filtro!$A$5:$AW$2963,3,FALSE),0) -> 0 | E181: =IFERROR(VLOOKUP($A181,Filtro!$A$5:$AW$2963,4,FALSE),0) -> 0 | F181: =IFERROR(VLOOKUP($A181,Filtro!$A$5:$AW$2963,5,FALSE),0) -> 0 | G181: =IFERROR(VLOOKUP($A181,Filtro!$A$5:$AW$2963,6,FALSE),0) -> 0 | H181: =IFERROR(VLOOKUP($A181,Filtro!$A$5:$AW$2963,7,FALSE),0) -> 0 | I181: =IFERROR(VLOOKUP($A181,Filtro!$A$5:$AW$2963,8,FALSE),0) -> 0 | CV181: 0 | CW181: 0
A182: 01610070 | B182: 80 y más años | C182: =IFERROR(VLOOKUP($A182,Filtro!$A$5:$AW$2963,2,FALSE),0) -> 0 | D182: =IFERROR(VLOOKUP($A182,Filtro!$A$5:$AW$2963,3,FALSE),0) -> 0 | E182: =IFERROR(VLOOKUP($A182,Filtro!$A$5:$AW$2963,4,FALSE),0) -> 0 | F182: =IFERROR(VLOOKUP($A182,Filtro!$A$5:$AW$2963,5,FALSE),0) -> 0 | G182: =IFERROR(VLOOKUP($A182,Filtro!$A$5:$AW$2963,6,FALSE),0) -> 0 | H182: =IFERROR(VLOOKUP($A182,Filtro!$A$5:$AW$2963,7,FALSE),0) -> 0 | I182: =IFERROR(VLOOKUP($A182,Filtro!$A$5:$AW$2963,8,FALSE),0) -> 0 | CV182: 0 | CW182: 0
B183: TOTAL | C183: =SUM(C172:C182) -> 30 | D183: 25 | E183: 0 | F183: 1 | G183: 5 | H183: 0 | I183: 0
B184: * Agrupados Alto Riesgo
B185: SECCIÓN H.2 PROGRAMA DE CANCER DE CUELLO UTERINO: RESULTADOS DE VPH INFORMADOS SEGÚN GRUPOS DE EDAD (Exámenes analizados en laboratorios de extrasistema, uso del mandante)
B186: RANGO ETARIO (en años) | C186: TOTAL | D186: RESULTADOS DE VPH INFORMADOS | H186: Total VPH informados en trans masculino | I186: Total examen VPH autotoma informado
D187: VPH (-) | E187: Positivos
E188: VPH 16 (+) | F188: VPH 18 (+) | G188: VPH AR (+)
A189: 01610071 | B189: 30 a 34 años | C189: =IFERROR(VLOOKUP($A189,Filtro!$A$5:$AW$2963,2,FALSE),0) -> 2 | D189: =IFERROR(VLOOKUP($A189,Filtro!$A$5:$AW$2963,3,FALSE),0) -> 0 | E189: =IFERROR(VLOOKUP($A189,Filtro!$A$5:$AW$2963,4,FALSE),0) -> 2 | F189: =IFERROR(VLOOKUP($A189,Filtro!$A$5:$AW$2963,5,FALSE),0) -> 0 | G189: =IFERROR(VLOOKUP($A189,Filtro!$A$5:$AW$2963,6,FALSE),0) -> 0 | H189: =IFERROR(VLOOKUP($A189,Filtro!$A$5:$AW$2963,7,FALSE),0) -> 0 | I189: =IFERROR(VLOOKUP($A189,Filtro!$A$5:$AW$2963,8,FALSE),0) -> 0 | J189: =$CB189&CC189 ->  | CB189: =IF(AND($C189<>0,H189=""),"* No olvide ingresar la variable "&H$186&""&". Digite CERO si no tiene. ",IF(H189>$C189,"* La variable Total VPH informados en trans masculino no debe ser mayor al Total. ","")) ->  | CC189: =IF(AND($C189<>0,I189=""),"* No olvide ingresar la variable "&I$186&""&". Digite CERO si no tiene. ",IF(I189>$C189,"* La variable Total examen VPH autotoma informado no debe ser mayor al Total. ","")) ->  | CV189: =IF(AND($C189<>0,H189=""),1,IF(H189>$C189,1,0)) -> 0 | CW189: =IF(AND($C189<>0,I189=""),1,IF(I189>$C189,1,0)) -> 0
A190: 01610072 | B190: 35 a 39 años | C190: =IFERROR(VLOOKUP($A190,Filtro!$A$5:$AW$2963,2,FALSE),0) -> 1 | D190: =IFERROR(VLOOKUP($A190,Filtro!$A$5:$AW$2963,3,FALSE),0) -> 0 | E190: =IFERROR(VLOOKUP($A190,Filtro!$A$5:$AW$2963,4,FALSE),0) -> 0 | F190: =IFERROR(VLOOKUP($A190,Filtro!$A$5:$AW$2963,5,FALSE),0) -> 0 | G190: =IFERROR(VLOOKUP($A190,Filtro!$A$5:$AW$2963,6,FALSE),0) -> 1 | H190: =IFERROR(VLOOKUP($A190,Filtro!$A$5:$AW$2963,7,FALSE),0) -> 0 | I190: =IFERROR(VLOOKUP($A190,Filtro!$A$5:$AW$2963,8,FALSE),0) -> 0 | CV190: 0 | CW190: 0
A191: 01610073 | B191: 40 a 44 años | C191: =IFERROR(VLOOKUP($A191,Filtro!$A$5:$AW$2963,2,FALSE),0) -> 1 | D191: =IFERROR(VLOOKUP($A191,Filtro!$A$5:$AW$2963,3,FALSE),0) -> 1 | E191: =IFERROR(VLOOKUP($A191,Filtro!$A$5:$AW$2963,4,FALSE),0) -> 0 | F191: =IFERROR(VLOOKUP($A191,Filtro!$A$5:$AW$2963,5,FALSE),0) -> 0 | G191: =IFERROR(VLOOKUP($A191,Filtro!$A$5:$AW$2963,6,FALSE),0) -> 0 | H191: =IFERROR(VLOOKUP($A191,Filtro!$A$5:$AW$2963,7,FALSE),0) -> 0 | I191: =IFERROR(VLOOKUP($A191,Filtro!$A$5:$AW$2963,8,FALSE),0) -> 0 | CV191: 0 | CW191: 0
A192: 01610074 | B192: 45 a 49 años | C192: =IFERROR(VLOOKUP($A192,Filtro!$A$5:$AW$2963,2,FALSE),0) -> 1 | D192: =IFERROR(VLOOKUP($A192,Filtro!$A$5:$AW$2963,3,FALSE),0) -> 1 | E192: =IFERROR(VLOOKUP($A192,Filtro!$A$5:$AW$2963,4,FALSE),0) -> 0 | F192: =IFERROR(VLOOKUP($A192,Filtro!$A$5:$AW$2963,5,FALSE),0) -> 0 | G192: =IFERROR(VLOOKUP($A192,Filtro!$A$5:$AW$2963,6,FALSE),0) -> 0 | H192: =IFERROR(VLOOKUP($A192,Filtro!$A$5:$AW$2963,7,FALSE),0) -> 0 | I192: =IFERROR(VLOOKUP($A192,Filtro!$A$5:$AW$2963,8,FALSE),0) -> 0 | CV192: 0 | CW192: 0
A193: 01610075 | B193: 50 a 54 años | C193: =IFERROR(VLOOKUP($A193,Filtro!$A$5:$AW$2963,2,FALSE),0) -> 0 | D193: =IFERROR(VLOOKUP($A193,Filtro!$A$5:$AW$2963,3,FALSE),0) -> 0 | E193: =IFERROR(VLOOKUP($A193,Filtro!$A$5:$AW$2963,4,FALSE),0) -> 0 | F193: =IFERROR(VLOOKUP($A193,Filtro!$A$5:$AW$2963,5,FALSE),0) -> 0 | G193: =IFERROR(VLOOKUP($A193,Filtro!$A$5:$AW$2963,6,FALSE),0) -> 0 | H193: =IFERROR(VLOOKUP($A193,Filtro!$A$5:$AW$2963,7,FALSE),0) -> 0 | I193: =IFERROR(VLOOKUP($A193,Filtro!$A$5:$AW$2963,8,FALSE),0) -> 0 | CV193: 0 | CW193: 0
A194: 01610076 | B194: 55 a 59 años | C194: =IFERROR(VLOOKUP($A194,Filtro!$A$5:$AW$2963,2,FALSE),0) -> 0 | D194: =IFERROR(VLOOKUP($A194,Filtro!$A$5:$AW$2963,3,FALSE),0) -> 0 | E194: =IFERROR(VLOOKUP($A194,Filtro!$A$5:$AW$2963,4,FALSE),0) -> 0 | F194: =IFERROR(VLOOKUP($A194,Filtro!$A$5:$AW$2963,5,FALSE),0) -> 0 | G194: =IFERROR(VLOOKUP($A194,Filtro!$A$5:$AW$2963,6,FALSE),0) -> 0 | H194: =IFERROR(VLOOKUP($A194,Filtro!$A$5:$AW$2963,7,FALSE),0) -> 0 | I194: =IFERROR(VLOOKUP($A194,Filtro!$A$5:$AW$2963,8,FALSE),0) -> 0 | CV194: 0 | CW194: 0
A195: 01610077 | B195: 60 a 64 años | C195: =IFERROR(VLOOKUP($A195,Filtro!$A$5:$AW$2963,2,FALSE),0) -> 0 | D195: =IFERROR(VLOOKUP($A195,Filtro!$A$5:$AW$2963,3,FALSE),0) -> 0 | E195: =IFERROR(VLOOKUP($A195,Filtro!$A$5:$AW$2963,4,FALSE),0) -> 0 | F195: =IFERROR(VLOOKUP($A195,Filtro!$A$5:$AW$2963,5,FALSE),0) -> 0 | G195: =IFERROR(VLOOKUP($A195,Filtro!$A$5:$AW$2963,6,FALSE),0) -> 0 | H195: =IFERROR(VLOOKUP($A195,Filtro!$A$5:$AW$2963,7,FALSE),0) -> 0 | I195: =IFERROR(VLOOKUP($A195,Filtro!$A$5:$AW$2963,8,FALSE),0) -> 0 | CV195: 0 | CW195: 0
A196: 01610078 | B196: 65 a 69 años | C196: =IFERROR(VLOOKUP($A196,Filtro!$A$5:$AW$2963,2,FALSE),0) -> 0 | D196: =IFERROR(VLOOKUP($A196,Filtro!$A$5:$AW$2963,3,FALSE),0) -> 0 | E196: =IFERROR(VLOOKUP($A196,Filtro!$A$5:$AW$2963,4,FALSE),0) -> 0 | F196: =IFERROR(VLOOKUP($A196,Filtro!$A$5:$AW$2963,5,FALSE),0) -> 0 | G196: =IFERROR(VLOOKUP($A196,Filtro!$A$5:$AW$2963,6,FALSE),0) -> 0 | H196: =IFERROR(VLOOKUP($A196,Filtro!$A$5:$AW$2963,7,FALSE),0) -> 0 | I196: =IFERROR(VLOOKUP($A196,Filtro!$A$5:$AW$2963,8,FALSE),0) -> 0 | CV196: 0 | CW196: 0
A197: 01610079 | B197: 70 a 74 años | C197: =IFERROR(VLOOKUP($A197,Filtro!$A$5:$AW$2963,2,FALSE),0) -> 0 | D197: =IFERROR(VLOOKUP($A197,Filtro!$A$5:$AW$2963,3,FALSE),0) -> 0 | E197: =IFERROR(VLOOKUP($A197,Filtro!$A$5:$AW$2963,4,FALSE),0) -> 0 | F197: =IFERROR(VLOOKUP($A197,Filtro!$A$5:$AW$2963,5,FALSE),0) -> 0 | G197: =IFERROR(VLOOKUP($A197,Filtro!$A$5:$AW$2963,6,FALSE),0) -> 0 | H197: =IFERROR(VLOOKUP($A197,Filtro!$A$5:$AW$2963,7,FALSE),0) -> 0 | I197: =IFERROR(VLOOKUP($A197,Filtro!$A$5:$AW$2963,8,FALSE),0) -> 0 | CV197: 0 | CW197: 0
A198: 01610080 | B198: 75 a 79 años | C198: =IFERROR(VLOOKUP($A198,Filtro!$A$5:$AW$2963,2,FALSE),0) -> 0 | D198: =IFERROR(VLOOKUP($A198,Filtro!$A$5:$AW$2963,3,FALSE),0) -> 0 | E198: =IFERROR(VLOOKUP($A198,Filtro!$A$5:$AW$2963,4,FALSE),0) -> 0 | F198: =IFERROR(VLOOKUP($A198,Filtro!$A$5:$AW$2963,5,FALSE),0) -> 0 | G198: =IFERROR(VLOOKUP($A198,Filtro!$A$5:$AW$2963,6,FALSE),0) -> 0 | H198: =IFERROR(VLOOKUP($A198,Filtro!$A$5:$AW$2963,7,FALSE),0) -> 0 | I198: =IFERROR(VLOOKUP($A198,Filtro!$A$5:$AW$2963,8,FALSE),0) -> 0 | CV198: 0 | CW198: 0
A199: 01610081 | B199: 80 y más años | C199: =IFERROR(VLOOKUP($A199,Filtro!$A$5:$AW$2963,2,FALSE),0) -> 0 | D199: =IFERROR(VLOOKUP($A199,Filtro!$A$5:$AW$2963,3,FALSE),0) -> 0 | E199: =IFERROR(VLOOKUP($A199,Filtro!$A$5:$AW$2963,4,FALSE),0) -> 0 | F199: =IFERROR(VLOOKUP($A199,Filtro!$A$5:$AW$2963,5,FALSE),0) -> 0 | G199: =IFERROR(VLOOKUP($A199,Filtro!$A$5:$AW$2963,6,FALSE),0) -> 0 | H199: =IFERROR(VLOOKUP($A199,Filtro!$A$5:$AW$2963,7,FALSE),0) -> 0 | I199: =IFERROR(VLOOKUP($A199,Filtro!$A$5:$AW$2963,8,FALSE),0) -> 0 | CV199: 0 | CW199: 0
B200: TOTAL | C200: =SUM(C189:C199) -> 5 | D200: 2 | E200: 2 | F200: 0 | G200: 1 | H200: 0 | I200: 0
A202: CODIGOS NUEVOS
... 72 more rows

Sheet A02
B1: SERVICIO DE SALUD
B2: =CONCATENATE("COMUNA: ",[1]NOMBRE!B2, " (",[1]NOMBRE!C2,[1]NOMBRE!D2,[1]NOMBRE!E2,[1]NOMBRE!F2,[1]NOMBRE!G2,")") -> COMUNA: ()
B3: =CONCATENATE("ESTABLECIMIENTO/ESTRATEGIA: ", [1]NOMBRE!B3, " (",[1]NOMBRE!C3,[1]NOMBRE!D3,[1]NOMBRE!E3,[1]NOMBRE!F3,[1]NOMBRE!G3,[1]NOMBRE!H3,")") -> ESTABLECIMIENTO/ESTRATEGIA: ()
B4: =CONCATENATE("MES: ",[1]NOMBRE!B6, " (",[1]NOMBRE!C6,[1]NOMBRE!D6,")") -> MES: ()
B5: =CONCATENATE("AÑO: ",[1]NOMBRE!B7) -> AÑO: 2025
B6: REM-A02. EXAMEN DE MEDICINA PREVENTIVA EN MAYORES DE 15 AÑOS
B8: SECCIÓN A: EMP REALIZADO POR PROFESIONAL
B9: PROFESIONAL | C9: TOTAL | F9: 15 - 19 años | H9: 20 - 24 años | J9: 25 - 29 años | L9: 30 - 34 años | N9: 35 - 39 años | P9: 40 - 44 años | R9: 45 - 49 años | T9: 50 - 54 años | V9: 55 - 59 años | X9: 60 - 64 años | Z9: 65 - 69 años | AB9: 70 - 74 años | AD9: 75 - 79 años | AF9: 80 y más años | AH9: Pueblos Originarios | AI9: Migrantes
C10: Ambos Sexos | D10: Hombres | E10: Mujeres | F10: Hombres | G10: Mujeres | H10: Hombres | I10: Mujeres | J10: Hombres | K10: Mujeres | L10: Hombres | M10: Mujeres | N10: Hombres | O10: Mujeres | P10: Hombres | Q10: Mujeres | R10: Hombres | S10: Mujeres | T10: Hombres | U10: Mujeres | V10: Hombres | W10: Mujeres | X10: Hombres | Y10: Mujeres | Z10: Hombres | AA10: Mujeres | AB10: Hombres | AC10: Mujeres | AD10: Hombres | AE10: Mujeres | AF10: Hombres | AG10: Mujeres
B11: TOTAL | C11: =SUM(C12:C17) -> 114010 | D11: 39883 | E11: 74127 | F11: 338 | G11: 802 | H11: 1718 | I11: 3865 | J11: 1995 | K11: 4631 | L11: 2232 | M11: 5289 | N11: 2297 | O11: 5494 | P11: 2249 | Q11: 5133 | R11: 2315 | S11: 5127 | T11: 2439 | U11: 5257 | V11: 2722 | W11: 5233 | X11: 3051 | Y11: 5077 | Z11: 4535 | AA11: 7418 | AB11: 4938 | AC11: 6975 | AD11: 4068 | AE11: 5865 | AF11: 4986 | AG11: 7961 | AH11: 1542 | AI11: 1958
A12: 03030101 | B12: Médico/a | C12: =IFERROR(VLOOKUP($A12,Filtro!$A$5:$AW$2963,2,FALSE),0) -> 3227 | D12: =IFERROR(VLOOKUP($A12,Filtro!$A$5:$AW$2963,3,FALSE),0) -> 1130 | E12: =IFERROR(VLOOKUP($A12,Filtro!$A$5:$AW$2963,4,FALSE),0) -> 2097 | F12: =IFERROR(VLOOKUP($A12,Filtro!$A$5:$AW$2963,5,FALSE),0) -> 11 | G12: =IFERROR(VLOOKUP($A12,Filtro!$A$5:$AW$2963,6,FALSE),0) -> 12 | H12: =IFERROR(VLOOKUP($A12,Filtro!$A$5:$AW$2963,7,FALSE),0) -> 53 | I12: =IFERROR(VLOOKUP($A12,Filtro!$A$5:$AW$2963,8,FALSE),0) -> 76 | J12: =IFERROR(VLOOKUP($A12,Filtro!$A$5:$AW$2963,9,FALSE),0) -> 51 | K12: =IFERROR(VLOOKUP($A12,Filtro!$A$5:$AW$2963,10,FALSE),0) -> 98 | L12: =IFERROR(VLOOKUP($A12,Filtro!$A$5:$AW$2963,11,FALSE),0) -> 47 | M12: =IFERROR(VLOOKUP($A12,Filtro!$A$5:$AW$2963,12,FALSE),0) -> 122 | N12: =IFERROR(VLOOKUP($A12,Filtro!$A$5:$AW$2963,13,FALSE),0) -> 69 | O12: =IFERROR(VLOOKUP($A12,Filtro!$A$5:$AW$2963,14,FALSE),0) -> 181 | P12: =IFERROR(VLOOKUP($A12,Filtro!$A$5:$AW$2963,15,FALSE),0) -> 80 | Q12: =IFERROR(VLOOKUP($A12,Filtro!$A$5:$AW$2963,16,FALSE),0) -> 189 | R12: =IFERROR(VLOOKUP($A12,Filtro!$A$5:$AW$2963,17,FALSE),0) -> 96 | S12: =IFERROR(VLOOKUP($A12,Filtro!$A$5:$AW$2963,18,FALSE),0) -> 238 | T12: =IFERROR(VLOOKUP($A12,Filtro!$A$5:$AW$2963,19,FALSE),0) -> 137 | U12: =IFERROR(VLOOKUP($A12,Filtro!$A$5:$AW$2963,20,FALSE),0) -> 277 | V12: =IFERROR(VLOOKUP($A12,Filtro!$A$5:$AW$2963,21,FALSE),0) -> 218 | W12: =IFERROR(VLOOKUP($A12,Filtro!$A$5:$AW$2963,22,FALSE),0) -> 345 | X12: =IFERROR(VLOOKUP($A12,Filtro!$A$5:$AW$2963,23,FALSE),0) -> 250 | Y12: =IFERROR(VLOOKUP($A12,Filtro!$A$5:$AW$2963,24,FALSE),0) -> 381 | Z12: =IFERROR(VLOOKUP($A12,Filtro!$A$5:$AW$2963,25,FALSE),0) -> 30 | AA12: =IFERROR(VLOOKUP($A12,Filtro!$A$5:$AW$2963,26,FALSE),0) -> 42 | AB12: =IFERROR(VLOOKUP($A12,Filtro!$A$5:$AW$2963,27,FALSE),0) -> 39 | AC12: =IFERROR(VLOOKUP($A12,Filtro!$A$5:$AW$2963,28,FALSE),0) -> 62 | AD12: =IFERROR(VLOOKUP($A12,Filtro!$A$5:$AW$2963,29,FALSE),0) -> 24 | AE12: =IFERROR(VLOOKUP($A12,Filtro!$A$5:$AW$2963,30,FALSE),0) -> 33 | AF12: =IFERROR(VLOOKUP($A12,Filtro!$A$5:$AW$2963,31,FALSE),0) -> 25 | AG12: =IFERROR(VLOOKUP($A12,Filtro!$A$5:$AW$2963,32,FALSE),0) -> 41 | AH12: =IFERROR(VLOOKUP($A12,Filtro!$A$5:$AW$2963,33,FALSE),0) -> 44 | AI12: =IFERROR(VLOOKUP($A12,Filtro!$A$5:$AW$2963,34,FALSE),0) -> 15 | AJ12: =CB12&CC12 ->  | CB12: =IF(AND($C12<>0,AH12=""),"* No olvide ingresar la columna "&AH$9&""&". Digite CERO si no tiene. ",IF(AH12>$C12,"* El Número de Pueblos Originarios no puede superar el Total Ambos Sexos. ","")) ->  | CC12: =IF(AND($C12<>0,AI12=""),"* No olvide ingresar la columna "&AI$9&""&". Digite CERO si no tiene. ",IF(AI12>$C12,"* El Número de Migrantes no puede superar el Total Ambos Sexos. ","")) ->  | CG12: =IF(AND($C12<>0,AH12=""),1,IF(AH12>$C12,1,0)) -> 0 | CH12: 0
A13: 03030102 | B13: Enfermera/o | C13: =IFERROR(VLOOKUP($A13,Filtro!$A$5:$AW$2963,2,FALSE),0) -> 64363 | D13: =IFERROR(VLOOKUP($A13,Filtro!$A$5:$AW$2963,3,FALSE),0) -> 23701 | E13: =IFERROR(VLOOKUP($A13,Filtro!$A$5:$AW$2963,4,FALSE),0) -> 40662 | F13: =IFERROR(VLOOKUP($A13,Filtro!$A$5:$AW$2963,5,FALSE),0) -> 170 | G13: =IFERROR(VLOOKUP($A13,Filtro!$A$5:$AW$2963,6,FALSE),0) -> 308 | H13: =IFERROR(VLOOKUP($A13,Filtro!$A$5:$AW$2963,7,FALSE),0) -> 752 | I13: =IFERROR(VLOOKUP($A13,Filtro!$A$5:$AW$2963,8,FALSE),0) -> 1568 | J13: =IFERROR(VLOOKUP($A13,Filtro!$A$5:$AW$2963,9,FALSE),0) -> 816 | K13: =IFERROR(VLOOKUP($A13,Filtro!$A$5:$AW$2963,10,FALSE),0) -> 1826 | L13: =IFERROR(VLOOKUP($A13,Filtro!$A$5:$AW$2963,11,FALSE),0) -> 1010 | M13: =IFERROR(VLOOKUP($A13,Filtro!$A$5:$AW$2963,12,FALSE),0) -> 2026 | N13: =IFERROR(VLOOKUP($A13,Filtro!$A$5:$AW$2963,13,FALSE),0) -> 943 | O13: =IFERROR(VLOOKUP($A13,Filtro!$A$5:$AW$2963,14,FALSE),0) -> 2179 | P13: =IFERROR(VLOOKUP($A13,Filtro!$A$5:$AW$2963,15,FALSE),0) -> 964 | Q13: =IFERROR(VLOOKUP($A13,Filtro!$A$5:$AW$2963,16,FALSE),0) -> 1967 | R13: =IFERROR(VLOOKUP($A13,Filtro!$A$5:$AW$2963,17,FALSE),0) -> 969 | S13: =IFERROR(VLOOKUP($A13,Filtro!$A$5:$AW$2963,18,FALSE),0) -> 2129 | T13: =IFERROR(VLOOKUP($A13,Filtro!$A$5:$AW$2963,19,FALSE),0) -> 1076 | U13: =IFERROR(VLOOKUP($A13,Filtro!$A$5:$AW$2963,20,FALSE),0) -> 2199 | V13: =IFERROR(VLOOKUP($A13,Filtro!$A$5:$AW$2963,21,FALSE),0) -> 1296 | W13: =IFERROR(VLOOKUP($A13,Filtro!$A$5:$AW$2963,22,FALSE),0) -> 2256 | X13: =IFERROR(VLOOKUP($A13,Filtro!$A$5:$AW$2963,23,FALSE),0) -> 1477 | Y13: =IFERROR(VLOOKUP($A13,Filtro!$A$5:$AW$2963,24,FALSE),0) -> 2394 | Z13: =IFERROR(VLOOKUP($A13,Filtro!$A$5:$AW$2963,25,FALSE),0) -> 3528 | AA13: =IFERROR(VLOOKUP($A13,Filtro!$A$5:$AW$2963,26,FALSE),0) -> 5865 | AB13: =IFERROR(VLOOKUP($A13,Filtro!$A$5:$AW$2963,27,FALSE),0) -> 3863 | AC13: =IFERROR(VLOOKUP($A13,Filtro!$A$5:$AW$2963,28,FALSE),0) -> 5421 | AD13: =IFERROR(VLOOKUP($A13,Filtro!$A$5:$AW$2963,29,FALSE),0) -> 3145 | AE13: =IFERROR(VLOOKUP($A13,Filtro!$A$5:$AW$2963,30,FALSE),0) -> 4616 | AF13: =IFERROR(VLOOKUP($A13,Filtro!$A$5:$AW$2963,31,FALSE),0) -> 3692 | AG13: =IFERROR(VLOOKUP($A13,Filtro!$A$5:$AW$2963,32,FALSE),0) -> 5908 | AH13: =IFERROR(VLOOKUP($A13,Filtro!$A$5:$AW$2963,33,FALSE),0) -> 898 | AI13: =IFERROR(VLOOKUP($A13,Filtro!$A$5:$AW$2963,34,FALSE),0) -> 1185 | CG13: 0 | CH13: 0
A14: 03030103 | B14: Matrona/ón | C14: =IFERROR(VLOOKUP($A14,Filtro!$A$5:$AW$2963,2,FALSE),0) -> 4337 | D14: =IFERROR(VLOOKUP($A14,Filtro!$A$5:$AW$2963,3,FALSE),0) -> 523 | E14: =IFERROR(VLOOKUP($A14,Filtro!$A$5:$AW$2963,4,FALSE),0) -> 3814 | F14: =IFERROR(VLOOKUP($A14,Filtro!$A$5:$AW$2963,5,FALSE),0) -> 57 | G14: =IFERROR(VLOOKUP($A14,Filtro!$A$5:$AW$2963,6,FALSE),0) -> 110 | H14: =IFERROR(VLOOKUP($A14,Filtro!$A$5:$AW$2963,7,FALSE),0) -> 40 | I14: =IFERROR(VLOOKUP($A14,Filtro!$A$5:$AW$2963,8,FALSE),0) -> 366 | J14: =IFERROR(VLOOKUP($A14,Filtro!$A$5:$AW$2963,9,FALSE),0) -> 47 | K14: =IFERROR(VLOOKUP($A14,Filtro!$A$5:$AW$2963,10,FALSE),0) -> 405 | L14: =IFERROR(VLOOKUP($A14,Filtro!$A$5:$AW$2963,11,FALSE),0) -> 33 | M14: =IFERROR(VLOOKUP($A14,Filtro!$A$5:$AW$2963,12,FALSE),0) -> 473 | N14: =IFERROR(VLOOKUP($A14,Filtro!$A$5:$AW$2963,13,FALSE),0) -> 45 | O14: =IFERROR(VLOOKUP($A14,Filtro!$A$5:$AW$2963,14,FALSE),0) -> 442 | P14: =IFERROR(VLOOKUP($A14,Filtro!$A$5:$AW$2963,15,FALSE),0) -> 29 | Q14: =IFERROR(VLOOKUP($A14,Filtro!$A$5:$AW$2963,16,FALSE),0) -> 333 | R14: =IFERROR(VLOOKUP($A14,Filtro!$A$5:$AW$2963,17,FALSE),0) -> 27 | S14: =IFERROR(VLOOKUP($A14,Filtro!$A$5:$AW$2963,18,FALSE),0) -> 476 | T14: =IFERROR(VLOOKUP($A14,Filtro!$A$5:$AW$2963,19,FALSE),0) -> 50 | U14: =IFERROR(VLOOKUP($A14,Filtro!$A$5:$AW$2963,20,FALSE),0) -> 421 | V14: =IFERROR(VLOOKUP($A14,Filtro!$A$5:$AW$2963,21,FALSE),0) -> 40 | W14: =IFERROR(VLOOKUP($A14,Filtro!$A$5:$AW$2963,22,FALSE),0) -> 339 | X14: =IFERROR(VLOOKUP($A14,Filtro!$A$5:$AW$2963,23,FALSE),0) -> 44 | Y14: =IFERROR(VLOOKUP($A14,Filtro!$A$5:$AW$2963,24,FALSE),0) -> 253 | Z14: =IFERROR(VLOOKUP($A14,Filtro!$A$5:$AW$2963,25,FALSE),0) -> 31 | AA14: =IFERROR(VLOOKUP($A14,Filtro!$A$5:$AW$2963,26,FALSE),0) -> 46 | AB14: =IFERROR(VLOOKUP($A14,Filtro!$A$5:$AW$2963,27,FALSE),0) -> 31 | AC14: =IFERROR(VLOOKUP($A14,Filtro!$A$5:$AW$2963,28,FALSE),0) -> 55 | AD14: =IFERROR(VLOOKUP($A14,Filtro!$A$5:$AW$2963,29,FALSE),0) -> 21 | AE14: =IFERROR(VLOOKUP($A14,Filtro!$A$5:$AW$2963,30,FALSE),0) -> 34 | AF14: =IFERROR(VLOOKUP($A14,Filtro!$A$5:$AW$2963,31,FALSE),0) -> 28 | AG14: =IFERROR(VLOOKUP($A14,Filtro!$A$5:$AW$2963,32,FALSE),0) -> 61 | AH14: =IFERROR(VLOOKUP($A14,Filtro!$A$5:$AW$2963,33,FALSE),0) -> 37 | AI14: =IFERROR(VLOOKUP($A14,Filtro!$A$5:$AW$2963,34,FALSE),0) -> 56 | CG14: 0 | CH14: 0
